Workbook

Sheet Control Panel
A1: 1 | B1: Dominion Energy | F1: DEFICIENCY
B2: =F11&" - "&F16 -> Utah - DEC 2021 Adjusted Avg Results | F2: =Report!K13 -> 6422903.045
B3: ="12 Months Ended"&" : "& TEXT(F12,"mmm-yyyy") -> 12 Months Ended : Dec-2021 | F3: ROE
B4: ="Capital Structure"&" : "&F44 -> Capital Structure : 19-057-02 Ordered CAP STR | F4: =+Report!J79 -> 0.09050103213
B9: REPORT CHECK: MUST BE (0) ======> | C9: =IF((SUM(Report!F13:H74)-SUM(Report!I13:I74))<1,"0","ERROR") -> 0 | H9: Dec 2020 Unadjusted Avg Results | J9: DEC 2020 Adjusted Avg Results | L9: DEC 2021 Adjusted Avg Results | N9: DEC 2022 Adjusted Avg Results CET | Q9: Line #
E10: =F10&" - "&"A" -> 6 - A | F10: 6 | H10: 4 | I10: =H10&" - "&"A" -> 4 - A | J10: 5 | K10: =J10&" - "&"A" -> 5 - A | L10: 6 | M10: =L10&" - "&"A" -> 6 - A | N10: 7 | O10: =N10&" - "&"A" -> 7 - A | Q10: 1
B11: Jurisdiction | F11: =HLOOKUP($F$10,Scenarios,Q11,FALSE) -> Utah | H11: Utah | J11: Utah | L11: Utah | N11: Utah | Q11: =Q10+1 -> 2
B12: Scenario Title 1 | F12: =HLOOKUP($F$10,Scenarios,Q12,FALSE) -> 2021-12-31 | H12: 2020-12-31 | J12: 2020-12-31 | L12: 2021-12-31 | N12: 2022-12-31 | Q12: =Q11+1 -> 3
Q13: 4
Q14: 5
Q15: 6
B16: Scenario Title 2 | F16: =HLOOKUP($F$10,Scenarios,Q16,FALSE) -> DEC 2021 Adjusted Avg Results | H16: =+H9 -> Dec 2020 Unadjusted Avg Results | J16: =+J9 -> DEC 2020 Adjusted Avg Results | L16: =+L9 -> DEC 2021 Adjusted Avg Results | N16: =+N9 -> DEC 2022 Adjusted Avg Results CET | Q16: 7
B17: Required Inputs and Factors | Q17: 8
Q18: 9
B19: Return On Equity | F19: =HLOOKUP($F$10,Scenarios,Q19,FALSE) -> 0.095 | H19: 0.0961080881 | J19: 0.0961080881 | L19: 0.095 | N19: 0.095 | Q19: 10
Q20: 11
B21: Lead-Lag Factor | F21: =HLOOKUP($F$10,Scenarios,Q21,FALSE) -> -0.905 | H21: -0.905 | J21: -0.905 | L21: -0.905 | N21: -0.905 | Q21: 12
B22: Bad Debt Ratio | F22: =HLOOKUP($F$10,Scenarios,Q22,FALSE) -> 0.002415237154 | H22: =+'Utah Bad Debt'!$G$17 -> 0.002415237154 | J22: =+'Utah Bad Debt'!$G$17 -> 0.002415237154 | L22: ='Utah Bad Debt'!$G$17 -> 0.002415237154 | N22: ='Utah Bad Debt'!$G$17 -> 0.002415237154 | Q22: =Q21+1 -> 13
Q23: =Q22+1 -> 14
Q24: 15
B25: Adjustments | C25: Go To Adjustment | Q25: 16
Q26: 17
A27: 1 | B27: =+F27 -> AVG RB DEC 2021 | C27: RATE BASE | E27: =HLOOKUP($E$10,Scenarios,Q27,FALSE) -> Y | F27: =HLOOKUP($F$10,Scenarios,Q27,FALSE) -> AVG RB DEC 2021 | H27: AVG RB DEC 2020 | I27: Y | J27: AVG RB DEC 2020 | K27: Y | L27: AVG RB DEC 2021 | M27: Y | N27: AVG RB DEC 2022 | O27: Y | Q27: 18
A28: =+A27+1 -> 2 | B28: Expense Dec 2021 | C28: Expense Adjustment | E28: Y | F28: Expense Dec 2021 | H28: Expense Dec 2020 | I28: N | J28: Expense Dec 2020 | K28: N | L28: Expense Dec 2021 | M28: Y | N28: Expense Dec 2022 | O28: Y | Q28: 19
A29: =+A28+1 -> 3 | B29: =+F29 -> AVG Projected Rev 2021 with CET | C29: REVENUE ADJUSTMENT | E29: Y | F29: AVG Projected Rev 2021 with CET | H29: Booked Rev DEC 2020 | I29: Y | J29: Booked Rev DEC 2020 | K29: Y | L29: AVG Projected Rev 2021 with CET | M29: Y | N29: AVG Projected Rev 2022 with CET | O29: Y | Q29: 20
A30: =+A29+1 -> 4 | B30: Underground Storage | C30: Underground Storage | E30: Y | F30: Underground Storage | H30: Underground Storage | I30: Y | J30: Underground Storage | K30: Y | L30: Underground Storage | M30: Y | N30: Underground Storage | O30: Y | Q30: 21
A31: 5 | B31: Wexpro | C31: Wexpro | E31: Y | F31: Wexpro | H31: Wexpro | I31: Y | J31: Wexpro | K31: Y | L31: Wexpro | M31: Y | N31: Wexpro | O31: Y | Q31: 22
A32: 6 | B32: =+F32 -> Energy Efficiency 2021 | C32: Energy Efficiency | E32: =HLOOKUP($E$10,Scenarios,Q32,FALSE) -> Y | F32: Energy Efficiency 2021 | H32: Energy Efficiency 2020 | I32: Y | J32: Energy Efficiency 2020 | K32: Y | L32: Energy Efficiency 2021 | M32: Y | N32: Energy Efficiency 2022 | O32: Y | Q32: 23
A33: 7 | B33: Utah Bad Debt 2021 | C33: Utah Bad Debt | E33: Y | F33: Utah Bad Debt 2021 | H33: Utah Bad Debt 2020 | I33: N | J33: Utah Bad Debt 2020 | K33: Y | L33: Utah Bad Debt 2021 | M33: Y | N33: Utah Bad Debt 2022 | O33: Y | Q33: 24
A34: 8 | B34: Incentives 2021 | C34: Incentives | E34: Y | F34: Incentives 2021 | H34: Incentives 2020 | I34: N | J34: Incentives 2020 | K34: Y | L34: Incentives 2021 | M34: Y | N34: Incentives 2022 | O34: Y | Q34: 25
A35: 9 | B35: Sporting Events DEC 2021 | C35: Sporting Events | E35: Y | F35: Sporting Events DEC 2021 | H35: Sporting Events DEC 2020 | I35: N | J35: Sporting Events DEC 2020 | K35: Y | L35: Sporting Events DEC 2021 | M35: Y | N35: Sporting Events DEC 2022 | O35: Y | Q35: 26
A36: 10 | B36: Advertising DEC 2021 | C36: Advertising | E36: Y | F36: Advertising DEC 2021 | H36: Advertising DEC 2020 | I36: N | J36: Advertising DEC 2020 | K36: Y | L36: Advertising DEC 2021 | M36: Y | N36: Advertising DEC 2022 | O36: Y | Q36: 27
A37: 11 | B37: Don & Membership DEC 2021 | C37: Donations | E37: Y | F37: Don & Membership DEC 2021 | H37: Don & Membership DEC 2020 | I37: N | J37: Don & Membership DEC 2020 | K37: Y | L37: Don & Membership DEC 2021 | M37: Y | N37: Don & Membership DEC 2022 | O37: Y | Q37: 28
A38: 12 | B38: Reserve Accrual Dec 2021 | C38: RESERVE ACCRUAL | E38: Y | F38: Reserve Accrual Dec 2021 | H38: Reserve Accrual Dec 2020 | I38: N | J38: Reserve Accrual Dec 2020 | K38: Y | L38: Reserve Accrual Dec 2021 | M38: Y | N38: Reserve Accrual Dec 2022 | O38: Y | Q38: 29
A39: 13 | B39: =F39 -> 2021 EDIT Adjustment | C39: Edit Amort 2020 | E39: Y | F39: 2021 EDIT Adjustment | H39: 2020 EDIT Adjustment | I39: N | J39: 2020 EDIT Adjustment | K39: N | L39: 2021 EDIT Adjustment | M39: Y | N39: 2022 EDIT Adjustment | O39: Y | Q39: 30
A40: 14 | B40: Labor Adj | C40: Labor Adj | E40: Y | F40: Labor Adj | H40: Labor Adj | I40: N | J40: Labor Adj | K40: Y | L40: Labor Adj | M40: Y | N40: Labor Adj | O40: Y | Q40: 31
A41: 15 | B41: =F41 -> Pension 2021 | C41: Pension | E41: Y | F41: Pension 2021 | H41: Pension 2020 | I41: N | J41: Pension 2020 | K41: Y | L41: Pension 2021 | M41: Y | N41: Pension 2022 | O41: Y | Q41: 32
A42: =+A41+1 -> 16 | Q42: =Q41+1 -> 33
A43: =+A42+1 -> 17 | Q43: =Q42+1 -> 34
A44: 18 | B44: =+F44 -> 19-057-02 Ordered CAP STR | C44: Capital Structure | F44: =HLOOKUP($F$10,Scenarios,Q44,FALSE) -> 19-057-02 Ordered CAP STR | H44: Weighted Costs 19-057-02 & 13-057-05 | J44: Weighted Costs 19-057-02 & 13-057-05 | L44: 19-057-02 Ordered CAP STR | N44: 19-057-02 Ordered CAP STR | Q44: 35
A45: 19

Sheet Report
A1: ='Control Panel'!$B$1 -> Dominion Energy
A2: ='Control Panel'!$B$2 -> Utah - DEC 2021 Adjusted Avg Results
A3: ='Control Panel'!$B$3 -> 12 Months Ended : Dec-2021 | F3: =+'Control Panel'!$B$3 -> 12 Months Ended : Dec-2021
A4: =+'Control Panel'!B19 -> Return On Equity | D4: =+'Control Panel'!F19 -> 0.095
B5: (A) | F5: (B) | G5: (C) | H5: (D) | I5: (E) | J5: (F) | K5: (G) | L5: (H)
F6: =+'ROR-Model'!F7 -> Historical | H6: =+'ROR-Model'!H7 -> Imputed | I6: =+'ROR-Model'!I7 -> Adjusted | J6: =+'ROR-Model'!W9 -> Utah | L6: =+J6 -> Utah
E7: CHECKS MUST BE (0) | F7: =+'ROR-Model'!F8 -> 12 Months | G7: Adjustments | H7: =+'ROR-Model'!H8 -> Tax | I7: =+'ROR-Model'!I8 -> System | J7: Jurisdiction | L7: Jurisdiction | M7: CHECKS MUST BE (0)
B8: Description | F8: 2020-12-31 | G8: Total | H8: =+'ROR-Model'!H9 -> Adjustment | I8: =+'ROR-Model'!I9 -> Total | J8: DNG Related | K8: Deficiency | L8: Total
A10: 1 | B10: NET INCOME SUMMARY
A12: =+A10+1 -> 2 | B12: Utility Operating Revenue
A13: =+A12+1 -> 3 | D13: System Distribution Non-Gas Revenue | E13: =+F13+G13+H13-I13 -> 0 | F13: =+'ROR-Model'!F363+'ROR-Model'!F365 -> 415353480.4 | G13: =+'ROR-Model'!G363+'ROR-Model'!G365 -> -8703278.036 | H13: =+'ROR-Model'!H363+'ROR-Model'!H365 -> 0 | I13: =+'ROR-Model'!I363+'ROR-Model'!I365 -> 406650202.3 | J13: ='ROR-Model'!W368 -> 393293595.8 | K13: =+K44*Taxes!L47 -> 6422903.045 | L13: =SUM(J13:K13) -> 399716498.9 | M13: =+N13-I13 -> 0 | N13: =SUM(F13:H13) -> 406650202.3
A14: 4 | D14: System Supplier Non-Gas Revenue | E14: 0 | F14: =+'ROR-Model'!F364 -> 83709880.82 | G14: =+'ROR-Model'!G364 -> -419780.82 | H14: =+'ROR-Model'!H364 -> 0 | I14: =+'ROR-Model'!I364 -> 83290100 | L14: =SUM(J14:K14) -> 0 | M14: =+N14-I14 -> 0 | N14: =SUM(F14:H14) -> 83290100
A15: 5 | D15: System Commodity Revenue | E15: 0 | F15: =+'ROR-Model'!F366 -> 405241606.9 | G15: =+'ROR-Model'!G366 -> 1925908.717 | H15: =+'ROR-Model'!H366 -> 0 | I15: =+'ROR-Model'!I366 -> 407167515.6 | L15: =SUM(J15:K15) -> 0 | M15: 0 | N15: 407167515.6
A16: 6 | D16: Pass-Through Related Other Revenue | E16: 0 | F16: ='ROR-Model'!F501+'ROR-Model'!F505 -> 11209544.94 | G16: ='ROR-Model'!G501+'ROR-Model'!G505 -> 0 | H16: ='ROR-Model'!H501+'ROR-Model'!H505 -> 0 | I16: ='ROR-Model'!I501+'ROR-Model'!I505 -> 11209544.94 | L16: =SUM(J16:K16) -> 0 | M16: 0 | N16: 11209544.94
A17: 7 | D17: General Related Other Revenue | E17: 0 | F17: ='ROR-Model'!F502+'ROR-Model'!F506 -> 3742589.425 | G17: ='ROR-Model'!G502+'ROR-Model'!G506 -> 0 | H17: ='ROR-Model'!H502+'ROR-Model'!H506 -> 0 | I17: ='ROR-Model'!I502+'ROR-Model'!I506 -> 3742589.425 | J17: ='ROR-Model'!W509 -> 3597618.077 | L17: =SUM(J17:K17) -> 3597618.077 | M17: 0 | N17: 3742589.425
A18: 8 | C18: Total Utility Operating Revenue | E18: 0 | F18: =SUM(F13:F17) -> 919257102.5 | G18: -7197150.139 | H18: 0 | I18: =SUM(I13:I17) -> 912059952.3 | J18: 396891213.9 | K18: 6422903.045 | L18: 403314116.9 | M18: 0 | N18: 912059952.3
M19: 0 | N19: 0
A20: =+A18+1 -> 9 | B20: Utility Operating Expenses | M20: 0 | N20: 0
A21: =+A20+1 -> 10 | C21: Gas Purchase Expenses | M21: 0 | N21: 0
A22: =+A21+1 -> 11 | D22: Utah | E22: =+F22+G22+H22-I22 -> 0 | F22: ='ROR-Model'!F633+'ROR-Model'!F636 -> 483935220.8 | G22: ='ROR-Model'!G633+'ROR-Model'!G636 -> -72078.96 | H22: ='ROR-Model'!H633+'ROR-Model'!H636 -> 0 | I22: ='ROR-Model'!I633+'ROR-Model'!I636 -> 483863141.9 | L22: =SUM(J22:K22) -> 0 | M22: 0 | N22: 483863141.9
A23: =+A22+1 -> 12 | D23: Wyoming | E23: =+F23+G23+H23-I23 -> 0 | F23: ='ROR-Model'!F635+'ROR-Model'!F637 -> 16225811.84 | G23: ='ROR-Model'!G635+'ROR-Model'!G637 -> 1578206.857 | H23: ='ROR-Model'!H635+'ROR-Model'!H637 -> 0 | I23: ='ROR-Model'!I635+'ROR-Model'!I637 -> 17804018.7 | L23: =SUM(J23:K23) -> 0 | M23: 0 | N23: 17804018.7
A24: =+A23+1 -> 13 | D24: Total | E24: =+F24+G24+H24-I24 -> 0 | F24: =SUM(F22:F23) -> 500161032.7 | G24: 1506127.897 | H24: 0 | I24: 501667160.6 | J24: 0 | K24: 0 | L24: 0 | M24: 0 | N24: 501667160.6
E25: =+F25+G25+H25-I25 -> 0 | M25: 0 | N25: =SUM(F25:H25) -> 0
A26: =A24+1 -> 14 | C26: O&M Expenses | M26: 0 | N26: 0
A27: =+A26+1 -> 15 | D27: Production | E27: =+F27+G27+H27-I27 -> 0 | F27: ='ROR-Model'!F650 -> -302586.2 | G27: ='ROR-Model'!G650 -> 14374.30626 | H27: ='ROR-Model'!H650 -> 0 | I27: ='ROR-Model'!I650 -> -288211.8937 | J27: ='ROR-Model'!W650 -> -278211.9056 | L27: =SUM(J27:K27) -> -278211.9056 | M27: 0 | N27: -288211.8937
A28: 16 | D28: Distribution | E28: 0 | F28: ='ROR-Model'!F753 -> 65096509.53 | G28: ='ROR-Model'!G753 -> 49347.30091 | H28: ='ROR-Model'!H753 -> 0 | I28: ='ROR-Model'!I753 -> 65145856.83 | J28: ='ROR-Model'!W753 -> 62257262.83 | L28: =SUM(J28:K28) -> 62257262.83 | M28: 0 | N28: 65145856.83
A29: 17 | D29: Customer Accounts | E29: 0 | F29: ='ROR-Model'!F806 -> 15585750.23 | G29: ='ROR-Model'!G806 -> -2602539.94 | H29: ='ROR-Model'!H806 -> 0 | I29: ='ROR-Model'!I806 -> 12983210.29 | J29: ='ROR-Model'!W806 -> 12626164.66 | K29: =+K13*'Control Panel'!F22 -> 15512.83407 | L29: =SUM(J29:K29) -> 12641677.49 | M29: 0 | N29: 12983210.29
A30: 18 | D30: Customer Service & Information | E30: 1.28056854e-09 | F30: ='ROR-Model'!F834 -> 29859038.9 | G30: ='ROR-Model'!G834 -> -29877201.24 | H30: ='ROR-Model'!H834 -> 0 | I30: ='ROR-Model'!I834 -> -18162.33575 | J30: ='ROR-Model'!W834 -> -57771.38734 | L30: =SUM(J30:K30) -> -57771.38734 | M30: 1.28056854e-09 | N30: -18162.33575
A31: 19 | D31: Administrative & General | E31: 0 | F31: ='ROR-Model'!F902 -> 33059040.54 | G31: ='ROR-Model'!G902 -> 6842590.847 | H31: ='ROR-Model'!H902 -> 0 | I31: ='ROR-Model'!I902 -> 39901631.39 | J31: ='ROR-Model'!W902 -> 38565253.52 | L31: =SUM(J31:K31) -> 38565253.52 | M31: 0 | N31: 39901631.39
A32: 20 | D32: Total O&M Expense | E32: 0 | F32: =SUM(F27:F31) -> 143297753 | G32: -25573428.72 | H32: 0 | I32: 117724324.3 | J32: 113112697.7 | K32: 15512.83407 | L32: 113128210.5 | M32: 0 | N32: 117724324.3
M33: 0 | N33: 0
A34: =+A32+1 -> 21 | C34: Other Operating Expenses | M34: 0 | N34: 0
A35: =+A34+1 -> 22 | D35: Depreciation, Depletion, Amortization | E35: =+F35+G35+H35-I35 -> 0 | F35: ='ROR-Model'!F926 -> 79488060.46 | G35: ='ROR-Model'!G926 -> 12375454.23 | H35: ='ROR-Model'!H926 -> 0 | I35: ='ROR-Model'!I926 -> 91863514.69 | J35: ='ROR-Model'!W926 -> 88674932.91 | L35: =SUM(J35:K35) -> 88674932.91 | M35: 0 | N35: 91863514.69
A36: =+A35+1 -> 23 | D36: Taxes Other Than Income Taxes | E36: =+F36+G36+H36-I36 -> 0 | F36: ='ROR-Model'!F934 -> 27646876.14 | G36: ='ROR-Model'!G934 -> 1620777.908 | H36: ='ROR-Model'!H934 -> 0 | I36: ='ROR-Model'!I934 -> 29267654.05 | J36: ='ROR-Model'!W934 -> 28160052.21 | L36: =SUM(J36:K36) -> 28160052.21 | M36: 0 | N36: 29267654.05
A37: =+A36+1 -> 24 | D37: Income Taxes | E37: =+F37+G37+H37-I37 -> 0 | F37: ='ROR-Model'!F936+'ROR-Model'!F938+'ROR-Model'!F940+'ROR-Model'!F942 -> 33507112.91 | G37: ='ROR-Model'!G936+'ROR-Model'!G938+'ROR-Model'!G940+'ROR-Model'!G942 -> -5705998.953 | H37: ='ROR-Model'!H936+'ROR-Model'!H938+'ROR-Model'!H940+'ROR-Model'!H942 -> 4929787.47 | I37: ='ROR-Model'!I936+'ROR-Model'!I938+'ROR-Model'!I940+'ROR-Model'!I942 -> 32730901.43 | J37: ='ROR-Model'!W936 -> 31906752.46 | K37: =(K13-K29)*Taxes!L41 -> 1586141.623 | L37: =SUM(J37:K37) -> 33492894.08 | M37: 0 | N37: 32730901.43
A38: =+A37+1 -> 25 | D38: Total Other Operating Expenses | E38: =+F38+G38+H38-I38 -> 0 | F38: =SUM(F35:F37) -> 140642049.5 | G38: 8290233.182 | H38: 4929787.47 | I38: =SUM(I35:I37) -> 153862070.2 | J38: 148741737.6 | K38: 1586141.623 | L38: 150327879.2 | M38: 0 | N38: 153862070.2
M39: 0 | N39: 0
M40: 0 | N40: 0
A41: =+A38+1 -> 26 | C41: Total Utility Operating Expenses | E41: =+F41+G41+H41-I41 -> 0 | F41: =+F24+F32+F38 -> 784100835.2 | G41: =+G24+G32+G38 -> -15777067.64 | H41: 4929787.47 | I41: =+I24+I32+I38 -> 773253555 | J41: 261854435.3 | K41: 1601654.457 | L41: 263456089.7 | M41: 0 | N41: 773253555
M42: 0 | N42: 0
M43: 0 | N43: 0
A44: =+A41+1 -> 27 | B44: NET OPERATING INCOME | E44: =+F44+G44+H44-I44 -> 0 | F44: =+F18-F41 -> 135156267.3 | G44: =+G18-G41 -> 8579917.504 | H44: =+H18-H41 -> -4929787.47 | I44: =+I18-I41 -> 138806397.3 | J44: =+J18-J41 -> 135036778.6 | K44: =+L44-J44 -> 4821248.588 | L44: =L74*L77 -> 139858027.2 | M44: 0 | N44: 138806397.3
M45: 0
A47: =+A44+1 -> 28 | B47: RATE BASE SUMMARY
A49: =+A47+1 -> 29 | B49: Net Utility Plant
A50: =+A49+1 -> 30 | C50: 101 | D50: Gas Plant In Service | E50: =+F50+G50+H50-I50 -> 0 | F50: ='ROR-Model'!F1113 -> 3186353704 | G50: ='ROR-Model'!G1113 -> 295441961.4 | H50: ='ROR-Model'!H1113 -> 0 | I50: ='ROR-Model'!I1113 -> 3481795666 | J50: ='ROR-Model'!W1113 -> 3355110439 | L50: =SUM(J50:K50) -> 3355110439 | M50: =+N50-I50 -> 0 | N50: =SUM(F50:H50) -> 3481795666
A51: 31 | C51: 105 | D51: Gas Plant Held For Future Use | E51: 0 | F51: ='ROR-Model'!F1117 -> 0 | G51: ='ROR-Model'!G1117 -> 0 | H51: ='ROR-Model'!H1117 -> 0 | I51: ='ROR-Model'!I1117 -> 0 | J51: ='ROR-Model'!W1117 -> 0 | L51: 0 | M51: 0 | N51: 0
A52: 32 | C52: 106 | D52: Completed Construction Not Classified | E52: 0 | F52: ='ROR-Model'!F1124 -> 269216927.6 | G52: ='ROR-Model'!G1124 -> -193334771 | H52: ='ROR-Model'!H1124 -> 0 | I52: ='ROR-Model'!I1124 -> 75882156.64 | J52: ='ROR-Model'!W1124 -> 75280592.43 | L52: 75280592.43 | M52: 0 | N52: 75882156.64
A53: 33 | C53: 108 | D53: Accumulated Depreciation | E53: 0 | F53: ='ROR-Model'!F1131 -> -851213105.2 | G53: ='ROR-Model'!G1131 -> -31933670.07 | H53: ='ROR-Model'!H1131 -> 0 | I53: ='ROR-Model'!I1131 -> -883146775.2 | J53: ='ROR-Model'!W1131 -> -841636086.7 | L53: -841636086.7 | M53: 0 | N53: -883146775.2
A54: 34 | C54: 111 | D54: Accumulated Amort & Depletion | E54: 0 | F54: ='ROR-Model'!F1138 -> -6225612.91 | G54: ='ROR-Model'!G1138 -> 387467.4296 | H54: ='ROR-Model'!H1138 -> 0 | I54: ='ROR-Model'!I1138 -> -5838145.48 | J54: ='ROR-Model'!W1138 -> -5627124.95 | L54: -5627124.95 | M54: 0 | N54: -5838145.48
A55: 35 | C55: 254 | D55: Other Regulatory Liabilities ARC | F55: ='ROR-Model'!F1145 -> -411333934.9 | G55: ='ROR-Model'!G1145 -> -19670504.59 | H55: ='ROR-Model'!H1145 -> 0 | I55: ='ROR-Model'!I1145 -> -431004439.5 | J55: ='ROR-Model'!W1145 -> -416290591.2 | L55: -416290591.2
A56: 36 | C56: Total Net Utility Plant | E56: 0 | F56: =SUM(F50:F55) -> 2186797979 | G56: =SUM(G50:G55) -> 50890483.16 | H56: =SUM(H50:H55) -> 0 | I56: =SUM(I50:I55) -> 2237688462 | J56: =SUM(J50:J55) -> 2166837229 | K56: =SUM(K50:K54) -> 0 | L56: =SUM(L50:L55) -> 2166837229 | M56: 0 | N56: 2237688462
M57: 0
A58: =+A56+1 -> 37 | B58: Other Rate Base Accounts | M58: 0
A59: =+A58+1 -> 38 | C59: 154 | D59: Materials & Supplies | E59: =+F59+G59+H59-I59 -> 0 | F59: ='ROR-Model'!F1163 -> 18735930.48 | G59: ='ROR-Model'!G1163 -> 2939112.488 | H59: ='ROR-Model'!H1163 -> 0 | I59: ='ROR-Model'!I1163 -> 21675042.97 | J59: ='ROR-Model'!W1163 -> 21675042.97 | L59: =SUM(J59:K59) -> 21675042.97 | M59: 0 | N59: =SUM(F59:H59) -> 21675042.97
A60: 39 | C60: 164-1 | D60: Gas Stored Underground | E60: 0 | F60: ='ROR-Model'!F1167 -> 45826911.25 | G60: ='ROR-Model'!G1167 -> -45826911.25 | H60: ='ROR-Model'!H1167 -> 0 | I60: ='ROR-Model'!I1167 -> 0 | J60: ='ROR-Model'!W1167 -> 0 | L60: 0 | M60: 0 | N60: 0
A61: 40 | C61: 165 | D61: Prepayments | E61: 0 | F61: ='ROR-Model'!F1171 -> 3526163.53 | G61: ='ROR-Model'!G1171 -> -220502.3708 | H61: ='ROR-Model'!H1171 -> 0 | I61: ='ROR-Model'!I1171 -> 3305661.159 | J61: ='ROR-Model'!W1171 -> 3197258.76 | L61: 3197258.76 | M61: 0 | N61: 3305661.159
A62: 41 | C62: 190008 | D62: Accum Deferred Income Tax Federal | E62: 0 | F62: =+'ROR-Model'!F1178 -> 52271894.81 | G62: =+'ROR-Model'!G1178 -> -1644371.851 | H62: ='ROR-Model'!H1178 -> 0 | I62: =+'ROR-Model'!I1178 -> 50627522.96 | J62: =+'ROR-Model'!W1178 -> 48967296.86 | L62: 48967296.86 | M62: 0 | N62: 50627522.96
A63: 42 | C63: 190009 | D63: Accum Deferred Income Tax State | E63: 0 | F63: =+'ROR-Model'!F1185 -> 12156825.14 | G63: =+'ROR-Model'!G1185 -> -332309.0685 | H63: ='ROR-Model'!H1185 -> 0 | I63: =+'ROR-Model'!I1185 -> 11824516.07 | J63: =+'ROR-Model'!W1185 -> 11436755.24 | L63: 11436755.24 | M63: 0 | N63: 11824516.07
A64: 43 | C64: 235-1 | D64: Customer Deposits | E64: 0 | F64: ='ROR-Model'!F1190 -> -4002191.2 | G64: ='ROR-Model'!G1190 -> 33865.0875 | H64: ='ROR-Model'!H1190 -> 0 | I64: ='ROR-Model'!I1190 -> -3968326.113 | J64: ='ROR-Model'!W1190 -> -3841180.538 | L64: -3841180.538 | M64: 0 | N64: -3968326.113
A65: 44 | C65: 252 | D65: Contributions in Aid of Construction | E65: 0 | F65: =+'ROR-Model'!F1195 -> 0 | G65: ='ROR-Model'!G1195 -> 0 | H65: ='ROR-Model'!H1195 -> 0 | I65: ='ROR-Model'!I1195 -> 0 | J65: ='ROR-Model'!W1195 -> 0 | L65: 0 | M65: 0 | N65: 0
A66: 45 | C66: 253-1 | D66: Unclaimed Customer Deposits | E66: 0 | F66: ='ROR-Model'!F1199 -> -103290.33 | G66: ='ROR-Model'!G1199 -> 4705.258333 | H66: ='ROR-Model'!H1199 -> 0 | I66: ='ROR-Model'!I1199 -> -98585.07167 | J66: ='ROR-Model'!W1199 -> -95352.17581 | L66: -95352.17581 | M66: 0 | N66: -98585.07167
A67: 46 | C67: 255 | D67: Deferred Investment Tax Credits | E67: 0 | F67: ='ROR-Model'!F1206 -> 0 | G67: ='ROR-Model'!G1206 -> 0 | H67: ='ROR-Model'!H1206 -> 0 | I67: ='ROR-Model'!I1206 -> 0 | J67: ='ROR-Model'!W1206 -> 0 | L67: 0 | M67: 0 | N67: 0
A68: 47 | C68: 282 | D68: Accum Deferred Income Taxes | E68: 0 | F68: ='ROR-Model'!F1213+'ROR-Model'!F1220 -> -345512210.8 | G68: ='ROR-Model'!G1213+'ROR-Model'!G1220 -> 39321542.62 | H68: ='ROR-Model'!H1213+'ROR-Model'!H1220 -> 0 | I68: ='ROR-Model'!I1213+'ROR-Model'!I1220 -> -306190668.2 | J68: ='ROR-Model'!W1213+'ROR-Model'!W1220 -> -298121819.8 | L68: -298121819.8 | M68: 0 | N68: -306190668.2
A69: 48 | C69: 186-7 | D69: Deferred Pension Asset | E69: =+F69+G69+H69-I69 -> 0 | F69: ='ROR-Model'!F1224 -> 126101934.4 | G69: ='ROR-Model'!G1224 -> -126101934.4 | H69: ='ROR-Model'!H1224 -> 0 | I69: ='ROR-Model'!I1224 -> 0 | J69: ='ROR-Model'!W1224 -> 0 | L69: =SUM(J69:K69) -> 0
A70: 49 | D70: Working Capital - Cash | F70: ='ROR-Model'!F1264 -> -1732488.584 | G70: ='ROR-Model'!G1264 -> 55237.81991 | H70: ='ROR-Model'!H1264 -> -12223.17167 | I70: ='ROR-Model'!I1264 -> -1689473.936 | J70: ='ROR-Model'!W1264 -> -1629105.734 | L70: =SUM(J70:K70) -> -1629105.734 | M70: 0 | N70: -1689473.936
A71: 50 | C71: Total Other Rate Base Accounts | F71: =SUM(F59:F70) -> -92730521.33 | G71: =SUM(G59:G70) -> -131771565.6 | H71: -12223.17167 | I71: =SUM(I59:I70) -> -224514310.1 | J71: =SUM(J59:J70) -> -218411104.4 | K71: 0 | L71: -218411104.4 | M71: 0 | N71: -224514310.1
M72: 0 | N72: 0
M73: 0 | N73: 0
A74: =+A71+1 -> 51 | B74: TOTAL RATE BASE | F74: =+F56+F71 -> 2094067457 | G74: =+G56+G71 -> -80881082.46 | H74: =+H56+H71 -> -12223.17167 | I74: =+I56+I71 -> 2013174152 | J74: =+J56+J71 -> 1948426124 | L74: =+L56+L71 -> 1948426124 | M74: 0 | N74: 2013174152
M75: 0
E76: =SUM(E13:E74) -> 1.28056854e-09 | M76: 0 | N76: =SUM(F76:H76) -> 0
A77: =+A74+1 -> 52 | B77: RETURN ON RATE BASE | F77: =F44/F74 -> 0.06454246103 | I77: =I44/I74 -> 0.06894902618 | J77: =J44/J74 -> 0.06930556767 | L77: ='Capital Str'!F10 -> 0.07178 | M77: =+N77-I77 -> -0.004406565151 | N77: =SUM(F77:H77) -> 0.06454246103
N78: =SUM(F78:H78) -> 0
A79: =+A77+1 -> 53 | B79: RETURN ON EQUITY | F79: =(F77-'Capital Str'!$F$7)/'Capital Str'!$D$9 -> 0.08184083824 | I79: =(I77-'Capital Str'!$F$7)/'Capital Str'!$D$9 -> 0.08985277488 | J79: =(J77-'Capital Str'!$F$7)/'Capital Str'!$D$9 -> 0.09050103213 | L79: ='Capital Str'!E9 -> 0.095 | M79: =+N79-I79 -> -0.008011936638 | N79: =SUM(F79:H79) -> 0.08184083824

Sheet Report - Comparison
A1: ='Control Panel'!$B$1 -> Dominion Energy
A2: ='Control Panel'!$B$2 -> Utah - DEC 2021 Adjusted Avg Results
A3: ='Control Panel'!$B$3 -> 12 Months Ended : Dec-2021 | F3: 12 Months Ended : Dec-2020 | J3: 2020 | Q3: 12 Months Ended : Dec-2021 | U3: 2021 | Y3: 12 Months Ended : Dec-2022 | AC3: 2022
A4: =+'Control Panel'!B19 -> Return On Equity | D4: =+'Control Panel'!F19 -> 0.095 | AG4: Difference | AH4: Difference | AI4: Difference
B5: (A) | F5: (B) | G5: (C) | H5: (D) | I5: (E) | J5: (F) | K5: (G) | L5: (H) | Q5: (B) | R5: (C) | S5: (D) | T5: (E) | U5: (F) | V5: (G) | W5: (H) | Y5: (B) | Z5: (C) | AA5: (D) | AB5: (E) | AC5: (F) | AD5: (G) | AE5: (H) | AG5: 2020-2021 | AH5: 2021-2022 | AI5: 2020-2022
F6: Historical | H6: Imputed | I6: Adjusted | J6: Utah | L6: Utah | Q6: Historical | S6: Imputed | T6: Adjusted | U6: Utah | W6: Utah | Y6: Historical | AA6: Imputed | AB6: Adjusted | AC6: Utah | AE6: Utah
E7: CHECKS MUST BE (0) | F7: 12 Months | G7: Adjustments | H7: Tax | I7: System | J7: Jurisdiction | L7: Jurisdiction | M7: CHECKS MUST BE (0) | Q7: 12 Months | R7: Adjustments | S7: Tax | T7: System | U7: Jurisdiction | W7: Jurisdiction | Y7: 12 Months | Z7: Adjustments | AA7: Tax | AB7: System | AC7: Jurisdiction | AE7: Jurisdiction
B8: Description | F8: 2018-12-31 | G8: Total | H8: Adjustment | I8: Total | J8: DNG Related | K8: Deficiency | L8: Total | Q8: 2018-12-31 | R8: Total | S8: Adjustment | T8: Total | U8: DNG Related | V8: Deficiency | W8: Total | Y8: 2018-12-31 | Z8: Total | AA8: Adjustment | AB8: Total | AC8: DNG Related | AD8: Deficiency | AE8: Total
A10: 1 | B10: NET INCOME SUMMARY
A12: =+A10+1 -> 2 | B12: Utility Operating Revenue
A13: =+A12+1 -> 3 | D13: System Distribution Non-Gas Revenue | E13: =+F13+G13+H13-I13 -> 0 | F13: 415353480.4 | G13: -26935572.15 | H13: 0 | I13: 388417908.2 | J13: 375590937.2 | K13: 1223602.429 | L13: 376814539.6 | M13: =+N13-I13 -> 0 | N13: =SUM(F13:H13) -> 388417908.2 | Q13: 415353480.4 | R13: -8703278.036 | S13: 0 | T13: 406650202.3 | U13: 393293595.8 | V13: 443189.3028 | W13: 393736785.1 | Y13: 415353480.4 | Z13: 15504345.14 | AA13: 0 | AB13: 430857825.5 | AC13: 417243446.3 | AD13: 31439373.09 | AE13: 448682819.4 | AG13: =U13-J13 -> 17702658.66 | AH13: =AC13-U13 -> 23949850.53 | AI13: =AC13-J13 -> 41652509.19
A14: 4 | D14: System Supplier Non-Gas Revenue | E14: 0 | F14: 83709880.82 | G14: 0 | H14: 0 | I14: 83709880.82 | L14: 0 | M14: =+N14-I14 -> 0 | N14: =SUM(F14:H14) -> 83709880.82 | Q14: 83709880.82 | R14: -419780.82 | S14: 0 | T14: 83290100 | W14: 0 | Y14: 83709880.82 | Z14: -337132.26 | AA14: 0 | AB14: 83372748.56 | AE14: 0 | AG14: 0 | AH14: =AC14-U14 -> 0 | AI14: =AC14-J14 -> 0
A15: 5 | D15: System Commodity Revenue | E15: 0 | F15: 405241606.9 | G15: 0 | H15: 0 | I15: 405241606.9 | L15: 0 | M15: 0 | N15: 405241606.9 | Q15: 405241606.9 | R15: 1925908.717 | S15: 0 | T15: 407167515.6 | W15: 0 | Y15: 405241606.9 | Z15: 3163794.687 | AA15: 0 | AB15: 408405401.6 | AE15: 0 | AG15: 0 | AH15: 0 | AI15: 0
A16: 6 | D16: Pass-Through Related Other Revenue | E16: 0 | F16: 11209544.94 | G16: 0 | H16: 0 | I16: 11209544.94 | L16: 0 | M16: 0 | N16: 11209544.94 | Q16: 11209544.94 | R16: 0 | S16: 0 | T16: 11209544.94 | W16: 0 | Y16: 11209544.94 | Z16: 0 | AA16: 0 | AB16: 11209544.94 | AE16: 0 | AG16: 0 | AH16: 0 | AI16: 0
A17: 7 | D17: General Related Other Revenue | E17: 0 | F17: 3742589.425 | G17: 0 | H17: 0 | I17: 3742589.425 | J17: 3597618.077 | L17: 3597618.077 | M17: 0 | N17: 3742589.425 | Q17: 3742589.425 | R17: 0 | S17: 0 | T17: 3742589.425 | U17: 3597618.077 | W17: 3597618.077 | Y17: 3742589.425 | Z17: 0 | AA17: 0 | AB17: 3742589.425 | AC17: 3597618.077 | AE17: 3597618.077 | AG17: 0 | AH17: 0 | AI17: 0
A18: 8 | C18: Total Utility Operating Revenue | E18: 0 | F18: 919257102.5 | G18: -26935572.15 | H18: 0 | I18: 892321530.3 | J18: 379188555.2 | K18: 1223602.429 | L18: 380412157.7 | M18: 0 | N18: 892321530.3 | Q18: 919257102.5 | R18: -7197150.139 | S18: 0 | T18: 912059952.3 | U18: 396891213.9 | V18: 443189.3028 | W18: 397334403.2 | Y18: 919257102.5 | Z18: 18331007.57 | AA18: 0 | AB18: 937588110 | AC18: 420841064.4 | AD18: 31439373.09 | AE18: 452280437.5 | AG18: 17702658.66 | AH18: 23949850.53 | AI18: 41652509.19
M19: 0 | N19: 0
A20: =+A18+1 -> 9 | B20: Utility Operating Expenses | M20: 0 | N20: 0
A21: =+A20+1 -> 10 | C21: Gas Purchase Expenses | M21: 0 | N21: 0
A22: =+A21+1 -> 11 | D22: Utah | E22: =+F22+G22+H22-I22 -> 0 | F22: 483935220.8 | G22: 0 | H22: 0 | I22: 483935220.8 | L22: 0 | M22: 0 | N22: 483935220.8 | Q22: 483935220.8 | R22: -72078.96 | S22: 0 | T22: 483863141.9 | W22: 0 | Y22: 483935220.8 | Z22: 48809.38 | AA22: 0 | AB22: 483984030.2 | AE22: 0 | AG22: =U22-J22 -> 0 | AH22: =AC22-U22 -> 0 | AI22: =AC22-J22 -> 0
A23: =+A22+1 -> 12 | D23: Wyoming | E23: =+F23+G23+H23-I23 -> 0 | F23: 16225811.84 | G23: 0 | H23: 0 | I23: 16225811.84 | L23: 0 | M23: 0 | N23: 16225811.84 | Q23: 16225811.84 | R23: 1578206.857 | S23: 0 | T23: 17804018.7 | W23: 0 | Y23: 16225811.84 | Z23: 2777853.047 | AA23: 0 | AB23: 19003664.89 | AE23: 0 | AG23: =U23-J23 -> 0 | AH23: 0 | AI23: 0
A24: =+A23+1 -> 13 | D24: Total | E24: =+F24+G24+H24-I24 -> 0 | F24: 500161032.7 | G24: 0 | H24: 0 | I24: 500161032.7 | J24: 0 | K24: 0 | L24: 0 | M24: 0 | N24: 500161032.7 | Q24: 500161032.7 | R24: 1506127.897 | S24: 0 | T24: 501667160.6 | U24: 0 | V24: 0 | W24: 0 | Y24: 500161032.7 | Z24: 2826662.427 | AA24: 0 | AB24: 502987695.1 | AC24: 0 | AD24: 0 | AE24: 0 | AG24: =U24-J24 -> 0 | AH24: 0 | AI24: 0
E25: =+F25+G25+H25-I25 -> 0 | M25: 0 | N25: =SUM(F25:H25) -> 0
A26: =A24+1 -> 14 | C26: O&M Expenses | M26: 0 | N26: 0
A27: =+A26+1 -> 15 | D27: Production | E27: =+F27+G27+H27-I27 -> 0 | F27: -302586.2 | G27: 0 | H27: 0 | I27: -302586.2 | J27: -292087.4715 | L27: -292087.4715 | M27: 0 | N27: -302586.2 | Q27: -302586.2 | R27: 14374.30626 | S27: 0 | T27: -288211.8937 | U27: -278211.9056 | W27: -278211.9056 | Y27: -302586.2 | Z27: 11728.52108 | AA27: 0 | AB27: -290857.6789 | AC27: -280765.8909 | AE27: -280765.8909 | AG27: =U27-J27 -> 13875.56594 | AH27: =AC27-U27 -> -2553.985293 | AI27: =AC27-J27 -> 11321.58065
A28: 16 | D28: Distribution | E28: 0 | F28: 65096509.53 | G28: 0 | H28: 0 | I28: 65096509.53 | J28: 62098326.63 | L28: 62098326.63 | M28: 0 | N28: 65096509.53 | Q28: 65096509.53 | R28: 49347.30091 | S28: 0 | T28: 65145856.83 | U28: 62257262.83 | W28: 62257262.83 | Y28: 65096509.53 | Z28: 2803260.249 | AA28: 0 | AB28: 67899769.78 | AC28: 64874687.56 | AE28: 64874687.56 | AG28: 158936.1961 | AH28: 2617424.736 | AI28: 2776360.932
A29: 17 | D29: Customer Accounts | E29: 0 | F29: 15585750.23 | G29: -3374826.569 | H29: 0 | I29: 12210923.66 | J29: 11874630.95 | K29: 2955.290049 | L29: 11877586.24 | M29: 0 | N29: 12210923.66 | Q29: 15585750.23 | R29: -2602539.94 | S29: 0 | T29: 12983210.29 | U29: 12626164.66 | V29: 1070.40727 | W29: 12627235.06 | Y29: 15585750.23 | Z29: -1595578.605 | AA29: 0 | AB29: 13990171.63 | AC29: 13607100.69 | AD29: 75933.54198 | AE29: 13683034.23 | AG29: 751533.7061 | AH29: 980936.0283 | AI29: 1732469.734
A30: 18 | D30: Customer Service & Information | E30: 0 | F30: 29859038.9 | G30: -26935572.15 | H30: 0 | I30: 2923466.75 | J30: 2848406.97 | L30: 2848406.97 | M30: 0 | N30: 2923466.75 | Q30: 29859038.9 | R30: -29877201.24 | S30: 0 | T30: -18162.33575 | U30: -57771.38734 | W30: -57771.38734 | Y30: 29859038.9 | Z30: -29750171.16 | AA30: 0 | AB30: 108867.7384 | AC30: 67413.71782 | AE30: 67413.71782 | AG30: -2906178.357 | AH30: 125185.1052 | AI30: -2780993.252
A31: 19 | D31: Administrative & General | E31: 0 | F31: 33059040.54 | G31: 7843237.943 | H31: 0 | I31: 40902278.48 | J31: 39636003.11 | L31: 39636003.11 | M31: 0 | N31: 40902278.48 | Q31: 33059040.54 | R31: 6842590.847 | S31: 0 | T31: 39901631.39 | U31: 38565237.25 | W31: 38565237.25 | Y31: 33059040.54 | Z31: 9131422.116 | AA31: 0 | AB31: 42190462.66 | AC31: 40782412.09 | AE31: 40782412.09 | AG31: -1070765.86 | AH31: 2217174.836 | AI31: 1146408.976
A32: 20 | D32: Total O&M Expense | E32: 0 | F32: 143297753 | G32: -22467160.78 | H32: 0 | I32: 120830592.2 | J32: 116165280.2 | K32: 2955.290049 | L32: 116168235.5 | M32: 0 | N32: 120830592.2 | Q32: 143297753 | R32: -25573428.72 | S32: 0 | T32: 117724324.3 | U32: 113112681.4 | V32: 1070.40727 | W32: 113113751.9 | Y32: 143297753 | Z32: -19399338.88 | AA32: 0 | AB32: 123898414.1 | AC32: 119050848.2 | AD32: 75933.54198 | AE32: 119126781.7 | AG32: -3052598.749 | AH32: 5938166.72 | AI32: 2885567.971
M33: 0 | N33: 0
A34: =+A32+1 -> 21 | C34: Other Operating Expenses | M34: 0 | N34: 0
A35: =+A34+1 -> 22 | D35: Depreciation, Depletion, Amortization | E35: =+F35+G35+H35-I35 -> 0 | F35: 79488060.46 | G35: 0 | H35: 0 | I35: 79488060.46 | J35: 76766999.26 | L35: 76766999.26 | M35: 0 | N35: 79488060.46 | Q35: 79488060.46 | R35: 10818400.97 | S35: 0 | T35: 90306461.43 | U35: 87167046.04 | W35: 87167046.04 | Y35: 79488060.46 | Z35: 30576145.12 | AA35: 0 | AB35: 110064205.6 | AC35: 104244106.4 | AE35: 106261349.7 | AG35: =U35-J35 -> 10400046.78 | AH35: =AC35-U35 -> 17077060.41 | AI35: =AC35-J35 -> 27477107.18
A36: =+A35+1 -> 23 | D36: Taxes Other Than Income Taxes | E36: =+F36+G36+H36-I36 -> 0 | F36: 27646876.14 | G36: 0 | H36: 0 | I36: 27646876.14 | J36: 26600761.84 | L36: 26600761.84 | M36: 0 | N36: 27646876.14 | Q36: 27646876.14 | R36: 1195378.888 | S36: 0 | T36: 28842255.03 | U36: 27750703.96 | W36: 27750703.96 | Y36: 27646876.14 | Z36: 5032090.802 | AA36: 0 | AB36: 32678966.94 | AC36: 31169276.1 | AE36: 31441571.83 | AG36: =U36-J36 -> 1149942.118 | AH36: 3418572.14 | AI36: 4568514.258
A37: =+A36+1 -> 24 | D37: Income Taxes | E37: =+F37+G37+H37-I37 -> 0 | F37: 33507112.91 | G37: -1106149.78 | H37: -1168316.337 | I37: 31232646.79 | J37: 30415777.21 | K37: 302169.7089 | L37: 30717946.91 | M37: 0 | N37: 31232646.79 | Q37: 33507112.91 | R37: -5215245.311 | S37: 5155228.436 | T37: 33447096.04 | U37: 32601335.7 | V37: 109445.9928 | W37: 32710781.69 | Y37: 33507112.91 | Z37: -6591844.942 | AA37: 3658331.597 | AB37: 30573599.56 | AC37: 30689431.25 | AD37: 7763981.166 | AE37: 37762768.69 | AG37: =U37-J37 -> 2185558.495 | AH37: -1911904.449 | AI37: 273654.0465
A38: =+A37+1 -> 25 | D38: Total Other Operating Expenses | E38: =+F38+G38+H38-I38 -> 0 | F38: 140642049.5 | G38: -1106149.78 | H38: -1168316.337 | I38: 138367583.4 | J38: 133783538.3 | K38: 302169.7089 | L38: 134085708 | M38: 0 | N38: 138367583.4 | Q38: 140642049.5 | R38: 6798534.543 | S38: 5155228.436 | T38: 152595812.5 | U38: 147519085.7 | V38: 109445.9928 | W38: 147628531.7 | Y38: 140642049.5 | Z38: 29016390.98 | AA38: 3658331.597 | AB38: 173316772.1 | AC38: 166102813.8 | AD38: 7763981.166 | AE38: 175465690.2 | AG38: =U38-J38 -> 13735547.39 | AH38: 18583728.1 | AI38: 32319275.49
M39: 0 | N39: 0
M40: 0 | N40: 0
A41: =+A38+1 -> 26 | C41: Total Utility Operating Expenses | E41: =+F41+G41+H41-I41 -> 0 | F41: 784100835.2 | G41: -23573310.56 | H41: -1168316.337 | I41: 759359208.3 | J41: 249948818.5 | K41: 305124.999 | L41: 250253943.5 | M41: 0 | N41: 759359208.3 | Q41: 784100835.2 | R41: -17268766.28 | S41: 5155228.436 | T41: 771987297.3 | U41: 260631767.1 | V41: 110516.4 | W41: 260742283.5 | Y41: 784100835.2 | Z41: 12443714.52 | AA41: 3658331.597 | AB41: 800202881.3 | AC41: 285153662 | AD41: 7839914.708 | AE41: 294592471.9 | AG41: =U41-J41 -> 10682948.64 | AH41: =AC41-U41 -> 24521894.82 | AI41: =AC41-J41 -> 35204843.46
M42: 0 | N42: 0
M43: 0 | N43: 0
A44: =+A41+1 -> 27 | B44: NET OPERATING INCOME | E44: =+F44+G44+H44-I44 -> 0 | F44: 135156267.3 | G44: -3362261.595 | H44: 1168316.337 | I44: 132962322 | J44: 129239736.7 | K44: 918477.4303 | L44: 130158214.2 | M44: 0 | N44: 132962322 | Q44: 135156267.3 | R44: 10071616.14 | S44: -5155228.436 | T44: 140072655 | U44: 136259446.8 | V44: 332672.9028 | W44: 136592119.7 | Y44: 135156267.3 | Z44: 5887293.047 | AA44: -3658331.597 | AB44: 137385228.7 | AC44: 135687402.5 | AD44: 23599458.38 | AE44: 157687965.6 | AG44: =U44-J44 -> 7019710.018 | AH44: -572044.2872 | AI44: =AC44-J44 -> 6447665.731
M45: 0
A47: =+A44+1 -> 28 | B47: RATE BASE SUMMARY
A49: =+A47+1 -> 29 | B49: Net Utility Plant
A50: =+A49+1 -> 30 | C50: 101 | D50: Gas Plant In Service | E50: =+F50+G50+H50-I50 -> 0 | F50: 3186353704 | G50: -44098675.17 | H50: 0 | I50: 3142255029 | J50: 3026014865 | L50: 3026014865 | M50: =+N50-I50 -> 0 | N50: =SUM(F50:H50) -> 3142255029 | Q50: 3186353704 | R50: 230137497.5 | S50: 0 | T50: 3416491202 | U50: 3291897868 | W50: 3291897868 | Y50: 3186353704 | Z50: 739784150.3 | AA50: 0 | AB50: 3926137854 | AC50: 3750774631 | AE50: 3779670342 | AG50: =U50-J50 -> 265883002.7 | AH50: =AC50-U50 -> 458876762.9 | AI50: =AC50-J50 -> 724759765.6
A51: 31 | C51: 105 | D51: Gas Plant Held For Future Use | E51: 0 | F51: 0 | G51: 0 | H51: 0 | I51: 0 | J51: 0 | L51: 0 | M51: 0 | N51: 0 | Q51: 0 | R51: 0 | S51: 0 | T51: 0 | U51: 0 | W51: 0 | Y51: 0 | Z51: 0 | AA51: 0 | AB51: 0 | AC51: 0 | AE51: 0 | AG51: 0 | AH51: 0 | AI51: =AC51-J51 -> 0
A52: 32 | C52: 106 | D52: Completed Construction Not Classified | E52: 0 | F52: 269216927.6 | G52: -109986147.8 | H52: 0 | I52: 159230779.8 | J52: 158047383.1 | L52: 158047383.1 | M52: 0 | N52: 159230779.8 | Q52: 269216927.6 | R52: -193334771 | S52: 0 | T52: 75882156.64 | U52: 75280540.04 | W52: 75280540.04 | Y52: 269216927.6 | Z52: -269216927.6 | AA52: 0 | AB52: 0 | AC52: 0 | AE52: 0 | AG52: -82766843.04 | AH52: -75280540.04 | AI52: -158047383.1
A53: 33 | C53: 108 | D53: Accumulated Depreciation | E53: 0 | F53: -851213105.2 | G53: 23170823.95 | H53: 0 | I53: -828042281.2 | J53: -790197792.8 | L53: -790197792.8 | M53: 0 | N53: -828042281.2 | Q53: -851213105.2 | R53: -25898729.66 | S53: 0 | T53: -877111834.8 | U53: -835886075.8 | W53: -835886075.8 | Y53: -851213105.2 | Z53: -109393542.5 | AA53: 0 | AB53: -960606647.6 | AC53: -911981854.8 | AE53: -915349948.5 | AG53: -45688283 | AH53: -76095779.05 | AI53: -121784062.1
A54: 34 | C54: 111 | D54: Accumulated Amort & Depletion | E54: 0 | F54: -6225612.91 | G54: 387467.4296 | H54: 0 | I54: -5838145.48 | J54: -5627125.595 | L54: -5627125.595 | M54: 0 | N54: -5838145.48 | Q54: -6225612.91 | R54: 387467.4296 | S54: 0 | T54: -5838145.48 | U54: -5627124.753 | W54: -5627124.753 | Y54: -6225612.91 | Z54: 387467.4296 | AA54: 0 | AB54: -5838145.48 | AC54: -5627122.434 | AE54: -5627122.434 | AG54: 0.8416085308 | AH54: 2.31882585 | AI54: 3.160434381
A55: 35 | C55: 254 | D55: Other Regulatory Liabilities ARC | F55: -411333934.9 | G55: 15344242.02 | H55: 0 | I55: -395989692.9 | J55: -382630097.7 | L55: -382630097.7 | Q55: -411333934.9 | R55: -1703421.543 | S55: 0 | T55: -413037356.5 | U55: -398932095.9 | W55: -398932095.9 | Y55: -411333934.9 | Z55: -13247783.23 | AA55: 0 | AB55: -424581718.1 | AC55: -409742852 | AE55: -409960400.8 | AG55: -16301998.15 | AH55: -10810756.08 | AI55: -27112754.24
A56: 36 | C56: Total Net Utility Plant | E56: 0 | F56: 2186797979 | G56: -115182289.6 | H56: 0 | I56: 2071615689 | J56: 2005607232 | K56: 0 | L56: 2005607232 | M56: 0 | N56: 2071615689 | Q56: 2186797979 | R56: 9588042.755 | S56: 0 | T56: 2196386022 | U56: 2126733111 | V56: 0 | W56: 2126733111 | Y56: 2186797979 | Z56: 348313364.4 | AA56: 0 | AB56: 2535111343 | AC56: 2423422801 | AD56: 0 | AE56: 2448732870 | AG56: 121125879.3 | AH56: 296689690.1 | AI56: 417815569.4
M57: 0
A58: =+A56+1 -> 37 | B58: Other Rate Base Accounts | M58: 0
A59: =+A58+1 -> 38 | C59: 154 | D59: Materials & Supplies | E59: =+F59+G59+H59-I59 -> 0 | F59: 18735930.48 | G59: 2462372.388 | H59: 0 | I59: 21198302.87 | J59: 21198302.87 | L59: 21198302.87 | M59: 0 | N59: =SUM(F59:H59) -> 21198302.87 | Q59: 18735930.48 | R59: 2939112.488 | S59: 0 | T59: 21675042.97 | U59: 21675042.97 | W59: 21675042.97 | Y59: 18735930.48 | Z59: 3767120.32 | AA59: 0 | AB59: 22503050.8 | AC59: 22503050.8 | AE59: 22503050.8 | AG59: =U59-J59 -> 476740.0996 | AH59: =AC59-U59 -> 828007.8325 | AI59: =AC59-J59 -> 1304747.932
A60: 39 | C60: 164-1 | D60: Gas Stored Underground | E60: 0 | F60: 45826911.25 | G60: -45826911.25 | H60: 0 | I60: 0 | J60: 0 | L60: 0 | M60: 0 | N60: 0 | Q60: 45826911.25 | R60: -45826911.25 | S60: 0 | T60: 0 | U60: 0 | W60: 0 | Y60: 45826911.25 | Z60: -45826911.25 | AA60: 0 | AB60: 0 | AC60: 0 | AE60: 0 | AG60: 0 | AH60: 0 | AI60: 0
A61: 40 | C61: 165 | D61: Prepayments | E61: 0 | F61: 3526163.53 | G61: -376618.3887 | H61: 0 | I61: 3149545.141 | J61: 3046618.063 | L61: 3046618.063 | M61: 0 | N61: 3149545.141 | Q61: 3526163.53 | R61: -220502.3708 | S61: 0 | T61: 3305661.159 | U61: 3197145.008 | W61: 3197145.008 | Y61: 3526163.53 | Z61: -220502.3708 | AA61: 0 | AB61: 3305661.159 | AC61: 3195802.648 | AE61: 3195802.648 | AG61: 150526.945 | AH61: -1342.360191 | AI61: 149184.5848
A62: 41 | C62: 190008 | D62: Accum Deferred Income Tax Federal | E62: 0 | F62: 52271894.81 | G62: -24581101.7 | H62: 0 | I62: 27690793.11 | J62: 26785858.5 | L62: 26785858.5 | M62: 0 | N62: 27690793.11 | Q62: 52271894.81 | R62: -1651707.332 | S62: 0 | T62: 50620187.48 | U62: 48958460.02 | W62: 48958460.02 | Y62: 52271894.81 | Z62: -21133919.47 | AA62: 0 | AB62: 31137975.34 | AC62: 30103153.12 | AE62: 30103153.12 | AG62: 22172601.52 | AH62: -18855306.9 | AI62: 3317294.628
A63: 42 | C63: 190009 | D63: Accum Deferred Income Tax State | E63: 0 | F63: 12156825.14 | G63: -5691131.029 | H63: 0 | I63: 6465694.111 | J63: 6254395.344 | L63: 6254395.344 | M63: 0 | N63: 6465694.111 | Q63: 12156825.14 | R63: -337482.6091 | S63: 0 | T63: 11819342.53 | U63: 11431344.64 | W63: 11431344.64 | Y63: 12156825.14 | Z63: -2625581.232 | AA63: 0 | AB63: 9531243.908 | AC63: 9214487.829 | AE63: 9214487.829 | AG63: 5176949.295 | AH63: -2216856.81 | AI63: 2960092.485
A64: 43 | C64: 235-1 | D64: Customer Deposits | E64: 0 | F64: -4002191.2 | G64: 824915.0358 | H64: 0 | I64: -3177276.164 | J64: -3063318.622 | L64: -3063318.622 | M64: 0 | N64: -3177276.164 | Q64: -4002191.2 | R64: 33865.0875 | S64: 0 | T64: -3968326.113 | U64: -3841180.538 | W64: -3841180.538 | Y64: -4002191.2 | Z64: 33865.0875 | AA64: 0 | AB64: -3968326.113 | AC64: -3841180.538 | AE64: -3841180.538 | AG64: -777861.9163 | AH64: 0 | AI64: -777861.9163
A65: 44 | C65: 252 | D65: Contributions in Aid of Construction | E65: 0 | F65: 0 | G65: 0 | H65: 0 | I65: 0 | J65: 0 | L65: 0 | M65: 0 | N65: 0 | Q65: 0 | R65: 0 | S65: 0 | T65: 0 | U65: 0 | W65: 0 | Y65: 0 | Z65: 0 | AA65: 0 | AB65: 0 | AC65: 0 | AE65: 0 | AG65: 0 | AH65: 0 | AI65: 0
A66: 45 | C66: 253-1 | D66: Unclaimed Customer Deposits | E66: 0 | F66: -103290.33 | G66: 10351.92417 | H66: 0 | I66: -92938.40583 | J66: -89901.18041 | L66: -89901.18041 | M66: 0 | N66: -92938.40583 | Q66: -103290.33 | R66: 4705.258333 | S66: 0 | T66: -98585.07167 | U66: -95348.78337 | W66: -95348.78337 | Y66: -103290.33 | Z66: 4705.258333 | AA66: 0 | AB66: -98585.07167 | AC66: -95308.75002 | AE66: -95308.75002 | AG66: -5447.602954 | AH66: 40.03334559 | AI66: -5407.569608
A67: 46 | C67: 255 | D67: Deferred Investment Tax Credits | E67: 0 | F67: 0 | G67: 0 | H67: 0 | I67: 0 | J67: 0 | L67: 0 | M67: 0 | N67: 0 | Q67: 0 | R67: 0 | S67: 0 | T67: 0 | U67: 0 | W67: 0 | Y67: 0 | Z67: 0 | AA67: 0 | AB67: 0 | AC67: 0 | AE67: 0 | AG67: 0 | AH67: 0 | AI67: 0
A68: 47 | C68: 282 | D68: Accum Deferred Income Taxes | E68: 0 | F68: -345512210.8 | G68: 46261724.11 | H68: 0 | I68: -299250486.7 | J68: -291717767.6 | L68: -291717767.6 | M68: 0 | N68: -299250486.7 | Q68: -345512210.8 | R68: 34006741.79 | S68: 0 | T68: -311505469 | U68: -303501488.7 | W68: -303501488.7 | Y68: -345512210.8 | Z68: 25864575.04 | AA68: 0 | AB68: -319647635.8 | AC68: -311652739.8 | AE68: -311342192.3 | AG68: -11783721.03 | AH68: -8151251.121 | AI68: -19934972.15
A69: 48 | C69: 186-7 | D69: Deferred Pension Asset | E69: 0 | F69: 126101934.4 | G69: -126101934.4 | H69: 0 | I69: 0 | J69: 0 | L69: 0 | Q69: 126101934.4 | R69: -126101934.4 | S69: 0 | T69: 0 | U69: 0 | W69: 0 | Y69: 126101934.4 | Z69: -126101934.4 | AA69: 0 | AB69: 0 | AC69: 0 | AE69: 0 | AG69: 0 | AH69: 0 | AI69: 0
A70: 49 | D70: Working Capital - Cash | F70: -1732488.584 | G70: 58448.89329 | H70: 2896.784341 | I70: -1671142.906 | J70: -1629290.195 | L70: -1629290.195 | M70: 0 | N70: -1671142.906 | Q70: -1732488.584 | R70: 55075.77626 | S70: -12782.14174 | T70: -1690194.949 | U70: -1629812.921 | W70: -1629812.921 | Y70: -1732488.584 | Z70: 30393.48401 | AA70: -9070.657794 | AB70: -1711165.758 | AC70: -1648571.767 | AE70: -1647534.494 | AG70: -522.725282 | AH70: -18758.84682 | AI70: -19281.5721
A71: 50 | C71: Total Other Rate Base Accounts | F71: -92730521.33 | G71: -152959884.4 | H71: 2896.784341 | I71: -245687508.9 | J71: -239215102.9 | K71: 0 | L71: -239215102.9 | M71: 0 | N71: -245687508.9 | Q71: -92730521.33 | R71: -137099037.5 | S71: -12782.14174 | T71: -229842341 | U71: -223805838.3 | V71: 0 | W71: -223805838.3 | Y71: -92730521.33 | Z71: -166208189.5 | AA71: -9070.657794 | AB71: -258947781.5 | AC71: -252221306.4 | AD71: 0 | AE71: -251909721.7 | AG71: 15409264.59 | AH71: -28415468.17 | AI71: -13006203.58
M72: 0 | N72: 0
M73: 0 | N73: 0
A74: =+A71+1 -> 51 | B74: TOTAL RATE BASE | F74: 2094067457 | G74: -268142174 | H74: 2896.784341 | I74: 1825928180 | J74: 1766392129 | L74: 1766392129 | M74: 0 | N74: 1825928180 | Q74: 2094067457 | R74: -127510994.8 | S74: -12782.14174 | T74: 1966543681 | U74: 1902927273 | W74: 1902927273 | Y74: 2094067457 | Z74: 182105174.9 | AA74: -9070.657794 | AB74: 2276163562 | AC74: 2171201495 | AE74: 2196823149 | AG74: =U74-J74 -> 136535143.9 | AH74: =AC74-U74 -> 268274221.9 | AI74: =AC74-J74 -> 404809365.8
M75: 0
E76: =SUM(E13:E74) -> 0 | M76: 0 | N76: =SUM(F76:H76) -> 0
A77: =+A74+1 -> 52 | B77: RETURN ON RATE BASE | F77: 0.06454246103 | I77: 0.07281903169 | J77: 0.07316593785 | L77: 0.07368591154 | M77: =+N77-I77 -> -0.008276570653 | N77: =SUM(F77:H77) -> 0.06454246103 | Q77: 0.06454246103 | T77: 0.07122783814 | U77: 0.07160517834 | W77: 0.07178 | Y77: 0.06454246103 | AB77: 0.06035824096 | AC77: 0.06249415487 | AE77: 0.07178 | AG77: =U77-J77 -> -0.001560759508 | AH77: =AC77-U77 -> -0.009111023476 | AI77: =AC77-J77 -> -0.01067178298
N78: =SUM(F78:H78) -> 0
A79: =+A77+1 -> 53 | B79: RETURN ON EQUITY | F79: 0.07948363264 | I79: 0.09453194292 | J79: 0.0951626814 | L79: 0.0961080881 | M79: =+N79-I79 -> -0.01504831028 | N79: =SUM(F79:H79) -> 0.07948363264 | Q79: 0.08184083824 | T79: 0.09399606935 | U79: 0.09468214244 | W79: 0.095 | Y79: 0.08184083824 | AB79: 0.07423316538 | AC79: 0.07811664521 | AE79: 0.095 | AG79: =U79-J79 -> -0.0004805389588 | AH79: -0.01656549723 | AI79: -0.01704603619

Sheet Adjustments
A1: ='Control Panel'!$B$1 -> Dominion Energy | F1: =IF(F8="Y",1,0) -> 1 | G1: =IF(G8="Y",1,0) -> 1 | H1: =IF(H8="Y",1,0) -> 1 | I1: 1 | J1: 1 | K1: 1 | L1: 1 | M1: =IF(M8="Y",1,0) -> 1 | N1: 1 | O1: 1 | P1: 1 | Q1: 1 | R1: 1 | S1: 1 | T1: 1
A2: ='Control Panel'!$B$2 -> Utah - DEC 2021 Adjusted Avg Results
A3: ='Control Panel'!$B$3 -> 12 Months Ended : Dec-2021
A4: FILLED AND EXTERNAL PARTY ADJUSTMENTS
F6: 1 | G6: =+F6+1 -> 2 | H6: =+G6+1 -> 3 | I6: =+H6+1 -> 4 | J6: =+I6+1 -> 5 | K6: =+J6+1 -> 6 | L6: 7 | M6: =+L6+1 -> 8 | N6: =+M6+1 -> 9 | O6: =+N6+1 -> 10 | P6: =+O6+1 -> 11 | Q6: =+P6+1 -> 12 | R6: 13 | S6: 14 | T6: 15
F8: =VLOOKUP(F$6,'Control Panel'!$A$8:$F$58,5) -> Y | G8: =VLOOKUP(G$6,'Control Panel'!$A$8:$F$58,5) -> Y | H8: =VLOOKUP(H$6,'Control Panel'!$A$8:$F$58,5) -> Y | I8: =VLOOKUP(I$6,'Control Panel'!$A$8:$F$58,5) -> Y | J8: =VLOOKUP(J$6,'Control Panel'!$A$8:$F$58,5) -> Y | K8: =VLOOKUP(K$6,'Control Panel'!$A$8:$F$58,5) -> Y | L8: =VLOOKUP(L$6,'Control Panel'!$A$8:$F$58,5) -> Y | M8: =VLOOKUP(M$6,'Control Panel'!$A$8:$F$58,5) -> Y | N8: =VLOOKUP(N$6,'Control Panel'!$A$8:$F$58,5) -> Y | O8: =VLOOKUP(O$6,'Control Panel'!$A$8:$F$58,5) -> Y | P8: =VLOOKUP(P$6,'Control Panel'!$A$8:$F$58,5) -> Y | Q8: =VLOOKUP(Q$6,'Control Panel'!$A$8:$F$58,5) -> Y | R8: =VLOOKUP(R$6,'Control Panel'!$A$8:$F$58,5) -> Y | S8: =VLOOKUP(S$6,'Control Panel'!$A$8:$F$58,5) -> Y | T8: =VLOOKUP(T$6,'Control Panel'!$A$8:$F$58,5) -> Y
A9: FERC Acct | C9: Description | F9: =VLOOKUP(F$6,Adjustments,2) -> AVG RB DEC 2021 | G9: Expense Dec 2021 | H9: AVG Projected Rev 2021 with CET | I9: Underground Storage | J9: Wexpro | K9: Energy Efficiency 2021 | L9: Utah Bad Debt 2021 | M9: Incentives 2021 | N9: Sporting Events DEC 2021 | O9: Advertising DEC 2021 | P9: Don & Membership DEC 2021 | Q9: Reserve Accrual Dec 2021 | R9: 2021 EDIT Adjustment | S9: Labor Adj | T9: Pension 2021 | U9: TOTAL QGC ADJUSTMENTS | W9: RESULTING TOTAL | X9: CHECKS MUST BE (0)
A10: UTILITY OPERATING REVENUE
A11: TARIFF DTH SALES AND REVENUE
A15: Utah
B16: GS-R | C16: Distribution Non-Gas Rev | H16: =H1*Revenue!$U$15 -> 13445467.67 | K16: 0 | R16: ='EDIT Amort Adj'!G16*$R$1 -> 0 | T16: =Pension!G16*$T$1 -> 0 | U16: =SUM(F16:T16) -> 13445467.67 | W16: =SUM(U16:U16) -> 13445467.67 | X16: =+W16-'ROR-Model'!G16 -> 0
X17: =+W17-'ROR-Model'!G17 -> 0
C18: Supplier Non-Gas Revenue | H18: =H1*Revenue!$U$17 -> 0 | R18: ='EDIT Amort Adj'!G18*$R$1 -> 0 | T18: =Pension!G18*$T$1 -> 0 | U18: =SUM(F18:T18) -> 0 | W18: =SUM(U18:U18) -> 0 | X18: =+W18-'ROR-Model'!G18 -> 0
X19: =+W19-'ROR-Model'!G19 -> 0
C20: Commodity Revenue | H20: =H1*Revenue!$U$19 -> 0 | R20: ='EDIT Amort Adj'!G20*$R$1 -> 0 | T20: =Pension!G20*$T$1 -> 0 | U20: =SUM(F20:T20) -> 0 | W20: =SUM(U20:U20) -> 0 | X20: =+W20-'ROR-Model'!G20 -> 0
C21: Total Revenue | F21: =SUM(F16:F20) -> 0 | H21: =H1*SUM(H16:H20) -> 13445467.67 | I21: =SUM(I16:I20) -> 0 | J21: =SUM(J16:J20) -> 0 | K21: 0 | L21: 0 | M21: 0 | N21: 0 | O21: 0 | P21: 0 | Q21: =SUM(Q16:Q20) -> 0 | R21: 0 | S21: =SUM(S16:S20) -> 0 | T21: 0 | U21: =SUM(F21:T21) -> 13445467.67 | W21: =SUM(U21:U21) -> 13445467.67 | X21: =+W21-'ROR-Model'!G21 -> 0
X22: =+W22-'ROR-Model'!G22 -> 0
C23: Total Dth | H23: =H1*Revenue!$U$22 -> 6719872.749 | U23: =SUM(F23:T23) -> 6719872.749 | W23: =SUM(U23:U23) -> 6719872.749 | X23: =+W23-'ROR-Model'!G23 -> 0
X24: =+W24-'ROR-Model'!G24 -> 0
B25: GS-C | C25: Distribution Non-Gas Rev | H25: =H1*Revenue!$U$24 -> 0 | R25: ='EDIT Amort Adj'!G25*$R$1 -> 0 | T25: =Pension!G25*$T$1 -> 0 | U25: =SUM(F25:T25) -> 0 | W25: =SUM(U25:U25) -> 0 | X25: =+W25-'ROR-Model'!G25 -> 0
X26: =+W26-'ROR-Model'!G26 -> 0
C27: Supplier Non-Gas Revenue | H27: =H1*Revenue!$U$26 -> 0 | R27: ='EDIT Amort Adj'!G27*$R$1 -> 0 | T27: =Pension!G27*$T$1 -> 0 | U27: =SUM(F27:T27) -> 0 | W27: =SUM(U27:U27) -> 0 | X27: =+W27-'ROR-Model'!G27 -> 0
X28: =+W28-'ROR-Model'!G28 -> 0
C29: Commodity Revenue | H29: =H1*Revenue!$U$28 -> 0 | R29: ='EDIT Amort Adj'!G29*$R$1 -> 0 | T29: =Pension!G29*$T$1 -> 0 | U29: =SUM(F29:T29) -> 0 | W29: =SUM(U29:U29) -> 0 | X29: =+W29-'ROR-Model'!G29 -> 0
C30: Total Revenue | F30: =SUM(F25:F29) -> 0 | H30: =H1*SUM(H25:H29) -> 0 | I30: =SUM(I25:I29) -> 0 | J30: =SUM(J25:J29) -> 0 | K30: 0 | L30: 0 | M30: 0 | N30: 0 | O30: 0 | P30: 0 | Q30: =SUM(Q25:Q29) -> 0 | R30: 0 | S30: =SUM(S25:S29) -> 0 | T30: 0 | U30: =SUM(F30:T30) -> 0 | W30: =SUM(U30:U30) -> 0 | X30: =+W30-'ROR-Model'!G30 -> 0
X31: =+W31-'ROR-Model'!G31 -> 0
C32: Total Dth | H32: =H1*Revenue!$U$31 -> 0 | U32: =SUM(F32:T32) -> 0 | W32: =SUM(U32:U32) -> 0 | X32: =+W32-'ROR-Model'!G32 -> 0
X33: =+W33-'ROR-Model'!G33 -> 0
B34: GSS | C34: Distribution Non-Gas Rev | H34: =H1*Revenue!$U$33 -> 0 | R34: ='EDIT Amort Adj'!G34*$R$1 -> 0 | T34: =Pension!G34*$T$1 -> 0 | U34: =SUM(F34:T34) -> 0 | W34: =SUM(U34:U34) -> 0 | X34: =+W34-'ROR-Model'!G34 -> 0
X35: =+W35-'ROR-Model'!G35 -> 0
C36: Supplier Non-Gas Revenue | H36: =H1*Revenue!$U$35 -> 0 | R36: ='EDIT Amort Adj'!G36*$R$1 -> 0 | T36: =Pension!G36*$T$1 -> 0 | U36: =SUM(F36:T36) -> 0 | W36: =SUM(U36:U36) -> 0 | X36: =+W36-'ROR-Model'!G36 -> 0
X37: =+W37-'ROR-Model'!G37 -> 0
C38: Commodity Revenue | H38: =H1*Revenue!$U$37 -> 0 | R38: ='EDIT Amort Adj'!G38*$R$1 -> 0 | T38: =Pension!G38*$T$1 -> 0 | U38: =SUM(F38:T38) -> 0 | W38: =SUM(U38:U38) -> 0 | X38: =+W38-'ROR-Model'!G38 -> 0
C39: Total Revenue | F39: =SUM(F34:F38) -> 0 | H39: =H1*SUM(H34:H38) -> 0 | I39: =SUM(I34:I38) -> 0 | J39: =SUM(J34:J38) -> 0 | K39: 0 | L39: 0 | M39: 0 | N39: 0 | O39: 0 | P39: 0 | Q39: =SUM(Q34:Q38) -> 0 | R39: 0 | S39: =SUM(S34:S38) -> 0 | T39: 0 | U39: =SUM(F39:T39) -> 0 | W39: =SUM(U39:U39) -> 0 | X39: =+W39-'ROR-Model'!G39 -> 0
X40: =+W40-'ROR-Model'!G40 -> 0
C41: Total Dth | H41: =H1*Revenue!$U$40 -> 0 | U41: =SUM(F41:T41) -> 0 | W41: =SUM(U41:U41) -> 0 | X41: =+W41-'ROR-Model'!G41 -> 0
X42: =+W42-'ROR-Model'!G42 -> 0
B43: F1_FS_F1A_F1B | C43: Distribution Non-Gas Rev | H43: =H1*Revenue!$U$42 -> -190717.4 | R43: ='EDIT Amort Adj'!G43*$R$1 -> 0 | T43: =Pension!G43*$T$1 -> 0 | U43: =SUM(F43:T43) -> -190717.4 | W43: =SUM(U43:U43) -> -190717.4 | X43: =+W43-'ROR-Model'!G43 -> 0
X44: =+W44-'ROR-Model'!G44 -> 0
C45: Supplier Non-Gas Revenue | H45: =H1*Revenue!$U$44 -> 0 | R45: ='EDIT Amort Adj'!G45*$R$1 -> 0 | T45: =Pension!G45*$T$1 -> 0 | U45: =SUM(F45:T45) -> 0 | W45: =SUM(U45:U45) -> 0 | X45: =+W45-'ROR-Model'!G45 -> 0
X46: =+W46-'ROR-Model'!G46 -> 0
C47: Commodity Revenue | H47: =H1*Revenue!$U$46 -> 0 | R47: ='EDIT Amort Adj'!G47*$R$1 -> 0 | T47: =Pension!G47*$T$1 -> 0 | U47: =SUM(F47:T47) -> 0 | W47: =SUM(U47:U47) -> 0 | X47: =+W47-'ROR-Model'!G47 -> 0
C48: Total Revenue | F48: =SUM(F43:F47) -> 0 | H48: =H1*SUM(H43:H47) -> -190717.4 | I48: =SUM(I43:I47) -> 0 | J48: =SUM(J43:J47) -> 0 | K48: 0 | L48: 0 | M48: 0 | N48: 0 | O48: 0 | P48: 0 | Q48: =SUM(Q43:Q47) -> 0 | R48: 0 | S48: =SUM(S43:S47) -> 0 | T48: 0 | U48: =SUM(U43:U47) -> -190717.4 | W48: =SUM(W43:W47) -> -190717.4 | X48: =+W48-'ROR-Model'!G48 -> 0
X49: =+W49-'ROR-Model'!G49 -> 0
C50: Total Dth | H50: =H1*Revenue!$U$49 -> -193134.274 | U50: =SUM(F50:T50) -> -193134.274 | W50: =SUM(U50:U50) -> -193134.274 | X50: =+W50-'ROR-Model'!G50 -> 0
X51: =+W51-'ROR-Model'!G51 -> 0
B52: F-3 | C52: Distribution Non-Gas Rev | H52: =H1*Revenue!$U$51 -> 0 | R52: ='EDIT Amort Adj'!G52*$R$1 -> 0 | T52: =Pension!G52*$T$1 -> 0 | U52: =SUM(F52:T52) -> 0 | W52: =SUM(U52:U52) -> 0 | X52: =+W52-'ROR-Model'!G52 -> 0
C53: Supplier Non-Gas Revenue | R53: ='EDIT Amort Adj'!G53*$R$1 -> 0 | T53: =Pension!G53*$T$1 -> 0 | U53: =SUM(F53:T53) -> 0 | W53: =SUM(U53:U53) -> 0 | X53: =+W53-'ROR-Model'!G53 -> 0
C54: Supplier Non-Gas Demand Revenue | H54: =H1*Revenue!$U$53 -> 0 | R54: ='EDIT Amort Adj'!G54*$R$1 -> 0 | T54: =Pension!G54*$T$1 -> 0 | U54: =SUM(F54:T54) -> 0 | W54: =SUM(U54:U54) -> 0 | X54: =+W54-'ROR-Model'!G54 -> 0
C55: Commodity Tariff Revenue | R55: ='EDIT Amort Adj'!G55*$R$1 -> 0 | T55: =Pension!G55*$T$1 -> 0 | U55: =SUM(F55:T55) -> 0 | W55: =SUM(U55:U55) -> 0 | X55: =+W55-'ROR-Model'!G55 -> 0
C56: Commodity Demand Revenue | H56: =H1*Revenue!$U$55 -> 0 | R56: ='EDIT Amort Adj'!G56*$R$1 -> 0 | T56: =Pension!G56*$T$1 -> 0 | U56: =SUM(F56:T56) -> 0 | W56: =SUM(U56:U56) -> 0 | X56: =+W56-'ROR-Model'!G56 -> 0
C57: Total Revenue | F57: =SUM(F52:F56) -> 0 | H57: =H1*SUM(H52:H56) -> 0 | I57: =SUM(I52:I56) -> 0 | J57: =SUM(J52:J56) -> 0 | K57: 0 | L57: 0 | M57: 0 | N57: 0 | O57: 0 | P57: 0 | Q57: =SUM(Q52:Q56) -> 0 | R57: 0 | S57: =SUM(S52:S56) -> 0 | T57: 0 | U57: =SUM(U52:U56) -> 0 | W57: =SUM(W52:W56) -> 0 | X57: =+W57-'ROR-Model'!G57 -> 0
X58: =+W58-'ROR-Model'!G58 -> 0
C59: Total Sales Dth | H59: =H1*Revenue!$U$58 -> 0 | U59: =SUM(F59:T59) -> 0 | W59: =SUM(U59:U59) -> 0 | X59: =+W59-'ROR-Model'!G59 -> 0
X60: =+W60-'ROR-Model'!G60 -> 0
B61: NGV | C61: Distribution Non-Gas Rev | H61: =H1*Revenue!$U$60 -> 221328.9609 | R61: ='EDIT Amort Adj'!G61*$R$1 -> 0 | T61: =Pension!G61*$T$1 -> 0 | U61: =SUM(F61:T61) -> 221328.9609 | W61: =SUM(U61:U61) -> 221328.9609 | X61: =+W61-'ROR-Model'!G61 -> 0
X62: =+W62-'ROR-Model'!G62 -> 0
C63: Supplier Non-Gas Revenue | H63: =H1*Revenue!$U$62 -> 0 | R63: ='EDIT Amort Adj'!G63*$R$1 -> 0 | T63: =Pension!G63*$T$1 -> 0 | U63: =SUM(F63:T63) -> 0 | W63: =SUM(U63:U63) -> 0 | X63: =+W63-'ROR-Model'!G63 -> 0
X64: =+W64-'ROR-Model'!G64 -> 0
C65: Commodity Revenue | H65: =H1*Revenue!$U$64 -> 0 | R65: ='EDIT Amort Adj'!G65*$R$1 -> 0 | T65: =Pension!G65*$T$1 -> 0 | U65: =SUM(F65:T65) -> 0 | W65: =SUM(U65:U65) -> 0 | X65: =+W65-'ROR-Model'!G65 -> 0
C66: Total Revenue | F66: =SUM(F61:F65) -> 0 | H66: =H1*SUM(H61:H65) -> 221328.9609 | I66: =SUM(I61:I65) -> 0 | J66: =SUM(J61:J65) -> 0 | K66: 0 | L66: 0 | M66: 0 | N66: 0 | O66: 0 | P66: 0 | Q66: =SUM(Q61:Q65) -> 0 | R66: 0 | S66: =SUM(S61:S65) -> 0 | T66: 0 | U66: =SUM(U61:U65) -> 221328.9609 | W66: =SUM(W61:W65) -> 221328.9609 | X66: =+W66-'ROR-Model'!G66 -> 0
X67: =+W67-'ROR-Model'!G67 -> 0
C68: Total Dth | H68: =H1*Revenue!$U$67 -> 4738.15 | U68: =SUM(F68:T68) -> 4738.15 | W68: =SUM(U68:U68) -> 4738.15 | X68: =+W68-'ROR-Model'!G68 -> 0
X69: =+W69-'ROR-Model'!G69 -> 0
B70: F-4 | C70: Distribution Non-Gas Rev | R70: ='EDIT Amort Adj'!G70*$R$1 -> 0 | T70: =Pension!G70*$T$1 -> 0 | U70: =SUM(F70:T70) -> 0 | W70: =SUM(U70:U70) -> 0 | X70: =+W70-'ROR-Model'!G70 -> 0
X71: =+W71-'ROR-Model'!G71 -> 0
C72: Supplier Non-Gas Revenue | R72: ='EDIT Amort Adj'!G72*$R$1 -> 0 | T72: =Pension!G72*$T$1 -> 0 | U72: =SUM(F72:T72) -> 0 | W72: =SUM(U72:U72) -> 0 | X72: =+W72-'ROR-Model'!G72 -> 0
X73: =+W73-'ROR-Model'!G73 -> 0
C74: Commodity Revenue | R74: ='EDIT Amort Adj'!G74*$R$1 -> 0 | T74: =Pension!G74*$T$1 -> 0 | U74: =SUM(F74:T74) -> 0 | W74: =SUM(U74:U74) -> 0 | X74: =+W74-'ROR-Model'!G74 -> 0
C75: Total Revenue | F75: =SUM(F70:F74) -> 0 | H75: =H1*SUM(H70:H74) -> 0 | I75: =SUM(I70:I74) -> 0 | J75: =SUM(J70:J74) -> 0 | K75: 0 | L75: 0 | M75: 0 | N75: 0 | O75: 0 | P75: 0 | Q75: =SUM(Q70:Q74) -> 0 | R75: 0 | S75: =SUM(S70:S74) -> 0 | T75: 0 | U75: =SUM(U70:U74) -> 0 | W75: =SUM(W70:W74) -> 0 | X75: =+W75-'ROR-Model'!G75 -> 0
X76: =+W76-'ROR-Model'!G76 -> 0
C77: Total Dth | H77: =H1*Revenue!$U$76 -> 0 | U77: =SUM(F77:T77) -> 0 | W77: =SUM(U77:U77) -> 0 | X77: =+W77-'ROR-Model'!G77 -> 0
X78: =+W78-'ROR-Model'!G78 -> 0
B79: I-2 | C79: Distribution Non-Gas Rev | H79: =H1*Revenue!$U$78 -> 0 | R79: ='EDIT Amort Adj'!G79*$R$1 -> 0 | T79: =Pension!G79*$T$1 -> 0 | U79: =SUM(F79:T79) -> 0 | W79: =SUM(U79:U79) -> 0 | X79: =+W79-'ROR-Model'!G79 -> 0
X80: =+W80-'ROR-Model'!G80 -> 0
C81: Supplier Non-Gas Revenue | H81: =H1*Revenue!$U$80 -> 0 | R81: ='EDIT Amort Adj'!G81*$R$1 -> 0 | T81: =Pension!G81*$T$1 -> 0 | U81: =SUM(F81:T81) -> 0 | W81: =SUM(U81:U81) -> 0 | X81: =+W81-'ROR-Model'!G81 -> 0
X82: =+W82-'ROR-Model'!G82 -> 0
C83: Commodity Revenue | H83: =H1*Revenue!$U$82 -> 0 | R83: ='EDIT Amort Adj'!G83*$R$1 -> 0 | T83: =Pension!G83*$T$1 -> 0 | U83: =SUM(F83:T83) -> 0 | W83: =SUM(U83:U83) -> 0 | X83: =+W83-'ROR-Model'!G83 -> 0
C84: Total Revenue | F84: =SUM(F79:F83) -> 0 | H84: =H1*SUM(H79:H83) -> 0 | I84: =SUM(I79:I83) -> 0 | J84: =SUM(J79:J83) -> 0 | K84: 0 | L84: 0 | M84: 0 | N84: 0 | O84: 0 | P84: 0 | Q84: =SUM(Q79:Q83) -> 0 | R84: 0 | S84: =SUM(S79:S83) -> 0 | T84: 0 | U84: =SUM(U79:U83) -> 0 | W84: =SUM(W79:W83) -> 0 | X84: =+W84-'ROR-Model'!G84 -> 0
X85: =+W85-'ROR-Model'!G85 -> 0
C86: Total Dth | H86: =H1*Revenue!$U$85 -> 0 | U86: =SUM(F86:T86) -> 0 | W86: =SUM(U86:U86) -> 0 | X86: =+W86-'ROR-Model'!G86 -> 0
X87: =+W87-'ROR-Model'!G87 -> 0
B88: I-4 | C88: Distribution Non-Gas Rev | H88: =H1*Revenue!$U$87 -> 0 | R88: ='EDIT Amort Adj'!G88*$R$1 -> 0 | T88: =Pension!G88*$T$1 -> 0 | U88: =SUM(F88:T88) -> 0 | W88: =SUM(U88:U88) -> 0 | X88: =+W88-'ROR-Model'!G88 -> 0
X89: =+W89-'ROR-Model'!G89 -> 0
C90: Supplier Non-Gas Revenue | H90: =H1*Revenue!$U$89 -> 0 | R90: ='EDIT Amort Adj'!G90*$R$1 -> 0 | T90: =Pension!G90*$T$1 -> 0 | U90: =SUM(F90:T90) -> 0 | W90: =SUM(U90:U90) -> 0 | X90: =+W90-'ROR-Model'!G90 -> 0
X91: =+W91-'ROR-Model'!G91 -> 0
C92: Commodity Revenue | H92: =H1*Revenue!$U$91 -> 0 | R92: ='EDIT Amort Adj'!G92*$R$1 -> 0 | T92: =Pension!G92*$T$1 -> 0 | U92: =SUM(F92:T92) -> 0 | W92: =SUM(U92:U92) -> 0 | X92: =+W92-'ROR-Model'!G92 -> 0
C93: Total Revenue | F93: =SUM(F88:F92) -> 0 | H93: =H1*SUM(H88:H92) -> 0 | I93: =SUM(I88:I92) -> 0 | J93: =SUM(J88:J92) -> 0 | K93: 0 | L93: 0 | M93: 0 | N93: 0 | O93: 0 | P93: 0 | Q93: =SUM(Q88:Q92) -> 0 | R93: 0 | S93: =SUM(S88:S92) -> 0 | T93: 0 | U93: =SUM(U88:U92) -> 0 | W93: =SUM(W88:W92) -> 0 | X93: =+W93-'ROR-Model'!G93 -> 0
X94: =+W94-'ROR-Model'!G94 -> 0
C95: Total Dth | H95: =H1*Revenue!$U$94 -> 0 | U95: =SUM(F95:T95) -> 0 | W95: =SUM(U95:U95) -> 0 | X95: =+W95-'ROR-Model'!G95 -> 0
X96: =+W96-'ROR-Model'!G96 -> 0
B97: IS_IS-2 | C97: Distribution Non-Gas Rev | H97: =H1*Revenue!$U$96 -> -12537.54 | R97: ='EDIT Amort Adj'!G97*$R$1 -> 0 | T97: =Pension!G97*$T$1 -> 0 | U97: =SUM(F97:T97) -> -12537.54 | W97: =SUM(U97:U97) -> -12537.54 | X97: =+W97-'ROR-Model'!G97 -> 0
X98: =+W98-'ROR-Model'!G98 -> 0
C99: Supplier Non-Gas Revenue | H99: =H1*Revenue!$U$98 -> 13486.78 | R99: ='EDIT Amort Adj'!G99*$R$1 -> 0 | T99: =Pension!G99*$T$1 -> 0 | U99: =SUM(F99:T99) -> 13486.78 | W99: =SUM(U99:U99) -> 13486.78 | X99: =+W99-'ROR-Model'!G99 -> 0
X100: =+W100-'ROR-Model'!G100 -> 0
C101: Commodity Revenue | H101: =H1*Revenue!$U$100 -> 371367.94 | R101: ='EDIT Amort Adj'!G101*$R$1 -> 0 | T101: =Pension!G101*$T$1 -> 0 | U101: =SUM(F101:T101) -> 371367.94 | W101: =SUM(U101:U101) -> 371367.94 | X101: =+W101-'ROR-Model'!G101 -> 0
C102: Total Revenue | F102: =SUM(F97:F101) -> 0 | H102: =H1*SUM(H97:H101) -> 372317.18 | I102: =SUM(I97:I101) -> 0 | J102: =SUM(J97:J101) -> 0 | K102: 0 | L102: 0 | M102: 0 | N102: 0 | O102: 0 | P102: 0 | Q102: =SUM(Q97:Q101) -> 0 | R102: 0 | S102: =SUM(S97:S101) -> 0 | T102: 0 | U102: =SUM(U97:U101) -> 372317.18 | W102: =SUM(W97:W101) -> 372317.18 | X102: =+W102-'ROR-Model'!G102 -> 0
X103: =+W103-'ROR-Model'!G103 -> 0
C104: Total Dth | H104: =H1*Revenue!$U$103 -> 74723.033 | U104: =SUM(F104:T104) -> 74723.033 | W104: =SUM(U104:U104) -> 74723.033 | X104: =+W104-'ROR-Model'!G104 -> 0
X105: =+W105-'ROR-Model'!G105 -> 0
B106: IS-4 | C106: Distribution Non-Gas Rev | H106: =H1*Revenue!$U$105 -> 0 | R106: ='EDIT Amort Adj'!G106*$R$1 -> 0 | T106: =Pension!G106*$T$1 -> 0 | U106: =SUM(F106:T106) -> 0 | W106: =SUM(U106:U106) -> 0 | X106: =+W106-'ROR-Model'!G106 -> 0
X107: =+W107-'ROR-Model'!G107 -> 0
C108: Supplier Non-Gas Revenue | H108: =H1*Revenue!$U$107 -> 0 | R108: ='EDIT Amort Adj'!G108*$R$1 -> 0 | T108: =Pension!G108*$T$1 -> 0 | U108: =SUM(F108:T108) -> 0 | W108: =SUM(U108:U108) -> 0 | X108: =+W108-'ROR-Model'!G108 -> 0
X109: =+W109-'ROR-Model'!G109 -> 0
C110: Commodity Revenue | H110: =H1*Revenue!$U$109 -> 0 | R110: ='EDIT Amort Adj'!G110*$R$1 -> 0 | T110: =Pension!G110*$T$1 -> 0 | U110: =SUM(F110:T110) -> 0 | W110: =SUM(U110:U110) -> 0 | X110: =+W110-'ROR-Model'!G110 -> 0
C111: Total Revenue | F111: =SUM(F106:F110) -> 0 | H111: =H1*SUM(H106:H110) -> 0 | I111: =SUM(I106:I110) -> 0 | J111: =SUM(J106:J110) -> 0 | K111: 0 | L111: 0 | M111: 0 | N111: 0 | O111: 0 | P111: 0 | Q111: =SUM(Q106:Q110) -> 0 | R111: 0 | S111: =SUM(S106:S110) -> 0 | T111: 0 | U111: =SUM(U106:U110) -> 0 | W111: =SUM(W106:W110) -> 0 | X111: =+W111-'ROR-Model'!G111 -> 0
X112: =+W112-'ROR-Model'!G112 -> 0
C113: Total Dth | H113: =H1*Revenue!$U$112 -> 0 | U113: =SUM(F113:T113) -> 0 | W113: =SUM(U113:U113) -> 0 | X113: =+W113-'ROR-Model'!G113 -> 0
X114: =+W114-'ROR-Model'!G114 -> 0
B115: FT1-L | C115: Distribution Non-Gas Rev | H115: =H1*Revenue!$U$114 -> 2800834 | R115: ='EDIT Amort Adj'!G115*$R$1 -> 0 | T115: =Pension!G115*$T$1 -> 0 | U115: =SUM(F115:T115) -> 2800834 | W115: =SUM(U115:U115) -> 2800834 | X115: =+W115-'ROR-Model'!G115 -> 0
X116: =+W116-'ROR-Model'!G116 -> 0
C117: Supplier Non-Gas Revenue | H117: =H1*Revenue!$U$116 -> 0 | R117: ='EDIT Amort Adj'!G117*$R$1 -> 0 | T117: =Pension!G117*$T$1 -> 0 | U117: =SUM(F117:T117) -> 0 | W117: =SUM(U117:U117) -> 0 | X117: =+W117-'ROR-Model'!G117 -> 0
X118: =+W118-'ROR-Model'!G118 -> 0
C119: Commodity Revenue | H119: =H1*Revenue!$U$118 -> 0 | R119: ='EDIT Amort Adj'!G119*$R$1 -> 0 | T119: =Pension!G119*$T$1 -> 0 | U119: =SUM(F119:T119) -> 0 | W119: =SUM(U119:U119) -> 0 | X119: =+W119-'ROR-Model'!G119 -> 0
C120: Total Revenue | F120: =SUM(F115:F119) -> 0 | H120: =H1*SUM(H115:H119) -> 2800834 | I120: =SUM(I115:I119) -> 0 | J120: =SUM(J115:J119) -> 0 | K120: 0 | L120: 0 | M120: 0 | N120: 0 | O120: 0 | P120: 0 | Q120: =SUM(Q115:Q119) -> 0 | R120: 0 | S120: =SUM(S115:S119) -> 0 | T120: 0 | U120: =SUM(U115:U119) -> 2800834 | W120: =SUM(W115:W119) -> 2800834 | X120: =+W120-'ROR-Model'!G120 -> 0
X121: =+W121-'ROR-Model'!G121 -> 0
C122: Total Dth | H122: =H1*Revenue!$U$121 -> 39705087 | U122: =SUM(F122:T122) -> 39705087 | W122: =SUM(U122:U122) -> 39705087 | X122: =+W122-'ROR-Model'!G122 -> 0
X123: =+W123-'ROR-Model'!G123 -> 0
B124: FT_TBF | C124: Distribution Non-Gas Rev | H124: =H1*Revenue!$U$123 -> -3410688.9 | R124: ='EDIT Amort Adj'!G124*$R$1 -> 0 | T124: =Pension!G124*$T$1 -> 0 | U124: =SUM(F124:T124) -> -3410688.9 | W124: =SUM(U124:U124) -> -3410688.9 | X124: =+W124-'ROR-Model'!G124 -> 0
X125: =+W125-'ROR-Model'!G125 -> 0
C126: Supplier Non-Gas Revenue | H126: =H1*Revenue!$U$125 -> -81066.89 | R126: ='EDIT Amort Adj'!G126*$R$1 -> 0 | T126: =Pension!G126*$T$1 -> 0 | U126: =SUM(F126:T126) -> -81066.89 | W126: =SUM(U126:U126) -> -81066.89 | X126: =+W126-'ROR-Model'!G126 -> 0
X127: =+W127-'ROR-Model'!G127 -> 0
C128: Commodity Revenue | H128: =H1*Revenue!$U$127 -> 0 | R128: ='EDIT Amort Adj'!G128*$R$1 -> 0 | T128: =Pension!G128*$T$1 -> 0 | U128: =SUM(F128:T128) -> 0 | W128: =SUM(U128:U128) -> 0 | X128: =+W128-'ROR-Model'!G128 -> 0
C129: Total Revenue | F129: =SUM(F124:F128) -> 0 | H129: =H1*SUM(H124:H128) -> -3491755.79 | I129: =SUM(I124:I128) -> 0 | J129: =SUM(J124:J128) -> 0 | K129: 0 | L129: 0 | M129: 0 | N129: 0 | O129: 0 | P129: 0 | Q129: =SUM(Q124:Q128) -> 0 | R129: 0 | S129: =SUM(S124:S128) -> 0 | T129: 0 | U129: =SUM(U124:U128) -> -3491755.79 | W129: =SUM(W124:W128) -> -3491755.79 | X129: =+W129-'ROR-Model'!G129 -> 0
X130: =+W130-'ROR-Model'!G130 -> 0
C131: Total Dth | H131: =H1*Revenue!$U$130 -> -40193918 | U131: =SUM(F131:T131) -> -40193918 | W131: =SUM(U131:U131) -> -40193918 | X131: =+W131-'ROR-Model'!G131 -> 0
X132: =+W132-'ROR-Model'!G132 -> 0
B133: FT-2 | C133: Distribution Non-Gas Rev | H133: =H1*Revenue!$U$132 -> 0 | R133: ='EDIT Amort Adj'!G133*$R$1 -> 0 | T133: =Pension!G133*$T$1 -> 0 | U133: =SUM(F133:T133) -> 0 | W133: =SUM(U133:U133) -> 0 | X133: =+W133-'ROR-Model'!G133 -> 0
X134: =+W134-'ROR-Model'!G134 -> 0
C135: Supplier Non-Gas Revenue | H135: =H1*Revenue!$U$134 -> 0 | R135: ='EDIT Amort Adj'!G135*$R$1 -> 0 | T135: =Pension!G135*$T$1 -> 0 | U135: =SUM(F135:T135) -> 0 | W135: =SUM(U135:U135) -> 0 | X135: =+W135-'ROR-Model'!G135 -> 0
X136: =+W136-'ROR-Model'!G136 -> 0
C137: Commodity Revenue | H137: =H1*Revenue!$U$136 -> 0 | R137: ='EDIT Amort Adj'!G137*$R$1 -> 0 | T137: =Pension!G137*$T$1 -> 0 | U137: =SUM(F137:T137) -> 0 | W137: =SUM(U137:U137) -> 0 | X137: =+W137-'ROR-Model'!G137 -> 0
C138: Total Revenue | F138: =SUM(F133:F137) -> 0 | H138: =H1*SUM(H133:H137) -> 0 | I138: =SUM(I133:I137) -> 0 | J138: =SUM(J133:J137) -> 0 | K138: 0 | L138: 0 | M138: 0 | N138: 0 | O138: 0 | P138: 0 | Q138: =SUM(Q133:Q137) -> 0 | R138: 0 | S138: =SUM(S133:S137) -> 0 | T138: 0 | U138: =SUM(U133:U137) -> 0 | W138: =SUM(W133:W137) -> 0 | X138: =+W138-'ROR-Model'!G138 -> 0
X139: =+W139-'ROR-Model'!G139 -> 0
C140: Total Dth | H140: =H1*Revenue!$U$139 -> 0 | U140: =SUM(F140:T140) -> 0 | W140: =SUM(U140:U140) -> 0 | X140: =+W140-'ROR-Model'!G140 -> 0
X141: =+W141-'ROR-Model'!G141 -> 0
B142: MT | C142: Distribution Non-Gas Rev | H142: =H1*Revenue!$U$141 -> -21880.56 | R142: ='EDIT Amort Adj'!G142*$R$1 -> 0 | T142: =Pension!G142*$T$1 -> 0 | U142: =SUM(F142:T142) -> -21880.56 | W142: =SUM(U142:U142) -> -21880.56 | X142: =+W142-'ROR-Model'!G142 -> 0
X143: =+W143-'ROR-Model'!G143 -> 0
C144: Supplier Non-Gas Revenue | H144: =H1*Revenue!$U$143 -> -2487.93 | R144: ='EDIT Amort Adj'!G144*$R$1 -> 0 | T144: =Pension!G144*$T$1 -> 0 | U144: =SUM(F144:T144) -> -2487.93 | W144: =SUM(U144:U144) -> -2487.93 | X144: =+W144-'ROR-Model'!G144 -> 0
X145: =+W145-'ROR-Model'!G145 -> 0
C146: Commodity Revenue | H146: =H1*Revenue!$U$145 -> 0 | R146: ='EDIT Amort Adj'!G146*$R$1 -> 0 | T146: =Pension!G146*$T$1 -> 0 | U146: =SUM(F146:T146) -> 0 | W146: =SUM(U146:U146) -> 0 | X146: =+W146-'ROR-Model'!G146 -> 0
C147: Total Revenue | F147: =SUM(F142:F146) -> 0 | H147: =H1*SUM(H142:H146) -> -24368.49 | I147: =SUM(I142:I146) -> 0 | J147: =SUM(J142:J146) -> 0 | K147: 0 | L147: 0 | M147: 0 | N147: 0 | O147: 0 | P147: 0 | Q147: =SUM(Q142:Q146) -> 0 | R147: 0 | S147: =SUM(S142:S146) -> 0 | T147: 0 | U147: =SUM(U142:U146) -> -24368.49 | W147: =SUM(W142:W146) -> -24368.49 | X147: =+W147-'ROR-Model'!G147 -> 0
X148: =+W148-'ROR-Model'!G148 -> 0
C149: Total Dth | H149: =H1*Revenue!$U$148 -> 1245 | U149: =SUM(F149:T149) -> 1245 | W149: =SUM(U149:U149) -> 1245 | X149: =+W149-'ROR-Model'!G149 -> 0
X150: =+W150-'ROR-Model'!G150 -> 0
B151: FT-E | C151: Distribution Non-Gas Rev | H151: =H1*Revenue!$U$150 -> 0 | R151: ='EDIT Amort Adj'!G151*$R$1 -> 0 | T151: =Pension!G151*$T$1 -> 0 | U151: =SUM(F151:T151) -> 0 | W151: =SUM(U151:U151) -> 0 | X151: =+W151-'ROR-Model'!G151 -> 0
X152: =+W152-'ROR-Model'!G152 -> 0
C153: Supplier Non-Gas Revenue | H153: =H1*Revenue!$U$152 -> 0 | R153: ='EDIT Amort Adj'!G153*$R$1 -> 0 | T153: =Pension!G153*$T$1 -> 0 | U153: =SUM(F153:T153) -> 0 | W153: =SUM(U153:U153) -> 0 | X153: =+W153-'ROR-Model'!G153 -> 0
X154: =+W154-'ROR-Model'!G154 -> 0
C155: Commodity Revenue | H155: =H1*Revenue!$U$154 -> 0 | R155: ='EDIT Amort Adj'!G155*$R$1 -> 0 | T155: =Pension!G155*$T$1 -> 0 | U155: =SUM(F155:T155) -> 0 | W155: =SUM(U155:U155) -> 0 | X155: =+W155-'ROR-Model'!G155 -> 0
C156: Total Revenue | F156: =SUM(F151:F155) -> 0 | H156: =H1*SUM(H151:H155) -> 0 | I156: =SUM(I151:I155) -> 0 | J156: =SUM(J151:J155) -> 0 | K156: 0 | L156: 0 | M156: 0 | N156: 0 | O156: 0 | P156: 0 | Q156: =SUM(Q151:Q155) -> 0 | R156: 0 | S156: =SUM(S151:S155) -> 0 | T156: 0 | U156: =SUM(U151:U155) -> 0 | W156: =SUM(W151:W155) -> 0 | X156: =+W156-'ROR-Model'!G156 -> 0
X157: =+W157-'ROR-Model'!G157 -> 0
C158: Total Dth | H158: =H1*Revenue!$U$157 -> 0 | U158: =SUM(F158:T158) -> 0 | W158: =SUM(U158:U158) -> 0 | X158: =+W158-'ROR-Model'!G158 -> 0
X159: =+W159-'ROR-Model'!G159 -> 0
B160: IT_TS_ITA_ITB | C160: Distribution Non-Gas Rev | H160: =H1*Revenue!$U$159 -> 5730722.74 | R160: ='EDIT Amort Adj'!G160*$R$1 -> 0 | T160: =Pension!G160*$T$1 -> 0 | U160: =SUM(F160:T160) -> 5730722.74 | W160: =SUM(U160:U160) -> 5730722.74 | X160: =+W160-'ROR-Model'!G160 -> 0
X161: =+W161-'ROR-Model'!G161 -> 0
C162: Supplier Non-Gas Revenue | H162: =H1*Revenue!$U$161 -> -373378.86 | R162: ='EDIT Amort Adj'!G162*$R$1 -> 0 | T162: =Pension!G162*$T$1 -> 0 | U162: =SUM(F162:T162) -> -373378.86 | W162: =SUM(U162:U162) -> -373378.86 | X162: =+W162-'ROR-Model'!G162 -> 0
X163: =+W163-'ROR-Model'!G163 -> 0
C164: Commodity Revenue | H164: =H1*Revenue!$U$163 -> 0 | R164: ='EDIT Amort Adj'!G164*$R$1 -> 0 | T164: =Pension!G164*$T$1 -> 0 | U164: =SUM(F164:T164) -> 0 | W164: =SUM(U164:U164) -> 0 | X164: =+W164-'ROR-Model'!G164 -> 0
C165: Total Revenue | F165: =SUM(F160:F164) -> 0 | H165: =H1*SUM(H160:H164) -> 5357343.88 | I165: =SUM(I160:I164) -> 0 | J165: =SUM(J160:J164) -> 0 | K165: 0 | L165: 0 | M165: 0 | N165: 0 | O165: 0 | P165: 0 | Q165: =SUM(Q160:Q164) -> 0 | R165: 0 | S165: =SUM(S160:S164) -> 0 | T165: 0 | U165: =SUM(U160:U164) -> 5357343.88 | W165: =SUM(W160:W164) -> 5357343.88 | X165: =+W165-'ROR-Model'!G165 -> 0
X166: =+W166-'ROR-Model'!G166 -> 0
C167: Total Dth | H167: =H1*Revenue!$U$166 -> 799485.5 | U167: =SUM(F167:T167) -> 799485.5 | W167: =SUM(U167:U167) -> 799485.5 | X167: =+W167-'ROR-Model'!G167 -> 0
X168: =+W168-'ROR-Model'!G168 -> 0
B169: IT-S | C169: Distribution Non-Gas Rev | H169: =H1*Revenue!$U$168 -> 0 | R169: ='EDIT Amort Adj'!G169*$R$1 -> 0 | T169: =Pension!G169*$T$1 -> 0 | U169: =SUM(F169:T169) -> 0 | W169: =SUM(U169:U169) -> 0 | X169: =+W169-'ROR-Model'!G169 -> 0
X170: =+W170-'ROR-Model'!G170 -> 0
C171: Supplier Non-Gas Revenue | H171: =H1*Revenue!$U$170 -> 0 | R171: ='EDIT Amort Adj'!G171*$R$1 -> 0 | T171: =Pension!G171*$T$1 -> 0 | U171: =SUM(F171:T171) -> 0 | W171: =SUM(U171:U171) -> 0 | X171: =+W171-'ROR-Model'!G171 -> 0
X172: =+W172-'ROR-Model'!G172 -> 0
C173: Commodity Revenue | H173: =H1*Revenue!$U$172 -> 0 | R173: ='EDIT Amort Adj'!G173*$R$1 -> 0 | T173: =Pension!G173*$T$1 -> 0 | U173: =SUM(F173:T173) -> 0 | W173: =SUM(U173:U173) -> 0 | X173: =+W173-'ROR-Model'!G173 -> 0
C174: Total Revenue | F174: =SUM(F169:F173) -> 0 | H174: =H1*SUM(H169:H173) -> 0 | I174: =SUM(I169:I173) -> 0 | J174: =SUM(J169:J173) -> 0 | K174: 0 | L174: 0 | M174: 0 | N174: 0 | O174: 0 | P174: 0 | Q174: =SUM(Q169:Q173) -> 0 | R174: 0 | S174: =SUM(S169:S173) -> 0 | T174: 0 | U174: =SUM(U169:U173) -> 0 | W174: =SUM(W169:W173) -> 0 | X174: =+W174-'ROR-Model'!G174 -> 0
X175: =+W175-'ROR-Model'!G175 -> 0
C176: Total Dth | H176: =H1*Revenue!$U$175 -> 0 | U176: =SUM(F176:T176) -> 0 | W176: =SUM(U176:U176) -> 0 | X176: =+W176-'ROR-Model'!G176 -> 0
X177: =+W177-'ROR-Model'!G177 -> 0
B178: FT-2C | C178: Distribution Non-Gas Rev | H178: =H1*Revenue!$U$177 -> 0 | R178: ='EDIT Amort Adj'!G178*$R$1 -> 0 | T178: =Pension!G178*$T$1 -> 0 | U178: =SUM(F178:T178) -> 0 | W178: =SUM(U178:U178) -> 0 | X178: =+W178-'ROR-Model'!G178 -> 0
X179: =+W179-'ROR-Model'!G179 -> 0
C180: Supplier Non-Gas Revenue | H180: =H1*Revenue!$U$179 -> 0 | R180: ='EDIT Amort Adj'!G180*$R$1 -> 0 | T180: =Pension!G180*$T$1 -> 0 | U180: =SUM(F180:T180) -> 0 | W180: =SUM(U180:U180) -> 0 | X180: =+W180-'ROR-Model'!G180 -> 0
X181: =+W181-'ROR-Model'!G181 -> 0
C182: Commodity Revenue | H182: =H1*Revenue!$U$181 -> 0 | R182: ='EDIT Amort Adj'!G182*$R$1 -> 0 | T182: =Pension!G182*$T$1 -> 0 | U182: =SUM(F182:T182) -> 0 | W182: =SUM(U182:U182) -> 0 | X182: =+W182-'ROR-Model'!G182 -> 0
C183: Total Revenue | F183: =SUM(F178:F182) -> 0 | H183: =H1*SUM(H178:H182) -> 0 | I183: =SUM(I178:I182) -> 0 | J183: =SUM(J178:J182) -> 0 | K183: 0 | L183: 0 | M183: 0 | N183: 0 | O183: 0 | P183: 0 | Q183: =SUM(Q178:Q182) -> 0 | R183: 0 | S183: =SUM(S178:S182) -> 0 | T183: 0 | U183: =SUM(U178:U182) -> 0 | W183: =SUM(W178:W182) -> 0 | X183: =+W183-'ROR-Model'!G183 -> 0
X184: =+W184-'ROR-Model'!G184 -> 0
C185: Total Dth | H185: =H1*Revenue!$U$184 -> 0 | U185: =SUM(F185:T185) -> 0 | W185: =SUM(U185:U185) -> 0 | X185: =+W185-'ROR-Model'!G185 -> 0
X186: =+W186-'ROR-Model'!G186 -> 0
B187: E-1 | C187: Distribution Non-Gas Rev | H187: =H1*Revenue!$U$186 -> 0 | R187: ='EDIT Amort Adj'!G187*$R$1 -> 0 | T187: =Pension!G187*$T$1 -> 0 | U187: =SUM(F187:T187) -> 0 | W187: =SUM(U187:U187) -> 0 | X187: =+W187-'ROR-Model'!G187 -> 0
X188: =+W188-'ROR-Model'!G188 -> 0
C189: Supplier Non-Gas Revenue | H189: =H1*Revenue!$U$188 -> 0 | R189: ='EDIT Amort Adj'!G189*$R$1 -> 0 | T189: =Pension!G189*$T$1 -> 0 | U189: =SUM(F189:T189) -> 0 | W189: =SUM(U189:U189) -> 0 | X189: =+W189-'ROR-Model'!G189 -> 0
X190: =+W190-'ROR-Model'!G190 -> 0
C191: Commodity Revenue | H191: =H1*Revenue!$U$190 -> 0 | R191: ='EDIT Amort Adj'!G191*$R$1 -> 0 | T191: =Pension!G191*$T$1 -> 0 | U191: =SUM(F191:T191) -> 0 | W191: =SUM(U191:U191) -> 0 | X191: =+W191-'ROR-Model'!G191 -> 0
C192: Total Revenue | F192: =SUM(F187:F191) -> 0 | H192: =H1*SUM(H187:H191) -> 0 | I192: =SUM(I187:I191) -> 0 | J192: =SUM(J187:J191) -> 0 | K192: 0 | L192: 0 | M192: 0 | N192: 0 | O192: 0 | P192: 0 | Q192: =SUM(Q187:Q191) -> 0 | R192: 0 | S192: =SUM(S187:S191) -> 0 | T192: 0 | U192: =SUM(U187:U191) -> 0 | W192: =SUM(W187:W191) -> 0 | X192: =+W192-'ROR-Model'!G192 -> 0
X193: =+W193-'ROR-Model'!G193 -> 0
C194: Total Dth | H194: =H1*Revenue!$U$193 -> 0 | U194: =SUM(F194:T194) -> 0 | W194: =SUM(U194:U194) -> 0 | X194: =+W194-'ROR-Model'!G194 -> 0
X195: =+W195-'ROR-Model'!G195 -> 0
B196: CET | C196: Distribution Non-Gas Revenue | F196: 0 | H196: =H1*Revenue!$U$195 -> -859870.31 | I196: 0 | J196: 0 | K196: 0 | L196: 0 | M196: 0 | N196: 0 | O196: 0 | P196: 0 | Q196: 0 | R196: ='EDIT Amort Adj'!G196*$R$1 -> 0 | S196: 0 | T196: =Pension!G196*$T$1 -> 0 | U196: =SUM(F196:T196) -> -859870.31 | W196: =SUM(U196:U196) -> -859870.31 | X196: =+W196-'ROR-Model'!G196 -> 0
B197: DSM | C197: Distribution Non-Gas Revenue | F197: 0 | H197: =H1*Revenue!$U$196 -> -26805440.38 | I197: 0 | J197: 0 | K197: =K1*'ENERGY EFFICIENCY SERVICES ADJ'!H12 -> 0 | L197: 0 | M197: 0 | N197: 0 | O197: 0 | P197: 0 | Q197: 0 | R197: ='EDIT Amort Adj'!G197*$R$1 -> 0 | S197: 0 | T197: =Pension!G197*$T$1 -> 0 | U197: =SUM(F197:T197) -> -26805440.38 | W197: =SUM(U197:U197) -> -26805440.38 | X197: =+W197-'ROR-Model'!G197 -> 0
B198: Utah Totals | X198: =+W198-'ROR-Model'!G198 -> 0
X199: =+W199-'ROR-Model'!G199 -> 0
C200: Distribution Non-Gas Rev | F200: =+F16+F34+F43+F52+F61+F70+F79+F88+F97+F106+F115+F124+F133+F142+F151+F160+F169+F178+F187+F25+F196+F197 -> 0 | H200: =+H16+H34+H43+H52+H61+H70+H79+H88+H97+H106+H115+H124+H133+H142+H151+H160+H169+H178+H187+H25+H196+H197 -> -9102781.719 | I200: =+I16+I34+I43+I52+I61+I70+I79+I88+I97+I106+I115+I124+I133+I142+I151+I160+I169+I178+I187+I25+I196+I197 -> 0 | J200: 0 | K200: =+K16+K34+K43+K52+K61+K70+K79+K88+K97+K106+K115+K124+K133+K142+K151+K160+K169+K178+K187+K25+K196+K197 -> 0 | L200: 0 | M200: 0 | N200: 0 | O200: 0 | P200: 0 | Q200: 0 | R200: ='EDIT Amort Adj'!G200*$R$1 -> 0 | S200: =+S16+S34+S43+S52+S61+S70+S79+S88+S97+S106+S115+S124+S133+S142+S151+S160+S169+S178+S187+S25+S196+S197 -> 0 | T200: =Pension!G200*$T$1 -> 0 | U200: =+U16+U34+U43+U52+U61+U70+U79+U88+U97+U106+U115+U124+U133+U142+U151+U160+U169+U178+U187+U25+U196+U197 -> -9102781.719 | W200: =+W16+W34+W43+W52+W61+W70+W79+W88+W97+W106+W115+W124+W133+W142+W151+W160+W169+W178+W187+W25+W196+W197 -> -9102781.719 | X200: =+W200-'ROR-Model'!G200 -> 0
C201: Supplier Non-Gas Revenue | F201: =F1*+F18+F36+F45+F54+F62+F63+F72+F81+F90+F99+F108+F117+F126+F135+F144+F153+F162+F171+F180+F189+F27 -> 0 | H201: =H1*+H18+H36+H45+H54+H62+H63+H72+H81+H90+H99+H108+H117+H126+H135+H144+H153+H162+H171+H180+H189+H27 -> -443446.9 | I201: =I1*+I18+I36+I45+I54+I62+I63+I72+I81+I90+I99+I108+I117+I126+I135+I144+I153+I162+I171+I180+I189+I27 -> 0 | J201: =J1*+J18+J36+J45+J54+J62+J63+J72+J81+J90+J99+J108+J117+J126+J135+J144+J153+J162+J171+J180+J189+J27 -> 0 | K201: 0 | L201: 0 | M201: 0 | N201: 0 | O201: 0 | P201: 0 | Q201: 0 | R201: ='EDIT Amort Adj'!G201*$R$1 -> 0 | S201: =S1*+S18+S36+S45+S54+S62+S63+S72+S81+S90+S99+S108+S117+S126+S135+S144+S153+S162+S171+S180+S189+S27 -> 0 | T201: =Pension!G201*$T$1 -> 0 | U201: =+U18+U36+U45+U54+U62+U63+U72+U81+U90+U99+U108+U117+U126+U135+U144+U153+U162+U171+U180+U189+U27 -> -443446.9 | W201: =+W18+W36+W45+W54+W62+W63+W72+W81+W90+W99+W108+W117+W126+W135+W144+W153+W162+W171+W180+W189+W27 -> -443446.9 | X201: =+W201-'ROR-Model'!G201 -> 0
C202: Commodity Revenue | F202: =F1*+F20+F38+F47+F56+F64+F65+F74+F83+F92+F101+F110+F119+F128+F137+F146+F155+F164+F173+F182+F191+F29 -> 0 | H202: =H1*+H20+H38+H47+H56+H64+H65+H74+H83+H92+H101+H110+H119+H128+H137+H146+H155+H164+H173+H182+H191+H29 -> 371367.94 | I202: =I1*+I20+I38+I47+I56+I64+I65+I74+I83+I92+I101+I110+I119+I128+I137+I146+I155+I164+I173+I182+I191+I29 -> 0 | J202: =J1*+J20+J38+J47+J56+J64+J65+J74+J83+J92+J101+J110+J119+J128+J137+J146+J155+J164+J173+J182+J191+J29 -> 0 | K202: 0 | L202: 0 | M202: 0 | N202: 0 | O202: 0 | P202: 0 | Q202: 0 | R202: ='EDIT Amort Adj'!G202*$R$1 -> 0 | S202: =S1*+S20+S38+S47+S56+S64+S65+S74+S83+S92+S101+S110+S119+S128+S137+S146+S155+S164+S173+S182+S191+S29 -> 0 | T202: =Pension!G202*$T$1 -> 0 | U202: =+U20+U38+U47+U56+U64+U65+U74+U83+U92+U101+U110+U119+U128+U137+U146+U155+U164+U173+U182+U191+U29 -> 371367.94 | W202: =+W20+W38+W47+W56+W64+W65+W74+W83+W92+W101+W110+W119+W128+W137+W146+W155+W164+W173+W182+W191+W29 -> 371367.94 | X202: =+W202-'ROR-Model'!G202 -> 0
C203: Total Utah Revenue | F203: =+F21+F39+F48+F57+F66+F75+F84+F93+F102+F111+F120+F129+F138+F147+F156+F165+F174+F183+F192+F30+F196+F197 -> 0 | H203: =+H21+H39+H48+H57+H66+H75+H84+H93+H102+H111+H120+H129+H138+H147+H156+H165+H174+H183+H192+H30+H196+H197 -> -9174860.679 | I203: =+I21+I39+I48+I57+I66+I75+I84+I93+I102+I111+I120+I129+I138+I147+I156+I165+I174+I183+I192+I30+I196+I197 -> 0 | J203: 0 | K203: =+K21+K39+K48+K57+K66+K75+K84+K93+K102+K111+K120+K129+K138+K147+K156+K165+K174+K183+K192+K30+K196+K197 -> 0 | L203: 0 | M203: 0 | N203: 0 | O203: =+O21+O39+O48+O57+O66+O75+O84+O93+O102+O111+O120+O129+O138+O147+O156+O165+O174+O183+O192+O30+O196+O197 -> 0 | P203: =+P21+P39+P48+P57+P66+P75+P84+P93+P102+P111+P120+P129+P138+P147+P156+P165+P174+P183+P192+P30+P196+P197 -> 0 | Q203: 0 | R203: =+R21+R39+R48+R57+R66+R75+R84+R93+R102+R111+R120+R129+R138+R147+R156+R165+R174+R183+R192+R30+R196+R197 -> 0 | S203: 0 | T203: 0 | U203: -9174860.679 | W203: -9174860.679
X204: =+W204-'ROR-Model'!G204 -> 0
C205: Sales Dth | F205: =F1*F23+F41+F50+F59+F68+F77+F86+F95+F104+F113+F194+F32 -> 0 | H205: =H1*H23+H41+H50+H59+H68+H77+H86+H95+H104+H113+H194+H32 -> 6606199.658 | I205: =I1*I23+I41+I50+I59+I68+I77+I86+I95+I104+I113+I194+I32 -> 0 | J205: =J1*J23+J41+J50+J59+J68+J77+J86+J95+J104+J113+J194+J32 -> 0 | K205: 0 | L205: 0 | M205: 0 | N205: 0 | O205: 0 | P205: 0 | Q205: 0 | R205: =R1*R23+R41+R50+R59+R68+R77+R86+R95+R104+R113+R194+R32 -> 0 | S205: 0 | T205: 0 | U205: =U23+U32+U41+U50+U59+U68+U77+U86+U95+U104+U113+U194 -> 6606199.658 | W205: =W23+W32+W41+W50+W59+W68+W77+W86+W95+W104+W113+W194 -> 6606199.658 | X205: =+W205-'ROR-Model'!G205 -> 0
... 1031 more rows

Sheet ROR-Model
A1: ='Control Panel'!$B$1 -> Dominion Energy | L1: Jurisdictional Allocation Base Summary
A2: ='Control Panel'!$B$2 -> Utah - DEC 2021 Adjusted Avg Results | K2: #1 | L2: Gross Plant | M2: ='Utah Allocation'!D18 -> 0.9672070446 | N2: ='Utah Allocation'!E18 -> 0.03279295536 | O2: 'ROR-Model'!I1057+'ROR-Model'!I1068+'ROR-Model'!I1074+'ROR-Model'!I1080+'ROR-Model'!I1091+'ROR-Model'!I1112+'ROR-Model'!I1119+'ROR-Model'!I1126+'ROR-Model'!I1219
A3: ='Control Panel'!$B$3 -> 12 Months Ended : Dec-2021 | K3: #2 | L3: Rate Base | M3: ='Utah Allocation'!D35 -> 0.967498033 | N3: ='Utah Allocation'!E35 -> 0.03250196701
K4: #3 | L4: Sales | M4: ='Utah Allocation'!D46 -> 0.9653033467 | N4: ='Utah Allocation'!E46 -> 0.0346966533
K5: #4 | L5: Utah | M5: 1 | N5: 0 | P5: PT = Pass Through Item
K6: #5 | L6: Wyoming | M6: 0 | N6: 1
F7: Historical | G7: CASE | H7: Imputed | I7: Adjusted | Q7: Utah | T7: Wyoming | W7: HOT
A8: FERC | F8: 12 Months | G8: Adjustments | H8: Tax | I8: System | P8: Utah Method & Allocations | S8: Wyoming Method & Allocations | W8: This Scenario
A9: Account | C9: Description | F9: 2020-12-01 | G9: Total | H9: Adjustment | I9: Total | L9: Alloc Base | M9: Utah | N9: Wyoming | Q9: General | R9: PT | T9: General | U9: PT | W9: =+'Control Panel'!F11 -> Utah
Q10: Utah | T10: Wyoming | Y10: 1
A11: UTILITY OPERATING REVENUE | Y11: =Y10+1 -> 2
Y12: =Y11+1 -> 3
A13: TARIFF DTH SALES AND REVENUE | Y13: 4
Y14: 5
A15: Utah | Y15: 6
B16: GSR | C16: Distribution Non-Gas Rev | F16: =Revenue!$F$15 -> 333860738.1 | G16: =+Adjustments!W16 -> 13445467.67 | I16: =SUM($F$16:$H$16) -> 347306205.8 | L16: Utah | M16: =VLOOKUP($L16,$L$2:$N$7,2,FALSE)*I16 -> 347306205.8 | N16: =VLOOKUP($L16,$L$2:$N$7,3,FALSE)*I16 -> 0 | P16: G | Q16: =IF(P16="G",M16,IF(P16="PT",0,ERR)) -> 347306205.8 | R16: =IF(P16="PT",M16,IF(P16="G",0,ERR)) -> 0 | S16: G | T16: =IF(S16="G",N16,IF(S16="PT",0,ERR)) -> 0 | U16: =IF(S16="PT",N16,IF(S16="G",0,ERR)) -> 0 | W16: =HLOOKUP($W$9,'ROR-Model'!$Q$10:$U$1274,Y16) -> 347306205.8 | Y16: 7
Y17: 8
C18: Supplier Non-Gas Revenue | F18: =Revenue!$F$17 -> 80544731.67 | G18: =+Adjustments!W18 -> 0 | I18: =SUM($F$18:$H$18) -> 80544731.67 | L18: Utah | M18: =VLOOKUP($L18,$L$2:$N$7,2,FALSE)*I18 -> 80544731.67 | N18: =VLOOKUP($L18,$L$2:$N$7,3,FALSE)*I18 -> 0 | P18: PT | Q18: =IF(P18="G",M18,IF(P18="PT",0,ERR)) -> 0 | R18: =IF(P18="PT",M18,IF(P18="G",0,ERR)) -> 80544731.67 | S18: PT | T18: =IF(S18="G",N18,IF(S18="PT",0,ERR)) -> 0 | U18: =IF(S18="PT",N18,IF(S18="G",0,ERR)) -> 0 | W18: =HLOOKUP($W$9,'ROR-Model'!$Q$10:$U$1274,Y18) -> 0 | Y18: 9
Y19: 10
C20: Commodity Revenue | F20: =Revenue!$F$19 -> 378076836.6 | G20: =+Adjustments!W20 -> 0 | I20: =SUM($F$20:$H$20) -> 378076836.6 | L20: Utah | M20: =VLOOKUP($L20,$L$2:$N$7,2,FALSE)*I20 -> 378076836.6 | N20: =VLOOKUP($L20,$L$2:$N$7,3,FALSE)*I20 -> 0 | P20: PT | Q20: =IF(P20="G",M20,IF(P20="PT",0,ERR)) -> 0 | R20: =IF(P20="PT",M20,IF(P20="G",0,ERR)) -> 378076836.6 | S20: PT | T20: =IF(S20="G",N20,IF(S20="PT",0,ERR)) -> 0 | U20: =IF(S20="PT",N20,IF(S20="G",0,ERR)) -> 0 | W20: =HLOOKUP($W$9,'ROR-Model'!$Q$10:$U$1274,Y20) -> 0 | Y20: 11
C21: Total Revenue | F21: =SUM(F16:F20) -> 792482306.4 | G21: =SUM(G16:G20) -> 13445467.67 | H21: =SUM(H16:H20) -> 0 | I21: =SUM(I16:I20) -> 805927774.1 | M21: =SUM(M16:M20) -> 805927774.1 | N21: =SUM(N16:N20) -> 0 | Q21: =SUM(Q16:Q20) -> 347306205.8 | R21: =SUM(R16:R20) -> 458621568.3 | T21: =SUM(T16:T20) -> 0 | U21: =SUM(U16:U20) -> 0 | W21: =HLOOKUP($W$9,'ROR-Model'!$Q$10:$U$1274,Y21) -> 347306205.8 | Y21: 12
Y22: 13
C23: Total Dth | F23: =Revenue!$F$22 -> 103360570.3 | G23: =+Adjustments!W23 -> 6719872.749 | I23: =SUM($F$23:$H$23) -> 110080443 | L23: Utah | M23: =VLOOKUP($L23,$L$2:$N$7,2,FALSE)*I23 -> 110080443 | N23: =VLOOKUP($L23,$L$2:$N$7,3,FALSE)*I23 -> 0 | P23: G | Q23: =IF(P23="G",M23,IF(P23="PT",0,ERR)) -> 110080443 | R23: =IF(P23="PT",M23,IF(P23="G",0,ERR)) -> 0 | S23: G | T23: =IF(S23="G",N23,IF(S23="PT",0,ERR)) -> 0 | U23: =IF(S23="PT",N23,IF(S23="G",0,ERR)) -> 0 | W23: =HLOOKUP($W$9,'ROR-Model'!$Q$10:$U$1274,Y23) -> 110080443 | Y23: 14
Y24: 15
B25: GSC | C25: Distribution Non-Gas Rev | F25: =Revenue!$F$24 -> 0 | G25: =+Adjustments!W25 -> 0 | I25: =SUM($F$25:$H$25) -> 0 | L25: Utah | M25: =VLOOKUP($L25,$L$2:$N$7,2,FALSE)*I25 -> 0 | N25: =VLOOKUP($L25,$L$2:$N$7,3,FALSE)*I25 -> 0 | P25: G | Q25: =IF(P25="G",M25,IF(P25="PT",0,ERR)) -> 0 | R25: =IF(P25="PT",M25,IF(P25="G",0,ERR)) -> 0 | S25: G | T25: =IF(S25="G",N25,IF(S25="PT",0,ERR)) -> 0 | U25: =IF(S25="PT",N25,IF(S25="G",0,ERR)) -> 0 | W25: =HLOOKUP($W$9,'ROR-Model'!$Q$10:$U$1274,Y25) -> 0 | Y25: 16
Y26: 17
C27: Supplier Non-Gas Revenue | F27: =Revenue!$F$26 -> 0 | G27: =+Adjustments!W27 -> 0 | I27: =SUM($F$27:$H$27) -> 0 | L27: Utah | M27: =VLOOKUP($L27,$L$2:$N$7,2,FALSE)*I27 -> 0 | N27: =VLOOKUP($L27,$L$2:$N$7,3,FALSE)*I27 -> 0 | P27: PT | Q27: =IF(P27="G",M27,IF(P27="PT",0,ERR)) -> 0 | R27: =IF(P27="PT",M27,IF(P27="G",0,ERR)) -> 0 | S27: PT | T27: =IF(S27="G",N27,IF(S27="PT",0,ERR)) -> 0 | U27: =IF(S27="PT",N27,IF(S27="G",0,ERR)) -> 0 | W27: =HLOOKUP($W$9,'ROR-Model'!$Q$10:$U$1274,Y27) -> 0 | Y27: 18
Y28: 19
C29: Commodity Revenue | F29: =Revenue!$F$28 -> 0 | G29: =+Adjustments!W29 -> 0 | I29: =SUM($F$29:$H$29) -> 0 | L29: Utah | M29: =VLOOKUP($L29,$L$2:$N$7,2,FALSE)*I29 -> 0 | N29: =VLOOKUP($L29,$L$2:$N$7,3,FALSE)*I29 -> 0 | P29: PT | Q29: =IF(P29="G",M29,IF(P29="PT",0,ERR)) -> 0 | R29: =IF(P29="PT",M29,IF(P29="G",0,ERR)) -> 0 | S29: PT | T29: =IF(S29="G",N29,IF(S29="PT",0,ERR)) -> 0 | U29: =IF(S29="PT",N29,IF(S29="G",0,ERR)) -> 0 | W29: =HLOOKUP($W$9,'ROR-Model'!$Q$10:$U$1274,Y29) -> 0 | Y29: 20
C30: Total Revenue | F30: =SUM(F25:F29) -> 0 | G30: =SUM(G25:G29) -> 0 | H30: =SUM(H25:H29) -> 0 | I30: =SUM(I25:I29) -> 0 | M30: =SUM(M25:M29) -> 0 | N30: =SUM(N25:N29) -> 0 | Q30: =SUM(Q25:Q29) -> 0 | R30: =SUM(R25:R29) -> 0 | T30: =SUM(T25:T29) -> 0 | U30: =SUM(U25:U29) -> 0 | W30: =HLOOKUP($W$9,'ROR-Model'!$Q$10:$U$1274,Y30) -> 0 | Y30: 21
Y31: 22
C32: Total Dth | F32: =Revenue!$F$31 -> 0 | G32: =+Adjustments!W32 -> 0 | I32: =SUM(F32:H32) -> 0 | L32: Utah | M32: =VLOOKUP($L32,$L$2:$N$7,2,FALSE)*I32 -> 0 | N32: =VLOOKUP($L32,$L$2:$N$7,3,FALSE)*I32 -> 0 | P32: G | Q32: =IF(P32="G",M32,IF(P32="PT",0,ERR)) -> 0 | R32: =IF(P32="PT",M32,IF(P32="G",0,ERR)) -> 0 | S32: G | T32: =IF(S32="G",N32,IF(S32="PT",0,ERR)) -> 0 | U32: =IF(S32="PT",N32,IF(S32="G",0,ERR)) -> 0 | W32: =HLOOKUP($W$9,'ROR-Model'!$Q$10:$U$1274,Y32) -> 0 | Y32: 23
Y33: 24
B34: GSS | C34: Distribution Non-Gas Rev | F34: =Revenue!$F$33 -> 0 | G34: =+Adjustments!W34 -> 0 | I34: =SUM(F34:H34) -> 0 | L34: Utah | M34: =VLOOKUP($L34,$L$2:$N$7,2,FALSE)*I34 -> 0 | N34: =VLOOKUP($L34,$L$2:$N$7,3,FALSE)*I34 -> 0 | P34: G | Q34: =IF(P34="G",M34,IF(P34="PT",0,ERR)) -> 0 | R34: =IF(P34="PT",M34,IF(P34="G",0,ERR)) -> 0 | S34: G | T34: =IF(S34="G",N34,IF(S34="PT",0,ERR)) -> 0 | U34: =IF(S34="PT",N34,IF(S34="G",0,ERR)) -> 0 | W34: =HLOOKUP($W$9,'ROR-Model'!$Q$10:$U$1274,Y34) -> 0 | Y34: 25
Y35: 26
C36: Supplier Non-Gas Revenue | F36: =Revenue!$F$35 -> 0 | G36: =+Adjustments!W36 -> 0 | I36: =SUM($F$36:$H$36) -> 0 | L36: Utah | M36: =VLOOKUP($L36,$L$2:$N$7,2,FALSE)*I36 -> 0 | N36: =VLOOKUP($L36,$L$2:$N$7,3,FALSE)*I36 -> 0 | P36: PT | Q36: =IF(P36="G",M36,IF(P36="PT",0,ERR)) -> 0 | R36: =IF(P36="PT",M36,IF(P36="G",0,ERR)) -> 0 | S36: PT | T36: =IF(S36="G",N36,IF(S36="PT",0,ERR)) -> 0 | U36: =IF(S36="PT",N36,IF(S36="G",0,ERR)) -> 0 | W36: =HLOOKUP($W$9,'ROR-Model'!$Q$10:$U$1274,Y36) -> 0 | Y36: 27
Y37: 28
C38: Commodity Revenue | F38: =Revenue!$F$37 -> 0 | G38: =+Adjustments!W38 -> 0 | I38: =SUM($F$38:$H$38) -> 0 | L38: Utah | M38: =VLOOKUP($L38,$L$2:$N$7,2,FALSE)*I38 -> 0 | N38: =VLOOKUP($L38,$L$2:$N$7,3,FALSE)*I38 -> 0 | P38: PT | Q38: =IF(P38="G",M38,IF(P38="PT",0,ERR)) -> 0 | R38: =IF(P38="PT",M38,IF(P38="G",0,ERR)) -> 0 | S38: PT | T38: =IF(S38="G",N38,IF(S38="PT",0,ERR)) -> 0 | U38: =IF(S38="PT",N38,IF(S38="G",0,ERR)) -> 0 | W38: =HLOOKUP($W$9,'ROR-Model'!$Q$10:$U$1274,Y38) -> 0 | Y38: 29
C39: Total Revenue | F39: =SUM(F34:F38) -> 0 | G39: =SUM(G34:G38) -> 0 | H39: =SUM(H34:H38) -> 0 | I39: =SUM(I34:I38) -> 0 | M39: =SUM(M34:M38) -> 0 | N39: =SUM(N34:N38) -> 0 | Q39: =SUM(Q34:Q38) -> 0 | R39: =SUM(R34:R38) -> 0 | T39: =SUM(T34:T38) -> 0 | U39: =SUM(U34:U38) -> 0 | W39: =HLOOKUP($W$9,'ROR-Model'!$Q$10:$U$1274,Y39) -> 0 | Y39: 30
Y40: 31
C41: Total Dth | F41: =Revenue!$F$40 -> 0 | G41: =+Adjustments!W41 -> 0 | I41: =SUM($F$41:$H$41) -> 0 | L41: Utah | M41: =VLOOKUP($L41,$L$2:$N$7,2,FALSE)*I41 -> 0 | N41: =VLOOKUP($L41,$L$2:$N$7,3,FALSE)*I41 -> 0 | P41: G | Q41: =IF(P41="G",M41,IF(P41="PT",0,ERR)) -> 0 | R41: =IF(P41="PT",M41,IF(P41="G",0,ERR)) -> 0 | S41: G | T41: =IF(S41="G",N41,IF(S41="PT",0,ERR)) -> 0 | U41: =IF(S41="PT",N41,IF(S41="G",0,ERR)) -> 0 | W41: =HLOOKUP($W$9,'ROR-Model'!$Q$10:$U$1274,Y41) -> 0 | Y41: 32
Y42: 33
B43: F-1 | C43: Distribution Non-Gas Rev | F43: =Revenue!$F$42 -> 2926805.28 | G43: =+Adjustments!W43 -> -190717.4 | I43: =SUM($F$43:$H$43) -> 2736087.88 | L43: Utah | M43: =VLOOKUP($L43,$L$2:$N$7,2,FALSE)*I43 -> 2736087.88 | N43: =VLOOKUP($L43,$L$2:$N$7,3,FALSE)*I43 -> 0 | P43: G | Q43: =IF(P43="G",M43,IF(P43="PT",0,ERR)) -> 2736087.88 | R43: =IF(P43="PT",M43,IF(P43="G",0,ERR)) -> 0 | S43: G | T43: =IF(S43="G",N43,IF(S43="PT",0,ERR)) -> 0 | U43: =IF(S43="PT",N43,IF(S43="G",0,ERR)) -> 0 | W43: =HLOOKUP($W$9,'ROR-Model'!$Q$10:$U$1274,Y43) -> 2736087.88 | Y43: 34
Y44: 35
C45: Supplier Non-Gas Revenue | F45: =Revenue!$F$44 -> 2124559.88 | G45: =+Adjustments!W45 -> 0 | I45: =SUM($F$45:$H$45) -> 2124559.88 | L45: Utah | M45: =VLOOKUP($L45,$L$2:$N$7,2,FALSE)*I45 -> 2124559.88 | N45: =VLOOKUP($L45,$L$2:$N$7,3,FALSE)*I45 -> 0 | P45: PT | Q45: =IF(P45="G",M45,IF(P45="PT",0,ERR)) -> 0 | R45: =IF(P45="PT",M45,IF(P45="G",0,ERR)) -> 2124559.88 | S45: PT | T45: =IF(S45="G",N45,IF(S45="PT",0,ERR)) -> 0 | U45: =IF(S45="PT",N45,IF(S45="G",0,ERR)) -> 0 | W45: =HLOOKUP($W$9,'ROR-Model'!$Q$10:$U$1274,Y45) -> 0 | Y45: 36
Y46: 37
C47: Commodity Revenue | F47: =Revenue!$F$46 -> 9905849.45 | G47: =+Adjustments!W47 -> 0 | I47: =SUM($F$47:$H$47) -> 9905849.45 | L47: Utah | M47: =VLOOKUP($L47,$L$2:$N$7,2,FALSE)*I47 -> 9905849.45 | N47: =VLOOKUP($L47,$L$2:$N$7,3,FALSE)*I47 -> 0 | P47: PT | Q47: =IF(P47="G",M47,IF(P47="PT",0,ERR)) -> 0 | R47: =IF(P47="PT",M47,IF(P47="G",0,ERR)) -> 9905849.45 | S47: PT | T47: =IF(S47="G",N47,IF(S47="PT",0,ERR)) -> 0 | U47: =IF(S47="PT",N47,IF(S47="G",0,ERR)) -> 0 | W47: =HLOOKUP($W$9,'ROR-Model'!$Q$10:$U$1274,Y47) -> 0 | Y47: 38
C48: Total Revenue | F48: =SUM(F43:F47) -> 14957214.61 | G48: =SUM(G43:G47) -> -190717.4 | H48: =SUM(H43:H47) -> 0 | I48: =SUM(I43:I47) -> 14766497.21 | M48: =SUM(M43:M47) -> 14766497.21 | N48: =SUM(N43:N47) -> 0 | Q48: =SUM(Q43:Q47) -> 2736087.88 | R48: =SUM(R43:R47) -> 12030409.33 | T48: =SUM(T43:T47) -> 0 | U48: =SUM(U43:U47) -> 0 | W48: =HLOOKUP($W$9,'ROR-Model'!$Q$10:$U$1274,Y48) -> 2736087.88 | Y48: 39
Y49: 40
C50: Total Dth | F50: =Revenue!$F$49 -> 2739326.274 | G50: =+Adjustments!W50 -> -193134.274 | I50: =SUM($F$50:$H$50) -> 2546192 | L50: Utah | M50: =VLOOKUP($L50,$L$2:$N$7,2,FALSE)*I50 -> 2546192 | N50: =VLOOKUP($L50,$L$2:$N$7,3,FALSE)*I50 -> 0 | P50: G | Q50: =IF(P50="G",M50,IF(P50="PT",0,ERR)) -> 2546192 | R50: =IF(P50="PT",M50,IF(P50="G",0,ERR)) -> 0 | S50: G | T50: =IF(S50="G",N50,IF(S50="PT",0,ERR)) -> 0 | U50: =IF(S50="PT",N50,IF(S50="G",0,ERR)) -> 0 | W50: =HLOOKUP($W$9,'ROR-Model'!$Q$10:$U$1274,Y50) -> 2546192 | Y50: 41
Y51: 42
B52: F-3 | C52: Distribution Non-Gas Rev | F52: =Revenue!$F$51 -> 0 | G52: =+Adjustments!W52 -> 0 | I52: =SUM($F$52:$H$52) -> 0 | L52: Utah | M52: =VLOOKUP($L52,$L$2:$N$7,2,FALSE)*I52 -> 0 | N52: =VLOOKUP($L52,$L$2:$N$7,3,FALSE)*I52 -> 0 | P52: G | Q52: =IF(P52="G",M52,IF(P52="PT",0,ERR)) -> 0 | R52: =IF(P52="PT",M52,IF(P52="G",0,ERR)) -> 0 | S52: G | T52: =IF(S52="G",N52,IF(S52="PT",0,ERR)) -> 0 | U52: =IF(S52="PT",N52,IF(S52="G",0,ERR)) -> 0 | W52: =HLOOKUP($W$9,'ROR-Model'!$Q$10:$U$1274,Y52) -> 0 | Y52: 43
C53: Supplier Non-Gas Revenue | I53: =SUM($F$53:$H$53) -> 0 | L53: Utah | M53: =VLOOKUP($L53,$L$2:$N$7,2,FALSE)*I53 -> 0 | N53: =VLOOKUP($L53,$L$2:$N$7,3,FALSE)*I53 -> 0 | P53: PT | Q53: =IF(P53="G",M53,IF(P53="PT",0,ERR)) -> 0 | R53: =IF(P53="PT",M53,IF(P53="G",0,ERR)) -> 0 | S53: PT | T53: =IF(S53="G",N53,IF(S53="PT",0,ERR)) -> 0 | U53: =IF(S53="PT",N53,IF(S53="G",0,ERR)) -> 0 | W53: =HLOOKUP($W$9,'ROR-Model'!$Q$10:$U$1274,Y53) -> 0 | Y53: 44
C54: Supplier Non-Gas Demand Revenue | F54: =Revenue!$F$53 -> 0 | G54: =+Adjustments!W54 -> 0 | I54: =SUM($F$54:$H$54) -> 0 | L54: Utah | M54: =VLOOKUP($L54,$L$2:$N$7,2,FALSE)*I54 -> 0 | N54: =VLOOKUP($L54,$L$2:$N$7,3,FALSE)*I54 -> 0 | P54: PT | Q54: =IF(P54="G",M54,IF(P54="PT",0,ERR)) -> 0 | R54: =IF(P54="PT",M54,IF(P54="G",0,ERR)) -> 0 | S54: PT | T54: =IF(S54="G",N54,IF(S54="PT",0,ERR)) -> 0 | U54: =IF(S54="PT",N54,IF(S54="G",0,ERR)) -> 0 | W54: =HLOOKUP($W$9,'ROR-Model'!$Q$10:$U$1274,Y54) -> 0 | Y54: 45
C55: Commodity Tariff Revenue | I55: =SUM($F$55:$H$55) -> 0 | L55: Utah | M55: =VLOOKUP($L55,$L$2:$N$7,2,FALSE)*I55 -> 0 | N55: =VLOOKUP($L55,$L$2:$N$7,3,FALSE)*I55 -> 0 | P55: PT | Q55: =IF(P55="G",M55,IF(P55="PT",0,ERR)) -> 0 | R55: =IF(P55="PT",M55,IF(P55="G",0,ERR)) -> 0 | S55: PT | T55: =IF(S55="G",N55,IF(S55="PT",0,ERR)) -> 0 | U55: =IF(S55="PT",N55,IF(S55="G",0,ERR)) -> 0 | W55: =HLOOKUP($W$9,'ROR-Model'!$Q$10:$U$1274,Y55) -> 0 | Y55: 46
C56: Commodity Demand Revenue | F56: =Revenue!$F$55 -> 0 | G56: =+Adjustments!W56 -> 0 | I56: =SUM($F$56:$H$56) -> 0 | L56: Utah | M56: =VLOOKUP($L56,$L$2:$N$7,2,FALSE)*I56 -> 0 | N56: =VLOOKUP($L56,$L$2:$N$7,3,FALSE)*I56 -> 0 | P56: PT | Q56: =IF(P56="G",M56,IF(P56="PT",0,ERR)) -> 0 | R56: =IF(P56="PT",M56,IF(P56="G",0,ERR)) -> 0 | S56: PT | T56: =IF(S56="G",N56,IF(S56="PT",0,ERR)) -> 0 | U56: =IF(S56="PT",N56,IF(S56="G",0,ERR)) -> 0 | W56: =HLOOKUP($W$9,'ROR-Model'!$Q$10:$U$1274,Y56) -> 0 | Y56: 47
C57: Total Revenue | F57: =SUM(F52:F56) -> 0 | G57: =SUM(G52:G56) -> 0 | H57: =SUM(H52:H56) -> 0 | I57: =SUM(I52:I56) -> 0 | M57: =SUM(M52:M56) -> 0 | N57: =SUM(N52:N56) -> 0 | Q57: =SUM(Q52:Q56) -> 0 | R57: =SUM(R52:R56) -> 0 | T57: =SUM(T52:T56) -> 0 | U57: =SUM(U52:U56) -> 0 | W57: =HLOOKUP($W$9,'ROR-Model'!$Q$10:$U$1274,Y57) -> 0 | Y57: 48
Y58: 49
C59: Total Sales Dth | F59: =Revenue!$F$58 -> 0 | G59: =+Adjustments!W59 -> 0 | I59: =SUM($F$59:$H$59) -> 0 | L59: Utah | M59: =VLOOKUP($L59,$L$2:$N$7,2,FALSE)*I59 -> 0 | N59: =VLOOKUP($L59,$L$2:$N$7,3,FALSE)*I59 -> 0 | P59: G | Q59: =IF(P59="G",M59,IF(P59="PT",0,ERR)) -> 0 | R59: =IF(P59="PT",M59,IF(P59="G",0,ERR)) -> 0 | S59: G | T59: =IF(S59="G",N59,IF(S59="PT",0,ERR)) -> 0 | U59: =IF(S59="PT",N59,IF(S59="G",0,ERR)) -> 0 | W59: =HLOOKUP($W$9,'ROR-Model'!$Q$10:$U$1274,Y59) -> 0 | Y59: 50
W60: =HLOOKUP($W$9,'ROR-Model'!$Q$10:$U$1274,Y60) -> 0 | Y60: 51
B61: NGV | C61: Distribution Non-Gas Rev | F61: =Revenue!$F$60 -> 1880897.999 | G61: =+Adjustments!W61 -> 221328.9609 | I61: =SUM($F$61:$H$61) -> 2102226.96 | L61: Utah | M61: =VLOOKUP($L61,$L$2:$N$7,2,FALSE)*I61 -> 2102226.96 | N61: =VLOOKUP($L61,$L$2:$N$7,3,FALSE)*I61 -> 0 | P61: G | Q61: =IF(P61="G",M61,IF(P61="PT",0,ERR)) -> 2102226.96 | R61: =IF(P61="PT",M61,IF(P61="G",0,ERR)) -> 0 | S61: G | T61: =IF(S61="G",N61,IF(S61="PT",0,ERR)) -> 0 | U61: =IF(S61="PT",N61,IF(S61="G",0,ERR)) -> 0 | W61: =HLOOKUP($W$9,'ROR-Model'!$Q$10:$U$1274,Y61) -> 2102226.96 | Y61: 52
F62: =Revenue!$F$61 -> 0 | W62: =HLOOKUP($W$9,'ROR-Model'!$Q$10:$U$1274,Y62) -> 0 | Y62: 53
C63: Supplier Non-Gas Revenue | F63: =Revenue!$F$62 -> 148278.7085 | G63: =+Adjustments!W63 -> 0 | I63: =SUM($F$63:$H$63) -> 148278.7085 | L63: Utah | M63: =VLOOKUP($L63,$L$2:$N$7,2,FALSE)*I63 -> 148278.7085 | N63: =VLOOKUP($L63,$L$2:$N$7,3,FALSE)*I63 -> 0 | P63: PT | Q63: =IF(P63="G",M63,IF(P63="PT",0,ERR)) -> 0 | R63: =IF(P63="PT",M63,IF(P63="G",0,ERR)) -> 148278.7085 | S63: PT | T63: =IF(S63="G",N63,IF(S63="PT",0,ERR)) -> 0 | U63: =IF(S63="PT",N63,IF(S63="G",0,ERR)) -> 0 | W63: =HLOOKUP($W$9,'ROR-Model'!$Q$10:$U$1274,Y63) -> 0 | Y63: 54
F64: =Revenue!$F$63 -> 0 | W64: =HLOOKUP($W$9,'ROR-Model'!$Q$10:$U$1274,Y64) -> 0 | Y64: 55
C65: Commodity Revenue | F65: =Revenue!$F$64 -> 719876.1424 | G65: =+Adjustments!W65 -> 0 | I65: =SUM($F$65:$H$65) -> 719876.1424 | L65: Utah | M65: =VLOOKUP($L65,$L$2:$N$7,2,FALSE)*I65 -> 719876.1424 | N65: =VLOOKUP($L65,$L$2:$N$7,3,FALSE)*I65 -> 0 | P65: PT | Q65: =IF(P65="G",M65,IF(P65="PT",0,ERR)) -> 0 | R65: =IF(P65="PT",M65,IF(P65="G",0,ERR)) -> 719876.1424 | S65: PT | T65: =IF(S65="G",N65,IF(S65="PT",0,ERR)) -> 0 | U65: =IF(S65="PT",N65,IF(S65="G",0,ERR)) -> 0 | W65: =HLOOKUP($W$9,'ROR-Model'!$Q$10:$U$1274,Y65) -> 0 | Y65: 56
C66: Total Revenue | F66: =SUM(F61:F65) -> 2749052.85 | G66: =SUM(G61:G65) -> 221328.9609 | H66: =SUM(H61:H65) -> 0 | I66: =SUM(I61:I65) -> 2970381.811 | M66: =SUM(M61:M65) -> 2970381.811 | N66: =SUM(N61:N65) -> 0 | Q66: =SUM(Q61:Q65) -> 2102226.96 | R66: =SUM(R61:R65) -> 868154.8509 | T66: =SUM(T61:T65) -> 0 | U66: =SUM(U61:U65) -> 0 | W66: =HLOOKUP($W$9,'ROR-Model'!$Q$10:$U$1274,Y66) -> 2102226.96 | Y66: 57
Y67: 58
C68: Total Dth | F68: =Revenue!$F$67 -> 247635.85 | G68: =+Adjustments!W68 -> 4738.15 | I68: =SUM($F$68:$H$68) -> 252374 | L68: Utah | M68: =VLOOKUP($L68,$L$2:$N$7,2,FALSE)*I68 -> 252374 | N68: =VLOOKUP($L68,$L$2:$N$7,3,FALSE)*I68 -> 0 | P68: G | Q68: =IF(P68="G",M68,IF(P68="PT",0,ERR)) -> 252374 | R68: =IF(P68="PT",M68,IF(P68="G",0,ERR)) -> 0 | S68: G | T68: =IF(S68="G",N68,IF(S68="PT",0,ERR)) -> 0 | U68: =IF(S68="PT",N68,IF(S68="G",0,ERR)) -> 0 | W68: =HLOOKUP($W$9,'ROR-Model'!$Q$10:$U$1274,Y68) -> 252374 | Y68: 59
Y69: 60
B70: F-4 | C70: Distribution Non-Gas Rev | F70: =Revenue!$F$69 -> 0 | G70: =+Adjustments!W70 -> 0 | I70: =SUM($F$70:$H$70) -> 0 | L70: Utah | M70: =VLOOKUP($L70,$L$2:$N$7,2,FALSE)*I70 -> 0 | N70: =VLOOKUP($L70,$L$2:$N$7,3,FALSE)*I70 -> 0 | P70: G | Q70: =IF(P70="G",M70,IF(P70="PT",0,ERR)) -> 0 | R70: =IF(P70="PT",M70,IF(P70="G",0,ERR)) -> 0 | S70: G | T70: =IF(S70="G",N70,IF(S70="PT",0,ERR)) -> 0 | U70: =IF(S70="PT",N70,IF(S70="G",0,ERR)) -> 0 | W70: =HLOOKUP($W$9,'ROR-Model'!$Q$10:$U$1274,Y70) -> 0 | Y70: 61
Y71: 62
C72: Supplier Non-Gas Revenue | F72: =Revenue!$F$71 -> 0 | G72: =+Adjustments!W72 -> 0 | I72: =SUM($F$72:$H$72) -> 0 | L72: Utah | M72: =VLOOKUP($L72,$L$2:$N$7,2,FALSE)*I72 -> 0 | N72: =VLOOKUP($L72,$L$2:$N$7,3,FALSE)*I72 -> 0 | P72: PT | Q72: =IF(P72="G",M72,IF(P72="PT",0,ERR)) -> 0 | R72: =IF(P72="PT",M72,IF(P72="G",0,ERR)) -> 0 | S72: PT | T72: =IF(S72="G",N72,IF(S72="PT",0,ERR)) -> 0 | U72: =IF(S72="PT",N72,IF(S72="G",0,ERR)) -> 0 | W72: =HLOOKUP($W$9,'ROR-Model'!$Q$10:$U$1274,Y72) -> 0 | Y72: 63
Y73: 64
C74: Commodity Revenue | F74: =Revenue!$F$73 -> 0 | G74: =+Adjustments!W74 -> 0 | I74: =SUM($F$74:$H$74) -> 0 | L74: Utah | M74: =VLOOKUP($L74,$L$2:$N$7,2,FALSE)*I74 -> 0 | N74: =VLOOKUP($L74,$L$2:$N$7,3,FALSE)*I74 -> 0 | P74: PT | Q74: =IF(P74="G",M74,IF(P74="PT",0,ERR)) -> 0 | R74: =IF(P74="PT",M74,IF(P74="G",0,ERR)) -> 0 | S74: PT | T74: =IF(S74="G",N74,IF(S74="PT",0,ERR)) -> 0 | U74: =IF(S74="PT",N74,IF(S74="G",0,ERR)) -> 0 | W74: =HLOOKUP($W$9,'ROR-Model'!$Q$10:$U$1274,Y74) -> 0 | Y74: 65
C75: Total Revenue | F75: =SUM(F70:F74) -> 0 | G75: =SUM(G70:G74) -> 0 | H75: =SUM(H70:H74) -> 0 | I75: =SUM(I70:I74) -> 0 | M75: =SUM(M70:M74) -> 0 | N75: =SUM(N70:N74) -> 0 | Q75: =SUM(Q70:Q74) -> 0 | R75: =SUM(R70:R74) -> 0 | T75: =SUM(T70:T74) -> 0 | U75: =SUM(U70:U74) -> 0 | W75: =HLOOKUP($W$9,'ROR-Model'!$Q$10:$U$1274,Y75) -> 0 | Y75: 66
Y76: =Y75+1 -> 67
C77: Total Dth | F77: =Revenue!$F$76 -> 0 | G77: =+Adjustments!W77 -> 0 | I77: =SUM($F$77:$H$77) -> 0 | L77: Utah | M77: =VLOOKUP($L77,$L$2:$N$7,2,FALSE)*I77 -> 0 | N77: =VLOOKUP($L77,$L$2:$N$7,3,FALSE)*I77 -> 0 | P77: G | Q77: =IF(P77="G",M77,IF(P77="PT",0,ERR)) -> 0 | R77: =IF(P77="PT",M77,IF(P77="G",0,ERR)) -> 0 | S77: G | T77: =IF(S77="G",N77,IF(S77="PT",0,ERR)) -> 0 | U77: =IF(S77="PT",N77,IF(S77="G",0,ERR)) -> 0 | W77: =HLOOKUP($W$9,'ROR-Model'!$Q$10:$U$1274,Y77) -> 0 | Y77: 68
Y78: 69
B79: Blank | C79: Distribution Non-Gas Rev | F79: =Revenue!$F$78 -> 0 | G79: =+Adjustments!W79 -> 0 | I79: =SUM($F$79:$H$79) -> 0 | L79: Utah | M79: =VLOOKUP($L79,$L$2:$N$7,2,FALSE)*I79 -> 0 | N79: =VLOOKUP($L79,$L$2:$N$7,3,FALSE)*I79 -> 0 | P79: G | Q79: =IF(P79="G",M79,IF(P79="PT",0,ERR)) -> 0 | R79: =IF(P79="PT",M79,IF(P79="G",0,ERR)) -> 0 | S79: G | T79: =IF(S79="G",N79,IF(S79="PT",0,ERR)) -> 0 | U79: =IF(S79="PT",N79,IF(S79="G",0,ERR)) -> 0 | W79: =HLOOKUP($W$9,'ROR-Model'!$Q$10:$U$1274,Y79) -> 0 | Y79: 70
Y80: 71
C81: Supplier Non-Gas Revenue | F81: =Revenue!$F$80 -> 0 | G81: =+Adjustments!W81 -> 0 | I81: =SUM($F$81:$H$81) -> 0 | L81: Utah | M81: =VLOOKUP($L81,$L$2:$N$7,2,FALSE)*I81 -> 0 | N81: =VLOOKUP($L81,$L$2:$N$7,3,FALSE)*I81 -> 0 | P81: PT | Q81: =IF(P81="G",M81,IF(P81="PT",0,ERR)) -> 0 | R81: =IF(P81="PT",M81,IF(P81="G",0,ERR)) -> 0 | S81: PT | T81: =IF(S81="G",N81,IF(S81="PT",0,ERR)) -> 0 | U81: =IF(S81="PT",N81,IF(S81="G",0,ERR)) -> 0 | W81: =HLOOKUP($W$9,'ROR-Model'!$Q$10:$U$1274,Y81) -> 0 | Y81: 72
Y82: 73
C83: Commodity Revenue | F83: =Revenue!$F$82 -> 0 | G83: =+Adjustments!W83 -> 0 | I83: =SUM($F$83:$H$83) -> 0 | L83: Utah | M83: =VLOOKUP($L83,$L$2:$N$7,2,FALSE)*I83 -> 0 | N83: =VLOOKUP($L83,$L$2:$N$7,3,FALSE)*I83 -> 0 | P83: PT | Q83: =IF(P83="G",M83,IF(P83="PT",0,ERR)) -> 0 | R83: =IF(P83="PT",M83,IF(P83="G",0,ERR)) -> 0 | S83: PT | T83: =IF(S83="G",N83,IF(S83="PT",0,ERR)) -> 0 | U83: =IF(S83="PT",N83,IF(S83="G",0,ERR)) -> 0 | W83: =HLOOKUP($W$9,'ROR-Model'!$Q$10:$U$1274,Y83) -> 0 | Y83: 74
C84: Total Revenue | F84: =SUM(F79:F83) -> 0 | G84: =SUM(G79:G83) -> 0 | H84: =SUM(H79:H83) -> 0 | I84: =SUM(I79:I83) -> 0 | M84: =SUM(M79:M83) -> 0 | N84: =SUM(N79:N83) -> 0 | Q84: =SUM(Q79:Q83) -> 0 | R84: =SUM(R79:R83) -> 0 | T84: =SUM(T79:T83) -> 0 | U84: =SUM(U79:U83) -> 0 | W84: =HLOOKUP($W$9,'ROR-Model'!$Q$10:$U$1274,Y84) -> 0 | Y84: 75
Y85: 76
C86: Total Dth | F86: =Revenue!$F$85 -> 0 | G86: =+Adjustments!W86 -> 0 | I86: =SUM($F$86:$H$86) -> 0 | L86: Utah | M86: =VLOOKUP($L86,$L$2:$N$7,2,FALSE)*I86 -> 0 | N86: =VLOOKUP($L86,$L$2:$N$7,3,FALSE)*I86 -> 0 | P86: G | Q86: =IF(P86="G",M86,IF(P86="PT",0,ERR)) -> 0 | R86: =IF(P86="PT",M86,IF(P86="G",0,ERR)) -> 0 | S86: G | T86: =IF(S86="G",N86,IF(S86="PT",0,ERR)) -> 0 | U86: =IF(S86="PT",N86,IF(S86="G",0,ERR)) -> 0 | W86: =HLOOKUP($W$9,'ROR-Model'!$Q$10:$U$1274,Y86) -> 0 | Y86: 77
Y87: 78
B88: I-4 | C88: Distribution Non-Gas Rev | F88: =Revenue!$F$87 -> 0 | G88: =+Adjustments!W88 -> 0 | I88: =SUM($F$88:$H$88) -> 0 | L88: Utah | M88: =VLOOKUP($L88,$L$2:$N$7,2,FALSE)*I88 -> 0 | N88: =VLOOKUP($L88,$L$2:$N$7,3,FALSE)*I88 -> 0 | P88: G | Q88: =IF(P88="G",M88,IF(P88="PT",0,ERR)) -> 0 | R88: =IF(P88="PT",M88,IF(P88="G",0,ERR)) -> 0 | S88: G | T88: =IF(S88="G",N88,IF(S88="PT",0,ERR)) -> 0 | U88: =IF(S88="PT",N88,IF(S88="G",0,ERR)) -> 0 | W88: =HLOOKUP($W$9,'ROR-Model'!$Q$10:$U$1274,Y88) -> 0 | Y88: 79
Y89: 80
C90: Supplier Non-Gas Revenue | F90: =Revenue!$F$89 -> 0 | G90: =+Adjustments!W90 -> 0 | I90: =SUM($F$90:$H$90) -> 0 | L90: Utah | M90: =VLOOKUP($L90,$L$2:$N$7,2,FALSE)*I90 -> 0 | N90: =VLOOKUP($L90,$L$2:$N$7,3,FALSE)*I90 -> 0 | P90: PT | Q90: =IF(P90="G",M90,IF(P90="PT",0,ERR)) -> 0 | R90: =IF(P90="PT",M90,IF(P90="G",0,ERR)) -> 0 | S90: PT | T90: =IF(S90="G",N90,IF(S90="PT",0,ERR)) -> 0 | U90: =IF(S90="PT",N90,IF(S90="G",0,ERR)) -> 0 | W90: =HLOOKUP($W$9,'ROR-Model'!$Q$10:$U$1274,Y90) -> 0 | Y90: 81
Y91: 82
C92: Commodity Revenue | F92: =Revenue!$F$91 -> 0 | G92: =+Adjustments!W92 -> 0 | I92: =SUM($F$92:$H$92) -> 0 | L92: Utah | M92: =VLOOKUP($L92,$L$2:$N$7,2,FALSE)*I92 -> 0 | N92: =VLOOKUP($L92,$L$2:$N$7,3,FALSE)*I92 -> 0 | P92: PT | Q92: =IF(P92="G",M92,IF(P92="PT",0,ERR)) -> 0 | R92: =IF(P92="PT",M92,IF(P92="G",0,ERR)) -> 0 | S92: PT | T92: =IF(S92="G",N92,IF(S92="PT",0,ERR)) -> 0 | U92: =IF(S92="PT",N92,IF(S92="G",0,ERR)) -> 0 | W92: =HLOOKUP($W$9,'ROR-Model'!$Q$10:$U$1274,Y92) -> 0 | Y92: 83
C93: Total Revenue | F93: =SUM(F88:F92) -> 0 | G93: =SUM(G88:G92) -> 0 | H93: =SUM(H88:H92) -> 0 | I93: =SUM(I88:I92) -> 0 | M93: =SUM(M88:M92) -> 0 | N93: =SUM(N88:N92) -> 0 | Q93: =SUM(Q88:Q92) -> 0 | R93: =SUM(R88:R92) -> 0 | T93: =SUM(T88:T92) -> 0 | U93: =SUM(U88:U92) -> 0 | W93: =HLOOKUP($W$9,'ROR-Model'!$Q$10:$U$1274,Y93) -> 0 | Y93: 84
Y94: 85
C95: Total Dth | F95: =Revenue!$F$94 -> 0 | G95: =+Adjustments!W95 -> 0 | I95: =SUM($F$95:$H$95) -> 0 | L95: Utah | M95: =VLOOKUP($L95,$L$2:$N$7,2,FALSE)*I95 -> 0 | N95: =VLOOKUP($L95,$L$2:$N$7,3,FALSE)*I95 -> 0 | P95: G | Q95: =IF(P95="G",M95,IF(P95="PT",0,ERR)) -> 0 | R95: =IF(P95="PT",M95,IF(P95="G",0,ERR)) -> 0 | S95: G | T95: =IF(S95="G",N95,IF(S95="PT",0,ERR)) -> 0 | U95: =IF(S95="PT",N95,IF(S95="G",0,ERR)) -> 0 | W95: =HLOOKUP($W$9,'ROR-Model'!$Q$10:$U$1274,Y95) -> 0 | Y95: 86
Y96: 87
B97: IS | C97: Distribution Non-Gas Rev | F97: =Revenue!$F$96 -> 206606.23 | G97: =+Adjustments!W97 -> -12537.54 | I97: =SUM($F$97:$H$97) -> 194068.69 | L97: Utah | M97: =VLOOKUP($L97,$L$2:$N$7,2,FALSE)*I97 -> 194068.69 | N97: =VLOOKUP($L97,$L$2:$N$7,3,FALSE)*I97 -> 0 | P97: G | Q97: =IF(P97="G",M97,IF(P97="PT",0,ERR)) -> 194068.69 | R97: =IF(P97="PT",M97,IF(P97="G",0,ERR)) -> 0 | S97: G | T97: =IF(S97="G",N97,IF(S97="PT",0,ERR)) -> 0 | U97: =IF(S97="PT",N97,IF(S97="G",0,ERR)) -> 0 | W97: =HLOOKUP($W$9,'ROR-Model'!$Q$10:$U$1274,Y97) -> 194068.69 | Y97: 88
Y98: 89
C99: Supplier Non-Gas Revenue | F99: =Revenue!$F$98 -> 33856.85 | G99: =+Adjustments!W99 -> 13486.78 | I99: =SUM($F$99:$H$99) -> 47343.63 | L99: Utah | M99: =VLOOKUP($L99,$L$2:$N$7,2,FALSE)*I99 -> 47343.63 | N99: =VLOOKUP($L99,$L$2:$N$7,3,FALSE)*I99 -> 0 | P99: PT | Q99: =IF(P99="G",M99,IF(P99="PT",0,ERR)) -> 0 | R99: =IF(P99="PT",M99,IF(P99="G",0,ERR)) -> 47343.63 | S99: PT | T99: =IF(S99="G",N99,IF(S99="PT",0,ERR)) -> 0 | U99: =IF(S99="PT",N99,IF(S99="G",0,ERR)) -> 0 | W99: =HLOOKUP($W$9,'ROR-Model'!$Q$10:$U$1274,Y99) -> 0 | Y99: 90
Y100: 91
C101: Commodity Revenue | F101: =Revenue!$F$100 -> 690701.19 | G101: =+Adjustments!W101 -> 371367.94 | I101: =SUM($F$101:$H$101) -> 1062069.13 | L101: Utah | M101: =VLOOKUP($L101,$L$2:$N$7,2,FALSE)*I101 -> 1062069.13 | N101: =VLOOKUP($L101,$L$2:$N$7,3,FALSE)*I101 -> 0 | P101: PT | Q101: =IF(P101="G",M101,IF(P101="PT",0,ERR)) -> 0 | R101: =IF(P101="PT",M101,IF(P101="G",0,ERR)) -> 1062069.13 | S101: PT | T101: =IF(S101="G",N101,IF(S101="PT",0,ERR)) -> 0 | U101: =IF(S101="PT",N101,IF(S101="G",0,ERR)) -> 0 | W101: =HLOOKUP($W$9,'ROR-Model'!$Q$10:$U$1274,Y101) -> 0 | Y101: 92
C102: Total Revenue | F102: =SUM(F97:F101) -> 931164.27 | G102: =SUM(G97:G101) -> 372317.18 | H102: =SUM(H97:H101) -> 0 | I102: =SUM(I97:I101) -> 1303481.45 | M102: =SUM(M97:M101) -> 1303481.45 | N102: =SUM(N97:N101) -> 0 | Q102: =SUM(Q97:Q101) -> 194068.69 | R102: =SUM(R97:R101) -> 1109412.76 | T102: =SUM(T97:T101) -> 0 | U102: =SUM(U97:U101) -> 0 | W102: =HLOOKUP($W$9,'ROR-Model'!$Q$10:$U$1274,Y102) -> 194068.69 | Y102: 93
Y103: 94
C104: Total Dth | F104: =Revenue!$F$103 -> 188926.967 | G104: =+Adjustments!W104 -> 74723.033 | I104: =SUM($F$104:$H$104) -> 263650 | L104: Utah | M104: =VLOOKUP($L104,$L$2:$N$7,2,FALSE)*I104 -> 263650 | N104: =VLOOKUP($L104,$L$2:$N$7,3,FALSE)*I104 -> 0 | P104: G | Q104: =IF(P104="G",M104,IF(P104="PT",0,ERR)) -> 263650 | R104: =IF(P104="PT",M104,IF(P104="G",0,ERR)) -> 0 | S104: G | T104: =IF(S104="G",N104,IF(S104="PT",0,ERR)) -> 0 | U104: =IF(S104="PT",N104,IF(S104="G",0,ERR)) -> 0 | W104: =HLOOKUP($W$9,'ROR-Model'!$Q$10:$U$1274,Y104) -> 263650 | Y104: 95
Y105: 96
B106: IS-4 | C106: Distribution Non-Gas Rev | F106: =Revenue!$F$105 -> 0 | G106: =+Adjustments!W106 -> 0 | I106: =SUM($F$106:$H$106) -> 0 | L106: Utah | M106: =VLOOKUP($L106,$L$2:$N$7,2,FALSE)*I106 -> 0 | N106: =VLOOKUP($L106,$L$2:$N$7,3,FALSE)*I106 -> 0 | P106: G | Q106: =IF(P106="G",M106,IF(P106="PT",0,ERR)) -> 0 | R106: =IF(P106="PT",M106,IF(P106="G",0,ERR)) -> 0 | S106: G | T106: =IF(S106="G",N106,IF(S106="PT",0,ERR)) -> 0 | U106: =IF(S106="PT",N106,IF(S106="G",0,ERR)) -> 0 | W106: =HLOOKUP($W$9,'ROR-Model'!$Q$10:$U$1274,Y106) -> 0 | Y106: 97
Y107: 98
C108: Supplier Non-Gas Revenue | F108: =Revenue!$F$107 -> 0 | G108: =+Adjustments!W108 -> 0 | I108: =SUM($F$108:$H$108) -> 0 | L108: Utah | M108: =VLOOKUP($L108,$L$2:$N$7,2,FALSE)*I108 -> 0 | N108: =VLOOKUP($L108,$L$2:$N$7,3,FALSE)*I108 -> 0 | P108: PT | Q108: =IF(P108="G",M108,IF(P108="PT",0,ERR)) -> 0 | R108: =IF(P108="PT",M108,IF(P108="G",0,ERR)) -> 0 | S108: PT | T108: =IF(S108="G",N108,IF(S108="PT",0,ERR)) -> 0 | U108: =IF(S108="PT",N108,IF(S108="G",0,ERR)) -> 0 | W108: =HLOOKUP($W$9,'ROR-Model'!$Q$10:$U$1274,Y108) -> 0 | Y108: 99
Y109: 100
C110: Commodity Revenue | F110: =Revenue!$F$109 -> 0 | G110: =+Adjustments!W110 -> 0 | I110: =SUM($F$110:$H$110) -> 0 | L110: Utah | M110: =VLOOKUP($L110,$L$2:$N$7,2,FALSE)*I110 -> 0 | N110: =VLOOKUP($L110,$L$2:$N$7,3,FALSE)*I110 -> 0 | P110: PT | Q110: =IF(P110="G",M110,IF(P110="PT",0,ERR)) -> 0 | R110: =IF(P110="PT",M110,IF(P110="G",0,ERR)) -> 0 | S110: PT | T110: =IF(S110="G",N110,IF(S110="PT",0,ERR)) -> 0 | U110: =IF(S110="PT",N110,IF(S110="G",0,ERR)) -> 0 | W110: =HLOOKUP($W$9,'ROR-Model'!$Q$10:$U$1274,Y110) -> 0 | Y110: 101
C111: Total Revenue | F111: =SUM(F106:F110) -> 0 | G111: =SUM(G106:G110) -> 0 | H111: =SUM(H106:H110) -> 0 | I111: =SUM(I106:I110) -> 0 | M111: =SUM(M106:M110) -> 0 | N111: =SUM(N106:N110) -> 0 | Q111: =SUM(Q106:Q110) -> 0 | R111: =SUM(R106:R110) -> 0 | T111: =SUM(T106:T110) -> 0 | U111: =SUM(U106:U110) -> 0 | W111: =HLOOKUP($W$9,'ROR-Model'!$Q$10:$U$1274,Y111) -> 0 | Y111: 102
Y112: 103
C113: Total Dth | F113: =Revenue!$F$112 -> 0 | G113: =+Adjustments!W113 -> 0 | I113: =SUM($F$113:$H$113) -> 0 | L113: Utah | M113: =VLOOKUP($L113,$L$2:$N$7,2,FALSE)*I113 -> 0 | N113: =VLOOKUP($L113,$L$2:$N$7,3,FALSE)*I113 -> 0 | P113: G | Q113: =IF(P113="G",M113,IF(P113="PT",0,ERR)) -> 0 | R113: =IF(P113="PT",M113,IF(P113="G",0,ERR)) -> 0 | S113: G | T113: =IF(S113="G",N113,IF(S113="PT",0,ERR)) -> 0 | U113: =IF(S113="PT",N113,IF(S113="G",0,ERR)) -> 0 | W113: =HLOOKUP($W$9,'ROR-Model'!$Q$10:$U$1274,Y113) -> 0 | Y113: 104
Y114: 105
B115: FT1-L | C115: Distribution Non-Gas Rev | F115: =Revenue!$F$114 -> 0 | G115: =+Adjustments!W115 -> 2800834 | I115: =SUM($F$115:$H$115) -> 2800834 | L115: Utah | M115: =VLOOKUP($L115,$L$2:$N$7,2,FALSE)*I115 -> 2800834 | N115: =VLOOKUP($L115,$L$2:$N$7,3,FALSE)*I115 -> 0 | P115: G | Q115: =IF(P115="G",M115,IF(P115="PT",0,ERR)) -> 2800834 | R115: =IF(P115="PT",M115,IF(P115="G",0,ERR)) -> 0 | S115: G | T115: =IF(S115="G",N115,IF(S115="PT",0,ERR)) -> 0 | U115: =IF(S115="PT",N115,IF(S115="G",0,ERR)) -> 0 | W115: =HLOOKUP($W$9,'ROR-Model'!$Q$10:$U$1274,Y115) -> 2800834 | Y115: 106
Y116: 107
C117: Supplier Non-Gas Revenue | F117: =Revenue!$F$116 -> 0 | G117: =+Adjustments!W117 -> 0 | I117: =SUM($F$117:$H$117) -> 0 | L117: Utah | M117: =VLOOKUP($L117,$L$2:$N$7,2,FALSE)*I117 -> 0 | N117: =VLOOKUP($L117,$L$2:$N$7,3,FALSE)*I117 -> 0 | P117: PT | Q117: =IF(P117="G",M117,IF(P117="PT",0,ERR)) -> 0 | R117: =IF(P117="PT",M117,IF(P117="G",0,ERR)) -> 0 | S117: PT | T117: =IF(S117="G",N117,IF(S117="PT",0,ERR)) -> 0 | U117: =IF(S117="PT",N117,IF(S117="G",0,ERR)) -> 0 | W117: =HLOOKUP($W$9,'ROR-Model'!$Q$10:$U$1274,Y117) -> 0 | Y117: 108
Y118: 109
C119: Commodity Revenue | F119: =Revenue!$F$118 -> 0 | G119: =+Adjustments!W119 -> 0 | I119: =SUM($F$119:$H$119) -> 0 | L119: Utah | M119: =VLOOKUP($L119,$L$2:$N$7,2,FALSE)*I119 -> 0 | N119: =VLOOKUP($L119,$L$2:$N$7,3,FALSE)*I119 -> 0 | P119: PT | Q119: =IF(P119="G",M119,IF(P119="PT",0,ERR)) -> 0 | R119: =IF(P119="PT",M119,IF(P119="G",0,ERR)) -> 0 | S119: PT | T119: =IF(S119="G",N119,IF(S119="PT",0,ERR)) -> 0 | U119: =IF(S119="PT",N119,IF(S119="G",0,ERR)) -> 0 | W119: =HLOOKUP($W$9,'ROR-Model'!$Q$10:$U$1274,Y119) -> 0 | Y119: 110
C120: Total Revenue | F120: =SUM(F115:F119) -> 0 | G120: =SUM(G115:G119) -> 2800834 | H120: =SUM(H115:H119) -> 0 | I120: =SUM(I115:I119) -> 2800834 | M120: =SUM(M115:M119) -> 2800834 | N120: =SUM(N115:N119) -> 0 | Q120: =SUM(Q115:Q119) -> 2800834 | R120: =SUM(R115:R119) -> 0 | T120: =SUM(T115:T119) -> 0 | U120: =SUM(U115:U119) -> 0 | W120: =HLOOKUP($W$9,'ROR-Model'!$Q$10:$U$1274,Y120) -> 2800834 | Y120: 111
Y121: 112
C122: Total Dth | F122: =Revenue!$F$121 -> 0 | G122: =+Adjustments!W122 -> 39705087 | I122: =SUM($F$122:$H$122) -> 39705087 | L122: Utah | M122: =VLOOKUP($L122,$L$2:$N$7,2,FALSE)*I122 -> 39705087 | N122: =VLOOKUP($L122,$L$2:$N$7,3,FALSE)*I122 -> 0 | P122: G | Q122: =IF(P122="G",M122,IF(P122="PT",0,ERR)) -> 39705087 | R122: =IF(P122="PT",M122,IF(P122="G",0,ERR)) -> 0 | S122: G | T122: =IF(S122="G",N122,IF(S122="PT",0,ERR)) -> 0 | U122: =IF(S122="PT",N122,IF(S122="G",0,ERR)) -> 0 | W122: =HLOOKUP($W$9,'ROR-Model'!$Q$10:$U$1274,Y122) -> 39705087 | Y122: 113
Y123: 114
B124: TBF | C124: Distribution Non-Gas Rev | F124: =Revenue!$F$123 -> 5883125.36 | G124: =+Adjustments!W124 -> -3410688.9 | I124: =SUM($F$124:$H$124) -> 2472436.46 | L124: Utah | M124: =VLOOKUP($L124,$L$2:$N$7,2,FALSE)*I124 -> 2472436.46 | N124: =VLOOKUP($L124,$L$2:$N$7,3,FALSE)*I124 -> 0 | P124: G | Q124: =IF(P124="G",M124,IF(P124="PT",0,ERR)) -> 2472436.46 | R124: =IF(P124="PT",M124,IF(P124="G",0,ERR)) -> 0 | S124: G | T124: =IF(S124="G",N124,IF(S124="PT",0,ERR)) -> 0 | U124: =IF(S124="PT",N124,IF(S124="G",0,ERR)) -> 0 | W124: =HLOOKUP($W$9,'ROR-Model'!$Q$10:$U$1274,Y124) -> 2472436.46 | Y124: 115
Y125: 116
C126: Supplier Non-Gas Revenue | F126: =Revenue!$F$125 -> 135372.89 | G126: =+Adjustments!W126 -> -81066.89 | I126: =SUM($F$126:$H$126) -> 54306 | L126: Utah | M126: =VLOOKUP($L126,$L$2:$N$7,2,FALSE)*I126 -> 54306 | N126: =VLOOKUP($L126,$L$2:$N$7,3,FALSE)*I126 -> 0 | P126: PT | Q126: =IF(P126="G",M126,IF(P126="PT",0,ERR)) -> 0 | R126: =IF(P126="PT",M126,IF(P126="G",0,ERR)) -> 54306 | S126: PT | T126: =IF(S126="G",N126,IF(S126="PT",0,ERR)) -> 0 | U126: =IF(S126="PT",N126,IF(S126="G",0,ERR)) -> 0 | W126: =HLOOKUP($W$9,'ROR-Model'!$Q$10:$U$1274,Y126) -> 0 | Y126: 117
Y127: 118
C128: Commodity Revenue | F128: =Revenue!$F$127 -> 0 | G128: =+Adjustments!W128 -> 0 | I128: =SUM($F$128:$H$128) -> 0 | L128: Utah | M128: =VLOOKUP($L128,$L$2:$N$7,2,FALSE)*I128 -> 0 | N128: =VLOOKUP($L128,$L$2:$N$7,3,FALSE)*I128 -> 0 | P128: PT | Q128: =IF(P128="G",M128,IF(P128="PT",0,ERR)) -> 0 | R128: =IF(P128="PT",M128,IF(P128="G",0,ERR)) -> 0 | S128: PT | T128: =IF(S128="G",N128,IF(S128="PT",0,ERR)) -> 0 | U128: =IF(S128="PT",N128,IF(S128="G",0,ERR)) -> 0 | W128: =HLOOKUP($W$9,'ROR-Model'!$Q$10:$U$1274,Y128) -> 0 | Y128: 119
C129: Total Revenue | F129: =SUM(F124:F128) -> 6018498.25 | G129: =SUM(G124:G128) -> -3491755.79 | H129: =SUM(H124:H128) -> 0 | I129: =SUM(I124:I128) -> 2526742.46 | M129: =SUM(M124:M128) -> 2526742.46 | N129: =SUM(N124:N128) -> 0 | Q129: =SUM(Q124:Q128) -> 2472436.46 | R129: =SUM(R124:R128) -> 54306 | T129: =SUM(T124:T128) -> 0 | U129: =SUM(U124:U128) -> 0 | W129: =HLOOKUP($W$9,'ROR-Model'!$Q$10:$U$1274,Y129) -> 2472436.46 | Y129: 120
Y130: 121
C131: Total Dth | F131: =Revenue!$F$130 -> 43373981 | G131: =+Adjustments!W131 -> -40193918 | I131: =SUM($F$131:$H$131) -> 3180063 | L131: Utah | M131: =VLOOKUP($L131,$L$2:$N$7,2,FALSE)*I131 -> 3180063 | N131: =VLOOKUP($L131,$L$2:$N$7,3,FALSE)*I131 -> 0 | P131: G | Q131: =IF(P131="G",M131,IF(P131="PT",0,ERR)) -> 3180063 | R131: =IF(P131="PT",M131,IF(P131="G",0,ERR)) -> 0 | S131: G | T131: =IF(S131="G",N131,IF(S131="PT",0,ERR)) -> 0 | U131: =IF(S131="PT",N131,IF(S131="G",0,ERR)) -> 0 | W131: =HLOOKUP($W$9,'ROR-Model'!$Q$10:$U$1274,Y131) -> 3180063 | Y131: 122
Y132: 123
B133: FT-2 | C133: Distribution Non-Gas Rev | F133: =Revenue!$F$132 -> 0 | G133: =+Adjustments!W133 -> 0 | I133: =SUM($F$133:$H$133) -> 0 | L133: Utah | M133: =VLOOKUP($L133,$L$2:$N$7,2,FALSE)*I133 -> 0 | N133: =VLOOKUP($L133,$L$2:$N$7,3,FALSE)*I133 -> 0 | P133: G | Q133: =IF(P133="G",M133,IF(P133="PT",0,ERR)) -> 0 | R133: =IF(P133="PT",M133,IF(P133="G",0,ERR)) -> 0 | S133: G | T133: =IF(S133="G",N133,IF(S133="PT",0,ERR)) -> 0 | U133: =IF(S133="PT",N133,IF(S133="G",0,ERR)) -> 0 | W133: =HLOOKUP($W$9,'ROR-Model'!$Q$10:$U$1274,Y133) -> 0 | Y133: 124
Y134: 125
C135: Supplier Non-Gas Revenue | F135: =Revenue!$F$134 -> 0 | G135: =+Adjustments!W135 -> 0 | I135: =SUM($F$135:$H$135) -> 0 | L135: Utah | M135: =VLOOKUP($L135,$L$2:$N$7,2,FALSE)*I135 -> 0 | N135: =VLOOKUP($L135,$L$2:$N$7,3,FALSE)*I135 -> 0 | P135: PT | Q135: =IF(P135="G",M135,IF(P135="PT",0,ERR)) -> 0 | R135: =IF(P135="PT",M135,IF(P135="G",0,ERR)) -> 0 | S135: PT | T135: =IF(S135="G",N135,IF(S135="PT",0,ERR)) -> 0 | U135: =IF(S135="PT",N135,IF(S135="G",0,ERR)) -> 0 | W135: =HLOOKUP($W$9,'ROR-Model'!$Q$10:$U$1274,Y135) -> 0 | Y135: 126
Y136: 127
C137: Commodity Revenue | F137: =Revenue!$F$136 -> 0 | G137: =+Adjustments!W137 -> 0 | I137: =SUM($F$137:$H$137) -> 0 | L137: Utah | M137: =VLOOKUP($L137,$L$2:$N$7,2,FALSE)*I137 -> 0 | N137: =VLOOKUP($L137,$L$2:$N$7,3,FALSE)*I137 -> 0 | P137: PT | Q137: =IF(P137="G",M137,IF(P137="PT",0,ERR)) -> 0 | R137: =IF(P137="PT",M137,IF(P137="G",0,ERR)) -> 0 | S137: PT | T137: =IF(S137="G",N137,IF(S137="PT",0,ERR)) -> 0 | U137: =IF(S137="PT",N137,IF(S137="G",0,ERR)) -> 0 | W137: =HLOOKUP($W$9,'ROR-Model'!$Q$10:$U$1274,Y137) -> 0 | Y137: 128
C138: Total Revenue | F138: =SUM(F133:F137) -> 0 | G138: =SUM(G133:G137) -> 0 | H138: =SUM(H133:H137) -> 0 | I138: =SUM(I133:I137) -> 0 | M138: =SUM(M133:M137) -> 0 | N138: =SUM(N133:N137) -> 0 | Q138: =SUM(Q133:Q137) -> 0 | R138: =SUM(R133:R137) -> 0 | T138: =SUM(T133:T137) -> 0 | U138: =SUM(U133:U137) -> 0 | W138: =HLOOKUP($W$9,'ROR-Model'!$Q$10:$U$1274,Y138) -> 0 | Y138: 129
Y139: 130
C140: Total Dth | F140: =Revenue!$F$139 -> 0 | G140: =+Adjustments!W140 -> 0 | I140: =SUM($F$140:$H$140) -> 0 | L140: Utah | M140: =VLOOKUP($L140,$L$2:$N$7,2,FALSE)*I140 -> 0 | N140: =VLOOKUP($L140,$L$2:$N$7,3,FALSE)*I140 -> 0 | P140: G | Q140: =IF(P140="G",M140,IF(P140="PT",0,ERR)) -> 0 | R140: =IF(P140="PT",M140,IF(P140="G",0,ERR)) -> 0 | S140: G | T140: =IF(S140="G",N140,IF(S140="PT",0,ERR)) -> 0 | U140: =IF(S140="PT",N140,IF(S140="G",0,ERR)) -> 0 | W140: =HLOOKUP($W$9,'ROR-Model'!$Q$10:$U$1274,Y140) -> 0 | Y140: =Y139+1 -> 131
Y141: 132
B142: MT | C142: Distribution Non-Gas Rev | F142: =Revenue!$F$141 -> 51336.48 | G142: =+Adjustments!W142 -> -21880.56 | I142: =SUM($F$142:$H$142) -> 29455.92 | L142: Utah | M142: =VLOOKUP($L142,$L$2:$N$7,2,FALSE)*I142 -> 29455.92 | N142: =VLOOKUP($L142,$L$2:$N$7,3,FALSE)*I142 -> 0 | P142: G | Q142: =IF(P142="G",M142,IF(P142="PT",0,ERR)) -> 29455.92 | R142: =IF(P142="PT",M142,IF(P142="G",0,ERR)) -> 0 | S142: G | T142: =IF(S142="G",N142,IF(S142="PT",0,ERR)) -> 0 | U142: =IF(S142="PT",N142,IF(S142="G",0,ERR)) -> 0 | W142: =HLOOKUP($W$9,'ROR-Model'!$Q$10:$U$1274,Y142) -> 29455.92 | Y142: 133
Y143: 134
C144: Supplier Non-Gas Revenue | F144: =Revenue!$F$143 -> 2487.93 | G144: =+Adjustments!W144 -> -2487.93 | I144: =SUM($F$144:$H$144) -> 0 | L144: Utah | M144: =VLOOKUP($L144,$L$2:$N$7,2,FALSE)*I144 -> 0 | N144: =VLOOKUP($L144,$L$2:$N$7,3,FALSE)*I144 -> 0 | P144: PT | Q144: =IF(P144="G",M144,IF(P144="PT",0,ERR)) -> 0 | R144: =IF(P144="PT",M144,IF(P144="G",0,ERR)) -> 0 | S144: PT | T144: =IF(S144="G",N144,IF(S144="PT",0,ERR)) -> 0 | U144: =IF(S144="PT",N144,IF(S144="G",0,ERR)) -> 0 | W144: =HLOOKUP($W$9,'ROR-Model'!$Q$10:$U$1274,Y144) -> 0 | Y144: 135
Y145: 136
C146: Commodity Revenue | F146: =Revenue!$F$145 -> 0 | G146: =+Adjustments!W146 -> 0 | I146: =SUM($F$146:$H$146) -> 0 | L146: Utah | M146: =VLOOKUP($L146,$L$2:$N$7,2,FALSE)*I146 -> 0 | N146: =VLOOKUP($L146,$L$2:$N$7,3,FALSE)*I146 -> 0 | P146: PT | Q146: =IF(P146="G",M146,IF(P146="PT",0,ERR)) -> 0 | R146: =IF(P146="PT",M146,IF(P146="G",0,ERR)) -> 0 | S146: PT | T146: =IF(S146="G",N146,IF(S146="PT",0,ERR)) -> 0 | U146: =IF(S146="PT",N146,IF(S146="G",0,ERR)) -> 0 | W146: =HLOOKUP($W$9,'ROR-Model'!$Q$10:$U$1274,Y146) -> 0 | Y146: 137
C147: Total Revenue | F147: =SUM(F142:F146) -> 53824.41 | G147: =SUM(G142:G146) -> -24368.49 | H147: =SUM(H142:H146) -> 0 | I147: =SUM(I142:I146) -> 29455.92 | M147: =SUM(M142:M146) -> 29455.92 | N147: =SUM(N142:N146) -> 0 | Q147: =SUM(Q142:Q146) -> 29455.92 | R147: =SUM(R142:R146) -> 0 | T147: =SUM(T142:T146) -> 0 | U147: =SUM(U142:U146) -> 0 | W147: =HLOOKUP($W$9,'ROR-Model'!$Q$10:$U$1274,Y147) -> 29455.92 | Y147: 138
Y148: 139
C149: Total Dth | F149: =Revenue!$F$148 -> 24996 | G149: =+Adjustments!W149 -> 1245 | I149: =SUM($F$149:$H$149) -> 26241 | L149: Utah | M149: =VLOOKUP($L149,$L$2:$N$7,2,FALSE)*I149 -> 26241 | N149: =VLOOKUP($L149,$L$2:$N$7,3,FALSE)*I149 -> 0 | P149: G | Q149: =IF(P149="G",M149,IF(P149="PT",0,ERR)) -> 26241 | R149: =IF(P149="PT",M149,IF(P149="G",0,ERR)) -> 0 | S149: G | T149: =IF(S149="G",N149,IF(S149="PT",0,ERR)) -> 0 | U149: =IF(S149="PT",N149,IF(S149="G",0,ERR)) -> 0 | W149: =HLOOKUP($W$9,'ROR-Model'!$Q$10:$U$1274,Y149) -> 26241 | Y149: 140
Y150: 141
B151: Blank | C151: Distribution Non-Gas Rev | F151: =Revenue!$F$150 -> 0 | G151: =+Adjustments!W151 -> 0 | I151: =SUM($F$151:$H$151) -> 0 | L151: Utah | M151: =VLOOKUP($L151,$L$2:$N$7,2,FALSE)*I151 -> 0 | N151: =VLOOKUP($L151,$L$2:$N$7,3,FALSE)*I151 -> 0 | P151: G | Q151: =IF(P151="G",M151,IF(P151="PT",0,ERR)) -> 0 | R151: =IF(P151="PT",M151,IF(P151="G",0,ERR)) -> 0 | S151: G | T151: =IF(S151="G",N151,IF(S151="PT",0,ERR)) -> 0 | U151: =IF(S151="PT",N151,IF(S151="G",0,ERR)) -> 0 | W151: =HLOOKUP($W$9,'ROR-Model'!$Q$10:$U$1274,Y151) -> 0 | Y151: 142
Y152: 143
C153: Supplier Non-Gas Revenue | F153: =Revenue!$F$152 -> 0 | G153: =+Adjustments!W153 -> 0 | I153: =SUM($F$153:$H$153) -> 0 | L153: Utah | M153: =VLOOKUP($L153,$L$2:$N$7,2,FALSE)*I153 -> 0 | N153: =VLOOKUP($L153,$L$2:$N$7,3,FALSE)*I153 -> 0 | P153: PT | Q153: =IF(P153="G",M153,IF(P153="PT",0,ERR)) -> 0 | R153: =IF(P153="PT",M153,IF(P153="G",0,ERR)) -> 0 | S153: PT | T153: =IF(S153="G",N153,IF(S153="PT",0,ERR)) -> 0 | U153: =IF(S153="PT",N153,IF(S153="G",0,ERR)) -> 0 | W153: =HLOOKUP($W$9,'ROR-Model'!$Q$10:$U$1274,Y153) -> 0 | Y153: 144
Y154: 145
C155: Commodity Revenue | F155: =Revenue!$F$154 -> 0 | G155: =+Adjustments!W155 -> 0 | I155: =SUM($F$155:$H$155) -> 0 | L155: Utah | M155: =VLOOKUP($L155,$L$2:$N$7,2,FALSE)*I155 -> 0 | N155: =VLOOKUP($L155,$L$2:$N$7,3,FALSE)*I155 -> 0 | P155: PT | Q155: =IF(P155="G",M155,IF(P155="PT",0,ERR)) -> 0 | R155: =IF(P155="PT",M155,IF(P155="G",0,ERR)) -> 0 | S155: PT | T155: =IF(S155="G",N155,IF(S155="PT",0,ERR)) -> 0 | U155: =IF(S155="PT",N155,IF(S155="G",0,ERR)) -> 0 | W155: =HLOOKUP($W$9,'ROR-Model'!$Q$10:$U$1274,Y155) -> 0 | Y155: 146
C156: Total Revenue | F156: =SUM(F151:F155) -> 0 | G156: =SUM(G151:G155) -> 0 | H156: =SUM(H151:H155) -> 0 | I156: =SUM(I151:I155) -> 0 | M156: =SUM(M151:M155) -> 0 | N156: =SUM(N151:N155) -> 0 | Q156: =SUM(Q151:Q155) -> 0 | R156: =SUM(R151:R155) -> 0 | T156: =SUM(T151:T155) -> 0 | U156: =SUM(U151:U155) -> 0 | W156: =HLOOKUP($W$9,'ROR-Model'!$Q$10:$U$1274,Y156) -> 0 | Y156: 147
Y157: 148
C158: Total Dth | F158: =Revenue!$F$157 -> 0 | G158: =+Adjustments!W158 -> 0 | I158: =SUM($F$158:$H$158) -> 0 | L158: Utah | M158: =VLOOKUP($L158,$L$2:$N$7,2,FALSE)*I158 -> 0 | N158: =VLOOKUP($L158,$L$2:$N$7,3,FALSE)*I158 -> 0 | P158: G | Q158: =IF(P158="G",M158,IF(P158="PT",0,ERR)) -> 0 | R158: =IF(P158="PT",M158,IF(P158="G",0,ERR)) -> 0 | S158: G | T158: =IF(S158="G",N158,IF(S158="PT",0,ERR)) -> 0 | U158: =IF(S158="PT",N158,IF(S158="G",0,ERR)) -> 0 | W158: =HLOOKUP($W$9,'ROR-Model'!$Q$10:$U$1274,Y158) -> 0 | Y158: 149
Y159: 150
B160: IT | C160: Distribution Non-Gas Rev | F160: =Revenue!$F$159 -> 29921557.38 | G160: =+Adjustments!W160 -> 5730722.74 | I160: =SUM($F$160:$H$160) -> 35652280.12 | L160: Utah | M160: =VLOOKUP($L160,$L$2:$N$7,2,FALSE)*I160 -> 35652280.12 | N160: =VLOOKUP($L160,$L$2:$N$7,3,FALSE)*I160 -> 0 | P160: G | Q160: =IF(P160="G",M160,IF(P160="PT",0,ERR)) -> 35652280.12 | R160: =IF(P160="PT",M160,IF(P160="G",0,ERR)) -> 0 | S160: G | T160: =IF(S160="G",N160,IF(S160="PT",0,ERR)) -> 0 | U160: =IF(S160="PT",N160,IF(S160="G",0,ERR)) -> 0 | W160: =HLOOKUP($W$9,'ROR-Model'!$Q$10:$U$1274,Y160) -> 35652280.12 | Y160: 151
Y161: 152
C162: Supplier Non-Gas Revenue | F162: =Revenue!$F$161 -> 720387.66 | G162: =+Adjustments!W162 -> -373378.86 | I162: =SUM($F$162:$H$162) -> 347008.8 | L162: Utah | M162: =VLOOKUP($L162,$L$2:$N$7,2,FALSE)*I162 -> 347008.8 | N162: =VLOOKUP($L162,$L$2:$N$7,3,FALSE)*I162 -> 0 | P162: PT | Q162: =IF(P162="G",M162,IF(P162="PT",0,ERR)) -> 0 | R162: =IF(P162="PT",M162,IF(P162="G",0,ERR)) -> 347008.8 | S162: PT | T162: =IF(S162="G",N162,IF(S162="PT",0,ERR)) -> 0 | U162: =IF(S162="PT",N162,IF(S162="G",0,ERR)) -> 0 | W162: =HLOOKUP($W$9,'ROR-Model'!$Q$10:$U$1274,Y162) -> 0 | Y162: 153
Y163: 154
C164: Commodity Revenue | F164: =Revenue!$F$163 -> 0 | G164: =+Adjustments!W164 -> 0 | I164: =SUM($F$164:$H$164) -> 0 | L164: Utah | M164: =VLOOKUP($L164,$L$2:$N$7,2,FALSE)*I164 -> 0 | N164: =VLOOKUP($L164,$L$2:$N$7,3,FALSE)*I164 -> 0 | P164: PT | Q164: =IF(P164="G",M164,IF(P164="PT",0,ERR)) -> 0 | R164: =IF(P164="PT",M164,IF(P164="G",0,ERR)) -> 0 | S164: PT | T164: =IF(S164="G",N164,IF(S164="PT",0,ERR)) -> 0 | U164: =IF(S164="PT",N164,IF(S164="G",0,ERR)) -> 0 | W164: =HLOOKUP($W$9,'ROR-Model'!$Q$10:$U$1274,Y164) -> 0 | Y164: 155
C165: Total Revenue | F165: =SUM(F160:F164) -> 30641945.04 | G165: =SUM(G160:G164) -> 5357343.88 | H165: =SUM(H160:H164) -> 0 | I165: =SUM(I160:I164) -> 35999288.92 | M165: =SUM(M160:M164) -> 35999288.92 | N165: =SUM(N160:N164) -> 0 | Q165: =SUM(Q160:Q164) -> 35652280.12 | R165: =SUM(R160:R164) -> 347008.8 | T165: =SUM(T160:T164) -> 0 | U165: =SUM(U160:U164) -> 0 | W165: =HLOOKUP($W$9,'ROR-Model'!$Q$10:$U$1274,Y165) -> 35652280.12 | Y165: 156
Y166: 157
C167: Total Dth | F167: =Revenue!$F$166 -> 53305260.5 | G167: =+Adjustments!W167 -> 799485.5 | I167: =SUM($F$167:$H$167) -> 54104746 | L167: Utah | M167: =VLOOKUP($L167,$L$2:$N$7,2,FALSE)*I167 -> 54104746 | N167: =VLOOKUP($L167,$L$2:$N$7,3,FALSE)*I167 -> 0 | P167: G | Q167: =IF(P167="G",M167,IF(P167="PT",0,ERR)) -> 54104746 | R167: =IF(P167="PT",M167,IF(P167="G",0,ERR)) -> 0 | S167: G | T167: =IF(S167="G",N167,IF(S167="PT",0,ERR)) -> 0 | U167: =IF(S167="PT",N167,IF(S167="G",0,ERR)) -> 0 | W167: =HLOOKUP($W$9,'ROR-Model'!$Q$10:$U$1274,Y167) -> 54104746 | Y167: 158
Y168: 159
B169: IT-S | C169: Distribution Non-Gas Rev | F169: =Revenue!$F$168 -> 0 | G169: =+Adjustments!W169 -> 0 | I169: =SUM($F$169:$H$169) -> 0 | L169: Utah | M169: =VLOOKUP($L169,$L$2:$N$7,2,FALSE)*I169 -> 0 | N169: =VLOOKUP($L169,$L$2:$N$7,3,FALSE)*I169 -> 0 | P169: G | Q169: =IF(P169="G",M169,IF(P169="PT",0,ERR)) -> 0 | R169: =IF(P169="PT",M169,IF(P169="G",0,ERR)) -> 0 | S169: G | T169: =IF(S169="G",N169,IF(S169="PT",0,ERR)) -> 0 | U169: =IF(S169="PT",N169,IF(S169="G",0,ERR)) -> 0 | W169: =HLOOKUP($W$9,'ROR-Model'!$Q$10:$U$1274,Y169) -> 0 | Y169: 160
Y170: 161
C171: Supplier Non-Gas Revenue | F171: =Revenue!$F$170 -> 0 | G171: =+Adjustments!W171 -> 0 | I171: =SUM($F$171:$H$171) -> 0 | L171: Utah | M171: =VLOOKUP($L171,$L$2:$N$7,2,FALSE)*I171 -> 0 | N171: =VLOOKUP($L171,$L$2:$N$7,3,FALSE)*I171 -> 0 | P171: PT | Q171: =IF(P171="G",M171,IF(P171="PT",0,ERR)) -> 0 | R171: =IF(P171="PT",M171,IF(P171="G",0,ERR)) -> 0 | S171: PT | T171: =IF(S171="G",N171,IF(S171="PT",0,ERR)) -> 0 | U171: =IF(S171="PT",N171,IF(S171="G",0,ERR)) -> 0 | W171: =HLOOKUP($W$9,'ROR-Model'!$Q$10:$U$1274,Y171) -> 0 | Y171: 162
Y172: 163
C173: Commodity Revenue | F173: =Revenue!$F$172 -> 0 | G173: =+Adjustments!W173 -> 0 | I173: =SUM($F$173:$H$173) -> 0 | L173: Utah | M173: =VLOOKUP($L173,$L$2:$N$7,2,FALSE)*I173 -> 0 | N173: =VLOOKUP($L173,$L$2:$N$7,3,FALSE)*I173 -> 0 | P173: PT | Q173: =IF(P173="G",M173,IF(P173="PT",0,ERR)) -> 0 | R173: =IF(P173="PT",M173,IF(P173="G",0,ERR)) -> 0 | S173: PT | T173: =IF(S173="G",N173,IF(S173="PT",0,ERR)) -> 0 | U173: =IF(S173="PT",N173,IF(S173="G",0,ERR)) -> 0 | W173: =HLOOKUP($W$9,'ROR-Model'!$Q$10:$U$1274,Y173) -> 0 | Y173: 164
C174: Total Revenue | F174: =SUM(F169:F173) -> 0 | G174: =SUM(G169:G173) -> 0 | H174: =SUM(H169:H173) -> 0 | I174: =SUM(I169:I173) -> 0 | M174: =SUM(M169:M173) -> 0 | N174: =SUM(N169:N173) -> 0 | Q174: =SUM(Q169:Q173) -> 0 | R174: =SUM(R169:R173) -> 0 | T174: =SUM(T169:T173) -> 0 | U174: =SUM(U169:U173) -> 0 | W174: =HLOOKUP($W$9,'ROR-Model'!$Q$10:$U$1274,Y174) -> 0 | Y174: 165
Y175: 166
C176: Total Dth | F176: =Revenue!$F$175 -> 0 | G176: =+Adjustments!W176 -> 0 | I176: =SUM($F$176:$H$176) -> 0 | L176: Utah | M176: =VLOOKUP($L176,$L$2:$N$7,2,FALSE)*I176 -> 0 | N176: =VLOOKUP($L176,$L$2:$N$7,3,FALSE)*I176 -> 0 | P176: G | Q176: =IF(P176="G",M176,IF(P176="PT",0,ERR)) -> 0 | R176: =IF(P176="PT",M176,IF(P176="G",0,ERR)) -> 0 | S176: G | T176: =IF(S176="G",N176,IF(S176="PT",0,ERR)) -> 0 | U176: =IF(S176="PT",N176,IF(S176="G",0,ERR)) -> 0 | W176: =HLOOKUP($W$9,'ROR-Model'!$Q$10:$U$1274,Y176) -> 0 | Y176: 167
Y177: 168
B178: FT-2C | C178: Distribution Non-Gas Rev | F178: =Revenue!$F$177 -> 0 | G178: =+Adjustments!W178 -> 0 | I178: =SUM($F$178:$H$178) -> 0 | L178: Utah | M178: =VLOOKUP($L178,$L$2:$N$7,2,FALSE)*I178 -> 0 | N178: =VLOOKUP($L178,$L$2:$N$7,3,FALSE)*I178 -> 0 | P178: G | Q178: =IF(P178="G",M178,IF(P178="PT",0,ERR)) -> 0 | R178: =IF(P178="PT",M178,IF(P178="G",0,ERR)) -> 0 | S178: G | T178: =IF(S178="G",N178,IF(S178="PT",0,ERR)) -> 0 | U178: =IF(S178="PT",N178,IF(S178="G",0,ERR)) -> 0 | W178: =HLOOKUP($W$9,'ROR-Model'!$Q$10:$U$1274,Y178) -> 0 | Y178: 169
Y179: 170
C180: Supplier Non-Gas Revenue | F180: =Revenue!$F$179 -> 0 | G180: =+Adjustments!W180 -> 0 | I180: =SUM($F$180:$H$180) -> 0 | L180: Utah | M180: =VLOOKUP($L180,$L$2:$N$7,2,FALSE)*I180 -> 0 | N180: =VLOOKUP($L180,$L$2:$N$7,3,FALSE)*I180 -> 0 | P180: PT | Q180: =IF(P180="G",M180,IF(P180="PT",0,ERR)) -> 0 | R180: =IF(P180="PT",M180,IF(P180="G",0,ERR)) -> 0 | S180: PT | T180: =IF(S180="G",N180,IF(S180="PT",0,ERR)) -> 0 | U180: =IF(S180="PT",N180,IF(S180="G",0,ERR)) -> 0 | W180: =HLOOKUP($W$9,'ROR-Model'!$Q$10:$U$1274,Y180) -> 0 | Y180: 171
Y181: 172
C182: Commodity Revenue | F182: =Revenue!$F$181 -> 0 | G182: =+Adjustments!W182 -> 0 | I182: =SUM($F$182:$H$182) -> 0 | L182: Utah | M182: =VLOOKUP($L182,$L$2:$N$7,2,FALSE)*I182 -> 0 | N182: =VLOOKUP($L182,$L$2:$N$7,3,FALSE)*I182 -> 0 | P182: PT | Q182: =IF(P182="G",M182,IF(P182="PT",0,ERR)) -> 0 | R182: =IF(P182="PT",M182,IF(P182="G",0,ERR)) -> 0 | S182: PT | T182: =IF(S182="G",N182,IF(S182="PT",0,ERR)) -> 0 | U182: =IF(S182="PT",N182,IF(S182="G",0,ERR)) -> 0 | W182: =HLOOKUP($W$9,'ROR-Model'!$Q$10:$U$1274,Y182) -> 0 | Y182: 173
C183: Total Revenue | F183: =SUM(F178:F182) -> 0 | G183: =SUM(G178:G182) -> 0 | H183: =SUM(H178:H182) -> 0 | I183: =SUM(I178:I182) -> 0 | M183: =SUM(M178:M182) -> 0 | N183: =SUM(N178:N182) -> 0 | Q183: =SUM(Q178:Q182) -> 0 | R183: =SUM(R178:R182) -> 0 | T183: =SUM(T178:T182) -> 0 | U183: =SUM(U178:U182) -> 0 | W183: =HLOOKUP($W$9,'ROR-Model'!$Q$10:$U$1274,Y183) -> 0 | Y183: 174
Y184: 175
C185: Total Dth | F185: =Revenue!$F$184 -> 0 | G185: =+Adjustments!W185 -> 0 | I185: =SUM($F$185:$H$185) -> 0 | L185: Utah | M185: =VLOOKUP($L185,$L$2:$N$7,2,FALSE)*I185 -> 0 | N185: =VLOOKUP($L185,$L$2:$N$7,3,FALSE)*I185 -> 0 | P185: G | Q185: =IF(P185="G",M185,IF(P185="PT",0,ERR)) -> 0 | R185: =IF(P185="PT",M185,IF(P185="G",0,ERR)) -> 0 | S185: G | T185: =IF(S185="G",N185,IF(S185="PT",0,ERR)) -> 0 | U185: =IF(S185="PT",N185,IF(S185="G",0,ERR)) -> 0 | W185: =HLOOKUP($W$9,'ROR-Model'!$Q$10:$U$1274,Y185) -> 0 | Y185: 176
Y186: 177
B187: Blank | C187: Distribution Non-Gas Rev | F187: =Revenue!$F$186 -> 0 | G187: =+Adjustments!W187 -> 0 | I187: =SUM($F$187:$H$187) -> 0 | L187: Utah | M187: =VLOOKUP($L187,$L$2:$N$7,2,FALSE)*I187 -> 0 | N187: =VLOOKUP($L187,$L$2:$N$7,3,FALSE)*I187 -> 0 | P187: G | Q187: =IF(P187="G",M187,IF(P187="PT",0,ERR)) -> 0 | R187: =IF(P187="PT",M187,IF(P187="G",0,ERR)) -> 0 | S187: G | T187: =IF(S187="G",N187,IF(S187="PT",0,ERR)) -> 0 | U187: =IF(S187="PT",N187,IF(S187="G",0,ERR)) -> 0 | W187: =HLOOKUP($W$9,'ROR-Model'!$Q$10:$U$1274,Y187) -> 0 | Y187: 178
Y188: 179
C189: Supplier Non-Gas Revenue | F189: =Revenue!$F$188 -> 0 | G189: =+Adjustments!W189 -> 0 | I189: =SUM($F$189:$H$189) -> 0 | L189: Utah | M189: =VLOOKUP($L189,$L$2:$N$7,2,FALSE)*I189 -> 0 | N189: =VLOOKUP($L189,$L$2:$N$7,3,FALSE)*I189 -> 0 | P189: PT | Q189: =IF(P189="G",M189,IF(P189="PT",0,ERR)) -> 0 | R189: =IF(P189="PT",M189,IF(P189="G",0,ERR)) -> 0 | S189: PT | T189: =IF(S189="G",N189,IF(S189="PT",0,ERR)) -> 0 | U189: =IF(S189="PT",N189,IF(S189="G",0,ERR)) -> 0 | W189: =HLOOKUP($W$9,'ROR-Model'!$Q$10:$U$1274,Y189) -> 0 | Y189: 180
Y190: 181
C191: Commodity Revenue | F191: =Revenue!$F$190 -> 0 | G191: =+Adjustments!W191 -> 0 | I191: =SUM($F$191:$H$191) -> 0 | L191: Utah | M191: =VLOOKUP($L191,$L$2:$N$7,2,FALSE)*I191 -> 0 | N191: =VLOOKUP($L191,$L$2:$N$7,3,FALSE)*I191 -> 0 | P191: PT | Q191: =IF(P191="G",M191,IF(P191="PT",0,ERR)) -> 0 | R191: =IF(P191="PT",M191,IF(P191="G",0,ERR)) -> 0 | S191: PT | T191: =IF(S191="G",N191,IF(S191="PT",0,ERR)) -> 0 | U191: =IF(S191="PT",N191,IF(S191="G",0,ERR)) -> 0 | W191: =HLOOKUP($W$9,'ROR-Model'!$Q$10:$U$1274,Y191) -> 0 | Y191: 182
C192: Total Revenue | F192: =SUM(F187:F191) -> 0 | G192: =SUM(G187:G191) -> 0 | H192: =SUM(H187:H191) -> 0 | I192: =SUM(I187:I191) -> 0 | M192: =SUM(M187:M191) -> 0 | N192: =SUM(N187:N191) -> 0 | Q192: =SUM(Q187:Q191) -> 0 | R192: =SUM(R187:R191) -> 0 | T192: =SUM(T187:T191) -> 0 | U192: =SUM(U187:U191) -> 0 | W192: =HLOOKUP($W$9,'ROR-Model'!$Q$10:$U$1274,Y192) -> 0 | Y192: 183
Y193: 184
C194: Total Dth | F194: =Revenue!$F$193 -> 0 | G194: =+Adjustments!W194 -> 0 | I194: =SUM($F$194:$H$194) -> 0 | L194: Utah | M194: =VLOOKUP($L194,$L$2:$N$7,2,FALSE)*I194 -> 0 | N194: =VLOOKUP($L194,$L$2:$N$7,3,FALSE)*I194 -> 0 | P194: G | Q194: =IF(P194="G",M194,IF(P194="PT",0,ERR)) -> 0 | R194: =IF(P194="PT",M194,IF(P194="G",0,ERR)) -> 0 | S194: G | T194: =IF(S194="G",N194,IF(S194="PT",0,ERR)) -> 0 | U194: =IF(S194="PT",N194,IF(S194="G",0,ERR)) -> 0 | W194: =HLOOKUP($W$9,'ROR-Model'!$Q$10:$U$1274,Y194) -> 0 | Y194: 185
Y195: 186
B196: CET | C196: Distribution Non-Gas Revenue | F196: =Revenue!$F$195 -> 859870.31 | G196: =+Adjustments!W196 -> -859870.31 | I196: =SUM($F$196:$H$196) -> 0 | L196: Utah | M196: =VLOOKUP($L196,$L$2:$N$7,2,FALSE)*I196 -> 0 | N196: =VLOOKUP($L196,$L$2:$N$7,3,FALSE)*I196 -> 0 | P196: G | Q196: =IF(P196="G",M196,IF(P196="PT",0,ERR)) -> 0 | R196: =IF(P196="PT",M196,IF(P196="G",0,ERR)) -> 0 | S196: G | T196: =IF(S196="G",N196,IF(S196="PT",0,ERR)) -> 0 | U196: =IF(S196="PT",N196,IF(S196="G",0,ERR)) -> 0 | W196: =HLOOKUP($W$9,'ROR-Model'!$Q$10:$U$1274,Y196) -> 0 | Y196: 187
B197: DSM | C197: Distribution Non-Gas Revenue | F197: =Revenue!$F$196 -> 26805440.38 | G197: =+Adjustments!W197 -> -26805440.38 | I197: =SUM($F$197:$H$197) -> 0 | L197: Utah | M197: =VLOOKUP($L197,$L$2:$N$7,2,FALSE)*I197 -> 0 | N197: =VLOOKUP($L197,$L$2:$N$7,3,FALSE)*I197 -> 0 | P197: G | Q197: =IF(P197="G",M197,IF(P197="PT",0,ERR)) -> 0 | R197: =IF(P197="PT",M197,IF(P197="G",0,ERR)) -> 0 | S197: G | T197: =IF(S197="G",N197,IF(S197="PT",0,ERR)) -> 0 | U197: =IF(S197="PT",N197,IF(S197="G",0,ERR)) -> 0 | W197: =HLOOKUP($W$9,'ROR-Model'!$Q$10:$U$1274,Y197) -> 0 | Y197: 188
B198: Utah Totals | Y198: 189
Y199: 190
C200: Distribution Non-Gas Rev | F200: =+F16+F34+F43+F52+F61+F70+F79+F88+F97+F106+F115+F124+F133+F142+F151+F160+F169+F178+F187+F25+F196+F197 -> 402396377.5 | G200: =+G16+G34+G43+G52+G61+G70+G79+G88+G97+G106+G115+G124+G133+G142+G151+G160+G169+G178+G187+G25+G196+G197 -> -9102781.719 | H200: =+H16+H34+H43+H52+H61+H70+H79+H88+H97+H106+H115+H124+H133+H142+H151+H160+H169+H178+H187+H25+H196+H197 -> 0 | I200: =+I16+I34+I43+I52+I61+I70+I79+I88+I97+I106+I115+I124+I133+I142+I151+I160+I169+I178+I187+I25+I196+I197 -> 393293595.8 | M200: =+M16+M34+M43+M52+M61+M70+M79+M88+M97+M106+M115+M124+M133+M142+M151+M160+M169+M178+M187+M25+M196+M197 -> 393293595.8 | N200: =+N16+N34+N43+N52+N61+N70+N79+N88+N97+N106+N115+N124+N133+N142+N151+N160+N169+N178+N187+N25+N196+N197 -> 0 | Q200: =+Q16+Q34+Q43+Q52+Q61+Q70+Q79+Q88+Q97+Q106+Q115+Q124+Q133+Q142+Q151+Q160+Q169+Q178+Q187+Q25+Q196+Q197 -> 393293595.8 | R200: =+R16+R34+R43+R52+R61+R70+R79+R88+R97+R106+R115+R124+R133+R142+R151+R160+R169+R178+R187+R25+R196 -> 0 | T200: =+T16+T34+T43+T52+T61+T70+T79+T88+T97+T106+T115+T124+T133+T142+T151+T160+T169+T178+T187+T25+T196 -> 0 | U200: =+U16+U34+U43+U52+U61+U70+U79+U88+U97+U106+U115+U124+U133+U142+U151+U160+U169+U178+U187+U25+U196 -> 0 | W200: =HLOOKUP($W$9,'ROR-Model'!$Q$10:$U$1274,Y200) -> 393293595.8 | Y200: 191
... 1074 more rows

Sheet Summaries
A1: =+'Control Panel'!$B$1 -> Dominion Energy
A2: =+'Control Panel'!$B$2 -> Utah - DEC 2021 Adjusted Avg Results
A3: =+'Control Panel'!$B$3 -> 12 Months Ended : Dec-2021
G4: =+Adjustments!F6 -> 1 | H4: =+Adjustments!G6 -> 2 | I4: =+Adjustments!H6 -> 3 | J4: =+Adjustments!I6 -> 4 | K4: =+Adjustments!J6 -> 5 | L4: =+Adjustments!K6 -> 6 | M4: =+Adjustments!L6 -> 7 | N4: =+Adjustments!M6 -> 8 | O4: =+Adjustments!N6 -> 9 | P4: =+Adjustments!O6 -> 10 | Q4: =+Adjustments!P6 -> 11 | R4: =+Adjustments!Q6 -> 12 | S4: =+Adjustments!R6 -> 13 | T4: =+Adjustments!T6 -> 15
G5: =+Adjustments!F8 -> Y | H5: =+Adjustments!G8 -> Y | I5: =+Adjustments!H8 -> Y | J5: =+Adjustments!I8 -> Y | K5: =+Adjustments!J8 -> Y | L5: =+Adjustments!K8 -> Y | M5: =+Adjustments!L8 -> Y | N5: =+Adjustments!M8 -> Y | O5: =+Adjustments!N8 -> Y | P5: =+Adjustments!O8 -> Y | Q5: =+Adjustments!P8 -> Y | R5: =+Adjustments!Q8 -> Y | S5: =+Adjustments!R8 -> Y | T5: =+Adjustments!T8 -> Y
G6: =Adjustments!F9 -> AVG RB DEC 2021 | H6: =Adjustments!G9 -> Expense Dec 2021 | I6: =Adjustments!H9 -> AVG Projected Rev 2021 with CET | J6: =Adjustments!I9 -> Underground Storage | K6: =Adjustments!J9 -> Wexpro | L6: =Adjustments!K9 -> Energy Efficiency 2021 | M6: =Adjustments!L9 -> Utah Bad Debt 2021 | N6: =Adjustments!M9 -> Incentives 2021 | O6: =Adjustments!N9 -> Sporting Events DEC 2021 | P6: =Adjustments!O9 -> Advertising DEC 2021 | Q6: =Adjustments!P9 -> Don & Membership DEC 2021 | R6: =Adjustments!Q9 -> Reserve Accrual Dec 2021 | S6: =Adjustments!R9 -> 2021 EDIT Adjustment | T6: =Adjustments!T9 -> Pension 2021 | U6: =Adjustments!U9 -> TOTAL QGC ADJUSTMENTS | V6: =Adjustments!W9 -> RESULTING TOTAL | W6: =Adjustments!X9 -> CHECKS MUST BE (0)
A8: 1 | B8: NET INCOME SUMMARY
A10: =+A8+1 -> 2 | B10: Utility Operating Revenue
A11: =+A10+1 -> 3 | D11: System Distribution Non-Gas Revenue | G11: =Adjustments!F363+Adjustments!F365 -> 0 | H11: =Adjustments!G363+Adjustments!G365 -> 0 | I11: =Adjustments!H363+Adjustments!H365 -> -8703278.036 | J11: =Adjustments!I363+Adjustments!I365 -> 0 | K11: =Adjustments!J363+Adjustments!J365 -> 0 | L11: =Adjustments!K363+Adjustments!K365 -> 0 | M11: =Adjustments!L363+Adjustments!L365 -> 0 | N11: =Adjustments!M363+Adjustments!M365 -> 0 | O11: =Adjustments!N363+Adjustments!N365 -> 0 | P11: =Adjustments!O363+Adjustments!O365 -> 0 | Q11: =Adjustments!P363+Adjustments!P365 -> 0 | R11: =Adjustments!Q363+Adjustments!Q365 -> 0 | S11: =Adjustments!R363+Adjustments!R365 -> 0 | T11: =Adjustments!T363+Adjustments!T365 -> 0 | U11: =Adjustments!U363+Adjustments!U365 -> -8703278.036 | V11: =SUM(G11:T11) -> -8703278.036 | W11: =+U11-V11 -> 0
A12: 4 | D12: System Supplier Non-Gas Revenue | G12: =Adjustments!F364 -> 0 | H12: =Adjustments!G364 -> 0 | I12: =Adjustments!H364 -> -419780.82 | J12: =Adjustments!I364 -> 0 | K12: =Adjustments!J364 -> 0 | L12: =Adjustments!K364 -> 0 | M12: =Adjustments!L364 -> 0 | N12: =Adjustments!M364 -> 0 | O12: =Adjustments!N364 -> 0 | P12: =Adjustments!O364 -> 0 | Q12: =Adjustments!P364 -> 0 | R12: =Adjustments!Q364 -> 0 | S12: =Adjustments!R364 -> 0 | T12: =Adjustments!T364 -> 0 | U12: =Adjustments!U364 -> -419780.82 | V12: =SUM(G12:T12) -> -419780.82 | W12: =+U12-V12 -> 0
A13: 5 | D13: System Commodity Revenue | G13: =Adjustments!F366 -> 0 | H13: =Adjustments!G366 -> 0 | I13: =Adjustments!H366 -> 1925908.717 | J13: =Adjustments!I366 -> 0 | K13: =Adjustments!J366 -> 0 | L13: =Adjustments!K366 -> 0 | M13: =Adjustments!L366 -> 0 | N13: =Adjustments!M366 -> 0 | O13: =Adjustments!N366 -> 0 | P13: =Adjustments!O366 -> 0 | Q13: =Adjustments!P366 -> 0 | R13: =Adjustments!Q366 -> 0 | S13: =Adjustments!R366 -> 0 | T13: =Adjustments!T366 -> 0 | U13: =Adjustments!U366 -> 1925908.717 | V13: =SUM(G13:T13) -> 1925908.717 | W13: 0
A14: 6 | D14: Pass-Through Related Other Revenue | G14: =Adjustments!F501+Adjustments!F505 -> 0 | H14: =Adjustments!G501+Adjustments!G505 -> 0 | I14: =Adjustments!H501+Adjustments!H505 -> 0 | J14: =Adjustments!I501+Adjustments!I505 -> 0 | K14: =Adjustments!J501+Adjustments!J505 -> 0 | L14: =Adjustments!K501+Adjustments!K505 -> 0 | M14: =Adjustments!L501+Adjustments!L505 -> 0 | N14: =Adjustments!M501+Adjustments!M505 -> 0 | O14: =Adjustments!N501+Adjustments!N505 -> 0 | P14: =Adjustments!O501+Adjustments!O505 -> 0 | Q14: =Adjustments!P501+Adjustments!P505 -> 0 | R14: =Adjustments!Q501+Adjustments!Q505 -> 0 | S14: =Adjustments!R501+Adjustments!R505 -> 0 | T14: =Adjustments!T501+Adjustments!T505 -> 0 | U14: =Adjustments!U501+Adjustments!U505 -> 0 | V14: =SUM(G14:T14) -> 0 | W14: 0
A15: 7 | D15: General Related Other Revenue | G15: =Adjustments!F502+Adjustments!F506 -> 0 | H15: =Adjustments!G502+Adjustments!G506 -> 0 | I15: =Adjustments!H502+Adjustments!H506 -> 0 | J15: =Adjustments!I502+Adjustments!I506 -> 0 | K15: =Adjustments!J502+Adjustments!J506 -> 0 | L15: =Adjustments!K502+Adjustments!K506 -> 0 | M15: =Adjustments!L502+Adjustments!L506 -> 0 | N15: =Adjustments!M502+Adjustments!M506 -> 0 | O15: =Adjustments!N502+Adjustments!N506 -> 0 | P15: =Adjustments!O502+Adjustments!O506 -> 0 | Q15: =Adjustments!P502+Adjustments!P506 -> 0 | R15: =Adjustments!Q502+Adjustments!Q506 -> 0 | S15: =Adjustments!R502+Adjustments!R506 -> 0 | T15: =Adjustments!T502+Adjustments!T506 -> 0 | U15: =Adjustments!U502+Adjustments!U506 -> 0 | V15: =SUM(G15:T15) -> 0 | W15: 0
A16: 8 | C16: Total Utility Operating Revenue | G16: =SUM(G11:G15) -> 0 | H16: =SUM(H11:H15) -> 0 | I16: -7197150.139 | J16: 0 | K16: 0 | L16: 0 | M16: 0 | N16: 0 | O16: 0 | P16: 0 | Q16: 0 | R16: =SUM(R11:R15) -> 0 | S16: =SUM(S11:S15) -> 0 | T16: =SUM(T11:T15) -> 0 | U16: =SUM(U11:U15) -> -7197150.139 | V16: -7197150.139 | W16: 0
A18: =+A16+1 -> 9 | B18: Utility Operating Expenses
A19: =+A18+1 -> 10 | C19: Gas Purchase Expenses
A20: =+A19+1 -> 11 | D20: Utah Gas Purchase Exp | G20: =Adjustments!F632+Adjustments!F635 -> 0 | H20: =Adjustments!G632+Adjustments!G635 -> 0 | I20: =Adjustments!H632+Adjustments!H635 -> -72078.96 | J20: =Adjustments!I632+Adjustments!I635 -> 0 | K20: =Adjustments!J632+Adjustments!J635 -> 0 | L20: =Adjustments!K632+Adjustments!K635 -> 0 | M20: =Adjustments!L632+Adjustments!L635 -> 0 | N20: =Adjustments!M632+Adjustments!M635 -> 0 | O20: =Adjustments!N632+Adjustments!N635 -> 0 | P20: =Adjustments!O632+Adjustments!O635 -> 0 | Q20: =Adjustments!P632+Adjustments!P635 -> 0 | R20: =Adjustments!Q632+Adjustments!Q635 -> 0 | S20: =Adjustments!R632+Adjustments!R635 -> 0 | T20: =Adjustments!T632+Adjustments!T635 -> 0 | U20: =Adjustments!U632+Adjustments!U635 -> -72078.96 | V20: =SUM(G20:T20) -> -72078.96 | W20: =+U20-V20 -> 0
A21: =+A20+1 -> 12 | D21: Wyoming Gas Purchase Exp | G21: =Adjustments!F634+Adjustments!F636 -> 0 | H21: =Adjustments!G634+Adjustments!G636 -> 0 | I21: =Adjustments!H634+Adjustments!H636 -> 1578206.857 | J21: =Adjustments!I634+Adjustments!I636 -> 0 | K21: =Adjustments!J634+Adjustments!J636 -> 0 | L21: =Adjustments!K634+Adjustments!K636 -> 0 | M21: =Adjustments!L634+Adjustments!L636 -> 0 | N21: =Adjustments!M634+Adjustments!M636 -> 0 | O21: =Adjustments!N634+Adjustments!N636 -> 0 | P21: =Adjustments!O634+Adjustments!O636 -> 0 | Q21: =Adjustments!P634+Adjustments!P636 -> 0 | R21: =Adjustments!Q634+Adjustments!Q636 -> 0 | S21: =Adjustments!R634+Adjustments!R636 -> 0 | T21: =Adjustments!T634+Adjustments!T636 -> 0 | U21: =Adjustments!U634+Adjustments!U636 -> 1578206.857 | V21: =SUM(G21:T21) -> 1578206.857 | W21: =+U21-V21 -> 0
A22: =+A21+1 -> 13 | D22: Total Gas Purchase Expenses | G22: =SUM(G20:G21) -> 0 | H22: =SUM(H20:H21) -> 0 | I22: 1506127.897 | J22: 0 | K22: 0 | L22: 0 | M22: 0 | N22: 0 | O22: 0 | P22: 0 | Q22: 0 | R22: =SUM(R20:R21) -> 0 | S22: =SUM(S20:S21) -> 0 | T22: =SUM(T20:T21) -> 0 | U22: =SUM(U20:U21) -> 1506127.897 | V22: 1506127.897 | W22: 0
A24: =+A22+1 -> 14 | D24: Utah Gathering & CO2 | G24: =Adjustments!F631 -> 0 | H24: =Adjustments!G631 -> 0 | I24: =Adjustments!H631 -> 0 | J24: =Adjustments!I631 -> 0 | K24: =Adjustments!J631 -> 0 | L24: =Adjustments!K631 -> 0 | M24: =Adjustments!L631 -> 0 | N24: =Adjustments!M631 -> 0 | O24: =Adjustments!N631 -> 0 | P24: =Adjustments!O631 -> 0 | Q24: =Adjustments!P631 -> 0 | R24: =Adjustments!Q631 -> 0 | S24: =Adjustments!R631 -> 0 | T24: =Adjustments!T631 -> 0 | U24: =Adjustments!U631 -> 0 | V24: =SUM(G24:T24) -> 0 | W24: =+U24-V24 -> 0
A25: =+A24+1 -> 15 | D25: Wyoming Gathering & CO2 | G25: =Adjustments!F633 -> 0 | H25: =Adjustments!G633 -> 0 | I25: =Adjustments!H633 -> 0 | J25: =Adjustments!I633 -> 0 | K25: =Adjustments!J633 -> 0 | L25: =Adjustments!K633 -> 0 | M25: =Adjustments!L633 -> 0 | N25: =Adjustments!M633 -> 0 | O25: =Adjustments!N633 -> 0 | P25: =Adjustments!O633 -> 0 | Q25: =Adjustments!P633 -> 0 | R25: =Adjustments!Q633 -> 0 | S25: =Adjustments!R633 -> 0 | T25: =Adjustments!T633 -> 0 | U25: =Adjustments!U633 -> 0 | V25: =SUM(G25:T25) -> 0 | W25: 0
A26: =+A25+1 -> 16 | D26: Total Gathering & CO2 | G26: =SUM(G24:G25) -> 0 | H26: =SUM(H24:H25) -> 0 | I26: 0 | J26: 0 | K26: 0 | L26: 0 | M26: 0 | N26: 0 | O26: 0 | P26: 0 | Q26: 0 | R26: =SUM(R24:R25) -> 0 | S26: =SUM(S24:S25) -> 0 | T26: =SUM(T24:T25) -> 0 | U26: =SUM(U24:U25) -> 0 | V26: 0 | W26: 0
A28: =+A26+1 -> 17 | C28: O&M Expenses
A29: =+A28+1 -> 18 | D29: Production | G29: =Adjustments!F649 -> 0 | H29: =Adjustments!G649 -> 14374.30626 | I29: =Adjustments!H649 -> 0 | J29: =Adjustments!I649 -> 0 | K29: =Adjustments!J649 -> 0 | L29: =Adjustments!K649 -> 0 | M29: =Adjustments!L649 -> 0 | N29: =Adjustments!M649 -> 0 | O29: =Adjustments!N649 -> 0 | P29: =Adjustments!O649 -> 0 | Q29: =Adjustments!P649 -> 0 | R29: =Adjustments!Q649 -> 0 | S29: =Adjustments!R649 -> 0 | T29: =Adjustments!T649 -> 0 | U29: =Adjustments!U649 -> 14374.30626 | V29: =SUM(G29:T29) -> 14374.30626 | W29: =+U29-V29 -> 0
A30: 19 | D30: Distribution | G30: =Adjustments!F752 -> 0 | H30: =Adjustments!G752 -> 49347.30091 | I30: =Adjustments!H752 -> 0 | J30: =Adjustments!I752 -> 0 | K30: =Adjustments!J752 -> 0 | L30: =Adjustments!K752 -> 0 | M30: =Adjustments!L752 -> 0 | N30: =Adjustments!M752 -> 0 | O30: =Adjustments!N752 -> 0 | P30: =Adjustments!O752 -> 0 | Q30: =Adjustments!P752 -> 0 | R30: =Adjustments!Q752 -> 0 | S30: =Adjustments!R752 -> 0 | T30: =Adjustments!T752 -> 0 | U30: =Adjustments!U752 -> 49347.30091 | V30: =SUM(G30:T30) -> 49347.30091 | W30: 0
A31: 20 | D31: Customer Accounts | G31: =Adjustments!F805 -> 0 | H31: =Adjustments!G805 -> 1988973.161 | I31: =Adjustments!H805 -> 0 | J31: =Adjustments!I805 -> 0 | K31: =Adjustments!J805 -> 0 | L31: =Adjustments!K805 -> 0 | M31: =Adjustments!L805 -> -4591513.1 | N31: =Adjustments!M805 -> 0 | O31: =Adjustments!N805 -> 0 | P31: =Adjustments!O805 -> 0 | Q31: =Adjustments!P805 -> 0 | R31: =Adjustments!Q805 -> 0 | S31: =Adjustments!R805 -> 0 | T31: =Adjustments!T805 -> 0 | U31: =Adjustments!U805 -> -2602539.94 | V31: =SUM(G31:T31) -> -2602539.94 | W31: 0
A32: 21 | D32: Customer Service & Information | G32: =Adjustments!F833 -> 0 | H32: =Adjustments!G833 -> -2641028.101 | I32: =Adjustments!H833 -> 0 | J32: =Adjustments!I833 -> 0 | K32: =Adjustments!J833 -> 0 | L32: =Adjustments!K833 -> -27236173.14 | M32: =Adjustments!L833 -> 0 | N32: =Adjustments!M833 -> 0 | O32: =Adjustments!N833 -> 0 | P32: =Adjustments!O833 -> 0 | Q32: =Adjustments!P833 -> 0 | R32: =Adjustments!Q833 -> 0 | S32: =Adjustments!R833 -> 0 | T32: =Adjustments!T833 -> 0 | U32: =Adjustments!U833 -> -29877201.24 | V32: =SUM(G32:T32) -> -29877201.24 | W32: 0
A33: 22 | D33: Administrative & General | G33: =Adjustments!F889 -> 0 | H33: =Adjustments!G889 -> 2512708.986 | I33: =Adjustments!H889 -> 0 | J33: =Adjustments!I889 -> 0 | K33: =Adjustments!J889 -> 0 | L33: =Adjustments!K889 -> 0 | M33: =Adjustments!L889 -> 0 | N33: =Adjustments!M889 -> -2807346.42 | O33: =Adjustments!N889 -> 0 | P33: =Adjustments!O889 -> 0 | Q33: =Adjustments!P889 -> -217208.8784 | R33: =Adjustments!Q889 -> -147068.8506 | S33: =Adjustments!R889 -> 0 | T33: =Adjustments!T889 -> 3644195.94 | U33: =Adjustments!U889 -> 6842590.847 | V33: =SUM(G33:T33) -> 2985280.777 | W33: 3857310.07
A34: 23 | D34: Total O&M Expense | G34: =SUM(G29:G33) -> 0 | H34: =SUM(H29:H33) -> 1924375.653 | I34: 0 | J34: 0 | K34: 0 | L34: -27236173.14 | M34: -4591513.1 | N34: -2807346.42 | O34: 0 | P34: 0 | Q34: -217208.8784 | R34: =SUM(R29:R33) -> -147068.8506 | S34: =SUM(S29:S33) -> 0 | T34: =SUM(T29:T33) -> 3644195.94 | U34: =SUM(U29:U33) -> -25573428.72 | V34: -29430738.79 | W34: 3857310.07
A36: =+A34+1 -> 24 | C36: Other Operating Expenses
A37: =+A36+1 -> 25 | D37: Depreciation, Deplection, Amortization | G37: =Adjustments!F913 -> 0 | H37: =Adjustments!G913 -> 12375454.23 | I37: =Adjustments!H913 -> 0 | J37: =Adjustments!I913 -> 0 | K37: =Adjustments!J913 -> 0 | L37: =Adjustments!K913 -> 0 | M37: =Adjustments!L913 -> 0 | N37: =Adjustments!M913 -> 0 | O37: =Adjustments!N913 -> 0 | P37: =Adjustments!O913 -> 0 | Q37: =Adjustments!P913 -> 0 | R37: =Adjustments!Q913 -> 0 | S37: =Adjustments!R913 -> 0 | T37: =Adjustments!T913 -> 0 | U37: =Adjustments!U913 -> 12375454.23 | V37: =SUM(G37:T37) -> 12375454.23 | W37: =+U37-V37 -> 0
A38: =+A37+1 -> 26 | D38: Taxes Other Than Income Taxes | G38: =Adjustments!F921 -> 0 | H38: =Adjustments!G921 -> 1620777.908 | I38: =Adjustments!H921 -> 0 | J38: =Adjustments!I921 -> 0 | K38: =Adjustments!J921 -> 0 | L38: =Adjustments!K921 -> 0 | M38: =Adjustments!L921 -> 0 | N38: =Adjustments!M921 -> 0 | O38: =Adjustments!N921 -> 0 | P38: =Adjustments!O921 -> 0 | Q38: =Adjustments!P921 -> 0 | R38: =Adjustments!Q921 -> 0 | S38: =Adjustments!R921 -> 0 | T38: =Adjustments!T921 -> 0 | U38: =Adjustments!U921 -> 1620777.908 | V38: =SUM(G38:T38) -> 1620777.908 | W38: 0
A39: =+A38+1 -> 27 | D39: Income Taxes | G39: =Adjustments!F923+Adjustments!F925+Adjustments!F927+Adjustments!F929 -> 0 | H39: =Adjustments!G923+Adjustments!G925+Adjustments!G927+Adjustments!G929 -> -9815412.129 | I39: =Adjustments!H923+Adjustments!H925+Adjustments!H927+Adjustments!H929 -> -2154485.851 | J39: =Adjustments!I923+Adjustments!I925+Adjustments!I927+Adjustments!I929 -> 0 | K39: =Adjustments!J923+Adjustments!J925+Adjustments!J927+Adjustments!J929 -> 0 | L39: =Adjustments!K923+Adjustments!K925+Adjustments!K927+Adjustments!K929 -> 6742281.404 | M39: =Adjustments!L923+Adjustments!L925+Adjustments!L927+Adjustments!L929 -> 1136623.462 | N39: =Adjustments!M923+Adjustments!M925+Adjustments!M927+Adjustments!M929 -> 694955.1786 | O39: =Adjustments!N923+Adjustments!N925+Adjustments!N927+Adjustments!N929 -> 0 | P39: =Adjustments!O923+Adjustments!O925+Adjustments!O927+Adjustments!O929 -> 0 | Q39: =Adjustments!P923+Adjustments!P925+Adjustments!P927+Adjustments!P929 -> 53769.79263 | R39: =Adjustments!Q923+Adjustments!Q925+Adjustments!Q927+Adjustments!Q929 -> 36406.71439 | S39: =Adjustments!R923+Adjustments!R925+Adjustments!R927+Adjustments!R929 -> -543148.8708 | T39: =Adjustments!T923+Adjustments!T925+Adjustments!T927+Adjustments!T929 -> -902116.2554 | U39: =Adjustments!U923+Adjustments!U925+Adjustments!U927+Adjustments!U929 -> -5705998.953 | V39: =SUM(G39:T39) -> -4751126.554 | W39: -954872.3981
A40: =+A39+1 -> 28 | D40: Total Other Operating Expenses | G40: =SUM(G37:G39) -> 0 | H40: =SUM(H37:H39) -> 4180820.006 | I40: -2154485.851 | J40: 0 | K40: 0 | L40: 6742281.404 | M40: 1136623.462 | N40: 694955.1786 | O40: 0 | P40: 0 | Q40: 53769.79263 | R40: =SUM(R37:R39) -> 36406.71439 | S40: =SUM(S37:S39) -> -543148.8708 | T40: =SUM(T37:T39) -> -902116.2554 | U40: =SUM(U37:U39) -> 8290233.182 | V40: 9245105.58 | W40: -954872.3981
A43: =+A40+1 -> 29 | C43: Total Utility Operating Expenses | G43: =+G22+G26+G34+G40 -> 0 | H43: =+H22+H26+H34+H40 -> 6105195.659 | I43: -648357.9543 | J43: 0 | K43: 0 | L43: -20493891.73 | M43: -3454889.639 | N43: -2112391.242 | O43: 0 | P43: 0 | Q43: -163439.0858 | R43: =+R22+R26+R34+R40 -> -110662.1362 | S43: =+S22+S26+S34+S40 -> -543148.8708 | T43: =+T22+T26+T34+T40 -> 2742079.685 | U43: =+U22+U26+U34+U40 -> -15777067.64 | V43: -18679505.31 | W43: 2902437.672
A46: =+A43+1 -> 30 | B46: NET OPERATING INCOME | G46: =+G16-G43 -> 0 | H46: =+H16-H43 -> -6105195.659 | I46: -6548792.185 | J46: 0 | K46: 0 | L46: 20493891.73 | M46: 3454889.639 | N46: 2112391.242 | O46: 0 | P46: 0 | Q46: 163439.0858 | R46: =+R16-R43 -> 110662.1362 | S46: =+S16-S43 -> 543148.8708 | T46: =+T16-T43 -> -2742079.685 | U46: =+U16-U43 -> 8579917.504 | V46: 11482355.18 | W46: -2902437.672
A49: =+A46+1 -> 31 | B49: RATE BASE SUMMARY
A51: =+A49+1 -> 32 | B51: Net Utility Plant
A52: =+A51+1 -> 33 | C52: 101 | D52: Gas Plant In Service | G52: =Adjustments!F1095 -> 300479953.9 | H52: =Adjustments!G1095 -> 0 | I52: =Adjustments!H1095 -> 0 | J52: =Adjustments!I1095 -> 0 | K52: =Adjustments!J1095 -> -5037992.568 | L52: =Adjustments!K1095 -> 0 | M52: =Adjustments!L1095 -> 0 | N52: =Adjustments!M1095 -> 0 | O52: =Adjustments!N1095 -> 0 | P52: =Adjustments!O1095 -> 0 | Q52: =Adjustments!P1095 -> 0 | R52: =Adjustments!Q1095 -> 0 | S52: =Adjustments!R1095 -> 0 | T52: =Adjustments!T1095 -> 0 | U52: =Adjustments!U1095 -> 295441961.4 | V52: =SUM(G52:T52) -> 295441961.4 | W52: =+U52-V52 -> 0
A53: 34 | C53: 105 | D53: Gas Plant Held For Future Use | G53: =Adjustments!F1099 -> 0 | H53: =Adjustments!G1099 -> 0 | I53: =Adjustments!H1099 -> 0 | J53: =Adjustments!I1099 -> 0 | K53: =Adjustments!J1099 -> 0 | L53: =Adjustments!K1099 -> 0 | M53: =Adjustments!L1099 -> 0 | N53: =Adjustments!M1099 -> 0 | O53: =Adjustments!N1099 -> 0 | P53: =Adjustments!O1099 -> 0 | Q53: =Adjustments!P1099 -> 0 | R53: =Adjustments!Q1099 -> 0 | S53: =Adjustments!R1099 -> 0 | T53: =Adjustments!T1099 -> 0 | U53: =Adjustments!U1099 -> 0 | V53: =SUM(G53:T53) -> 0 | W53: 0
A54: 35 | C54: 106 | D54: Completed Construction Not Classified | G54: =Adjustments!F1106 -> -193334771 | H54: =Adjustments!G1106 -> 0 | I54: =Adjustments!H1106 -> 0 | J54: =Adjustments!I1106 -> 0 | K54: =Adjustments!J1106 -> 0 | L54: =Adjustments!K1106 -> 0 | M54: =Adjustments!L1106 -> 0 | N54: =Adjustments!M1106 -> 0 | O54: =Adjustments!N1106 -> 0 | P54: =Adjustments!O1106 -> 0 | Q54: =Adjustments!P1106 -> 0 | R54: =Adjustments!Q1106 -> 0 | S54: =Adjustments!R1106 -> 0 | T54: =Adjustments!T1106 -> 0 | U54: =Adjustments!U1106 -> -193334771 | V54: =SUM(G54:T54) -> -193334771 | W54: 0
A55: 36 | C55: 108 | D55: Accumulated Depreciation | G55: =Adjustments!F1113 -> -36440319.95 | H55: =Adjustments!G1113 -> 0 | I55: =Adjustments!H1113 -> 0 | J55: =Adjustments!I1113 -> 0 | K55: =Adjustments!J1113 -> 4506649.882 | L55: =Adjustments!K1113 -> 0 | M55: =Adjustments!L1113 -> 0 | N55: =Adjustments!M1113 -> 0 | O55: =Adjustments!N1113 -> 0 | P55: =Adjustments!O1113 -> 0 | Q55: =Adjustments!P1113 -> 0 | R55: =Adjustments!Q1113 -> 0 | S55: =Adjustments!R1113 -> 0 | T55: =Adjustments!T1113 -> 0 | U55: =Adjustments!U1113 -> -31933670.07 | V55: =SUM(G55:T55) -> -31933670.07 | W55: 0
A56: 37 | C56: 111 | D56: Accumulated Amort & Depletion | G56: =Adjustments!F1120 -> 0 | H56: =Adjustments!G1120 -> 0 | I56: =Adjustments!H1120 -> 0 | J56: =Adjustments!I1120 -> 0 | K56: =Adjustments!J1120 -> 387467.4296 | L56: =Adjustments!K1120 -> 0 | M56: =Adjustments!L1120 -> 0 | N56: =Adjustments!M1120 -> 0 | O56: =Adjustments!N1120 -> 0 | P56: =Adjustments!O1120 -> 0 | Q56: =Adjustments!P1120 -> 0 | R56: =Adjustments!Q1120 -> 0 | S56: =Adjustments!R1120 -> 0 | T56: =Adjustments!T1120 -> 0 | U56: =Adjustments!U1120 -> 387467.4296 | V56: =SUM(G56:T56) -> 387467.4296 | W56: 0
A57: 38 | C57: 254 | D57: Other Regulatory Liabilities ARC | G57: =Adjustments!F1127 -> -17717529.98 | H57: =Adjustments!G1127 -> 0 | I57: =Adjustments!H1127 -> 0 | J57: =Adjustments!I1127 -> 0 | K57: =Adjustments!J1127 -> 0 | L57: =Adjustments!K1127 -> 0 | M57: =Adjustments!L1127 -> 0 | N57: =Adjustments!M1127 -> 0 | O57: =Adjustments!N1127 -> 0 | P57: =Adjustments!O1127 -> 0 | Q57: =Adjustments!P1127 -> 0 | R57: =Adjustments!Q1127 -> 0 | S57: =Adjustments!R1127 -> -1952974.605 | T57: =Adjustments!T1127 -> 0 | U57: =Adjustments!U1127 -> -19670504.59 | V57: =Adjustments!#REF! ->  | W57: =Adjustments!#REF! -> 
A58: 39 | C58: Total Net Utility Plant | G58: =SUM(G52:G57) -> 52987333.02 | H58: 0 | I58: 0 | J58: 0 | K58: -143875.2561 | L58: 0 | M58: 0 | N58: 0 | O58: 0 | P58: 0 | Q58: 0 | R58: 0 | S58: -1952974.605 | T58: 0 | U58: =SUM(U52:U57) -> 50890483.16 | V58: =SUM(V52:V56) -> 70560987.75 | W58: 0
A60: =+A58+1 -> 40 | B60: Other Rate Base Accounts
A61: =+A60+1 -> 41 | C61: 154 | D61: Materials & Supplies | G61: =Adjustments!F1145 -> 2939112.488 | H61: =Adjustments!G1145 -> 0 | I61: =Adjustments!H1145 -> 0 | J61: =Adjustments!I1145 -> 0 | K61: =Adjustments!J1145 -> 0 | L61: =Adjustments!K1145 -> 0 | M61: =Adjustments!L1145 -> 0 | N61: =Adjustments!M1145 -> 0 | O61: =Adjustments!N1145 -> 0 | P61: =Adjustments!O1145 -> 0 | Q61: =Adjustments!P1145 -> 0 | R61: =Adjustments!Q1145 -> 0 | S61: =Adjustments!R1145 -> 0 | T61: =Adjustments!T1145 -> 0 | U61: =Adjustments!U1145 -> 2939112.488 | V61: =SUM(G61:T61) -> 2939112.488 | W61: =+U61-V61 -> 0
A62: 42 | C62: 164-1 | D62: Gas Stored Underground | G62: =Adjustments!F1149 -> -28260657.28 | H62: =Adjustments!G1149 -> 0 | I62: =Adjustments!H1149 -> 0 | J62: =Adjustments!I1149 -> -45826911.25 | K62: =Adjustments!J1149 -> 0 | L62: =Adjustments!K1149 -> 0 | M62: =Adjustments!L1149 -> 0 | N62: =Adjustments!M1149 -> 0 | O62: =Adjustments!N1149 -> 0 | P62: =Adjustments!O1149 -> 0 | Q62: =Adjustments!P1149 -> 0 | R62: =Adjustments!Q1149 -> 0 | S62: =Adjustments!R1149 -> 0 | T62: =Adjustments!T1149 -> 0 | U62: =Adjustments!U1149 -> -74087568.53 | V62: -74087568.53 | W62: 0
A63: 43 | C63: 165 | D63: Prepayments | G63: =Adjustments!F1153 -> -220502.3708 | H63: =Adjustments!G1153 -> 0 | I63: =Adjustments!H1153 -> 0 | J63: =Adjustments!I1153 -> 0 | K63: =Adjustments!J1153 -> 0 | L63: =Adjustments!K1153 -> 0 | M63: =Adjustments!L1153 -> 0 | N63: =Adjustments!M1153 -> 0 | O63: =Adjustments!N1153 -> 0 | P63: =Adjustments!O1153 -> 0 | Q63: =Adjustments!P1153 -> 0 | R63: =Adjustments!Q1153 -> 0 | S63: =Adjustments!R1153 -> 0 | T63: =Adjustments!T1153 -> 0 | U63: =Adjustments!U1153 -> -220502.3708 | V63: -220502.3708 | W63: 0
A64: 44 | C64: 190 | D64: Accum Deferred Income Taxes | G64: =Adjustments!F1160+Adjustments!F1167 -> -1976680.919 | H64: =Adjustments!G1160+Adjustments!G1167 -> 0 | I64: =Adjustments!H1160+Adjustments!H1167 -> 0 | J64: =Adjustments!I1160+Adjustments!I1167 -> 0 | K64: =Adjustments!J1160+Adjustments!J1167 -> 0 | L64: =Adjustments!K1160+Adjustments!K1167 -> 0 | M64: =Adjustments!L1160+Adjustments!L1167 -> 0 | N64: =Adjustments!M1160+Adjustments!M1167 -> 0 | O64: =Adjustments!N1160+Adjustments!N1167 -> 0 | P64: =Adjustments!O1160+Adjustments!O1167 -> 0 | Q64: =Adjustments!P1160+Adjustments!P1167 -> 0 | R64: =Adjustments!Q1160+Adjustments!Q1167 -> 0 | S64: =Adjustments!R1160+Adjustments!R1167 -> 0 | T64: =Adjustments!T1160+Adjustments!T1167 -> 0 | U64: =Adjustments!U1160+Adjustments!U1167 -> -1976680.919 | V64: -1976680.919 | W64: 0
A65: 45 | C65: 235-1 | D65: Customer Deposits | G65: =Adjustments!F1172 -> 33865.0875 | H65: =Adjustments!G1172 -> 0 | I65: =Adjustments!H1172 -> 0 | J65: =Adjustments!I1172 -> 0 | K65: =Adjustments!J1172 -> 0 | L65: =Adjustments!K1172 -> 0 | M65: =Adjustments!L1172 -> 0 | N65: =Adjustments!M1172 -> 0 | O65: =Adjustments!N1172 -> 0 | P65: =Adjustments!O1172 -> 0 | Q65: =Adjustments!P1172 -> 0 | R65: =Adjustments!Q1172 -> 0 | S65: =Adjustments!R1172 -> 0 | T65: =Adjustments!T1172 -> 0 | U65: =Adjustments!U1172 -> 33865.0875 | V65: 33865.0875 | W65: 0
A66: 46 | C66: 252 | D66: Misc Customer Credits | G66: =Adjustments!F1177 -> 0 | H66: =Adjustments!G1177 -> 0 | I66: =Adjustments!H1177 -> 0 | J66: =Adjustments!I1177 -> 0 | K66: =Adjustments!J1177 -> 0 | L66: =Adjustments!K1177 -> 0 | M66: =Adjustments!L1177 -> 0 | N66: =Adjustments!M1177 -> 0 | O66: =Adjustments!N1177 -> 0 | P66: =Adjustments!O1177 -> 0 | Q66: =Adjustments!P1177 -> 0 | R66: =Adjustments!Q1177 -> 0 | S66: =Adjustments!R1177 -> 0 | T66: =Adjustments!T1177 -> 0 | U66: =Adjustments!U1177 -> 0 | V66: 0 | W66: 0
A67: 47 | C67: 253-1 | D67: Unclaimed Customer Deposits | G67: =Adjustments!F1181 -> 4705.258333 | H67: =Adjustments!G1181 -> 0 | I67: =Adjustments!H1181 -> 0 | J67: =Adjustments!I1181 -> 0 | K67: =Adjustments!J1181 -> 0 | L67: =Adjustments!K1181 -> 0 | M67: =Adjustments!L1181 -> 0 | N67: =Adjustments!M1181 -> 0 | O67: =Adjustments!N1181 -> 0 | P67: =Adjustments!O1181 -> 0 | Q67: =Adjustments!P1181 -> 0 | R67: =Adjustments!Q1181 -> 0 | S67: =Adjustments!R1181 -> 0 | T67: =Adjustments!T1181 -> 0 | U67: =Adjustments!U1181 -> 4705.258333 | V67: 4705.258333 | W67: 0
A68: 48 | C68: 255 | D68: Deferred Investment Tax Credits | G68: =Adjustments!F1188 -> 0 | H68: =Adjustments!G1188 -> 0 | I68: =Adjustments!H1188 -> 0 | J68: =Adjustments!I1188 -> 0 | K68: =Adjustments!J1188 -> 0 | L68: =Adjustments!K1188 -> 0 | M68: =Adjustments!L1188 -> 0 | N68: =Adjustments!M1188 -> 0 | O68: =Adjustments!N1188 -> 0 | P68: =Adjustments!O1188 -> 0 | Q68: =Adjustments!P1188 -> 0 | R68: =Adjustments!Q1188 -> 0 | S68: =Adjustments!R1188 -> 0 | T68: =Adjustments!T1188 -> 0 | U68: =Adjustments!U1188 -> 0 | V68: 0 | W68: 0
A69: 49 | C69: 282 | D69: Accum Deferred Income Taxes | G69: =(Adjustments!F1195+Adjustments!F1202+Adjustments!F1206) -> 1291127.356 | H69: =(Adjustments!G1195+Adjustments!G1202+Adjustments!G1206) -> 0 | I69: =(Adjustments!H1195+Adjustments!H1202+Adjustments!H1206) -> 0 | J69: =(Adjustments!I1195+Adjustments!I1202+Adjustments!I1206) -> 0 | K69: =(Adjustments!J1195+Adjustments!J1202+Adjustments!J1206) -> 0 | L69: =(Adjustments!K1195+Adjustments!K1202+Adjustments!K1206) -> 0 | M69: =(Adjustments!L1195+Adjustments!L1202+Adjustments!L1206) -> 0 | N69: =(Adjustments!M1195+Adjustments!M1202+Adjustments!M1206) -> 0 | O69: =(Adjustments!N1195+Adjustments!N1202+Adjustments!N1206) -> 0 | P69: =(Adjustments!O1195+Adjustments!O1202+Adjustments!O1206) -> 0 | Q69: =(Adjustments!P1195+Adjustments!P1202+Adjustments!P1206) -> 0 | R69: =(Adjustments!Q1195+Adjustments!Q1202+Adjustments!Q1206) -> 0 | S69: =(Adjustments!R1195+Adjustments!R1202+Adjustments!R1206) -> 0 | T69: =(Adjustments!T1195+Adjustments!T1202+Adjustments!T1206) -> -88071519.09 | U69: =(Adjustments!U1195+Adjustments!U1202+Adjustments!U1206) -> -86780391.74 | V69: -86780391.74 | W69: 0
A70: 50 | D70: Working Capital - Cash | G70: =Adjustments!F1244 -> 0 | H70: =Adjustments!G1244 -> 981.797204 | I70: =Adjustments!H1244 -> 1607.572462 | J70: =Adjustments!I1244 -> 0 | K70: =Adjustments!J1244 -> 0 | L70: =Adjustments!K1244 -> 50813.62196 | M70: =Adjustments!L1244 -> 8566.233214 | N70: =Adjustments!M1244 -> 5237.572805 | O70: =Adjustments!N1244 -> 0 | P70: =Adjustments!O1244 -> 0 | Q70: =Adjustments!P1244 -> 405.239377 | R70: =Adjustments!Q1244 -> 274.381461 | S70: =Adjustments!R1244 -> 1346.711584 | T70: =Adjustments!T1244 -> -6798.855108 | U70: =Adjustments!U1244 -> 55237.81991 | V70: 62434.27496 | W70: -7196.45505
A71: 51 | C71: Total Other Rate Base Accounts | G71: =SUM(G61:G70) -> -26189030.38 | H71: =SUM(H61:H70) -> 981.797204 | I71: 1607.572462 | J71: -45826911.25 | K71: 0 | L71: 50813.62196 | M71: 8566.233214 | N71: 5237.572805 | O71: 0 | P71: 0 | Q71: 405.239377 | R71: =SUM(R61:R70) -> 274.381461 | S71: =SUM(S61:S70) -> 1346.711584 | T71: =SUM(T61:T70) -> -88078317.95 | U71: =SUM(U61:U70) -> -160032222.9 | V71: -160025026.5 | W71: -7196.45505
A74: =+A71+1 -> 52 | B74: TOTAL RATE BASE | G74: =+G58+G71 -> 26798302.64 | H74: =+H58+H71 -> 981.797204 | I74: 1607.572462 | J74: -45826911.25 | K74: -143875.2561 | L74: 50813.62196 | M74: 8566.233214 | N74: 5237.572805 | O74: 0 | P74: 0 | Q74: 405.239377 | R74: =+R58+R71 -> 274.381461 | S74: =+S58+S71 -> -1951627.894 | T74: =+T58+T71 -> -88078317.95 | U74: =+U58+U71 -> -109141739.7 | V74: =+V58+V71 -> -89464038.7 | W74: -7196.45505

Sheet PROJECTED EXPENSES
G1: BOOKED | H1: BOOKED | I1: BOOKED | J1: BOOKED | K1: BOOKED | L1: BOOKED | M1: BOOKED | N1: BOOKED | O1: BOOKED | P1: BOOKED | Q1: BOOKED | R1: BOOKED | T1: BOOKED | U1: BOOKED | V1: BOOKED | W1: PROJECTED | X1: PROJECTED | Y1: PROJECTED | Z1: PROJECTED | AA1: PROJECTED | AB1: PROJECTED | AC1: PROJECTED | AD1: PROJECTED | AE1: PROJECTED | AF1: PROJECTED | AG1: PROJECTED | AH1: PROJECTED | AI1: PROJECTED | AJ1: PROJECTED | AK1: PROJECTED | AL1: PROJECTED | AM1: PROJECTED | AN1: PROJECTED | AO1: PROJECTED | AP1: PROJECTED | AQ1: PROJECTED | AT1: 12 Months Ended | AU1: 12 Months Ended | AV1: 12 Months Ended | AW1: 2021 | AX1: 2022
G2: 2020-01-01 | H2: 2020-02-01 | I2: 2020-03-01 | J2: 2020-04-01 | K2: 2020-05-01 | L2: 2020-06-01 | M2: 2020-07-01 | N2: 2020-08-01 | O2: 2020-09-01 | P2: 2020-10-01 | Q2: 2020-11-01 | R2: 2020-12-01 | T2: 2021-01-01 | U2: 2021-02-01 | V2: 2021-03-01 | W2: 2021-04-01 | X2: 2021-05-01 | Y2: 2021-06-01 | Z2: 2021-07-01 | AA2: 2021-08-01 | AB2: 2021-09-01 | AC2: 2021-10-01 | AD2: 2021-11-01 | AE2: 2021-12-01 | AF2: 2022-01-01 | AG2: 2022-02-01 | AH2: 2022-03-01 | AI2: 2022-04-01 | AJ2: 2022-05-01 | AK2: 2022-06-01 | AL2: 2022-07-01 | AM2: 2022-08-01 | AN2: 2022-09-01 | AO2: 2022-10-01 | AP2: 2022-11-01 | AQ2: 2022-12-01 | AT2: =R2 -> 2020-12-01 | AU2: =AE2 -> 2021-12-01 | AV2: =AQ2 -> 2022-12-01 | AW2: 1st Qtr 2021 Inflation Rates | AX2: 1st Qtr 2021 Inflation Rates | AY2: 2021 Inflation Rate | AZ2: 2022 Inflation Rate
C3: FERC Acct | E3: Description | AT3: USED | AU3: USED | AV3: USED | AW3: 2021 | AX3: 2022 | AY3: 2021 | AZ3: 2022 | BA3: 1
BA4: 2
C5: UTILITY OPERATING EXPENSES | BA5: 3
B6: 615 | C6: OPERATION AND MAINTENANCE EXPENSES | BA6: 4
B7: 616 | BA7: 5
B8: 617 | C8: Production Expenses | BA8: 6
B9: 618 | BA9: 7
B10: 619 | C10: 810 | D10: Gas Used for Compressor Station Fuel | G10: 0 | H10: 0 | I10: -1952 | J10: 0 | K10: 0 | L10: -1342 | M10: 0 | N10: 0 | O10: -845 | P10: 0 | Q10: 0 | R10: -1087 | T10: 0 | U10: 0 | V10: -2425 | W10: =W264+W518 -> 0 | X10: 0 | Y10: -1354.2793 | Z10: 0 | AA10: 0 | AB10: -852.73175 | AC10: 0 | AD10: 0 | AE10: =AE264+AE518 -> -1096.94605 | AF10: =AF264+AF518 -> 0 | AG10: 0 | AH10: -2447.2615 | AI10: 0 | AJ10: 0 | AK10: -1366.711584 | AL10: 0 | AM10: 0 | AN10: -860.5598275 | AO10: 0 | AP10: 0 | AQ10: =AQ264+AQ518 -> -1107.016015 | AT10: =SUM(G10:R10) -> -5226 | AU10: =SUM(T10:AE10) -> -5728.9571 | AV10: =SUM(AF10:AQ10) -> -5781.548926 | BA10: 8
B11: 620 | C11: 812 | D11: Gas Used for Other Utility Operations | G11: -32860.63 | H11: -60471.56 | I11: -38014.17 | J11: -32162.18 | K11: -18647.24 | L11: -14694.04 | M11: -11600.15 | N11: -11273.75 | O11: -10492.26 | P11: -11829.36 | Q11: -22328.63 | R11: -32986.23 | T11: -44348.8 | U11: -36591.07 | V11: -34010.2 | W11: -32456.46395 | X11: -18817.86225 | Y11: -14828.49047 | Z11: -11706.29137 | AA11: -11376.90481 | AB11: -10588.26418 | AC11: -11937.59864 | AD11: -22532.93696 | AE11: -33288.054 | AF11: =AF265+AF519 -> -44755.92198 | AG11: -36926.97602 | AH11: -34322.41364 | AI11: -32754.41429 | AJ11: -18990.61022 | AK11: -14964.61601 | AL11: -11813.75513 | AM11: -11481.3448 | AN11: -10685.46444 | AO11: -12047.1858 | AP11: -22739.78933 | AQ11: -33593.63834 | AT11: =SUM(G11:R11) -> -297360.2 | AU11: =SUM(T11:AE11) -> -282482.9366 | AV11: =SUM(AF11:AQ11) -> -285076.13 | BA11: 9
B12: 621 | BA12: 10
B13: 622 | D13: Total Production Expenses | G13: =SUM(G10:G12) -> -32860.63 | H13: -60471.56 | I13: -39966.17 | J13: -32162.18 | K13: -18647.24 | L13: -16036.04 | M13: -11600.15 | N13: -11273.75 | O13: -11337.26 | P13: -11829.36 | Q13: -22328.63 | R13: -34073.23 | T13: =SUM(T10:T12) -> -44348.8 | U13: =SUM(U10:U12) -> -36591.07 | V13: =SUM(V10:V12) -> -36435.2 | W13: -32456.46395 | X13: -18817.86225 | Y13: -16182.76977 | Z13: -11706.29137 | AA13: -11376.90481 | AB13: -11440.99593 | AC13: -11937.59864 | AD13: -22532.93696 | AE13: -34385.00005 | AF13: =SUM(AF10:AF12) -> -44755.92198 | AG13: -36926.97602 | AH13: -36769.67514 | AI13: -32754.41429 | AJ13: -18990.61022 | AK13: -16331.32759 | AL13: -11813.75513 | AM13: -11481.3448 | AN13: -11546.02427 | AO13: -12047.1858 | AP13: -22739.78933 | AQ13: -34700.65436 | AT13: =SUM(G13:R13) -> -302586.2 | AU13: =SUM(T13:AE13) -> -288211.8937 | AV13: =SUM(AF13:AQ13) -> -290857.6789 | BA13: 11
B14: 623 | BA14: 12
B15: 624 | C15: Distribution Operations & Maintenance Expenses | BA15: 13
B16: 625 | BA16: 14
B17: 626 | C17: 870 | D17: Operation Supervision & Engineering | BA17: 15
B18: 627 | E18: Utah | G18: 595888.04 | H18: 594382.67 | I18: 658907.48 | J18: 588297.03 | K18: 597539.08 | L18: 572430.07 | M18: 548910.01 | N18: 551211.57 | O18: 795141.47 | P18: 308467.99 | Q18: 603859.92 | R18: 738161.41 | T18: 537424.02 | U18: 591071.11 | V18: 642732.12 | W18: =W272+W526 -> 598713.0718 | X18: =X272+X526 -> 607836.6126 | Y18: 582929.0311 | Z18: 557999.9846 | AA18: 560629.719 | AB18: 807480.6934 | AC18: 316529.8574 | AD18: 613093.2639 | AE18: 748539.6992 | AF18: =AF272+AF526 -> 560195.3715 | AG18: 616150.8521 | AH18: 670273.2802 | AI18: 626835.3378 | AJ18: 634769.3283 | AK18: 612396.5844 | AL18: 580604.2907 | AM18: 585005.926 | AN18: 835435.3694 | AO18: 346310.449 | AP18: 633527.9448 | AQ18: 768265.6734 | AT18: =SUM(G18:R18) -> 7153196.74 | AU18: =SUM(T18:AE18) -> 7164979.183 | AV18: =SUM(AF18:AQ18) -> 7469770.408 | BA18: 16
B19: 628 | E19: Wyoming | G19: 44587.61 | H19: 46147.81 | I19: 49870.18 | J19: 47672.51 | K19: 48167.55 | L19: 37890.28 | M19: 38352.03 | N19: 38639.72 | O19: 62666.14 | P19: 31908.08 | Q19: 37731.14 | R19: 45311.91 | T19: 42819.54 | U19: 40320.75 | V19: 46677.53 | W19: 48516.57147 | X19: 48997.63281 | Y19: 38585.22703 | Z19: 38987.14135 | AA19: 39299.92864 | AB19: 63638.61035 | AC19: 32742.00351 | AD19: 38308.06948 | AE19: 45948.97948 | AF19: =AF273+AF527 -> 44633.85934 | AG19: 42031.6 | AH19: 48677.66862 | AI19: 50795.45261 | AJ19: 51168.67563 | AK19: 40535.74274 | AL19: 40566.49135 | AM19: 41008.69142 | AN19: 65841.75495 | AO19: 35822.5225 | AP19: 39584.89508 | AQ19: 47159.85498 | AT19: =SUM(G19:R19) -> 528944.96 | AU19: =SUM(T19:AE19) -> 524841.9841 | AV19: =SUM(AF19:AQ19) -> 547827.2092 | BA19: 17
B20: 629 | E20: Total | G20: =SUM(G18:G19) -> 640475.65 | H20: =SUM(H18:H19) -> 640530.48 | I20: 708777.66 | J20: 635969.54 | K20: 645706.63 | L20: 610320.35 | M20: 587262.04 | N20: 589851.29 | O20: 857807.61 | P20: 340376.07 | Q20: 641591.06 | R20: 783473.32 | T20: =SUM(T18:T19) -> 580243.56 | U20: =SUM(U18:U19) -> 631391.86 | V20: =SUM(V18:V19) -> 689409.65 | W20: 647229.6433 | X20: 656834.2454 | Y20: 621514.2581 | Z20: 596987.1259 | AA20: 599929.6476 | AB20: 871119.3038 | AC20: 349271.8609 | AD20: 651401.3334 | AE20: 794488.6787 | AF20: =SUM(AF18:AF19) -> 604829.2308 | AG20: 658182.4521 | AH20: 718950.9489 | AI20: 677630.7904 | AJ20: 685938.0039 | AK20: 652932.3271 | AL20: 621170.7821 | AM20: 626014.6174 | AN20: 901277.1243 | AO20: 382132.9715 | AP20: 673112.8399 | AQ20: 815425.5284 | AT20: =SUM(G20:R20) -> 7682141.7 | AU20: =SUM(T20:AE20) -> 7689821.167 | AV20: =SUM(AF20:AQ20) -> 8017597.617 | BA20: 18
B21: 630 | BA21: 19
B22: 631 | C22: 871 | D22: Distribution Load Dispatching | BA22: 20
B23: 632 | E23: Utah | G23: 106195.13 | H23: 100017.48 | I23: 86365.3 | J23: 103785.26 | K23: 97812.41 | L23: 105212.96 | M23: 96322.53 | N23: 105791.66 | O23: 99047.97 | P23: 102355.16 | Q23: 93173.16 | R23: 136246.73 | T23: 119521.75 | U23: 96466.51 | V23: 116304.94 | W23: =W277+W531 -> 106169.8702 | X23: 100349.0108 | Y23: 108048.5152 | Z23: 98869.59358 | AA23: 108281.4265 | AB23: 101760.5828 | AC23: 104720.4117 | AD23: 95669.13432 | AE23: 139173.1148 | AF23: =AF277+AF531 -> 129668.7056 | AG23: 105897.0403 | AH23: 126830.0018 | AI23: 114320.863 | AJ23: 109659.943 | AK23: 118666.7737 | AL23: 108315.2539 | AM23: 116922.6258 | AN23: 112000.0252 | AO23: 112835.1262 | AP23: 104987.2639 | AQ23: 148724.12 | AT23: =SUM(G23:R23) -> 1232325.75 | AU23: =SUM(T23:AE23) -> 1295334.86 | AV23: =SUM(AF23:AQ23) -> 1408827.742 | BA23: 21
B24: 633 | E24: Wyoming | G24: 3115.54 | H24: 2936.43 | I24: 2557.24 | J24: 3063.85 | K24: 2898.87 | L24: 3110.77 | M24: 2853.67 | N24: 3127.55 | O24: 2926.86 | P24: 3051.56 | Q24: 2769.8 | R24: 4092.38 | T24: 3525.35 | U24: 2881.08 | V24: 3453.7 | W24: 3134.2462 | X24: 2974.047331 | Y24: 3194.607201 | Z24: 2929.129801 | AA24: 3201.155701 | AB24: 3007.017504 | AC24: 3122.076303 | AD24: 2843.99894 | AE24: 4180.278467 | AF24: =AF278+AF532 -> 3824.639208 | AG24: 3162.733314 | AH24: 3766.243954 | AI24: 3374.872078 | AJ24: 3249.995773 | AK24: 3508.551034 | AL24: 3208.968771 | AM24: 3456.61802 | AN24: 3309.592248 | AO24: 3364.003904 | AP24: 3121.003126 | AQ24: 4467.15759 | AT24: =SUM(G24:R24) -> 36504.52 | AU24: =SUM(T24:AE24) -> 38446.68745 | AV24: =SUM(AF24:AQ24) -> 41814.37902 | BA24: 22
B25: 634 | E25: Total | G25: =SUM(G23:G24) -> 109310.67 | H25: 102953.91 | I25: 88922.54 | J25: 106849.11 | K25: 100711.28 | L25: 108323.73 | M25: 99176.2 | N25: 108919.21 | O25: 101974.83 | P25: 105406.72 | Q25: 95942.96 | R25: 140339.11 | T25: =SUM(T23:T24) -> 123047.1 | U25: =SUM(U23:U24) -> 99347.59 | V25: 119758.64 | W25: 109304.1164 | X25: 103323.0581 | Y25: 111243.1224 | Z25: 101798.7234 | AA25: 111482.5822 | AB25: 104767.6003 | AC25: 107842.488 | AD25: 98513.13326 | AE25: 143353.3933 | AF25: =SUM(AF23:AF24) -> 133493.3448 | AG25: 109059.7736 | AH25: 130596.2457 | AI25: 117695.7351 | AJ25: 112909.9388 | AK25: 122175.3247 | AL25: 111524.2227 | AM25: 120379.2438 | AN25: 115309.6174 | AO25: 116199.1301 | AP25: 108108.267 | AQ25: 153191.2775 | AT25: =SUM(G25:R25) -> 1268830.27 | AU25: =SUM(T25:AE25) -> 1333781.547 | AV25: =SUM(AF25:AQ25) -> 1450642.121 | BA25: 23
B26: 635 | BA26: 24
B27: 636 | C27: 872 | D27: Compressor Station Labor & Expenses | BA27: 25
B28: 637 | E28: Utah | G28: 0 | H28: 0 | I28: 0 | J28: 0 | K28: 0 | L28: 0 | M28: 0 | N28: 0 | O28: 0 | P28: 0 | Q28: 0 | R28: 0 | T28: 0 | U28: 0 | V28: 0 | W28: =W282+W536 -> 0 | X28: 0 | Y28: 0 | Z28: 0 | AA28: 0 | AB28: 0 | AC28: 0 | AD28: 0 | AE28: 0 | AF28: =AF282+AF536 -> 0 | AG28: 0 | AH28: 0 | AI28: 0 | AJ28: 0 | AK28: 0 | AL28: 0 | AM28: 0 | AN28: 0 | AO28: 0 | AP28: 0 | AQ28: 0 | AT28: =SUM(G28:R28) -> 0 | AU28: =SUM(T28:AE28) -> 0 | AV28: =SUM(AF28:AQ28) -> 0 | BA28: 26
B29: 638 | E29: Wyoming | G29: 0 | H29: 0 | I29: 0 | J29: 0 | K29: 0 | L29: 0 | M29: 0 | N29: 0 | O29: 0 | P29: 0 | Q29: 0 | R29: 0 | T29: 0 | U29: 0 | V29: 0 | W29: 0 | X29: 0 | Y29: 0 | Z29: 0 | AA29: 0 | AB29: 0 | AC29: 0 | AD29: 0 | AE29: 0 | AF29: =AF283+AF537 -> 0 | AG29: 0 | AH29: 0 | AI29: 0 | AJ29: 0 | AK29: 0 | AL29: 0 | AM29: 0 | AN29: 0 | AO29: 0 | AP29: 0 | AQ29: 0 | AT29: =SUM(G29:R29) -> 0 | AU29: =SUM(T29:AE29) -> 0 | AV29: =SUM(AF29:AQ29) -> 0 | BA29: 27
B30: 639 | E30: Total | G30: =SUM(G28:G29) -> 0 | H30: 0 | I30: 0 | J30: 0 | K30: 0 | L30: 0 | M30: 0 | N30: 0 | O30: 0 | P30: 0 | Q30: 0 | R30: 0 | T30: =SUM(T28:T29) -> 0 | U30: =SUM(U28:U29) -> 0 | V30: =SUM(V28:V29) -> 0 | W30: =SUM(W28:W29) -> 0 | X30: 0 | Y30: 0 | Z30: 0 | AA30: 0 | AB30: 0 | AC30: 0 | AD30: 0 | AE30: 0 | AF30: =SUM(AF28:AF29) -> 0 | AG30: 0 | AH30: 0 | AI30: 0 | AJ30: 0 | AK30: 0 | AL30: 0 | AM30: 0 | AN30: 0 | AO30: 0 | AP30: 0 | AQ30: 0 | AT30: =SUM(G30:R30) -> 0 | AU30: =SUM(T30:AE30) -> 0 | AV30: =SUM(AF30:AQ30) -> 0 | BA30: 28
B31: 640 | BA31: 29
B32: 641 | C32: 873 | D32: Compressor Station Fuel & Power | BA32: 30
B33: 642 | E33: Utah | G33: 0 | H33: 0 | I33: 0 | J33: 0 | K33: 0 | L33: 0 | M33: 0 | N33: 0 | O33: 0 | P33: 0 | Q33: 0 | R33: 0 | T33: 0 | U33: 0 | V33: 0 | W33: =W287+W541 -> 0 | X33: 0 | Y33: 0 | Z33: 0 | AA33: 0 | AB33: 0 | AC33: 0 | AD33: 0 | AE33: 0 | AF33: =AF287+AF541 -> 0 | AG33: 0 | AH33: 0 | AI33: 0 | AJ33: 0 | AK33: 0 | AL33: 0 | AM33: 0 | AN33: 0 | AO33: 0 | AP33: 0 | AQ33: 0 | AT33: =SUM(G33:R33) -> 0 | AU33: =SUM(T33:AE33) -> 0 | AV33: =SUM(AF33:AQ33) -> 0 | BA33: 31
B34: 643 | E34: Wyoming | G34: 0 | H34: 0 | I34: 0 | J34: 0 | K34: 0 | L34: 0 | M34: 0 | N34: 0 | O34: 0 | P34: 0 | Q34: 0 | R34: 0 | T34: 0 | U34: 0 | V34: 0 | W34: 0 | X34: 0 | Y34: 0 | Z34: 0 | AA34: 0 | AB34: 0 | AC34: 0 | AD34: 0 | AE34: 0 | AF34: =AF288+AF542 -> 0 | AG34: 0 | AH34: 0 | AI34: 0 | AJ34: 0 | AK34: 0 | AL34: 0 | AM34: 0 | AN34: 0 | AO34: 0 | AP34: 0 | AQ34: 0 | AT34: =SUM(G34:R34) -> 0 | AU34: =SUM(T34:AE34) -> 0 | AV34: =SUM(AF34:AQ34) -> 0 | BA34: 32
B35: 644 | E35: Total | G35: =SUM(G33:G34) -> 0 | H35: 0 | I35: 0 | J35: 0 | K35: 0 | L35: 0 | M35: 0 | N35: 0 | O35: 0 | P35: 0 | Q35: 0 | R35: 0 | T35: =SUM(T33:T34) -> 0 | U35: =SUM(U33:U34) -> 0 | V35: =SUM(V33:V34) -> 0 | W35: =SUM(W33:W34) -> 0 | X35: 0 | Y35: 0 | Z35: 0 | AA35: 0 | AB35: 0 | AC35: 0 | AD35: 0 | AE35: 0 | AF35: =SUM(AF33:AF34) -> 0 | AG35: 0 | AH35: 0 | AI35: 0 | AJ35: 0 | AK35: 0 | AL35: 0 | AM35: 0 | AN35: 0 | AO35: 0 | AP35: 0 | AQ35: 0 | AT35: =SUM(G35:R35) -> 0 | AU35: =SUM(T35:AE35) -> 0 | AV35: =SUM(AF35:AQ35) -> 0 | BA35: 33
B36: 645 | BA36: 34
B37: 646 | C37: 874 | D37: Mains & Service Expenses | BA37: 35
B38: 647 | E38: Utah | G38: 935715.81 | H38: 964144.72 | I38: 1216722.53 | J38: 1399792.97 | K38: 1440719.67 | L38: 1552768.06 | M38: 1468561.96 | N38: 1441007.33 | O38: 1543454.23 | P38: 1150108.06 | Q38: 1388810.6 | R38: 1144998.45 | T38: 1141026.07 | U38: 923217.13 | V38: 1432149 | W38: =W292+W546 -> 1418761.101 | X38: 1462645.101 | Y38: 1575849.033 | Z38: 1490279.176 | AA38: 1462974.755 | AB38: 1565345.735 | AC38: 1167853.689 | AD38: 1409585.64 | AE38: 1161575.298 | AF38: =AF292+AF546 -> 1179368.974 | AG38: 956985.8428 | AH38: 1475939.847 | AI38: 1452920.522 | AJ38: 1511561.433 | AK38: 1625422.345 | AL38: 1536522.344 | AM38: 1512116.248 | AN38: 1608603.436 | AO38: 1208293.481 | AP38: 1454675.731 | AQ38: 1195594.324 | AT38: =SUM(G38:R38) -> 15646804.39 | AU38: =SUM(T38:AE38) -> 16211261.73 | AV38: =SUM(AF38:AQ38) -> 16718004.53 | BA38: 36
B39: 648 | E39: Wyoming | G39: 27405.84 | H39: 31793.71 | I39: 38213.84 | J39: 64710.89 | K39: 51522.08 | L39: 57934.71 | M39: 42269.52 | N39: 56029.46 | O39: 54577.66 | P39: 53013.97 | Q39: 35126.32 | R39: 33819.46 | T39: 34954.03 | U39: 26173.74 | V39: 40654.82 | W39: 65587.76586 | X39: 52306.16301 | Y39: 58795.875 | Z39: 42894.60518 | AA39: 56883.60067 | AB39: 55351.75947 | AC39: 53831.95072 | AD39: 35651.77014 | AE39: 34309.08517 | AF39: =AF293+AF547 -> 36128.62104 | AG39: 27131.10255 | AH39: 41897.92319 | AI39: 67166.91834 | AJ39: 54055.47707 | AK39: 60645.48506 | AL39: 44225.61915 | AM39: 58794.32748 | AN39: 56881.38312 | AO39: 55696.01377 | AP39: 36792.20566 | AQ39: 35313.89447 | AT39: =SUM(G39:R39) -> 546417.46 | AU39: =SUM(T39:AE39) -> 557395.1652 | AV39: =SUM(AF39:AQ39) -> 574728.9709 | BA39: 37
B40: 649 | E40: Total | G40: =SUM(G38:G39) -> 963121.65 | H40: 995938.43 | I40: 1254936.37 | J40: 1464503.86 | K40: 1492241.75 | L40: 1610702.77 | M40: 1510831.48 | N40: 1497036.79 | O40: 1598031.89 | P40: 1203122.03 | Q40: 1423936.92 | R40: 1178817.91 | T40: =SUM(T38:T39) -> 1175980.1 | U40: =SUM(U38:U39) -> 949390.87 | V40: =SUM(V38:V39) -> 1472803.82 | W40: 1484348.867 | X40: 1514951.264 | Y40: 1634644.908 | Z40: 1533173.782 | AA40: 1519858.356 | AB40: 1620697.494 | AC40: 1221685.639 | AD40: 1445237.411 | AE40: 1195884.384 | AF40: =SUM(AF38:AF39) -> 1215497.595 | AG40: 984116.9454 | AH40: 1517837.77 | AI40: 1520087.441 | AJ40: 1565616.91 | AK40: 1686067.83 | AL40: 1580747.963 | AM40: 1570910.576 | AN40: 1665484.819 | AO40: 1263989.495 | AP40: 1491467.937 | AQ40: 1230908.219 | AT40: =SUM(G40:R40) -> 16193221.85 | AU40: =SUM(T40:AE40) -> 16768656.9 | AV40: =SUM(AF40:AQ40) -> 17292733.5 | BA40: 38
B41: 650 | BA41: 39
B42: 651 | C42: 875 | D42: Measuring & Regulating Station Expenses | BA42: 40
B43: 652 | E43: Utah | G43: 216211.88 | H43: 326401.71 | I43: 206701.24 | J43: 242092.13 | K43: 183157.59 | L43: 201652.55 | M43: 424887.73 | N43: 157847.45 | O43: 188562.98 | P43: 213068.52 | Q43: 149740.86 | R43: 167836.78 | T43: 302839.53 | U43: 308538.77 | V43: 233162.72 | W43: =W297+W551 -> 246592.1529 | X43: 186930.6391 | Y43: 205958.9397 | Z43: 431885.872 | AA43: 161708.7106 | AB43: 192690.903 | AC43: 218679.3834 | AD43: 153722.7609 | AE43: 172005.1718 | AF43: =AF297+AF551 -> 318997.5457 | AG43: 323340.3012 | AH43: 249602.6165 | AI43: 259411.938 | AJ43: 198757.3932 | AK43: 219859.5962 | AL43: 449190.4749 | AM43: 175421.0698 | AN43: 206272.8246 | AO43: 239491.4967 | AP43: 168572.5163 | AQ43: 186947.7707 | AT43: =SUM(G43:R43) -> 2678161.42 | AU43: =SUM(T43:AE43) -> 2814715.553 | AV43: =SUM(AF43:AQ43) -> 2995865.544 | BA43: 41
B44: 653 | E44: Wyoming | G44: 6866.98 | H44: 10510.13 | I44: 6431.05 | J44: 7381.71 | K44: 5713.78 | L44: 6246.09 | M44: 12647.67 | N44: 4853.02 | O44: 5668.5 | P44: 6604.31 | Q44: 4654.06 | R44: 5165.34 | T44: 9126.51 | U44: 9197.21 | V44: 7022.64 | W44: 7518.921664 | X44: 5831.483954 | Y44: 6379.478333 | Z44: 12855.9843 | AA44: 4971.73446 | AB44: 5792.591862 | AC44: 6778.225327 | AD44: 4777.820512 | AE44: 5293.626309 | AF44: =AF298+AF552 -> 9613.455321 | AG44: 9638.427779 | AH44: 7517.794092 | AI44: 7909.813908 | AJ44: 6200.431104 | AK44: 6810.044431 | AL44: 13371.09192 | AM44: 5393.320957 | AN44: 6200.885806 | AO44: 7423.321318 | AP44: 5239.362225 | AQ44: 5753.499309 | AT44: =SUM(G44:R44) -> 82742.64 | AU44: =SUM(T44:AE44) -> 85546.22672 | AV44: =SUM(AF44:AQ44) -> 91071.44817 | BA44: 42
B45: 654 | E45: Total | G45: =SUM(G43:G44) -> 223078.86 | H45: 336911.84 | I45: 213132.29 | J45: 249473.84 | K45: 188871.37 | L45: 207898.64 | M45: 437535.4 | N45: 162700.47 | O45: 194231.48 | P45: 219672.83 | Q45: 154394.92 | R45: 173002.12 | T45: 311966.04 | U45: =SUM(U43:U44) -> 317735.98 | V45: =SUM(V43:V44) -> 240185.36 | W45: 254111.0745 | X45: 192762.123 | Y45: 212338.418 | Z45: 444741.8563 | AA45: 166680.445 | AB45: 198483.4948 | AC45: 225457.6087 | AD45: 158500.5814 | AE45: 177298.7981 | AF45: =SUM(AF43:AF44) -> 328611.001 | AG45: 332978.729 | AH45: 257120.4106 | AI45: 267321.7519 | AJ45: 204957.8243 | AK45: 226669.6406 | AL45: 462561.5669 | AM45: 180814.3908 | AN45: 212473.7104 | AO45: 246914.818 | AP45: 173811.8786 | AQ45: 192701.27 | AT45: =SUM(G45:R45) -> 2760904.06 | AU45: =SUM(T45:AE45) -> 2900261.78 | AV45: =SUM(AF45:AQ45) -> 3086936.992 | BA45: 43
B46: 655 | BA46: 44
B47: 656 | C47: 878 | D47: Meter & House Regulator Expenses | BA47: 45
B48: 657 | E48: Utah | G48: 216669.99 | H48: 220396.26 | I48: 252295.1 | J48: 191760.35 | K48: 183333.26 | L48: 195796.8 | M48: 219216.73 | N48: 226680.66 | O48: 200668.01 | P48: 246027.62 | Q48: 210408.12 | R48: 240848.69 | T48: 205158.17 | U48: 197103.58 | V48: 205995.2 | W48: =W302+W556 -> 196185.6839 | X48: 187642.568 | Y48: 200517.8374 | Z48: 224286.6804 | AA48: 232203.5957 | AB48: 205514.6772 | AC48: 251252.9138 | AD48: 214863.6651 | AE48: 246406.5619 | AF48: =AF302+AF556 -> 220895.5342 | AG48: 211519.4894 | AH48: 221915.2667 | AI48: 211337.4706 | AJ48: 202574.8042 | AK48: 217140.9068 | AL48: 241670.4574 | AM48: 251774.2756 | AN48: 222597.8222 | AO48: 268118.8926 | AP48: 229212.4967 | AQ48: 265435.3501 | AT48: =SUM(G48:R48) -> 2604101.59 | AU48: =SUM(T48:AE48) -> 2567131.133 | AV48: =SUM(AF48:AQ48) -> 2764192.767 | BA48: 46
B49: 658 | E49: Wyoming | G49: 29247.47 | H49: 27260.12 | I49: 20033.18 | J49: 11462.77 | K49: 23772.75 | L49: 14736.65 | M49: 16645.05 | N49: 15987.39 | O49: 21706.42 | P49: 12406.07 | Q49: 14604.33 | R49: 15114.8 | T49: 10832.28 | U49: 11833.79 | V49: 13604.13 | W49: 11727.30114 | X49: 24331.53623 | Y49: 15091.97897 | Z49: 17030.00957 | AA49: 16376.91298 | AB49: 22230.68789 | AC49: 12669.55814 | AD49: 14913.58732 | AE49: 15463.59211 | AF49: =AF303+AF557 -> 11663.20736 | AG49: 12699.29861 | AH49: 14655.5072 | AI49: 12633.02251 | AJ49: 26267.79329 | AK49: 16343.11462 | AL49: 18349.95371 | AM49: 17757.19876 | AN49: 24078.58542 | AO49: 13520.03385 | AP49: 15909.53306 | AQ49: 16657.77061 | AT49: =SUM(G49:R49) -> 222977 | AU49: =SUM(T49:AE49) -> 186105.3643 | AV49: =SUM(AF49:AQ49) -> 200535.019 | BA49: 47
B50: 659 | E50: Total | G50: =SUM(G48:G49) -> 245917.46 | H50: 247656.38 | I50: 272328.28 | J50: 203223.12 | K50: 207106.01 | L50: 210533.45 | M50: 235861.78 | N50: 242668.05 | O50: 222374.43 | P50: 258433.69 | Q50: 225012.45 | R50: 255963.49 | T50: =SUM(T48:T49) -> 215990.45 | U50: =SUM(U48:U49) -> 208937.37 | V50: =SUM(V48:V49) -> 219599.33 | W50: 207912.985 | X50: 211974.1042 | Y50: 215609.8163 | Z50: 241316.6899 | AA50: 248580.5087 | AB50: 227745.3651 | AC50: 263922.472 | AD50: 229777.2524 | AE50: 261870.154 | AF50: =SUM(AF48:AF49) -> 232558.7416 | AG50: 224218.788 | AH50: 236570.7739 | AI50: 223970.4932 | AJ50: 228842.5975 | AK50: 233484.0215 | AL50: 260020.4111 | AM50: 269531.4743 | AN50: 246676.4077 | AO50: 281638.9264 | AP50: 245122.0298 | AQ50: 282093.1207 | AT50: =SUM(G50:R50) -> 2827078.59 | AU50: =SUM(T50:AE50) -> 2753236.498 | AV50: =SUM(AF50:AQ50) -> 2964727.786 | BA50: 48
B51: 660 | BA51: 49
B52: 661 | C52: 879 | D52: Customer Installations Expenses | BA52: 50
B53: 662 | E53: Utah | G53: 183010.9 | H53: 178236.23 | I53: 222182.47 | J53: 141409.55 | K53: 129478 | L53: 145213.48 | M53: 166631.54 | N53: 130989.69 | O53: 129915.57 | P53: 161079.76 | Q53: 190957.94 | R53: 182058.37 | T53: 171209.73 | U53: 131628.36 | V53: 146355.55 | W53: =W307+W561 -> 144761.7017 | X53: 132796.1286 | Y53: 148872.893 | Z53: 170269.7287 | AA53: 134783.4431 | AB53: 133328.6562 | AC53: 164734.1971 | AD53: 195104.0898 | AE53: 186521.6102 | AF53: =AF307+AF561 -> 185503.5939 | AG53: 142817.4592 | AH53: 158671.0268 | AI53: 156450.342 | AJ53: 144896.0598 | AK53: 162095.2742 | AL53: 182291.5673 | AM53: 149478.4857 | AN53: 145939.8425 | AO53: 177127.5906 | AP53: 208750.82 | AQ53: 202398.6489 | AT53: =SUM(G53:R53) -> 1961163.5 | AU53: =SUM(T53:AE53) -> 1860366.088 | AV53: =SUM(AF53:AQ53) -> 2016420.711 | BA53: 51
B54: 663 | E54: Wyoming | G54: 8825.1 | H54: 6819.12 | I54: 12569.93 | J54: 6399.19 | K54: 1539.16 | L54: 1351.23 | M54: 2743.42 | N54: 7523.05 | O54: 10780.33 | P54: 3146 | Q54: 8711.13 | R54: 4327.27 | T54: 3163.61 | U54: 4006.3 | V54: 5319.96 | W54: 6550.884531 | X54: 1578.604005 | Y54: 1385.281306 | Z54: 2803.319102 | AA54: 7740.934277 | AB54: 11063.54621 | AC54: 3217.373705 | AD54: 8900.269294 | AE54: 4433.354908 | AF54: =AF308+AF562 -> 3427.731734 | AG54: 4346.856459 | AH54: 5767.622174 | AI54: 7079.829218 | AJ54: 1722.441028 | AK54: 1508.317254 | AL54: 3001.246532 | AM54: 8584.90559 | AN54: 12110.01624 | AO54: 3459.425318 | AP54: 9522.806597 | AQ54: 4810.729665 | AT54: =SUM(G54:R54) -> 74734.93 | AU54: =SUM(T54:AE54) -> 60163.43734 | AV54: =SUM(AF54:AQ54) -> 65341.92781 | BA54: 52
B55: 664 | E55: Total | G55: =SUM(G53:G54) -> 191836 | H55: 185055.35 | I55: 234752.4 | J55: 147808.74 | K55: 131017.16 | L55: 146564.71 | M55: 169374.96 | N55: 138512.74 | O55: 140695.9 | P55: 164225.76 | Q55: 199669.07 | R55: 186385.64 | T55: =SUM(T53:T54) -> 174373.34 | U55: =SUM(U53:U54) -> 135634.66 | V55: =SUM(V53:V54) -> 151675.51 | W55: 151312.5862 | X55: 134374.7326 | Y55: 150258.1743 | Z55: 173073.0478 | AA55: 142524.3773 | AB55: 144392.2024 | AC55: 167951.5708 | AD55: 204004.3591 | AE55: 190954.9651 | AF55: =SUM(AF53:AF54) -> 188931.3257 | AG55: 147164.3157 | AH55: 164438.6489 | AI55: 163530.1712 | AJ55: 146618.5009 | AK55: 163603.5915 | AL55: 185292.8138 | AM55: 158063.3913 | AN55: 158049.8587 | AO55: 180587.0159 | AP55: 218273.6266 | AQ55: 207209.3785 | AT55: =SUM(G55:R55) -> 2035898.43 | AU55: =SUM(T55:AE55) -> 1920529.526 | AV55: =SUM(AF55:AQ55) -> 2081762.639 | BA55: 53
B56: 665 | BA56: 54
B57: 666 | C57: 880 | D57: Other Expenses | BA57: 55
B58: 667 | E58: Utah | G58: 1867043.12 | H58: 1392851.34 | I58: 1511904.36 | J58: 1081910.96 | K58: 1251391.33 | L58: 1196373.82 | M58: 1078130.86 | N58: 1319048.31 | O58: 1140486.6 | P58: 2050565.7 | Q58: 756007.74 | R58: 1408095.18 | T58: 1305379.28 | U58: 1529842.81 | V58: 1095903.9 | W58: =W312+W566 -> 1101505.758 | X58: 1273073.488 | Y58: 1219735.006 | Z58: 1096009.706 | AA58: 1342019.254 | AB58: 1161584.312 | AC58: 2079258.564 | AD58: 772178.5163 | AE58: 1432568.3 | AF58: =AF312+AF566 -> 1362883.025 | AG58: 1591724.795 | AH58: 1150266.643 | AI58: 1154821.895 | AJ58: 1328933.099 | AK58: 1288706.18 | AL58: 1139396.251 | AM58: 1401588.104 | AN58: 1220401.239 | AO58: 2130362.521 | AP58: 824092.2455 | AQ58: 1495871.388 | AT58: =SUM(G58:R58) -> 16053809.32 | AU58: =SUM(T58:AE58) -> 15409058.89 | AV58: =SUM(AF58:AQ58) -> 16089047.38 | BA58: 56
B59: 668 | E59: Wyoming | G59: 161575.4 | H59: 111847.7 | I59: 128007.1 | J59: 91407.94 | K59: 89546.03 | L59: 70206.22 | M59: 95796.42 | N59: 89762.04 | O59: 89240.58 | P59: 124853.15 | Q59: 88965.44 | R59: 131657.08 | T59: 100109.92 | U59: 102340.35 | V59: 113065.29 | W59: 93063.45523 | X59: 91097.54402 | Y59: 71577.11306 | Z59: 97385.03 | AA59: 91325.2267 | AB59: 90891.42975 | AC59: 126600.1774 | AD59: 90868.38379 | AE59: 133945.3199 | AF59: =AF313+AF567 -> 104519.8991 | AG59: 106480.0067 | AH59: 118673.938 | AI59: 97568.00178 | AJ59: 95094.7 | AK59: 75624.51473 | AL59: 101240.1053 | AM59: 95378.9232 | AN59: 95493.72557 | AO59: 129711.7529 | AP59: 96977.48495 | AQ59: 139864.1667 | AT59: =SUM(G59:R59) -> 1272865.1 | AU59: =SUM(T59:AE59) -> 1202269.24 | AV59: =SUM(AF59:AQ59) -> 1256627.219 | BA59: 57
B60: 669 | E60: Total | G60: =SUM(G58:G59) -> 2028618.52 | H60: 1504699.04 | I60: 1639911.46 | J60: 1173318.9 | K60: 1340937.36 | L60: 1266580.04 | M60: 1173927.28 | N60: 1408810.35 | O60: 1229727.18 | P60: 2175418.85 | Q60: 844973.18 | R60: 1539752.26 | T60: =SUM(T58:T59) -> 1405489.2 | U60: =SUM(U58:U59) -> 1632183.16 | V60: =SUM(V58:V59) -> 1208969.19 | W60: 1194569.213 | X60: 1364171.032 | Y60: 1291312.119 | Z60: 1193394.736 | AA60: 1433344.48 | AB60: 1252475.741 | AC60: 2205858.742 | AD60: 863046.9001 | AE60: 1566513.62 | AF60: =SUM(AF58:AF59) -> 1467402.924 | AG60: 1698204.802 | AH60: 1268940.581 | AI60: 1252389.897 | AJ60: 1424027.799 | AK60: 1364330.695 | AL60: 1240636.356 | AM60: 1496967.027 | AN60: 1315894.965 | AO60: 2260074.274 | AP60: 921069.7305 | AQ60: 1635735.554 | AT60: =SUM(G60:R60) -> 17326674.42 | AU60: =SUM(T60:AE60) -> 16611328.13 | AV60: =SUM(AF60:AQ60) -> 17345674.6 | BA60: 58
B61: 670 | BA61: 59
B62: 671 | C62: 881 | D62: Rents | BA62: 60
B63: 672 | E63: Utah | G63: 825.08 | H63: 1080.68 | I63: 18733.26 | J63: 564.37 | K63: 873.69 | L63: 628.22 | M63: 675.55 | N63: 1437.39 | O63: 386 | P63: 2831.68 | Q63: -650.9 | R63: 158.12 | T63: 3485.26 | U63: -902.65 | V63: -90.44 | W63: =W317+W571 -> 581.0403828 | X63: 893.6865494 | Y63: 645.9214047 | Z63: 690.4666203 | AA63: 1465.842259 | AB63: 397.0709308 | AC63: 2869.653785 | AD63: -650.2703765 | AE63: 169.9684563 | AF63: =AF317+AF571 -> 3584.312022 | AG63: -847.7076157 | AH63: -38.5883647 | AI63: 646.1293657 | AJ63: 961.919865 | AK63: 713.5877107 | AL63: 740.1744682 | AM63: 1553.20916 | AN63: 439.736763 | AO63: 2940.562535 | AP63: -614.1777013 | AQ63: 228.3891591 | AT63: =SUM(G63:R63) -> 27543.14 | AU63: =SUM(T63:AE63) -> 9555.550011 | AV63: =SUM(AF63:AQ63) -> 10307.54737 | BA63: 61
B64: 673 | E64: Wyoming | G64: 27.27 | H64: 35.74 | I64: 2.34 | J64: 18.68 | K64: 28.9 | L64: 20.8 | M64: 22.31 | N64: 47.55 | O64: 12.76 | P64: 93.61 | Q64: -21.48 | R64: 5.25 | T64: 115.2 | U64: -29.83 | V64: -2.99 | W64: 19.23177056 | X64: 29.56144774 | Y64: 21.38608325 | Z64: 22.80262053 | AA64: 48.49122326 | AB64: 13.1259717 | AC64: 94.8653417 | AD64: -21.45922213 | AE64: 5.643399921 | AF64: =AF318+AF572 -> 118.4740148 | AG64: -28.01431139 | AH64: -1.275754207 | AI64: 21.38614128 | AJ64: 31.81847577 | AK64: 23.62647541 | AL64: 24.44421935 | AM64: 51.38138958 | AN64: 14.53637589 | AO64: 97.20945125 | AP64: -20.26814722 | AQ64: 7.583120955 | AT64: =SUM(G64:R64) -> 293.73 | AU64: =SUM(T64:AE64) -> 316.0286365 | AV64: =SUM(AF64:AQ64) -> 340.9014515 | BA64: 62
B65: 674 | E65: Total | G65: =SUM(G63:G64) -> 852.35 | H65: 1116.42 | I65: 18735.6 | J65: 583.05 | K65: 902.59 | L65: 649.02 | M65: 697.86 | N65: 1484.94 | O65: 398.76 | P65: 2925.29 | Q65: -672.38 | R65: 163.37 | T65: =SUM(T63:T64) -> 3600.46 | U65: =SUM(U63:U64) -> -932.48 | V65: =SUM(V63:V64) -> -93.43 | W65: 600.2721534 | X65: 923.2479972 | Y65: 667.307488 | Z65: 713.2692409 | AA65: 1514.333482 | AB65: 410.1969025 | AC65: 2964.519127 | AD65: -671.7295986 | AE65: 175.6118562 | AF65: =SUM(AF63:AF64) -> 3702.786037 | AG65: -875.7219271 | AH65: -39.86411891 | AI65: 667.515507 | AJ65: 993.7383408 | AK65: 737.2141861 | AL65: 764.6186875 | AM65: 1604.59055 | AN65: 454.2731389 | AO65: 3037.771987 | AP65: -634.4458485 | AQ65: 235.9722801 | AT65: =SUM(G65:R65) -> 27836.87 | AU65: =SUM(T65:AE65) -> 9871.578648 | AV65: =SUM(AF65:AQ65) -> 10648.44882 | BA65: 63
B66: 675 | BA66: 64
B67: 676 | C67: 885 | D67: Maintenance Supervision & Engineering | BA67: 65
B68: 677 | E68: Utah | G68: 27595.79 | H68: 33586.71 | I68: 18974.91 | J68: 21187.15 | K68: 23967.91 | L68: 25328.73 | M68: 20509.13 | N68: 18542.99 | O68: 18985.87 | P68: 23968.45 | Q68: 15236.92 | R68: 22565.79 | T68: -0.01 | U68: 0 | V68: 0 | W68: =W322+W576 -> 21719.59023 | X68: 24513.39622 | Y68: 25865.70659 | Z68: 21020.41591 | AA68: 19006.62871 | AB68: 19451.4434 | AC68: 24509.6256 | AD68: 15713.34845 | AE68: 23150.15357 | AF68: =AF322+AF576 -> -0.01086111489 | AG68: 0 | AH68: 0 | AI68: 23641.97554 | AJ68: 26359.46873 | AK68: 27588.31758 | AL68: 22857.48664 | AM68: 20675.49569 | AN68: 21107.32898 | AO68: 26330.74478 | AP68: 17636.57557 | AQ68: 25297.52668 | AT68: =SUM(G68:R68) -> 270450.35 | AU68: =SUM(T68:AE68) -> 194950.2987 | AV68: =SUM(AF68:AQ68) -> 211494.9093 | BA68: 66
B69: 678 | E69: Wyoming | G69: 0 | H69: 0 | I69: 0 | J69: 0 | K69: 0 | L69: 0 | M69: 0 | N69: 0 | O69: 0 | P69: 0 | Q69: 0 | R69: 0 | T69: 0 | U69: 0 | V69: 0 | W69: 0 | X69: 0 | Y69: 0 | Z69: 0 | AA69: 0 | AB69: 0 | AC69: 0 | AD69: 0 | AE69: 0 | AF69: =AF323+AF577 -> 0 | AG69: 0 | AH69: 0 | AI69: 0 | AJ69: 0 | AK69: 0 | AL69: 0 | AM69: 0 | AN69: 0 | AO69: 0 | AP69: 0 | AQ69: 0 | AT69: =SUM(G69:R69) -> 0 | AU69: =SUM(T69:AE69) -> 0 | AV69: =SUM(AF69:AQ69) -> 0 | BA69: 67
B70: 679 | E70: Total | G70: =SUM(G68:G69) -> 27595.79 | H70: 33586.71 | I70: 18974.91 | J70: 21187.15 | K70: 23967.91 | L70: 25328.73 | M70: 20509.13 | N70: 18542.99 | O70: 18985.87 | P70: 23968.45 | Q70: 15236.92 | R70: 22565.79 | T70: =SUM(T68:T69) -> -0.01 | U70: =SUM(U68:U69) -> 0 | V70: =SUM(V68:V69) -> 0 | W70: 21719.59023 | X70: 24513.39622 | Y70: 25865.70659 | Z70: 21020.41591 | AA70: 19006.62871 | AB70: 19451.4434 | AC70: 24509.6256 | AD70: 15713.34845 | AE70: 23150.15357 | AF70: =SUM(AF68:AF69) -> -0.01086111489 | AG70: 0 | AH70: 0 | AI70: 23641.97554 | AJ70: 26359.46873 | AK70: 27588.31758 | AL70: 22857.48664 | AM70: 20675.49569 | AN70: 21107.32898 | AO70: 26330.74478 | AP70: 17636.57557 | AQ70: 25297.52668 | AT70: =SUM(G70:R70) -> 270450.35 | AU70: =SUM(T70:AE70) -> 194950.2987 | AV70: =SUM(AF70:AQ70) -> 211494.9093 | BA70: 68
B71: 680 | BA71: 69
B72: 681 | C72: 886 | D72: Maintenance of Structures & Improvements | BA72: 70
B73: 682 | E73: Utah | G73: 0 | H73: 0 | I73: 0 | J73: 0 | K73: 0 | L73: 0 | M73: 0 | N73: 0 | O73: 0 | P73: 0 | Q73: 0 | R73: 0 | T73: 0 | U73: 0 | V73: 0 | W73: =W327+W581 -> 0 | X73: 0 | Y73: 0 | Z73: 0 | AA73: 0 | AB73: 0 | AC73: 0 | AD73: 0 | AE73: 0 | AF73: =AF327+AF581 -> 0 | AG73: 0 | AH73: 0 | AI73: 0 | AJ73: 0 | AK73: 0 | AL73: 0 | AM73: 0 | AN73: 0 | AO73: 0 | AP73: 0 | AQ73: 0 | AT73: =SUM(G73:R73) -> 0 | AU73: =SUM(T73:AE73) -> 0 | AV73: =SUM(AF73:AQ73) -> 0 | BA73: 71
B74: 683 | E74: Wyoming | G74: 0 | H74: 0 | I74: 0 | J74: 0 | K74: 0 | L74: 0 | M74: 0 | N74: 0 | O74: 0 | P74: 0 | Q74: 0 | R74: 0 | T74: 0 | U74: 0 | V74: 0 | W74: 0 | X74: 0 | Y74: 0 | Z74: 0 | AA74: 0 | AB74: 0 | AC74: 0 | AD74: 0 | AE74: 0 | AF74: =AF328+AF582 -> 0 | AG74: 0 | AH74: 0 | AI74: 0 | AJ74: 0 | AK74: 0 | AL74: 0 | AM74: 0 | AN74: 0 | AO74: 0 | AP74: 0 | AQ74: 0 | AT74: =SUM(G74:R74) -> 0 | AU74: =SUM(T74:AE74) -> 0 | AV74: =SUM(AF74:AQ74) -> 0 | BA74: 72
B75: 684 | E75: Total | G75: =SUM(G73:G74) -> 0 | H75: 0 | I75: 0 | J75: 0 | K75: 0 | L75: 0 | M75: 0 | N75: 0 | O75: 0 | P75: 0 | Q75: 0 | R75: 0 | T75: =SUM(T73:T74) -> 0 | U75: =SUM(U73:U74) -> 0 | V75: =SUM(V73:V74) -> 0 | W75: 0 | X75: 0 | Y75: 0 | Z75: 0 | AA75: 0 | AB75: 0 | AC75: 0 | AD75: 0 | AE75: 0 | AF75: =SUM(AF73:AF74) -> 0 | AG75: 0 | AH75: 0 | AI75: 0 | AJ75: 0 | AK75: 0 | AL75: 0 | AM75: 0 | AN75: 0 | AO75: 0 | AP75: 0 | AQ75: 0 | AT75: =SUM(G75:R75) -> 0 | AU75: =SUM(T75:AE75) -> 0 | AV75: =SUM(AF75:AQ75) -> 0 | BA75: 73
B76: 685 | BA76: 74
B77: 686 | C77: 887 | D77: Maintenance of Mains | BA77: 75
B78: 687 | E78: Utah | G78: 713031.35 | H78: 725662.83 | I78: 810486.64 | J78: 846472.27 | K78: 780200.9 | L78: 759653.84 | M78: 768097.59 | N78: 782465.99 | O78: 737295.12 | P78: 768182.52 | Q78: 759591.58 | R78: 751460.97 | T78: 152434.49 | U78: 1477529.82 | V78: 793083.64 | W78: =W332+W586 -> 857538.6529 | X78: 790515.0167 | Y78: 769703.5693 | Z78: 778296.9293 | AA78: 792842.0136 | AB78: 747190.4268 | AC78: 778304.2998 | AD78: 769606.2762 | AE78: 761437.6266 | AF78: =AF332+AF586 -> 163556.4276 | AG78: 1503640.526 | AH78: 809525.06 | AI78: 874342.7839 | AJ78: 806674.9373 | AK78: 785480.5046 | AL78: 794472.206 | AM78: 809236.873 | AN78: 763334.6159 | AO78: 794018.4815 | AP78: 785180.6791 | AQ78: 777252.1427 | AT78: =SUM(G78:R78) -> 9202601.6 | AU78: =SUM(T78:AE78) -> 9468482.761 | AV78: =SUM(AF78:AQ78) -> 9666715.238 | BA78: 76
B79: 688 | E79: Wyoming | G79: 4905.86 | H79: 2704.38 | I79: 1588.53 | J79: 475.75 | K79: 1255.8 | L79: 601.28 | M79: 315.05 | N79: 1171.99 | O79: 234.18 | P79: 646.57 | Q79: 1153.48 | R79: 868.14 | T79: 107.37 | U79: 124.83 | V79: 1076.42 | W79: 481.9697332 | X79: 1272.401452 | Y79: 609.2345458 | Z79: 319.2334552 | AA79: 1187.531373 | AB79: 237.3229517 | AC79: 655.0893804 | AD79: 1168.687846 | AE79: 879.6657279 | AF79: =AF333+AF587 -> 115.2039386 | AG79: 127.0359788 | AH79: 1098.735267 | AI79: 491.4143017 | AJ79: 1298.412225 | AK79: 621.7222805 | AL79: 325.868056 | AM79: 1212.087854 | AN79: 242.4506761 | AO79: 668.3158185 | AP79: 1192.338401 | AQ79: 897.9357572 | AT79: =SUM(G79:R79) -> 15921.01 | AU79: =SUM(T79:AE79) -> 8119.756465 | AV79: =SUM(AF79:AQ79) -> 8291.520554 | BA79: 77
B80: 689 | E80: Total | G80: =SUM(G78:G79) -> 717937.21 | H80: 728367.21 | I80: 812075.17 | J80: 846948.02 | K80: 781456.7 | L80: 760255.12 | M80: 768412.64 | N80: 783637.98 | O80: 737529.3 | P80: 768829.09 | Q80: 760745.06 | R80: 752329.11 | T80: =SUM(T78:T79) -> 152541.86 | U80: =SUM(U78:U79) -> 1477654.65 | V80: =SUM(V78:V79) -> 794160.06 | W80: 858020.6226 | X80: 791787.4182 | Y80: 770312.8039 | Z80: 778616.1627 | AA80: 794029.5449 | AB80: 747427.7498 | AC80: 778959.3891 | AD80: 770774.9641 | AE80: 762317.2923 | AF80: =SUM(AF78:AF79) -> 163671.6315 | AG80: 1503767.562 | AH80: 810623.7953 | AI80: 874834.1982 | AJ80: 807973.3495 | AK80: 786102.2269 | AL80: 794798.0741 | AM80: 810448.9608 | AN80: 763577.0666 | AO80: 794686.7973 | AP80: 786373.0175 | AQ80: 778150.0784 | AT80: =SUM(G80:R80) -> 9218522.61 | AU80: =SUM(T80:AE80) -> 9476602.518 | AV80: =SUM(AF80:AQ80) -> 9675006.758 | BA80: 78
B81: 690 | BA81: 79
B82: 691 | C82: 888 | D82: Maint of Compressor Station Equipment | BA82: 80
B83: 692 | E83: Utah | G83: 249780.8 | H83: 320311.09 | I83: 240647.59 | J83: 274395.28 | K83: 252967.91 | L83: 299726.16 | M83: 284801.88 | N83: 301206.35 | O83: 357904.85 | P83: 289221.24 | Q83: 252688.05 | R83: 279307.97 | T83: 232356.39 | U83: 244106.84 | V83: 273936.64 | W83: =W337+W591 -> 279008.7092 | X83: 257073.5098 | Y83: 304525.6575 | Z83: 289426.3802 | AA83: 306031.811 | AB83: 363416.3287 | AC83: 293824.225 | AD83: 256853.9269 | AE83: 283927.5685 | AF83: =AF337+AF591 -> 242074.3229 | AG83: 254780.7383 | AH83: 284272.899 | AI83: 290427.4914 | AJ83: 266728.1068 | AK83: 315580.6299 | AL83: 300309.1972 | AM83: 317154.748 | AN83: 375318.58 | AO83: 304324.4285 | AP83: 266881.0842 | AQ83: 295098.9103 | AT83: =SUM(G83:R83) -> 3402959.17 | AU83: =SUM(T83:AE83) -> 3384487.987 | AV83: =SUM(AF83:AQ83) -> 3512951.137 | BA83: 81
B84: 693 | E84: Wyoming | G84: 4015.94 | H84: 4875.7 | I84: 3618.75 | J84: 3503.11 | K84: 3495.64 | L84: 3772.35 | M84: 3629.6 | N84: 3627.88 | O84: 3819.17 | P84: 4410.27 | Q84: 3745.27 | R84: 3874.45 | T84: 4079.61 | U84: 3852.61 | V84: 2376.23 | W84: 3562.008061 | X84: 3552.373278 | Y84: 3832.75642 | Z84: 3688.536009 | AA84: 3686.000267 | AB84: 3877.982486 | AC84: 4480.459889 | AD84: 3807.015436 | AE84: 3938.531248 | AF84: =AF338+AF592 -> 4250.233138 | AG84: 4021.070529 | AH84: 2465.890619 | AI84: 3707.78772 | AJ84: 3685.78544 | AK84: 3971.894175 | AL84: 3827.22987 | AM84: 3819.970486 | AN84: 4004.990324 | AO84: 4640.575144 | AP84: 3955.635092 | AQ84: 4093.495696 | AT84: =SUM(G84:R84) -> 46388.13 | AU84: =SUM(T84:AE84) -> 44734.11309 | AV84: =SUM(AF84:AQ84) -> 46444.55823 | BA84: 82
B85: 694 | E85: Total | G85: =SUM(G83:G84) -> 253796.74 | H85: 325186.79 | I85: 244266.34 | J85: 277898.39 | K85: 256463.55 | L85: 303498.51 | M85: 288431.48 | N85: 304834.23 | O85: 361724.02 | P85: 293631.51 | Q85: 256433.32 | R85: 283182.42 | T85: =SUM(T83:T84) -> 236436 | U85: =SUM(U83:U84) -> 247959.45 | V85: =SUM(V83:V84) -> 276312.87 | W85: 282570.7173 | X85: 260625.883 | Y85: 308358.4139 | Z85: 293114.9162 | AA85: 309717.8113 | AB85: 367294.3112 | AC85: 298304.6849 | AD85: 260660.9423 | AE85: 287866.0997 | AF85: =SUM(AF83:AF84) -> 246324.5561 | AG85: 258801.8088 | AH85: 286738.7897 | AI85: 294135.2792 | AJ85: 270413.8923 | AK85: 319552.5241 | AL85: 304136.4271 | AM85: 320974.7185 | AN85: 379323.5704 | AO85: 308965.0037 | AP85: 270836.7192 | AQ85: 299192.406 | AT85: =SUM(G85:R85) -> 3449347.3 | AU85: =SUM(T85:AE85) -> 3429222.1 | AV85: =SUM(AF85:AQ85) -> 3559395.695 | BA85: 83
B86: 695 | BA86: 84
B87: 696 | C87: 889 | D87: Maint of Meas. & Reg. Station Equipment | BA87: 85
B88: 697 | E88: Utah | G88: 1876.35 | H88: 1794.49 | I88: 1845.42 | J88: 1579.63 | K88: 1979.56 | L88: 16311.07 | M88: 1925.28 | N88: 1330.07 | O88: 1308.5 | P88: 1692.63 | Q88: 1155.97 | R88: 1354.17 | T88: 1866.49 | U88: 2384.5 | V88: 1963.01 | W88: =W342+W596 -> 1634.451412 | X88: 2036.734918 | Y88: 16536.01391 | Z88: 1982.538656 | AA88: 1377.11553 | AB88: 1354.885413 | AC88: 1745.851414 | AD88: 1207.291424 | AE88: 1410.761971 | AF88: =AF342+AF596 -> 2012.030063 | AG88: 2582.135754 | AH88: 2122.533294 | AI88: 1867.884799 | AJ88: 2260.687528 | AK88: 16916.64204 | AL88: 2210.176892 | AM88: 1578.936346 | AN88: 1554.045105 | AO88: 1963.129244 | AP88: 1444.7774 | AQ88: 1667.96953 | AT88: =SUM(G88:R88) -> 34153.14 | AU88: =SUM(T88:AE88) -> 35499.64465 | AV88: =SUM(AF88:AQ88) -> 38180.948 | BA88: 86
B89: 698 | E89: Wyoming | G89: 58.04 | H89: 55.22 | I89: 57.57 | J89: 48.03 | K89: 61.57 | L89: 523.93 | M89: 59.46 | N89: 41.09 | O89: 40.62 | P89: 52.29 | Q89: 36.7 | R89: 42.79 | T89: 57.93 | U89: 74.85 | V89: 60.7 | W89: 49.69689187 | X89: 63.34830411 | Y89: 531.1554525 | Z89: 61.22836601 | AA89: 42.54338278 | AB89: 42.0599507 | AC89: 53.93415598 | AD89: 38.32936431 | AE89: 44.57823222 | AF89: =AF343+AF597 -> 62.44710744 | AG89: 81.05383149 | AH89: 65.63276344 | AI89: 56.79463347 | AJ89: 70.31387334 | AK89: 543.3816583 | AL89: 68.25870418 | AM89: 48.77825564 | AN89: 48.24250071 | AO89: 60.64646625 | AP89: 45.86912339 | AQ89: 52.70565451 | AT89: =SUM(G89:R89) -> 1077.31 | AU89: =SUM(T89:AE89) -> 1120.3541 | AV89: =SUM(AF89:AQ89) -> 1204.124572 | BA89: 87
B90: 699 | E90: Total | G90: =SUM(G88:G89) -> 1934.39 | H90: 1849.71 | I90: 1902.99 | J90: 1627.66 | K90: 2041.13 | L90: 16835 | M90: 1984.74 | N90: 1371.16 | O90: 1349.12 | P90: 1744.92 | Q90: 1192.67 | R90: 1396.96 | T90: =SUM(T88:T89) -> 1924.42 | U90: =SUM(U88:U89) -> 2459.35 | V90: =SUM(V88:V89) -> 2023.71 | W90: 1684.148303 | X90: 2100.083222 | Y90: 17067.16936 | Z90: 2043.767022 | AA90: 1419.658913 | AB90: 1396.945364 | AC90: 1799.78557 | AD90: 1245.620788 | AE90: 1455.340203 | AF90: =SUM(AF88:AF89) -> 2074.477171 | AG90: 2663.189585 | AH90: 2188.166058 | AI90: 1924.679432 | AJ90: 2331.001401 | AK90: 17460.0237 | AL90: 2278.435596 | AM90: 1627.714602 | AN90: 1602.287606 | AO90: 2023.77571 | AP90: 1490.646523 | AQ90: 1720.675184 | AT90: =SUM(G90:R90) -> 35230.45 | AU90: =SUM(T90:AE90) -> 36619.99875 | AV90: =SUM(AF90:AQ90) -> 39385.07257 | BA90: 88
B91: 700 | BA91: 89
B92: 701 | C92: 892 | D92: Maintenance of Services | BA92: 90
B93: 702 | E93: Utah | G93: 79364.78 | H93: 102527.27 | I93: 99392.09 | J93: 73585.98 | K93: 81467.35 | L93: 99145.91 | M93: 100672.98 | N93: 98088.9 | O93: 116005.34 | P93: 110092.29 | Q93: 89727.79 | R93: 96973.29 | T93: 80725.58 | U93: 74791.59 | V93: 88236.34 | W93: =W347+W601 -> 75558.83556 | X93: 83406.46207 | Y93: 101815.9018 | Z93: 103000.9795 | AA93: 100064.8114 | AB93: 118783.982 | AC93: 112200.8377 | AD93: 91678.75575 | AE93: 99341.1976 | AF93: =AF347+AF601 -> 86618.50654 | AG93: 80865.71001 | AH93: 95281.30723 | AI93: 82966.72336 | AJ93: 90165.00884 | AK93: 111866.7858 | AL93: 110950.9845 | AM93: 106089.5779 | AN93: 128510.5219 | AO93: 118320.1592 | AP93: 98034.74951 | AQ93: 107737.7246 | AT93: =SUM(G93:R93) -> 1147043.97 | AU93: =SUM(T93:AE93) -> 1129605.273 | AV93: =SUM(AF93:AQ93) -> 1217407.759 | BA93: 91
B94: 703 | E94: Wyoming | G94: 1830 | H94: 1345.09 | I94: 2470.68 | J94: 894.47 | K94: 8147.05 | L94: 2623.67 | M94: 3078.3 | N94: 4562.32 | O94: 3981.17 | P94: 1703.37 | Q94: 2846.04 | R94: 1822.61 | T94: 892.62 | U94: 3543.58 | V94: 3251.39 | W94: 918.4509283 | X94: 8340.968705 | Y94: 2694.325233 | Z94: 3149.483756 | AA94: 4654.223775 | AB94: 4076.529801 | AC94: 1735.993873 | AD94: 2907.921905 | AE94: 1867.11475 | AF94: =AF348+AF602 -> 957.7808089 | AG94: 3831.368108 | AH94: 3510.987531 | AI94: 1008.497068 | AJ94: 9016.849514 | AK94: 2960.298916 | AL94: 3392.57282 | AM94: 4934.448269 | AN94: 4410.333475 | AO94: 1830.673243 | AP94: 3109.525137 | AQ94: 2024.927216 | AT94: =SUM(G94:R94) -> 35304.77 | AU94: =SUM(T94:AE94) -> 38032.60273 | AV94: =SUM(AF94:AQ94) -> 40988.26211 | BA94: 92
B95: 704 | E95: Total | G95: =SUM(G93:G94) -> 81194.78 | H95: 103872.36 | I95: 101862.77 | J95: 74480.45 | K95: 89614.4 | L95: 101769.58 | M95: 103751.28 | N95: 102651.22 | O95: 119986.51 | P95: 111795.66 | Q95: 92573.83 | R95: 98795.9 | T95: =SUM(T93:T94) -> 81618.2 | U95: =SUM(U93:U94) -> 78335.17 | V95: =SUM(V93:V94) -> 91487.73 | W95: 76477.28648 | X95: 91747.43078 | Y95: 104510.227 | Z95: 106150.4633 | AA95: 104719.0352 | AB95: 122860.5118 | AC95: 113936.8316 | AD95: 94586.67766 | AE95: 101208.3124 | AF95: =SUM(AF93:AF94) -> 87576.28735 | AG95: 84697.07811 | AH95: 98792.29477 | AI95: 83975.22043 | AJ95: 99181.85835 | AK95: 114827.0847 | AL95: 114343.5573 | AM95: 111024.0261 | AN95: 132920.8553 | AO95: 120150.8324 | AP95: 101144.2746 | AQ95: 109762.6518 | AT95: =SUM(G95:R95) -> 1182348.74 | AU95: =SUM(T95:AE95) -> 1167637.876 | AV95: =SUM(AF95:AQ95) -> 1258396.021 | BA95: 93
B96: 705 | BA96: 94
B97: 706 | C97: 893 | D97: Maintenance of Meters & House Regulators | BA97: 95
B98: 707 | E98: Utah | G98: 50435.3 | H98: 28615.7 | I98: 36374.15 | J98: 68321.69 | K98: 58424.54 | L98: 61763.54 | M98: 73459.41 | N98: 58446.66 | O98: 75305.09 | P98: 55589.61 | Q98: 89029.07 | R98: 28247.79 | T98: 58390.19 | U98: 35368.65 | V98: 38151.37 | W98: =W352+W606 -> 69871.21721 | X98: 59759.95472 | Y98: 63110.5064 | Z98: 74918.12466 | AA98: 59681.62417 | AB98: 76646.55099 | AC98: 56775.69007 | AD98: 90474.67879 | AE98: 28685.3129 | AF98: =AF352+AF606 -> 62656.71609 | AG98: 37606.57065 | AH98: 40571.34248 | AI98: 75113.69101 | AJ98: 64302.00533 | AK98: 67543.01374 | AL98: 79373.1879 | AM98: 63650.02842 | AN98: 80336.42309 | AO98: 60615.55989 | AP98: 94037.26568 | AQ98: 29695.13691 | AT98: =SUM(G98:R98) -> 684012.55 | AU98: =SUM(T98:AE98) -> 711833.8699 | AV98: =SUM(AF98:AQ98) -> 755500.9412 | BA98: 96
B99: 708 | E99: Wyoming | G99: 1084.66 | H99: 1667.83 | I99: 7563.71 | J99: 6290.81 | K99: 5968.62 | L99: 20902.23 | M99: 14958.22 | N99: 18864.48 | O99: 20966.12 | P99: 11009.39 | Q99: 10555.7 | R99: 14179.57 | T99: 3838.75 | U99: 4494.73 | V99: 7044.44 | W99: 6433.484768 | X99: 6105.045259 | Y99: 21358.07501 | Z99: 15255.25172 | AA99: 19263.08202 | AB99: 21339.60381 | AC99: 11244.29034 | AD99: 10727.09809 | AE99: 14399.19379 | AF99: =AF353+AF607 -> 4119.244498 | AG99: 4779.130142 | AH99: 7491.274568 | AI99: 6916.192479 | AJ99: 6569.058738 | AK99: 22858.13941 | AL99: 16162.41686 | AM99: 20543.9402 | AN99: 22366.92217 | AO99: 12004.76742 | AP99: 11149.49494 | AQ99: 14906.0961 | AT99: =SUM(G99:R99) -> 134011.34 | AU99: =SUM(T99:AE99) -> 141503.0448 | AV99: =SUM(AF99:AQ99) -> 149866.6775 | BA99: 97
B100: 709 | E100: Total | G100: =SUM(G98:G99) -> 51519.96 | H100: 30283.53 | I100: 43937.86 | J100: 74612.5 | K100: 64393.16 | L100: 82665.77 | M100: 88417.63 | N100: 77311.14 | O100: 96271.21 | P100: 66599 | Q100: 99584.77 | R100: 42427.36 | T100: =SUM(T98:T99) -> 62228.94 | U100: =SUM(U98:U99) -> 39863.38 | V100: =SUM(V98:V99) -> 45195.81 | W100: 76304.70198 | X100: 65864.99998 | Y100: 84468.58142 | Z100: 90173.37638 | AA100: 78944.70619 | AB100: 97986.15481 | AC100: 68019.98041 | AD100: 101201.7769 | AE100: 43084.50669 | AF100: =SUM(AF98:AF99) -> 66775.96059 | AG100: 42385.7008 | AH100: 48062.61705 | AI100: 82029.88349 | AJ100: 70871.06406 | AK100: 90401.15315 | AL100: 95535.60476 | AM100: 84193.96862 | AN100: 102703.3453 | AO100: 72620.32731 | AP100: 105186.7606 | AQ100: 44601.23301 | AT100: =SUM(G100:R100) -> 818023.89 | AU100: =SUM(T100:AE100) -> 853336.9147 | AV100: =SUM(AF100:AQ100) -> 905367.6187 | BA100: 98
B101: 710 | BA101: 99
B102: 711 | C102: 8941 | D102: Maintenance of Communication Equipment | BA102: 100
B103: 712 | E103: Utah | G103: 0 | H103: 0 | I103: 0 | J103: 0 | K103: 0 | L103: 0 | M103: 0 | N103: 0 | O103: 0 | P103: 0 | Q103: 0 | R103: 0 | T103: 0 | U103: 0 | V103: 0 | W103: =W357+W611 -> 0 | X103: 0 | Y103: 0 | Z103: 0 | AA103: 0 | AB103: 0 | AC103: 0 | AD103: 0 | AE103: 0 | AF103: =AF357+AF611 -> 0 | AG103: 0 | AH103: 0 | AI103: 0 | AJ103: 0 | AK103: 0 | AL103: 0 | AM103: 0 | AN103: 0 | AO103: 0 | AP103: 0 | AQ103: 0 | AT103: =SUM(G103:R103) -> 0 | AU103: =SUM(T103:AE103) -> 0 | AV103: =SUM(AF103:AQ103) -> 0 | BA103: 101
B104: 713 | E104: Wyoming | G104: 0 | H104: 0 | I104: 0 | J104: 0 | K104: 0 | L104: 0 | M104: 0 | N104: 0 | O104: 0 | P104: 0 | Q104: 0 | R104: 0 | T104: 0 | U104: 0 | V104: 0 | W104: 0 | X104: 0 | Y104: 0 | Z104: 0 | AA104: 0 | AB104: 0 | AC104: 0 | AD104: 0 | AE104: 0 | AF104: =AF358+AF612 -> 0 | AG104: 0 | AH104: 0 | AI104: 0 | AJ104: 0 | AK104: 0 | AL104: 0 | AM104: 0 | AN104: 0 | AO104: 0 | AP104: 0 | AQ104: 0 | AT104: =SUM(G104:R104) -> 0 | AU104: =SUM(T104:AE104) -> 0 | AV104: =SUM(AF104:AQ104) -> 0 | BA104: 102
B105: 714 | E105: Total | G105: =SUM(G103:G104) -> 0 | H105: 0 | I105: 0 | J105: 0 | K105: 0 | L105: 0 | M105: 0 | N105: 0 | O105: 0 | P105: 0 | Q105: 0 | R105: 0 | T105: =SUM(T103:T104) -> 0 | U105: =SUM(U103:U104) -> 0 | V105: =SUM(V103:V104) -> 0 | W105: 0 | X105: 0 | Y105: 0 | Z105: 0 | AA105: 0 | AB105: 0 | AC105: 0 | AD105: 0 | AE105: 0 | AF105: =SUM(AF103:AF104) -> 0 | AG105: 0 | AH105: 0 | AI105: 0 | AJ105: 0 | AK105: 0 | AL105: 0 | AM105: 0 | AN105: 0 | AO105: 0 | AP105: 0 | AQ105: 0 | AT105: =SUM(G105:R105) -> 0 | AU105: =SUM(T105:AE105) -> 0 | AV105: =SUM(AF105:AQ105) -> 0 | BA105: 103
B106: 715 | BA106: 104
B107: 716 | C107: 8942 | D107: Maintenance of Other Equipment | BA107: 105
B108: 717 | E108: Utah | G108: 0 | H108: 0 | I108: 0 | J108: 0 | K108: 0 | L108: 0 | M108: 0 | N108: 0 | O108: 0 | P108: 0 | Q108: 0 | R108: 0 | T108: 0 | U108: 0 | V108: 0 | W108: =W362+W616 -> 0 | X108: 0 | Y108: 0 | Z108: 0 | AA108: 0 | AB108: 0 | AC108: 0 | AD108: 0 | AE108: 0 | AF108: =AF362+AF616 -> 0 | AG108: 0 | AH108: 0 | AI108: 0 | AJ108: 0 | AK108: 0 | AL108: 0 | AM108: 0 | AN108: 0 | AO108: 0 | AP108: 0 | AQ108: 0 | AT108: =SUM(G108:R108) -> 0 | AU108: =SUM(T108:AE108) -> 0 | AV108: =SUM(AF108:AQ108) -> 0 | BA108: 106
B109: 718 | E109: Wyoming | G109: 0 | H109: 0 | I109: 0 | J109: 0 | K109: 0 | L109: 0 | M109: 0 | N109: 0 | O109: 0 | P109: 0 | Q109: 0 | R109: 0 | T109: 0 | U109: 0 | V109: 0 | W109: 0 | X109: 0 | Y109: 0 | Z109: 0 | AA109: 0 | AB109: 0 | AC109: 0 | AD109: 0 | AE109: 0 | AF109: =AF363+AF617 -> 0 | AG109: 0 | AH109: 0 | AI109: 0 | AJ109: 0 | AK109: 0 | AL109: 0 | AM109: 0 | AN109: 0 | AO109: 0 | AP109: 0 | AQ109: 0 | AT109: =SUM(G109:R109) -> 0 | AU109: =SUM(T109:AE109) -> 0 | AV109: =SUM(AF109:AQ109) -> 0 | BA109: 107
B110: 719 | E110: Total | G110: =SUM(G108:G109) -> 0 | H110: 0 | I110: 0 | J110: 0 | K110: 0 | L110: 0 | M110: 0 | N110: 0 | O110: 0 | P110: 0 | Q110: 0 | R110: 0 | T110: =SUM(T108:T109) -> 0 | U110: =SUM(U108:U109) -> 0 | V110: =SUM(V108:V109) -> 0 | W110: 0 | X110: 0 | Y110: 0 | Z110: 0 | AA110: 0 | AB110: 0 | AC110: 0 | AD110: 0 | AE110: 0 | AF110: =SUM(AF108:AF109) -> 0 | AG110: 0 | AH110: 0 | AI110: 0 | AJ110: 0 | AK110: 0 | AL110: 0 | AM110: 0 | AN110: 0 | AO110: 0 | AP110: 0 | AQ110: 0 | AT110: =SUM(G110:R110) -> 0 | AU110: =SUM(T110:AE110) -> 0 | AV110: =SUM(AF110:AQ110) -> 0 | BA110: 108
B111: 720 | BA111: 109
B112: 721 | C112: System Total Distribution O&M Expenses | BA112: 110
B113: 722 | D113: Utah Distribution O&M Expenses | G113: =G18+G23+G28+G33+G38+G43+G48+G53+G58+G63+G68+G73+G78+G83+G88+G93+G98+G103+G108 -> 5243644.32 | H113: 4990009.18 | I113: 5381532.54 | J113: 5035154.62 | K113: 5083313.2 | L113: 5232005.21 | M113: 5252803.18 | N113: 5194095.02 | O113: 5404467.6 | P113: 5483251.23 | Q113: 4599736.82 | R113: 5198313.71 | T113: =T18+T23+T28+T33+T38+T43+T48+T53+T58+T63+T68+T73+T78+T83+T88+T93+T98+T103+T108 -> 4311816.94 | U113: =U18+U23+U28+U33+U38+U43+U48+U53+U58+U63+U68+U73+U78+U83+U88+U93+U98+U103+U108 -> 5611147.02 | V113: =V18+V23+V28+V33+V38+V43+V48+V53+V58+V63+V68+V73+V78+V83+V88+V93+V98+V103+V108 -> 5067883.99 | W113: 5118601.836 | X113: 5169472.309 | Y113: 5324114.533 | Z113: 5338936.577 | AA113: 5283070.75 | AB113: 5494946.247 | AC113: 5573259.2 | AD113: 4679101.078 | AE113: 5284912.346 | AF113: =AF18+AF23+AF28+AF33+AF38+AF43+AF48+AF53+AF58+AF63+AF68+AF73+AF78+AF83+AF88+AF93+AF98+AF103+AF108 -> 4518015.054 | AG113: 5827063.753 | AH113: 5285233.235 | AI113: 5325105.048 | AJ113: 5388604.195 | AK113: 5569977.141 | AL113: 5548904.053 | AM113: 5512245.604 | AN113: 5721851.81 | AO113: 5791052.622 | AP113: 4886419.972 | AQ113: 5500215.075 | AT113: =SUM(G113:R113) -> 62098326.63 | AU113: =SUM(T113:AE113) -> 62257262.83 | AV113: =SUM(AF113:AQ113) -> 64874687.56 | BA113: 111
B114: 723 | D114: Wyoming Distribution O&M Expenses | G114: 293545.71 | H114: 247998.98 | I114: 272984.1 | J114: 243329.71 | K114: 242117.8 | L114: 219920.21 | M114: 233370.72 | N114: 244237.54 | O114: 276620.51 | P114: 252898.64 | Q114: 210877.93 | R114: 260281.05 | T114: =T19+T24+T29+T34+T39+T44+T49+T54+T59+T64+T69+T74+T79+T84+T89+T94+T99+T104+T109 -> 213622.72 | U114: =U19+U24+U29+U34+U39+U44+U49+U54+U59+U64+U69+U74+U79+U84+U89+U94+U99+U104+U109 -> 208813.99 | V114: =V19+V24+V29+V34+V39+V44+V49+V54+V59+V64+V69+V74+V79+V84+V89+V94+V99+V104+V109 -> 243604.26 | W114: 247563.9883 | X114: 246480.7098 | Y114: 224056.4936 | Z114: 237381.7552 | AA114: 248681.3655 | AB114: 281562.268 | AC114: 257225.9981 | AD114: 214891.4929 | AE114: 264708.9634 | AF114: =AF19+AF24+AF29+AF34+AF39+AF44+AF49+AF54+AF59+AF64+AF69+AF74+AF79+AF84+AF89+AF94+AF99+AF104+AF109 -> 223434.7966 | AG114: 218301.6697 | AH114: 255587.9423 | AI114: 258729.9828 | AJ114: 258431.7522 | AK114: 235954.8328 | AL114: 247764.2673 | AM114: 260984.5919 | AN114: 295003.4189 | AO114: 268299.2611 | AP114: 226579.8852 | AQ114: 276009.8169 | AT114: =SUM(G114:R114) -> 2998182.9 | AU114: =SUM(T114:AE114) -> 2888594.005 | AV114: =SUM(AF114:AQ114) -> 3025082.217 | BA114: 112
B115: 724 | BA115: 113
B116: 725 | D116: System Total Distribution O&M Expenses | G116: =G20+G25+G30+G35+G40+G45+G50+G55+G60+G65+G70+G75+G80+G85+G90+G95+G100+G105+G110 -> 5537190.03 | H116: 5238008.16 | I116: 5654516.64 | J116: 5278484.33 | K116: 5325431 | L116: 5451925.42 | M116: 5486173.9 | N116: 5438332.56 | O116: 5681088.11 | P116: 5736149.87 | Q116: 4810614.75 | R116: 5458594.76 | T116: =T20+T25+T30+T35+T40+T45+T50+T55+T60+T65+T70+T75+T80+T85+T90+T95+T100+T105+T110 -> 4525439.66 | U116: =U20+U25+U30+U35+U40+U45+U50+U55+U60+U65+U70+U75+U80+U85+U90+U95+U100+U105+U110 -> 5819961.01 | V116: =V20+V25+V30+V35+V40+V45+V50+V55+V60+V65+V70+V75+V80+V85+V90+V95+V100+V105+V110 -> 5311488.25 | W116: 5366165.824 | X116: 5415953.019 | Y116: 5548171.026 | Z116: 5576318.332 | AA116: 5531752.116 | AB116: 5776508.515 | AC116: 5830485.198 | AD116: 4893992.571 | AE116: 5549621.309 | AF116: =AF20+AF25+AF30+AF35+AF40+AF45+AF50+AF55+AF60+AF65+AF70+AF75+AF80+AF85+AF90+AF95+AF100+AF105+AF110 -> 4741449.851 | AG116: 6045365.423 | AH116: 5540821.177 | AI116: 5583835.031 | AJ116: 5647035.947 | AK116: 5805931.974 | AL116: 5796668.32 | AM116: 5773230.196 | AN116: 6016855.229 | AO116: 6059351.883 | AP116: 5112999.857 | AQ116: 5776224.892 | AT116: =SUM(G116:R116) -> 65096509.53 | AU116: =SUM(T116:AE116) -> 65145856.83 | AV116: =SUM(AF116:AQ116) -> 67899769.78 | BA116: 114
B117: 726 | BA117: 115
B118: 727 | C118: Customer Accounts Expense | BA118: 116
B119: 728 | BA119: 117
B120: 729 | C120: 901 | D120: Supervision | BA120: 118
B121: 730 | E121: Utah | G121: 110211.52 | H121: 118762.31 | I121: 108697.81 | J121: 102748.72 | K121: 112139.77 | L121: 109418.95 | M121: 105134.78 | N121: 102901.91 | O121: 104754.05 | P121: 139006.63 | Q121: 98655.39 | R121: 101077.84 | T121: 114306.43 | U121: 117125.07 | V121: 86730.92 | W121: =W375+W629 -> 105349.4979 | X121: 114936.8905 | Y121: 112172.6598 | Z121: 107765.1108 | AA121: 105512.1277 | AB121: 107359.847 | AC121: 141442.2522 | AD121: 101160.8332 | AE121: 103582.5059 | AF121: =AF375+AF629 -> 122939.4017 | AG121: 129227.1852 | AH121: 93472.16493 | AI121: 114782.5392 | AJ121: 124991.3891 | AK121: 122125.5188 | AL121: 117237.7258 | AM121: 114991.6012 | AN121: 116710.8201 | AO121: 147902.2659 | AP121: 110266.2373 | AQ121: 112548.9657 | AT121: =SUM(G121:R121) -> 1313509.68 | AU121: =SUM(T121:AE121) -> 1317444.145 | AV121: =SUM(AF121:AQ121) -> 1427195.815 | BA121: 119
B122: 731 | E122: Wyoming | G122: 1250.55 | H122: 1177.23 | I122: 1223.42 | J122: 1181.27 | K122: 1250.21 | L122: 1176.16 | M122: 1185.78 | N122: 1251.62 | O122: 1244.6 | P122: 1481.17 | Q122: 1172.63 | R122: 1340.53 | T122: 3559.73 | U122: 3659.28 | V122: 609.86 | W122: 1211.170332 | X122: 1281.394191 | Y122: 1205.760022 | Z122: 1215.446621 | AA122: 1283.368688 | AB122: 1275.5599 | AC122: 1507.122507 | AD122: 1202.410003 | AE122: 1373.747764 | AF122: =AF376+AF630 -> 3828.57794 | AG122: 4037.380335 | AH122: 657.2619604 | AI122: 1319.619068 | AJ122: 1393.488542 | AK122: 1312.744732 | AL122: 1322.285076 | AM122: 1398.669742 | AN122: 1386.660341 | AO122: 1575.956479 | AP122: 1310.637947 | AQ122: 1492.664119 | AT122: =SUM(G122:R122) -> 14935.17 | AU122: =SUM(T122:AE122) -> 19384.85003 | AV122: =SUM(AF122:AQ122) -> 21035.94628 | BA122: 120
B123: 732 | E123: Total | G123: =SUM(G121:G122) -> 111462.07 | H123: 119939.54 | I123: 109921.23 | J123: 103929.99 | K123: 113389.98 | L123: 110595.11 | M123: 106320.56 | N123: 104153.53 | O123: 105998.65 | P123: 140487.8 | Q123: 99828.02 | R123: 102418.37 | T123: =SUM(T121:T122) -> 117866.16 | U123: =SUM(U121:U122) -> 120784.35 | V123: =SUM(V121:V122) -> 87340.78 | W123: 106560.6682 | X123: 116218.2847 | Y123: 113378.4198 | Z123: 108980.5575 | AA123: 106795.4964 | AB123: 108635.4069 | AC123: 142949.3747 | AD123: 102363.2432 | AE123: 104956.2537 | AF123: =SUM(AF121:AF122) -> 126767.9796 | AG123: 133264.5656 | AH123: 94129.42689 | AI123: 116102.1583 | AJ123: 126384.8776 | AK123: 123438.2636 | AL123: 118560.0109 | AM123: 116390.2709 | AN123: 118097.4805 | AO123: 149478.2223 | AP123: 111576.8752 | AQ123: 114041.6298 | AT123: =SUM(G123:R123) -> 1328444.85 | AU123: =SUM(T123:AE123) -> 1336828.995 | AV123: =SUM(AF123:AQ123) -> 1448231.761 | BA123: 121
B124: 733 | BA124: 122
B125: 734 | C125: 902 | D125: Meter Reading Expense | BA125: 123
B126: 735 | E126: Utah | G126: 109349.03 | H126: 99367.3 | I126: 133500.09 | J126: 91377.83 | K126: 29275.5 | L126: 87894.68 | M126: 80341.3 | N126: 79633.33 | O126: 76708.17 | P126: 86698.1 | Q126: 75635.13 | R126: 74901.88 | T126: 91374.39 | U126: 77895.87 | V126: 99091.9 | W126: =W380+W634 -> 93515.60733 | X126: 30791.8766 | Y126: 90087.034 | Z126: 82416.91077 | AA126: 81745.66609 | AB126: 78745.56981 | AC126: 87165.68332 | AD126: 77539.38472 | AE126: 76779.87394 | AF126: =AF380+AF634 -> 98486.98951 | AG126: 84230.15307 | AH126: 106876.1611 | AI126: 100896.3499 | AJ126: 37918.0097 | AK126: 97965.6176 | AL126: 90028.80189 | AM126: 89605.5308 | AN126: 86331.92813 | AO126: 85230.9443 | AP126: 84420.36759 | AQ126: 83549.48241 | AT126: =SUM(G126:R126) -> 1024682.34 | AU126: =SUM(T126:AE126) -> 967149.7666 | AV126: =SUM(AF126:AQ126) -> 1045540.336 | BA126: 124
B127: 736 | E127: Wyoming | G127: 3452.28 | H127: 3124.87 | I127: 4068.67 | J127: 2828.17 | K127: 1199.85 | L127: 2798.68 | M127: 2588.19 | N127: 2539.38 | O127: 2438.05 | P127: 2758.18 | Q127: 2390.66 | R127: 2390.54 | T127: 2883.73 | U127: 2484.46 | V127: 3153.74 | W127: 2894.334821 | X127: 1261.998365 | Y127: 2868.48738 | Z127: 2655.055672 | AA127: 2606.739032 | AB127: 2502.805587 | AC127: 2773.055516 | AD127: 2450.849301 | AE127: 2450.477343 | AF127: =AF381+AF635 -> 3108.200079 | AG127: 2686.489619 | AH127: 3401.485131 | AI127: 3122.770917 | AJ127: 1554.06138 | AK127: 3119.351645 | AL127: 2900.272273 | AM127: 2857.377593 | AN127: 2743.9262 | AO127: 2711.504473 | AP127: 2668.342025 | AQ127: 2666.5336 | AT127: =SUM(G127:R127) -> 32577.52 | AU127: =SUM(T127:AE127) -> 30985.73302 | AV127: =SUM(AF127:AQ127) -> 33540.31494 | BA127: 125
B128: 737 | E128: Total | G128: =SUM(G126:G127) -> 112801.31 | H128: 102492.17 | I128: 137568.76 | J128: 94206 | K128: 30475.35 | L128: 90693.36 | M128: 82929.49 | N128: 82172.71 | O128: 79146.22 | P128: 89456.28 | Q128: 78025.79 | R128: 77292.42 | T128: =SUM(T126:T127) -> 94258.12 | U128: =SUM(U126:U127) -> 80380.33 | V128: =SUM(V126:V127) -> 102245.64 | W128: 96409.94215 | X128: 32053.87497 | Y128: 92955.52138 | Z128: 85071.96645 | AA128: 84352.40512 | AB128: 81248.3754 | AC128: 89938.73883 | AD128: 79990.23402 | AE128: 79230.35128 | AF128: =SUM(AF126:AF127) -> 101595.1896 | AG128: 86916.64269 | AH128: 110277.6463 | AI128: 104019.1209 | AJ128: 39472.07108 | AK128: 101084.9692 | AL128: 92929.07416 | AM128: 92462.90839 | AN128: 89075.85433 | AO128: 87942.44877 | AP128: 87088.70961 | AQ128: 86216.01601 | AT128: =SUM(G128:R128) -> 1057259.86 | AU128: =SUM(T128:AE128) -> 998135.4996 | AV128: =SUM(AF128:AQ128) -> 1079080.651 | BA128: 126
B129: 738 | BA129: 127
B130: 739 | C130: 9031 | D130: Customer Records Expense | BA130: 128
B131: 740 | E131: Utah | G131: 598379.22 | H131: 557301.43 | I131: 602294.22 | J131: 632474.69 | K131: 643908.35 | L131: 622646.01 | M131: 635443.56 | N131: 641588.92 | O131: 631465.93 | P131: 730940.19 | Q131: 625350.16 | R131: 681433.85 | T131: 725519.78 | U131: 724924.2 | V131: 869901.36 | W131: =W385+W639 -> 647995.6168 | X131: 660076.9972 | Y131: 638443.5479 | Z131: 651625.8036 | AA131: 657594.3151 | AB131: 646792.1879 | AC131: 747646.8483 | AD131: 641076.3941 | AE131: 697635.0179 | AF131: =AF385+AF639 -> 787380.6991 | AG131: 783231.6647 | AH131: 938019.1255 | AI131: 703210.8002 | AJ131: 718459.3417 | AK131: 695859.8118 | AL131: 710576.709 | AM131: 715145.9711 | AN131: 700915.4804 | AO131: 804187.8214 | AP131: 697915.4347 | AQ131: 754045.0768 | AT131: =SUM(G131:R131) -> 7603226.53 | AU131: =SUM(T131:AE131) -> 8309232.069 | AV131: =SUM(AF131:AQ131) -> 9008947.936 | BA131: 129
B132: 741 | E132: Wyoming | G132: 18372.63 | H132: 17819.5 | I132: 18765.79 | J132: 19060.37 | K132: 19194.59 | L132: 17527.83 | M132: 17891.03 | N132: 18042.45 | O132: 17781.56 | P132: 20577.2 | Q132: 17597.44 | R132: 19193.54 | T132: 20428.61 | U132: 20401.33 | V132: 24477.93 | W132: 19528.11142 | X132: 19676.56939 | Y132: 17972.53944 | Z132: 18346.64404 | AA132: 18492.5459 | AB132: 18213.13479 | AC132: 21047.52063 | AD132: 18039.9784 | AE132: 19649.86861 | AF132: =AF386+AF640 -> 22170.44065 | AG132: 22042.25995 | AH132: 26394.67823 | AI132: 21192.08603 | AJ132: 21416.91826 | AK132: 19588.83907 | AL132: 20006.41759 | AM132: 20110.98544 | AN132: 19737.20208 | AO132: 22639.24445 | AP132: 19639.43687 | AQ132: 21238.73703 | AT132: =SUM(G132:R132) -> 221823.93 | AU132: =SUM(T132:AE132) -> 236274.7826 | AV132: =SUM(AF132:AQ132) -> 256177.2456 | BA132: 130
B133: 742 | E133: Total | G133: =SUM(G131:G132) -> 616751.85 | H133: 575120.93 | I133: 621060.01 | J133: 651535.06 | K133: 663102.94 | L133: 640173.84 | M133: 653334.59 | N133: 659631.37 | O133: 649247.49 | P133: 751517.39 | Q133: 642947.6 | R133: 700627.39 | T133: =SUM(T131:T132) -> 745948.39 | U133: =SUM(U131:U132) -> 745325.53 | V133: =SUM(V131:V132) -> 894379.29 | W133: 667523.7282 | X133: 679753.5666 | Y133: 656416.0873 | Z133: 669972.4476 | AA133: 676086.861 | AB133: 665005.3227 | AC133: 768694.369 | AD133: 659116.3725 | AE133: 717284.8865 | AF133: =SUM(AF131:AF132) -> 809551.1398 | AG133: 805273.9247 | AH133: 964413.8037 | AI133: 724402.8862 | AJ133: 739876.26 | AK133: 715448.6509 | AL133: 730583.1266 | AM133: 735256.9565 | AN133: 720652.6825 | AO133: 826827.0659 | AP133: 717554.8716 | AQ133: 775283.8138 | AT133: =SUM(G133:R133) -> 7825050.46 | AU133: =SUM(T133:AE133) -> 8545506.851 | AV133: =SUM(AF133:AQ133) -> 9265125.182 | BA133: 131
B134: 743 | BA134: 132
B135: 744 | C135: 9032 | D135: Collection Expense | BA135: 133
B136: 745 | E136: Utah | G136: 73362.98 | H136: 52178.52 | I136: 84197.48 | J136: 74978.49 | K136: 36004.67 | L136: 72167.38 | M136: 63953.11 | N136: 58145.27 | O136: 52841.59 | P136: 71878.44 | Q136: 205160.1 | R136: 116461.69 | T136: 93421.17 | U136: 67909.33 | V136: 92474.71 | W136: =W390+W644 -> 76191.58426 | X136: 36828.15196 | Y136: 73326.49047 | Z136: 65119.69572 | AA136: 59249.20665 | AB136: 53763.97937 | AC136: 72796.39048 | AD136: 207810.8514 | AE136: 118085.8014 | AF136: =AF390+AF644 -> 96623.82061 | AG136: 70699.98701 | AH136: 95887.30882 | AI136: 79033.72294 | AJ136: 39616.46822 | AK136: 76011.84142 | AL136: 68322.99562 | AM136: 62417.37231 | AN136: 56165.49861 | AO136: 74073.66944 | AP136: 211637.7832 | AQ136: 120963.4819 | AT136: =SUM(G136:R136) -> 961329.72 | AU136: =SUM(T136:AE136) -> 1016977.362 | AV136: =SUM(AF136:AQ136) -> 1051453.95 | BA136: 134
B137: 746 | E137: Wyoming | G137: 3937.6 | H137: 2207.06 | I137: 7208.93 | J137: 1939.97 | K137: 963.1 | L137: 2050.14 | M137: 1788.98 | N137: 1888.81 | O137: 1528.17 | P137: 1996.86 | Q137: 7384.46 | R137: 3122.8 | T137: 4515.64 | U137: 4811.05 | V137: 6069.02 | W137: 1971.357221 | X137: 985.1275724 | Y137: 2083.068156 | Z137: 1821.613261 | AA137: 1924.67064 | AB137: 1554.845347 | AC137: 2022.361647 | AD137: 7479.870209 | AE137: 3166.34887 | AF137: =AF391+AF645 -> 4670.444497 | AG137: 5008.754652 | AH137: 6292.985347 | AI137: 2044.893829 | AJ137: 1059.713102 | AK137: 2159.353943 | AL137: 1911.220153 | AM137: 2027.586371 | AN137: 1624.296884 | AO137: 2057.845824 | AP137: 7617.615436 | AQ137: 3243.510902 | AT137: =SUM(G137:R137) -> 36016.88 | AU137: =SUM(T137:AE137) -> 38404.97292 | AV137: =SUM(AF137:AQ137) -> 39718.22094 | BA137: 135
B138: 747 | E138: Total | G138: =SUM(G136:G137) -> 77300.58 | H138: 54385.58 | I138: 91406.41 | J138: 76918.46 | K138: 36967.77 | L138: 74217.52 | M138: 65742.09 | N138: 60034.08 | O138: 54369.76 | P138: 73875.3 | Q138: 212544.56 | R138: 119584.49 | T138: =SUM(T136:T137) -> 97936.81 | U138: =SUM(U136:U137) -> 72720.38 | V138: =SUM(V136:V137) -> 98543.73 | W138: 78162.94148 | X138: 37813.27953 | Y138: 75409.55863 | Z138: 66941.30898 | AA138: 61173.87729 | AB138: 55318.82472 | AC138: 74818.75213 | AD138: 215290.7217 | AE138: 121252.1502 | AF138: =SUM(AF136:AF137) -> 101294.2651 | AG138: 75708.74167 | AH138: 102180.2942 | AI138: 81078.61677 | AJ138: 40676.18132 | AK138: 78171.19536 | AL138: 70234.21577 | AM138: 64444.95869 | AN138: 57789.79549 | AO138: 76131.51526 | AP138: 219255.3986 | AQ138: 124206.9928 | AT138: =SUM(G138:R138) -> 997346.6 | AU138: =SUM(T138:AE138) -> 1055382.335 | AV138: =SUM(AF138:AQ138) -> 1091172.171 | BA138: 136
B139: 748 | BA139: 137
B140: 749 | C140: 9033 | D140: Interest Exp - Customer Security Deposits | BA140: 138
B141: 750 | E141: Utah | G141: 0 | H141: 0 | I141: 0 | J141: 0 | K141: 0 | L141: 0 | M141: 0 | N141: 0 | O141: 0 | P141: 0 | Q141: 0 | R141: 0 | T141: 0 | U141: 0 | V141: 0 | W141: =W395+W649 -> 0 | X141: 0 | Y141: 0 | Z141: 0 | AA141: 0 | AB141: 0 | AC141: 0 | AD141: 0 | AE141: 0 | AF141: =AF395+AF649 -> 0 | AG141: 0 | AH141: 0 | AI141: 0 | AJ141: 0 | AK141: 0 | AL141: 0 | AM141: 0 | AN141: 0 | AO141: 0 | AP141: 0 | AQ141: 0 | AT141: =SUM(G141:R141) -> 0 | AU141: =SUM(T141:AE141) -> 0 | AV141: =SUM(AF141:AQ141) -> 0 | BA141: 139
B142: 751 | E142: Wyoming | G142: 0 | H142: 0 | I142: 0 | J142: 0 | K142: 0 | L142: 0 | M142: 0 | N142: 0 | O142: 0 | P142: 0 | Q142: 0 | R142: 0 | T142: 0 | U142: 0 | V142: 0 | W142: 0 | X142: 0 | Y142: 0 | Z142: 0 | AA142: 0 | AB142: 0 | AC142: 0 | AD142: 0 | AE142: 0 | AF142: =AF396+AF650 -> 0 | AG142: 0 | AH142: 0 | AI142: 0 | AJ142: 0 | AK142: 0 | AL142: 0 | AM142: 0 | AN142: 0 | AO142: 0 | AP142: 0 | AQ142: 0 | AT142: =SUM(G142:R142) -> 0 | AU142: =SUM(T142:AE142) -> 0 | AV142: =SUM(AF142:AQ142) -> 0 | BA142: 140
B143: 752 | E143: Total | G143: =SUM(G141:G142) -> 0 | H143: 0 | I143: 0 | J143: 0 | K143: 0 | L143: 0 | M143: 0 | N143: 0 | O143: 0 | P143: 0 | Q143: 0 | R143: 0 | T143: =SUM(T141:T142) -> 0 | U143: =SUM(U141:U142) -> 0 | V143: =SUM(V141:V142) -> 0 | W143: 0 | X143: 0 | Y143: 0 | Z143: 0 | AA143: 0 | AB143: 0 | AC143: 0 | AD143: 0 | AE143: 0 | AF143: =SUM(AF141:AF142) -> 0 | AG143: 0 | AH143: 0 | AI143: 0 | AJ143: 0 | AK143: 0 | AL143: 0 | AM143: 0 | AN143: 0 | AO143: 0 | AP143: 0 | AQ143: 0 | AT143: =SUM(G143:R143) -> 0 | AU143: =SUM(T143:AE143) -> 0 | AV143: =SUM(AF143:AQ143) -> 0 | BA143: 141
BA144: 142
B145: 754 | C145: 904 | D145: Uncollectible Accounts - DNG | BA145: 143
B146: 755 | E146: Utah | G146: 112184.16 | H146: 93485.27 | I146: 78226.75 | J146: 38161.38 | K146: 35247.77 | L146: 639780.38 | M146: 62875.42 | N146: 63865.45 | O146: 68106.41 | P146: 120413.35 | Q146: 181640.83 | R146: 271994.26 | T146: 299114 | U146: 163572.57 | V146: 42296.74 | W146: =W400+W654 -> 38161.38 | X146: 35247.77 | Y146: 639780.38 | Z146: 62875.42 | AA146: 63865.45 | AB146: 68106.41 | AC146: 120413.35 | AD146: 181640.83 | AE146: 271994.26 | AF146: =AF400+AF654 -> 299114 | AG146: 163572.57 | AH146: 42296.74 | AI146: 38161.38 | AJ146: 35247.77 | AK146: 639780.38 | AL146: 62875.42 | AM146: 63865.45 | AN146: 68106.41 | AO146: 120413.35 | AP146: 181640.83 | AQ146: 271994.26 | AT146: =SUM(G146:R146) -> 1765981.43 | AU146: =SUM(T146:AE146) -> 1987068.56 | AV146: =SUM(AF146:AQ146) -> 1987068.56 | BA146: 144
B147: 756 | E147: Wyoming | G147: 11919.77 | H147: 12432.39 | I147: 9477.88 | J147: 6726.71 | K147: 4484.07 | L147: 37982.83 | M147: 3714.56 | N147: 3912.12 | O147: 5705.65 | P147: 9488.66 | Q147: 17485.91 | R147: 22044.45 | T147: 23930.46 | U147: 20680.54 | V147: 18439.75 | W147: 6726.71 | X147: 4484.07 | Y147: 37982.83 | Z147: 3714.56 | AA147: 3912.12 | AB147: 5705.65 | AC147: 9488.66 | AD147: 17485.91 | AE147: 22044.45 | AF147: =AF401+AF655 -> 23930.46 | AG147: 20680.54 | AH147: 18439.75 | AI147: 6726.71 | AJ147: 4484.07 | AK147: 37982.83 | AL147: 3714.56 | AM147: 3912.12 | AN147: 5705.65 | AO147: 9488.66 | AP147: 17485.91 | AQ147: 22044.45 | AT147: =SUM(G147:R147) -> 145375 | AU147: =SUM(T147:AE147) -> 174595.71 | AV147: =SUM(AF147:AQ147) -> 174595.71 | BA147: 145
B148: 757 | E148: Total | G148: =SUM(G146:G147) -> 124103.93 | H148: 105917.66 | I148: 87704.63 | J148: 44888.09 | K148: 39731.84 | L148: 677763.21 | M148: 66589.98 | N148: 67777.57 | O148: 73812.06 | P148: 129902.01 | Q148: 199126.74 | R148: 294038.71 | T148: =SUM(T146:T147) -> 323044.46 | U148: =SUM(U146:U147) -> 184253.11 | V148: =SUM(V146:V147) -> 60736.49 | W148: 44888.09 | X148: 39731.84 | Y148: 677763.21 | Z148: 66589.98 | AA148: 67777.57 | AB148: 73812.06 | AC148: 129902.01 | AD148: 199126.74 | AE148: 294038.71 | AF148: =SUM(AF146:AF147) -> 323044.46 | AG148: 184253.11 | AH148: 60736.49 | AI148: 44888.09 | AJ148: 39731.84 | AK148: 677763.21 | AL148: 66589.98 | AM148: 67777.57 | AN148: 73812.06 | AO148: 129902.01 | AP148: 199126.74 | AQ148: 294038.71 | AT148: =SUM(G148:R148) -> 1911356.43 | AU148: =SUM(T148:AE148) -> 2161664.27 | AV148: =SUM(AF148:AQ148) -> 2161664.27 | BA148: 146
BA149: 147
B150: 754 | C150: 904 | D150: Uncollectible Accounts - SNG | BA150: 148
B151: 755 | E151: Utah | G151: 34637.01 | H151: 31029.25 | I151: 21750.7 | J151: 5049.75 | K151: 3487.62 | L151: 161115.09 | M151: 5438.72 | N151: 5524.33 | O151: 6512.96 | P151: 15918.49 | Q151: 52301.23 | R151: 90894.01 | T151: 90374.53 | U151: 90374.53 | V151: 90374.53 | W151: =W405+W659 -> 5049.75 | X151: 3487.62 | Y151: 161115.09 | Z151: 5438.72 | AA151: 5524.33 | AB151: 6512.96 | AC151: 15918.49 | AD151: 52301.23 | AE151: 90894.01 | AF151: =AF405+AF659 -> 90374.53 | AG151: 90374.53 | AH151: 90374.53 | AI151: 5049.75 | AJ151: 3487.62 | AK151: 161115.09 | AL151: 5438.72 | AM151: 5524.33 | AN151: 6512.96 | AO151: 15918.49 | AP151: 52301.23 | AQ151: 90894.01 | AT151: =SUM(G151:R151) -> 433659.16 | AU151: =SUM(T151:AE151) -> 617365.79 | AV151: =SUM(AF151:AQ151) -> 617365.79 | BA151: 149
B152: 756 | E152: Wyoming | G152: 0 | H152: 0 | I152: 0 | J152: 0 | K152: 0 | L152: 0 | M152: 0 | N152: 0 | O152: 0 | P152: 0 | Q152: 0 | R152: 0 | T152: 0 | U152: 0 | V152: 0 | W152: 0 | X152: 0 | Y152: 0 | Z152: 0 | AA152: 0 | AB152: 0 | AC152: 0 | AD152: 0 | AE152: 0 | AF152: =AF406+AF660 -> 0 | AG152: 0 | AH152: 0 | AI152: 0 | AJ152: 0 | AK152: 0 | AL152: 0 | AM152: 0 | AN152: 0 | AO152: 0 | AP152: 0 | AQ152: 0 | AT152: =SUM(G152:R152) -> 0 | AU152: =SUM(T152:AE152) -> 0 | AV152: =SUM(AF152:AQ152) -> 0 | BA152: 150
B153: 757 | E153: Total | G153: =SUM(G151:G152) -> 34637.01 | H153: 31029.25 | I153: 21750.7 | J153: 5049.75 | K153: 3487.62 | L153: 161115.09 | M153: 5438.72 | N153: 5524.33 | O153: 6512.96 | P153: 15918.49 | Q153: 52301.23 | R153: 90894.01 | T153: =SUM(T151:T152) -> 90374.53 | U153: =SUM(U151:U152) -> 90374.53 | V153: =SUM(V151:V152) -> 90374.53 | W153: 5049.75 | X153: 3487.62 | Y153: 161115.09 | Z153: 5438.72 | AA153: 5524.33 | AB153: 6512.96 | AC153: 15918.49 | AD153: 52301.23 | AE153: 90894.01 | AF153: =SUM(AF151:AF152) -> 90374.53 | AG153: 90374.53 | AH153: 90374.53 | AI153: 5049.75 | AJ153: 3487.62 | AK153: 161115.09 | AL153: 5438.72 | AM153: 5524.33 | AN153: 6512.96 | AO153: 15918.49 | AP153: 52301.23 | AQ153: 90894.01 | AT153: =SUM(G153:R153) -> 433659.16 | AU153: =SUM(T153:AE153) -> 617365.79 | AV153: =SUM(AF153:AQ153) -> 617365.79 | BA153: 151
B154: 753 | BA154: 152
B155: 754 | C155: 904 | D155: Uncollectible Accounts - Commodity | BA155: 153
B156: 755 | E156: Utah | G156: 134195.63 | H156: 120233.97 | I156: 84314.52 | J156: 49279.4 | K156: 28544.5 | L156: 726145.69 | M156: 44464.67 | N156: 45081.65 | O156: 54092.76 | P156: 137274.65 | Q156: 217739.27 | R156: 391266.16 | T156: 388650.3 | U156: 388650.3 | V156: 388650.3 | W156: =W410+W664 -> 49279.4 | X156: 28544.5 | Y156: 726145.69 | Z156: 44464.67 | AA156: 45081.65 | AB156: 54092.76 | AC156: 137274.65 | AD156: 217739.27 | AE156: 391266.16 | AF156: =AF410+AF664 -> 388650.3 | AG156: 388650.3 | AH156: 388650.3 | AI156: 49279.4 | AJ156: 28544.5 | AK156: 726145.69 | AL156: 44464.67 | AM156: 45081.65 | AN156: 54092.76 | AO156: 137274.65 | AP156: 217739.27 | AQ156: 391266.16 | AT156: =SUM(G156:R156) -> 2032632.87 | AU156: =SUM(T156:AE156) -> 2859839.65 | AV156: =SUM(AF156:AQ156) -> 2859839.65 | BA156: 154
B157: 756 | E157: Wyoming | G157: 0 | H157: 0 | I157: 0 | J157: 0 | K157: 0 | L157: 0 | M157: 0 | N157: 0 | O157: 0 | P157: 0 | Q157: 0 | R157: 0 | T157: 0 | U157: 0 | V157: 0 | W157: 0 | X157: 0 | Y157: 0 | Z157: 0 | AA157: 0 | AB157: 0 | AC157: 0 | AD157: 0 | AE157: 0 | AF157: =AF411+AF665 -> 0 | AG157: 0 | AH157: 0 | AI157: 0 | AJ157: 0 | AK157: 0 | AL157: 0 | AM157: 0 | AN157: 0 | AO157: 0 | AP157: 0 | AQ157: 0 | AT157: =SUM(G157:R157) -> 0 | AU157: =SUM(T157:AE157) -> 0 | AV157: =SUM(AF157:AQ157) -> 0 | BA157: 155
B158: 757 | E158: Total | G158: =SUM(G156:G157) -> 134195.63 | H158: 120233.97 | I158: 84314.52 | J158: 49279.4 | K158: 28544.5 | L158: 726145.69 | M158: 44464.67 | N158: 45081.65 | O158: 54092.76 | P158: 137274.65 | Q158: 217739.27 | R158: 391266.16 | T158: =SUM(T156:T157) -> 388650.3 | U158: =SUM(U156:U157) -> 388650.3 | V158: =SUM(V156:V157) -> 388650.3 | W158: 49279.4 | X158: 28544.5 | Y158: 726145.69 | Z158: 44464.67 | AA158: 45081.65 | AB158: 54092.76 | AC158: 137274.65 | AD158: 217739.27 | AE158: 391266.16 | AF158: =SUM(AF156:AF157) -> 388650.3 | AG158: 388650.3 | AH158: 388650.3 | AI158: 49279.4 | AJ158: 28544.5 | AK158: 726145.69 | AL158: 44464.67 | AM158: 45081.65 | AN158: 54092.76 | AO158: 137274.65 | AP158: 217739.27 | AQ158: 391266.16 | AT158: =SUM(G158:R158) -> 2032632.87 | AU158: =SUM(T158:AE158) -> 2859839.65 | AV158: =SUM(AF158:AQ158) -> 2859839.65 | BA158: 156
B159: 758 | BA159: 157
B160: 759 | C160: 905 | D160: Miscellaneous Expense | BA160: 158
B161: 760 | E161: Utah | G161: 0 | H161: 0 | I161: 0 | J161: 0 | K161: 0 | L161: 0 | M161: 0 | N161: 0 | O161: 0 | P161: 0 | Q161: 0 | R161: 0 | T161: 0 | U161: 0 | V161: 0 | W161: =W415+W669 -> 0 | X161: 0 | Y161: 0 | Z161: 0 | AA161: 0 | AB161: 0 | AC161: 0 | AD161: 0 | AE161: 0 | AF161: =AF415+AF669 -> 0 | AG161: 0 | AH161: 0 | AI161: 0 | AJ161: 0 | AK161: 0 | AL161: 0 | AM161: 0 | AN161: 0 | AO161: 0 | AP161: 0 | AQ161: 0 | AT161: =SUM(G161:R161) -> 0 | AU161: =SUM(T161:AE161) -> 0 | AV161: =SUM(AF161:AQ161) -> 0 | BA161: 159
B162: 761 | E162: Wyoming | G162: 0 | H162: 0 | I162: 0 | J162: 0 | K162: 0 | L162: 0 | M162: 0 | N162: 0 | O162: 0 | P162: 0 | Q162: 0 | R162: 0 | T162: 0 | U162: 0 | V162: 0 | W162: 0 | X162: 0 | Y162: 0 | Z162: 0 | AA162: 0 | AB162: 0 | AC162: 0 | AD162: 0 | AE162: 0 | AF162: =AF416+AF670 -> 0 | AG162: 0 | AH162: 0 | AI162: 0 | AJ162: 0 | AK162: 0 | AL162: 0 | AM162: 0 | AN162: 0 | AO162: 0 | AP162: 0 | AQ162: 0 | AT162: =SUM(G162:R162) -> 0 | AU162: =SUM(T162:AE162) -> 0 | AV162: =SUM(AF162:AQ162) -> 0 | BA162: 160
B163: 762 | E163: Total | G163: =SUM(G161:G162) -> 0 | H163: 0 | I163: 0 | J163: 0 | K163: 0 | L163: 0 | M163: 0 | N163: 0 | O163: 0 | P163: 0 | Q163: 0 | R163: 0 | T163: =SUM(T161:T162) -> 0 | U163: =SUM(U161:U162) -> 0 | V163: =SUM(V161:V162) -> 0 | W163: 0 | X163: 0 | Y163: 0 | Z163: 0 | AA163: 0 | AB163: 0 | AC163: 0 | AD163: 0 | AE163: 0 | AF163: =SUM(AF161:AF162) -> 0 | AG163: 0 | AH163: 0 | AI163: 0 | AJ163: 0 | AK163: 0 | AL163: 0 | AM163: 0 | AN163: 0 | AO163: 0 | AP163: 0 | AQ163: 0 | AT163: =SUM(G163:R163) -> 0 | AU163: =SUM(T163:AE163) -> 0 | AV163: =SUM(AF163:AQ163) -> 0 | BA163: 161
B164: 763 | BA164: 162
B165: 764 | C165: System Total Customer Accounts Exp | BA165: 163
B166: 765 | D166: Utah Customer Accounts Expenses | G166: =G161+G156+G151+G146+G141+G136+G131+G126+G121 -> 1172319.55 | H166: 1072358.05 | I166: 1112981.57 | J166: 994070.26 | K166: 888608.18 | L166: 2419168.18 | M166: 997651.56 | N166: 996740.86 | O166: 994481.87 | P166: 1302129.85 | Q166: 1456482.11 | R166: 1728029.69 | T166: =T161+T156+T151+T146+T141+T136+T131+T126+T121 -> 1802760.6 | U166: =U161+U156+U151+U146+U141+U136+U131+U126+U121 -> 1630451.87 | V166: =V161+V156+V151+V146+V141+V136+V131+V126+V121 -> 1669520.46 | W166: 1015542.836 | X166: 909913.8063 | Y166: 2441070.892 | Z166: 1019706.331 | AA166: 1018572.746 | AB166: 1015373.714 | AC166: 1322657.664 | AD166: 1479268.793 | AE166: 1750237.629 | AF166: =AF161+AF156+AF151+AF146+AF141+AF136+AF131+AF126+AF121 -> 1883569.741 | AG166: 1709986.39 | AH166: 1755576.33 | AI166: 1090413.942 | AJ166: 988265.0988 | AK166: 2519003.95 | AL166: 1098945.042 | AM166: 1096631.905 | AN166: 1088835.857 | AO166: 1385001.191 | AP166: 1555921.153 | AQ166: 1825261.437 | AT166: =SUM(G166:R166) -> 15135021.73 | AU166: =SUM(T166:AE166) -> 17075077.34 | AV166: =SUM(AF166:AQ166) -> 17997412.04 | BA166: 164
B167: 766 | D167: Wyoming Customer Accounts Expenses | G167: 38932.83 | H167: 36761.05 | I167: 40744.69 | J167: 31736.49 | K167: 27091.82 | L167: 61535.64 | M167: 27168.54 | N167: 27634.38 | O167: 28698.03 | P167: 36302.07 | Q167: 46031.1 | R167: 48091.86 | T167: =T162+T157+T152+T147+T142+T137+T132+T127+T122 -> 55318.17 | U167: =U162+U157+U152+U147+U142+U137+U132+U127+U122 -> 52036.66 | V167: =V162+V157+V152+V147+V142+V137+V132+V127+V122 -> 52750.3 | W167: 32331.68379 | X167: 27689.15952 | Y167: 62112.685 | Z167: 27753.31959 | AA167: 28219.44426 | AB167: 29251.99562 | AC167: 36838.7203 | AD167: 46659.01792 | AE167: 48684.89259 | AF167: =AF162+AF157+AF152+AF147+AF142+AF137+AF132+AF127+AF122 -> 57708.12317 | AG167: 54455.42455 | AH167: 55186.16067 | AI167: 34406.07984 | AJ167: 29908.25128 | AK167: 64163.11939 | AL167: 29854.75509 | AM167: 30306.73914 | AN167: 31197.73551 | AO167: 38473.21122 | AP167: 48721.94228 | AQ167: 50685.89565 | AT167: =SUM(G167:R167) -> 450728.5 | AU167: =SUM(T167:AE167) -> 499646.0486 | AV167: =SUM(AF167:AQ167) -> 525067.4378 | BA167: 165
B168: 767 | BA168: 166
B169: 768 | D169: System Total Customer Accounts Exp | G169: =G123+G128+G133+G138+G143++G148+G153+G158+G163 -> 1211252.38 | H169: 1109119.1 | I169: 1153726.26 | J169: 1025806.75 | K169: 915700 | L169: 2480703.82 | M169: 1024820.1 | N169: 1024375.24 | O169: 1023179.9 | P169: 1338431.92 | Q169: 1502513.21 | R169: 1776121.55 | T169: =T123+T128+T133+T138+T143++T148+T153+T158+T163 -> 1858078.77 | U169: =U123+U128+U133+U138+U143++U148+U153+U158+U163 -> 1682488.53 | V169: =V123+V128+V133+V138+V143++V148+V153+V158+V163 -> 1722270.76 | W169: 1047874.52 | X169: 937602.9659 | Y169: 2503183.577 | Z169: 1047459.65 | AA169: 1046792.19 | AB169: 1044625.71 | AC169: 1359496.385 | AD169: 1525927.811 | AE169: 1798922.522 | AF169: =AF123+AF128+AF133+AF138+AF143++AF148+AF153+AF158+AF163 -> 1941277.864 | AG169: 1764441.815 | AH169: 1810762.491 | AI169: 1124820.022 | AJ169: 1018173.35 | AK169: 2583167.069 | AL169: 1128799.797 | AM169: 1126938.645 | AN169: 1120033.593 | AO169: 1423474.402 | AP169: 1604643.095 | AQ169: 1875947.332 | AT169: =SUM(G169:R169) -> 15585750.23 | AU169: =SUM(T169:AE169) -> 17574723.39 | AV169: =SUM(AF169:AQ169) -> 18522479.48 | BA169: 167
B170: 769 | BA170: 168
B171: 770 | C171: Customer Service & Information Expense | BA171: 169
B172: 771 | BA172: 170
B173: 772 | C173: 907 | D173: Supervision | BA173: 171
B174: 773 | E174: Utah | G174: 29910.63 | H174: 33545.91 | I174: 11709.65 | J174: 21117.8 | K174: 77343.77 | L174: 35056.7 | M174: 41403.19 | N174: 39762.11 | O174: 41808.89 | P174: 43820.28 | Q174: 35593.34 | R174: 31293.8 | T174: 33885.88 | U174: 38151.34 | V174: 49664.64 | W174: =W428+W682 -> 21839.63505 | X174: 78756.50547 | Y174: 36005.84361 | Z174: 42392.73747 | AA174: 40694.42392 | AB174: 42762.26289 | AC174: 44267.14354 | AD174: 36382.67355 | AE174: 32202.47793 | AF174: =AF428+AF682 -> 36696.64717 | AG174: 41242.09835 | AH174: 53702.47981 | AI174: 24868.34358 | AJ174: 82685.75856 | AK174: 39583.84778 | AL174: 45853.69555 | AM174: 43913.38942 | AN174: 45990.20009 | AO174: 44435.96875 | AP174: 39000.92625 | AQ174: 35753.80532 | AT174: =SUM(G174:R174) -> 442366.07 | AU174: =SUM(T174:AE174) -> 497005.5634 | AV174: =SUM(AF174:AQ174) -> 533727.1606 | BA174: 172
B175: 774 | E175: Wyoming | G175: 835.01 | H175: 935.87 | I175: 319.13 | J175: 596.13 | K175: 2162.32 | L175: 988.23 | M175: 1167.05 | N175: 1120.48 | O175: 1178.11 | P175: 1234.83 | Q175: 1003.44 | R175: 881.83 | T175: 955.6 | U175: 1075.7 | V175: 1399.51 | W175: 616.5065321 | X175: 2201.816215 | Y175: 1014.985861 | Z175: 1194.942812 | AA175: 1146.752225 | AB175: 1204.974577 | AC175: 1247.422355 | AD175: 1025.692726 | AE175: 907.4356936 | AF175: =AF429+AF683 -> 1034.865142 | AG175: 1162.845792 | AH175: 1513.29311 | AI175: 702.0033175 | AJ175: 2311.667371 | AK175: 1115.847923 | AL175: 1292.498365 | AM175: 1237.461357 | AN175: 1295.932866 | AO175: 1252.179751 | AP175: 1099.505959 | AQ175: 1007.508776 | AT175: =SUM(G175:R175) -> 12422.43 | AU175: =SUM(T175:AE175) -> 13991.339 | AV175: =SUM(AF175:AQ175) -> 15025.60973 | BA175: 173
B176: 775 | E176: Total | G176: =SUM(G174:G175) -> 30745.64 | H176: 34481.78 | I176: 12028.78 | J176: 21713.93 | K176: 79506.09 | L176: 36044.93 | M176: 42570.24 | N176: 40882.59 | O176: 42987 | P176: 45055.11 | Q176: 36596.78 | R176: 32175.63 | T176: =SUM(T174:T175) -> 34841.48 | U176: =SUM(U174:U175) -> 39227.04 | V176: =SUM(V174:V175) -> 51064.15 | W176: 22456.14159 | X176: 80958.32168 | Y176: 37020.82947 | Z176: 43587.68028 | AA176: 41841.17614 | AB176: 43967.23747 | AC176: 45514.5659 | AD176: 37408.36627 | AE176: 33109.91362 | AF176: =SUM(AF174:AF175) -> 37731.51231 | AG176: 42404.94414 | AH176: 55215.77292 | AI176: 25570.3469 | AJ176: 84997.42593 | AK176: 40699.6957 | AL176: 47146.19391 | AM176: 45150.85078 | AN176: 47286.13295 | AO176: 45688.1485 | AP176: 40100.43221 | AQ176: 36761.3141 | AT176: =SUM(G176:R176) -> 454788.5 | AU176: =SUM(T176:AE176) -> 510996.9024 | AV176: =SUM(AF176:AQ176) -> 548752.7703 | BA176: 174
B177: 776 | BA177: 175
B178: 777 | C178: 908 | D178: Customer Assistance Expense | BA178: 176
B179: 778 | E179: Utah | G179: 5674787.78 | H179: 4488764.15 | I179: 3439997.39 | J179: 1822960.39 | K179: 1484115.15 | L179: 689773.27 | M179: 688785.23 | N179: 703573.93 | O179: 838526.44 | P179: 2362578.58 | Q179: 2247325.52 | R179: 3929087.85 | T179: 5082249.69 | U179: 2912073.81 | V179: 2754660.5 | W179: =W433+W687 -> 1844900.018 | X179: 1501505.195 | Y179: 697686.6358 | Z179: 696927.1728 | AA179: 711878.6698 | AB179: 848426.5012 | AC179: 2390359.647 | AD179: 2274685.397 | AE179: 3976618.316 | AF179: =AF433+AF687 -> 5151607.732 | AG179: 2955028.323 | AH179: 2796931.416 | AI179: 1875229.076 | AJ179: 1523530.761 | AK179: 706967.8334 | AL179: 707551.5577 | AM179: 722663.2275 | AN179: 861293.1536 | AO179: 2425974.615 | AP179: 2313844.137 | AQ179: 4043362.895 | AT179: =SUM(G179:R179) -> 28370275.68 | AU179: =SUM(T179:AE179) -> 25691971.55 | AV179: =SUM(AF179:AQ179) -> 26083984.73 | BA179: 177
B180: 779 | E180: Wyoming | G180: 28626.93 | H180: 28664.02 | I180: 22263.88 | J180: 15016.77 | K180: 11591.86 | L180: 6658.26 | M180: 5678.12 | N180: 5950.56 | O180: 7961.05 | P180: 14438.23 | Q180: 12127.96 | R180: 15298.39 | T180: 16256.46 | U180: 13422.61 | V180: 12573.82 | W180: 15197.4993 | X180: 11727.68704 | Y180: 6734.646328 | Z180: 5745.239512 | AA180: 6020.798323 | AB180: 8055.042125 | AC180: 14608.00612 | AD180: 12275.61083 | AE180: 15483.45575 | AF180: =AF434+AF688 -> 16478.31377 | AG180: 13620.60006 | AH180: 12766.76824 | AI180: 15447.33714 | AJ180: 11899.72038 | AK180: 6824.236095 | AL180: 5832.823463 | AM180: 6112.009999 | AN180: 8177.199351 | AO180: 14825.65692 | AP180: 12486.93565 | AQ180: 15743.33403 | AT180: =SUM(G180:R180) -> 174276.03 | AU180: =SUM(T180:AE180) -> 138100.8753 | AV180: =SUM(AF180:AQ180) -> 140214.9351 | BA180: 178
B181: 780 | E181: Total | G181: =SUM(G179:G180) -> 5703414.71 | H181: 4517428.17 | I181: 3462261.27 | J181: 1837977.16 | K181: 1495707.01 | L181: 696431.53 | M181: 694463.35 | N181: 709524.49 | O181: 846487.49 | P181: 2377016.81 | Q181: 2259453.48 | R181: 3944386.24 | T181: =SUM(T179:T180) -> 5098506.15 | U181: =SUM(U179:U180) -> 2925496.42 | V181: =SUM(V179:V180) -> 2767234.32 | W181: 1860097.517 | X181: 1513232.882 | Y181: 704421.2821 | Z181: 702672.4123 | AA181: 717899.4682 | AB181: 856481.5433 | AC181: 2404967.653 | AD181: 2286961.007 | AE181: 3992101.772 | AF181: =SUM(AF179:AF180) -> 5168086.046 | AG181: 2968648.923 | AH181: 2809698.184 | AI181: 1890676.413 | AJ181: 1535430.482 | AK181: 713792.0695 | AL181: 713384.3811 | AM181: 728775.2375 | AN181: 869470.353 | AO181: 2440800.272 | AP181: 2326331.073 | AQ181: 4059106.229 | AT181: =SUM(G181:R181) -> 28544551.71 | AU181: =SUM(T181:AE181) -> 25830072.43 | AV181: =SUM(AF181:AQ181) -> 26224199.66 | BA181: 179
B182: 781 | BA182: 180
B183: 782 | C183: 909 | D183: Info & Instructional Advertising Expense | BA183: 181
B184: 783 | E184: Utah | G184: 3351.28 | H184: 49686.2 | I184: 25669.3 | J184: 99389.98 | K184: 243117.04 | L184: 13497.63 | M184: 6819.51 | N184: 104320.92 | O184: 29547.25 | P184: 67301.86 | Q184: 126269.26 | R184: 72235.37 | T184: 32804.79 | U184: 0 | V184: 53913.12 | W184: =W438+W692 -> 100514.0807 | X184: 245866.6937 | Y184: 13650.2882 | Z184: 6896.638658 | AA184: 105500.7896 | AB184: 29881.4294 | AC184: 68063.04404 | AD184: 127697.3653 | AE184: 73052.35203 | AF184: =AF438+AF692 -> 33178.76461 | AG184: 0 | AH184: 54527.72957 | AI184: 101659.9412 | AJ184: 248669.574 | AK184: 13805.90148 | AL184: 6975.260339 | AM184: 106703.4986 | AN184: 30222.07769 | AO184: 68838.96274 | AP184: 129153.1153 | AQ184: 73885.14885 | AT184: =SUM(G184:R184) -> 841205.6 | AU184: =SUM(T184:AE184) -> 857840.5917 | AV184: =SUM(AF184:AQ184) -> 867619.9744 | BA184: 182
B185: 784 | E185: Wyoming | G185: 38 | H185: 1260.4 | I185: 632.55 | J185: 630.2 | K185: 620.31 | L185: 737.37 | M185: 76.92 | N185: 2753.61 | O185: 628.22 | P185: 3030.96 | Q185: 5102.01 | R185: 2982.54 | T185: 1115.47 | U185: 0 | V185: 1235.95 | W185: 637.327562 | X185: 627.3257061 | Y185: 745.7096547 | Z185: 77.7899652 | AA185: 2784.753329 | AB185: 635.3251682 | AC185: 3065.240158 | AD185: 5159.713733 | AE185: 3016.272527 | AF185: =AF439+AF693 -> 1128.186358 | AG185: 0 | AH185: 1250.03983 | AI185: 644.5930962 | AJ185: 634.4772191 | AK185: 754.2107448 | AL185: 78.6767708 | AM185: 2816.499517 | AN185: 642.5678751 | AO185: 3100.183895 | AP185: 5218.53447 | AQ185: 3050.658034 | AT185: =SUM(G185:R185) -> 18493.09 | AU185: =SUM(T185:AE185) -> 19100.8778 | AV185: =SUM(AF185:AQ185) -> 19318.62781 | BA185: 183
B186: 785 | E186: Total | G186: =SUM(G184:G185) -> 3389.28 | H186: 50946.6 | I186: 26301.85 | J186: 100020.18 | K186: 243737.35 | L186: 14235 | M186: 6896.43 | N186: 107074.53 | O186: 30175.47 | P186: 70332.82 | Q186: 131371.27 | R186: 75217.91 | T186: =SUM(T184:T185) -> 33920.26 | U186: =SUM(U184:U185) -> 0 | V186: =SUM(V184:V185) -> 55149.07 | W186: 101151.4082 | X186: 246494.0194 | Y186: 14395.99785 | Z186: 6974.428623 | AA186: 108285.5429 | AB186: 30516.75457 | AC186: 71128.28419 | AD186: 132857.0791 | AE186: 76068.62456 | AF186: =SUM(AF184:AF185) -> 34306.95096 | AG186: 0 | AH186: 55777.7694 | AI186: 102304.5343 | AJ186: 249304.0512 | AK186: 14560.11223 | AL186: 7053.93711 | AM186: 109519.9981 | AN186: 30864.64557 | AO186: 71939.14663 | AP186: 134371.6498 | AQ186: 76935.80688 | AT186: =SUM(G186:R186) -> 859698.69 | AU186: =SUM(T186:AE186) -> 876941.4695 | AV186: =SUM(AF186:AQ186) -> 886938.6022 | BA186: 184
B187: 786 | BA187: 185
B188: 787 | C188: 910 | D188: Misc Customer Service & Info Expense | BA188: 186
B189: 788 | E189: Utah | G189: 0 | H189: 0 | I189: 0 | J189: 0 | K189: 0 | L189: 0 | M189: 0 | N189: 0 | O189: 0 | P189: 0 | Q189: 0 | R189: 0 | T189: 0 | U189: 0 | V189: 0 | W189: =W443+W697 -> 0 | X189: 0 | Y189: 0 | Z189: 0 | AA189: 0 | AB189: 0 | AC189: 0 | AD189: 0 | AE189: 0 | AF189: =AF443+AF697 -> 0 | AG189: 0 | AH189: 0 | AI189: 0 | AJ189: 0 | AK189: 0 | AL189: 0 | AM189: 0 | AN189: 0 | AO189: 0 | AP189: 0 | AQ189: 0 | AT189: =SUM(G189:R189) -> 0 | AU189: =SUM(T189:AE189) -> 0 | AV189: =SUM(AF189:AQ189) -> 0 | BA189: 187
B190: 789 | E190: Wyoming | G190: 0 | H190: 0 | I190: 0 | J190: 0 | K190: 0 | L190: 0 | M190: 0 | N190: 0 | O190: 0 | P190: 0 | Q190: 0 | R190: 0 | T190: 0 | U190: 0 | V190: 0 | W190: 0 | X190: 0 | Y190: 0 | Z190: 0 | AA190: 0 | AB190: 0 | AC190: 0 | AD190: 0 | AE190: 0 | AF190: =AF444+AF698 -> 0 | AG190: 0 | AH190: 0 | AI190: 0 | AJ190: 0 | AK190: 0 | AL190: 0 | AM190: 0 | AN190: 0 | AO190: 0 | AP190: 0 | AQ190: 0 | AT190: =SUM(G190:R190) -> 0 | AU190: =SUM(T190:AE190) -> 0 | AV190: =SUM(AF190:AQ190) -> 0 | BA190: 188
B191: 790 | E191: Total | G191: =SUM(G189:G190) -> 0 | H191: 0 | I191: 0 | J191: 0 | K191: 0 | L191: 0 | M191: 0 | N191: 0 | O191: 0 | P191: 0 | Q191: 0 | R191: 0 | T191: =SUM(T189:T190) -> 0 | U191: =SUM(U189:U190) -> 0 | V191: =SUM(V189:V190) -> 0 | W191: 0 | X191: 0 | Y191: 0 | Z191: 0 | AA191: 0 | AB191: 0 | AC191: 0 | AD191: 0 | AE191: 0 | AF191: =SUM(AF189:AF190) -> 0 | AG191: 0 | AH191: 0 | AI191: 0 | AJ191: 0 | AK191: 0 | AL191: 0 | AM191: 0 | AN191: 0 | AO191: 0 | AP191: 0 | AQ191: 0 | AT191: =SUM(G191:R191) -> 0 | AU191: =SUM(T191:AE191) -> 0 | AV191: =SUM(AF191:AQ191) -> 0 | BA191: 189
B192: 791 | BA192: 190
B193: 792 | C193: System Total Cust Service & Info Exp | BA193: 191
B194: 793 | D194: Utah Total Cust Service & Info Exp | G194: =G174+G179+G184+G189 -> 5708049.69 | H194: 4571996.26 | I194: 3477376.34 | J194: 1943468.17 | K194: 1804575.96 | L194: 738327.6 | M194: 737007.93 | N194: 847656.96 | O194: 909882.58 | P194: 2473700.72 | Q194: 2409188.12 | R194: 4032617.02 | T194: =T174+T179+T184+T189 -> 5148940.36 | U194: =U174+U179+U184+U189 -> 2950225.15 | V194: =V174+V179+V184+V189 -> 2858238.26 | W194: 1967253.734 | X194: 1826128.394 | Y194: 747342.7676 | Z194: 746216.5489 | AA194: 858073.8834 | AB194: 921070.1934 | AC194: 2502689.835 | AD194: 2438765.435 | AE194: 4081873.146 | AF194: =AF174+AF179+AF184+AF189 -> 5221483.144 | AG194: 2996270.421 | AH194: 2905161.626 | AI194: 2001757.361 | AJ194: 1854886.094 | AK194: 760357.5827 | AL194: 760380.5135 | AM194: 873280.1155 | AN194: 937505.4314 | AO194: 2539249.547 | AP194: 2481998.179 | AQ194: 4153001.849 | AT194: =SUM(G194:R194) -> 29653847.35 | AU194: =SUM(T194:AE194) -> 27046817.71 | AV194: =SUM(AF194:AQ194) -> 27485331.86 | BA194: 192
B195: 794 | D195: Wyoming Total Cust Service & Info Exp | G195: 29499.94 | H195: 30860.29 | I195: 23215.56 | J195: 16243.1 | K195: 14374.49 | L195: 8383.86 | M195: 6922.09 | N195: 9824.65 | O195: 9767.38 | P195: 18704.02 | Q195: 18233.41 | R195: 19162.76 | T195: =T175+T180+T185+T190 -> 18327.53 | U195: =U175+U180+U185+U190 -> 14498.31 | V195: =V175+V180+V185+V190 -> 15209.28 | W195: 16451.33339 | X195: 14556.82896 | Y195: 8495.341843 | Z195: 7017.972288 | AA195: 9952.303877 | AB195: 9895.34187 | AC195: 18920.66864 | AD195: 18461.01729 | AE195: 19407.16397 | AF195: =AF175+AF180+AF185+AF190 -> 18641.36527 | AG195: 14783.44585 | AH195: 15530.10118 | AI195: 16793.93355 | AJ195: 14845.86497 | AK195: 8694.294763 | AL195: 7203.998599 | AM195: 10165.97087 | AN195: 10115.70009 | AO195: 19178.02056 | AP195: 18804.97607 | AQ195: 19801.50085 | AT195: =SUM(G195:R195) -> 205191.55 | AU195: =SUM(T195:AE195) -> 171193.0921 | AV195: =SUM(AF195:AQ195) -> 174559.1726 | BA195: 193
B196: 795 | BA196: 194
B197: 796 | D197: System Total Cust Service & Info Exp | G197: =G176+G181+G186+G191 -> 5737549.63 | H197: 4602856.55 | I197: 3500591.9 | J197: 1959711.27 | K197: 1818950.45 | L197: 746711.46 | M197: 743930.02 | N197: 857481.61 | O197: 919649.96 | P197: 2492404.74 | Q197: 2427421.53 | R197: 4051779.78 | T197: =T176+T181+T186+T191 -> 5167267.89 | U197: =U176+U181+U186+U191 -> 2964723.46 | V197: =V176+V181+V186+V191 -> 2873447.54 | W197: 1983705.067 | X197: 1840685.223 | Y197: 755838.1094 | Z197: 753234.5212 | AA197: 868026.1872 | AB197: 930965.5353 | AC197: 2521610.503 | AD197: 2457226.453 | AE197: 4101280.31 | AF197: =AF176+AF181+AF186+AF191 -> 5240124.509 | AG197: 3011053.867 | AH197: 2920691.727 | AI197: 2018551.295 | AJ197: 1869731.959 | AK197: 769051.8774 | AL197: 767584.5121 | AM197: 883446.0864 | AN197: 947621.1315 | AO197: 2558427.567 | AP197: 2500803.155 | AQ197: 4172803.35 | AT197: =SUM(G197:R197) -> 29859038.9 | AU197: =SUM(T197:AE197) -> 27218010.8 | AV197: =SUM(AF197:AQ197) -> 27659891.04 | BA197: 195
B198: 797 | BA198: 196
B199: 798 | C199: Administrative & General Expense | BA199: 197
B200: 799 | BA200: 198
... 562 more rows

Sheet EXPENSES
B1: EXPENSES
B2: ='Control Panel'!$B$1 -> Dominion Energy
B3: ='Control Panel'!$B$2 -> Utah - DEC 2021 Adjusted Avg Results
B4: ='Control Panel'!$B$3 -> 12 Months Ended : Dec-2021
F5: Booked | G5: Booked | H5: Forecast | I5: Forecast | K5: HOT
F6: Expense Dec 2019 | G6: Expense Dec 2020 | H6: Expense Dec 2021 | I6: Expense Dec 2022 | K6: =+'Control Panel'!B28 -> Expense Dec 2021 | L6: Adjustment | M6: 1
M7: =+M6+1 -> 2
M8: =+M7+1 -> 3
A9: Line # | B9: FERC Acct | D9: Description | K9: Adjustment | M9: 4
A10: 510 | B10: UTILITY OPERATING EXPENSES | M10: 5
A11: =+A10+1 -> 511 | B11: GAS PURCHASE EXPENSES | M11: 6
A12: 512 | M12: 7
A13: 513 | C13: Utah % of Sales Dth from 191 Acct ===> | M13: 8
A14: 514 | M14: 9
A15: 515 | B15: 758 | C15: Gas Well Royalties | M15: 10
A16: 516 | D16: Utah | F16: 20573059.94 | G16: 19339122.02 | H16: 29772890.33 | I16: 29772890.33 | K16: =IF(HLOOKUP($K$6,$F$6:$I$431,M16,FALSE)="","",HLOOKUP($K$6,$F$6:$I$431,M16,FALSE)) -> 29772890.33 | L16: =+K16-G16 -> 10433768.3 | M16: 11
A17: 517 | D17: Wyoming | F17: 751115.9783 | G17: 708332.3759 | H17: 1107597.652 | I17: 1107597.652 | K17: =IF(HLOOKUP($K$6,$F$6:$I$431,M17,FALSE)="","",HLOOKUP($K$6,$F$6:$I$431,M17,FALSE)) -> 1107597.652 | L17: =+K17-G17 -> 399265.2764 | M17: 12
A18: 518 | D18: Total | F18: 21324175.92 | G18: =SUM(G16:G17) -> 20047454.4 | H18: 30880487.98 | I18: 30880487.98 | K18: 30880487.98 | L18: =+K18-G18 -> 10833033.58 | M18: 13
A19: 519 | M19: 14
A20: 520 | B20: 7581 | C20: Gas Well Royalties - Other | M20: 15
A21: 521 | D21: Utah | F21: 311269.65 | G21: 0 | H21: 0 | I21: 0 | K21: 0 | L21: =+K21-G21 -> 0 | M21: 16
A22: 522 | D22: Wyoming | F22: 0 | G22: 0 | H22: 0 | I22: 0 | K22: 0 | L22: =+K22-G22 -> 0 | M22: 17
A23: 523 | D23: Total | F23: 311269.65 | G23: =SUM(G21:G22) -> 0 | H23: 0 | I23: 0 | K23: 0 | L23: =+K23-G23 -> 0 | M23: 18
A24: 524 | M24: 19
A25: 525 | B25: 759 | C25: Gath by Others, GRI & ACA - Gas Cost | M25: 20
A26: 526 | D26: Utah | F26: 24917407.16 | G26: 16387104.51 | H26: 27274857.4 | I26: 27274857.4 | K26: 27274857.4 | L26: =+K26-G26 -> 10887752.89 | M26: 21
A27: 527 | D27: Wyoming | F27: 0 | G27: 581907.2958 | H27: 982897.3589 | I27: 982897.3589 | K27: 982897.3589 | L27: =+K27-G27 -> 400990.063 | M27: 22
A28: 528 | D28: Total | F28: 24917407.16 | G28: =SUM(G26:G27) -> 16969011.81 | H28: 28257754.76 | I28: 28257754.76 | K28: 28257754.76 | L28: =+K28-G28 -> 11288742.95 | M28: 23
A29: 529 | M29: 24
A30: 530 | B30: 759 | C30: Gathering by Others - SNG Cost | M30: 25
A31: 531 | D31: Utah | F31: 0 | G31: 0 | H31: 0 | I31: 0 | K31: 0 | L31: =+K31-G31 -> 0 | M31: 26
A32: 532 | E32: Demand | M32: 27
A33: 533 | E33: Commodity | M33: 28
A34: 534 | D34: Wyoming | F34: 0 | G34: 0 | H34: 0 | I34: 0 | K34: 0 | L34: =+K34-G34 -> 0 | M34: 29
A35: 535 | D35: Total | F35: 0 | G35: =SUM(G31:G34) -> 0 | H35: 0 | I35: 0 | K35: 0 | L35: =+K35-G35 -> 0 | M35: 30
A36: 536 | M36: 31
A37: 537 | B37: 800 | C37: Natural Gas Well Head Purchases | M37: 32
A38: 538 | D38: Utah | F38: 501.3286834 | G38: 0 | H38: 0 | I38: 0 | K38: 0 | L38: =+K38-G38 -> 0 | M38: 33
A39: 539 | D39: Wyoming | F39: 16.6613166 | G39: 0 | H39: 0 | I39: 0 | K39: 0 | L39: =+K39-G39 -> 0 | M39: 34
A40: 540 | D40: Total | F40: 517.99 | G40: =SUM(G38:G39) -> 0 | H40: 0 | I40: 0 | K40: 0 | L40: =+K40-G40 -> 0 | M40: 35
A41: 541 | M41: 36
A42: 542 | B42: 801 | C42: Natural Gas Field Line Purchases | M42: 37
A43: 543 | D43: Utah | F43: 0 | G43: 0 | H43: 0 | I43: 0 | K43: 0 | L43: =+K43-G43 -> 0 | M43: 38
A44: 544 | D44: Wyoming | F44: 0 | G44: 0 | H44: 0 | I44: 0 | K44: 0 | L44: =+K44-G44 -> 0 | M44: 39
A45: 545 | D45: Total | F45: 0 | G45: =SUM(G43:G44) -> 0 | H45: 0 | I45: 0 | K45: 0 | L45: =+K45-G45 -> 0 | M45: 40
A46: 546 | M46: 41
A47: 547 | B47: 802 | C47: Natural Gas Gasoline Plant Outlet Purch | M47: 42
A48: 548 | D48: Utah | F48: 0 | G48: 0 | H48: 0 | I48: 0 | K48: 0 | L48: =+K48-G48 -> 0 | M48: 43
A49: 549 | D49: Wyoming | F49: 0 | G49: 0 | H49: 0 | I49: 0 | K49: 0 | L49: =+K49-G49 -> 0 | M49: 44
A50: 550 | D50: Total | F50: 0 | G50: =SUM(G48:G49) -> 0 | H50: 0 | I50: 0 | K50: 0 | L50: =+K50-G50 -> 0 | M50: 45
A51: 551 | M51: 46
A52: 552 | B52: 803 | C52: Natural Gas Trans Line - Purchases | M52: 47
A53: 553 | D53: Utah | F53: 119925534.3 | G53: 123703113.7 | H53: 170372250.8 | I53: 170372250.8 | K53: 170372250.8 | L53: =+K53-G53 -> 46669137.07 | M53: 48
A54: 554 | D54: Wyoming | F54: 4247459.493 | G54: 4364378.595 | H54: 6234248.839 | I54: 6234248.839 | K54: 6234248.839 | L54: =+K54-G54 -> 1869870.244 | M54: 49
A55: 555 | D55: Total | F55: 124172993.8 | G55: =SUM(G53:G54) -> 128067492.3 | H55: 176606499.6 | I55: 176606499.6 | K55: 176606499.6 | L55: =+K55-G55 -> 48539007.31 | M55: 50
A56: 556 | M56: 51
A57: 557 | B57: 804 | C57: Natural Gas City Gate Purch - Resources | M57: 52
A58: 558 | D58: Utah | F58: 0 | G58: 453166.8293 | H58: 2356460.585 | I58: 2356460.585 | K58: 2356460.585 | L58: =+K58-G58 -> 1903293.756 | M58: 53
A59: 559 | D59: Wyoming | F59: 0 | G59: 17878.40071 | H59: 89430.485 | I59: 89430.485 | K59: 89430.485 | L59: =+K59-G59 -> 71552.08429 | M59: 54
A60: 560 | D60: Total | F60: 0 | G60: =SUM(G58:G59) -> 471045.23 | H60: 2445891.07 | I60: 2445891.07 | K60: 2445891.07 | L60: =+K60-G60 -> 1974845.84 | M60: 55
A61: 561 | M61: 56
A62: 562 | B62: 8041 | C62: Natural Gas City Gate Purch - Other | M62: 57
A63: 563 | D63: Utah | F63: 1280667.597 | G63: 0 | H63: 0 | I63: 0 | K63: 0 | L63: =+K63-G63 -> 0 | M63: 58
A64: 564 | D64: Wyoming | F64: 47189.8035 | G64: 0 | H64: 0 | I64: 0 | K64: 0 | L64: =+K64-G64 -> 0 | M64: 59
A65: 565 | D65: Total | F65: 1327857.4 | G65: =SUM(G63:G64) -> 0 | H65: 0 | I65: 0 | K65: 0 | L65: =+K65-G65 -> 0 | M65: 60
A66: 566 | M66: 61
A67: 567 | B67: 805 | C67: Purchased Gas Cost Adj - Other | M67: 62
A68: 568 | D68: Utah | F68: 0 | G68: 0 | H68: 0 | I68: 0 | K68: 0 | L68: =+K68-G68 -> 0 | M68: 63
A69: 569 | D69: Wyoming | F69: 0 | G69: 0 | H69: 0 | I69: 0 | K69: 0 | L69: =+K69-G69 -> 0 | M69: 64
A70: 570 | D70: Total | F70: 0 | G70: =SUM(G68:G69) -> 0 | H70: 0 | I70: 0 | K70: 0 | L70: =+K70-G70 -> 0 | M70: 65
A71: 571 | M71: 66
A72: 572 | B72: 8051 | C72: Purchased Gas Cost Adj - Utah | M72: =+M71+1 -> 67
A73: 573 | D73: Utah | F73: -6988002.483 | G73: 21473393.13 | H73: -41317413.98 | I73: -41317413.98 | K73: -41317413.98 | L73: =+K73-G73 -> -62790807.11 | M73: 68
A74: 574 | D74: Wyoming | F74: -333710.4875 | G74: 700912.2263 | H74: -1373019.413 | I74: -1373019.413 | K74: -1373019.413 | L74: =+K74-G74 -> -2073931.639 | M74: 69
A75: 575 | D75: Total | F75: -7321712.97 | G75: =SUM(G73:G74) -> 22174305.36 | H75: -42690433.39 | I75: -42690433.39 | K75: -42690433.39 | L75: =+K75-G75 -> -64864738.75 | M75: 70
A76: =+A75+1 -> 576 | M76: 71
A77: 577 | B77: 806 | C77: Exchange Gas | M77: 72
A78: 578 | D78: Utah | F78: 0 | G78: -1000132.778 | H78: 7828731.561 | I78: 7828731.561 | K78: 7828731.561 | L78: =+K78-G78 -> 8828864.339 | M78: 73
A79: 579 | D79: Wyoming | F79: 0 | G79: -19835.38238 | H79: 296819.4686 | I79: 296819.4686 | K79: 296819.4686 | L79: =+K79-G79 -> 316654.851 | M79: 74
A80: 580 | D80: Total | F80: 0 | G80: =SUM(G78:G79) -> -1019968.16 | H80: 8125551.03 | I80: 8125551.03 | K80: 8125551.03 | L80: =+K80-G80 -> 9145519.19 | M80: 75
A81: 581 | K81: =IF(HLOOKUP($K$6,$F$6:$I$431,M81,FALSE)="","",HLOOKUP($K$6,$F$6:$I$431,M81,FALSE)) ->  | M81: 76
A82: 582 | B82: 8081 | C82: Gas Withdrawn Underground Storage | M82: 77
A83: 583 | D83: Utah | F83: 70911454.52 | G83: 61260866.42 | H83: 63670235.65 | I83: 63670235.65 | K83: 63670235.65 | L83: =+K83-G83 -> 2409369.227 | M83: 78
A84: 584 | D84: Wyoming | F84: 2569744.06 | G84: 2161990.357 | H84: 2411669.88 | I84: 2411669.88 | K84: 2411669.88 | L84: =+K84-G84 -> 249679.523 | M84: 79
A85: 585 | D85: Total | F85: 73481198.58 | G85: =SUM(G83:G84) -> 63422856.78 | H85: 66081905.53 | I85: 66081905.53 | K85: 66081905.53 | L85: =+K85-G85 -> 2659048.75 | M85: 80
A86: 586 | M86: 81
A87: 587 | B87: 8082 | C87: Gas Delivered to Underground Storage | M87: 82
A88: 588 | D88: Utah | F88: -74590296.67 | G88: -61058440.17 | H88: -65742705.46 | I88: -65742705.46 | K88: -65742705.46 | L88: =+K88-G88 -> -4684265.286 | M88: 83
A89: 589 | D89: Wyoming | F89: -2447988.11 | G89: -2225604.997 | H89: -2137164.181 | I89: -2137164.181 | K89: -2137164.181 | L89: =+K89-G89 -> 88440.81607 | M89: 84
A90: 590 | D90: Total | F90: -77038284.78 | G90: =SUM(G88:G89) -> -63284045.17 | H90: -67879869.64 | I90: -67879869.64 | K90: -67879869.64 | L90: =+K90-G90 -> -4595824.47 | M90: 85
A91: 591 | M91: 86
A92: 592 | B92: 8083 | C92: Exchange Gas | M92: 87
A93: 593 | D93: Utah | F93: 3829995.617 | G93: 2742366.377 | H93: 3041387.152 | I93: 3041387.152 | K93: 3041387.152 | L93: =+K93-G93 -> 299020.7743 | M93: 88
A94: 594 | D94: Wyoming | F94: 138806.3833 | G94: 100029.7227 | H94: 109319.1284 | I94: 109319.1284 | K94: 109319.1284 | L94: =+K94-G94 -> 9289.405735 | M94: 89
A95: 595 | D95: Total | F95: 3968802 | G95: =SUM(G93:G94) -> 2842396.1 | H95: 3150706.28 | I95: 3150706.28 | K95: 3150706.28 | L95: =+K95-G95 -> 308310.18 | M95: 90
A96: 596 | M96: 91
A97: 597 | B97: 813 | C97: Other Gas Supply Expenses - Gas Cost | M97: 92
A98: 598 | D98: Utah | F98: 310247092.6 | G98: 228064227.5 | H98: 235277599.8 | I98: 235277599.8 | K98: 235277599.8 | L98: =+K98-G98 -> 7213372.203 | M98: 93
A99: 599 | D99: Wyoming | F99: 11198142.05 | G99: 8361720.521 | H99: 8411786.728 | I99: 8411786.728 | K99: 8411786.728 | L99: =+K99-G99 -> 50066.20685 | M99: 94
A100: 600 | D100: Total | F100: 321445234.6 | G100: =SUM(G98:G99) -> 236425948.1 | H100: 243689386.5 | I100: 243689386.5 | K100: 243689386.5 | L100: =+K100-G100 -> 7263438.41 | M100: 95
A101: 601 | M101: 96
A102: 602 | B102: 813 | C102: Other Gas Supply Expenses - SNG Cost | M102: 97
A103: 603 | D103: Utah | F103: 0 | G103: 0 | H103: 0 | I103: 0 | K103: 0 | L103: =+K103-G103 -> 0 | M103: 98
A104: 604 | D104: Wyoming | F104: 0 | G104: 0 | H104: 0 | I104: 0 | K104: 0 | L104: =+K104-G104 -> 0 | M104: 99
A105: 605 | D105: Total | F105: 0 | G105: =SUM(G103:G104) -> 0 | H105: 0 | I105: 0 | K105: 0 | L105: =+K105-G105 -> 0 | M105: 100
A106: 606 | M106: 101
A107: 607 | B107: 8135 | C107: CO2 Processing Expenses | M107: 102
A108: 608 | D108: Utah | F108: 0 | G108: 0 | H108: 0 | I108: 0 | K108: 0 | L108: =+K108-G108 -> 0 | M108: 103
A109: 609 | D109: Wyoming | F109: 0 | G109: 0 | H109: 0 | I109: 0 | K109: 0 | L109: =+K109-G109 -> 0 | M109: 104
A110: 610 | D110: Total | F110: 0 | G110: =SUM(G108:G109) -> 0 | H110: 0 | I110: 0 | K110: 0 | L110: =+K110-G110 -> 0 | M110: 105
A111: 611 | M111: 106
A112: 612 | B112: 858 | C112: Transportation GRI & ACA - Gas Cost | M112: 107
A113: 613 | D113: Utah | F113: 66406271.8 | G113: 68758438.7 | H113: 63423326.12 | I113: 63423326.12 | K113: 63423326.12 | L113: =+K113-G113 -> -5335112.582 | M113: 108
A114: 614 | D114: Wyoming | F114: 2404857.589 | G114: 2502667.526 | H114: 2291093.028 | I114: 2291093.028 | K114: 2291093.028 | L114: =+K114-G114 -> -211574.498 | M114: 109
A115: 615 | D115: Total | F115: 68811129.39 | G115: =SUM(G113:G114) -> 71261106.23 | H115: 65714419.15 | I115: 65714419.15 | K115: 65714419.15 | L115: =+K115-G115 -> -5546687.08 | M115: 110
A116: 616 | M116: 111
A117: 617 | B117: 858 | C117: Trans & Comp by Others - SNG Cost | M117: 112
A118: 618 | D118: Utah | F118: 0 | G118: 0 | H118: 0 | I118: 0 | K118: 0 | L118: =+K118-G118 -> 0 | M118: 113
A119: 619 | D119: Wyoming | F119: 0 | G119: 0 | H119: 0 | I119: 0 | K119: 0 | L119: =+K119-G119 -> 0 | M119: 114
A120: 620 | D120: Total | F120: 0 | G120: =SUM(G118:G119) -> 0 | H120: 0 | I120: 0 | K120: 0 | L120: =+K120-G120 -> 0 | M120: 115
A121: 621 | M121: 116
A122: 622 | B122: System Total Gas Purchase Expenses | M122: 117
A123: 623 | C123: Utah General Gas Purchase Exp | F123: 0 | G123: 0 | H123: 0 | I123: 0 | K123: 0 | L123: =+K123-G123 -> 0 | M123: 118
A124: 624 | C124: Utah Pass Through Gas Purchase Exp | F124: 536824955.3 | G124: 480123226.3 | H124: 511963937.9 | I124: 511963937.9 | K124: 511963937.9 | L124: 31840711.55 | M124: 119
A125: 625 | C125: Wyoming General Gas Purchase Exp | F125: 0 | G125: 0 | H125: 0 | I125: 0 | K125: 0 | L125: 0 | M125: 120
A126: 626 | C126: Wyoming Pass Through Gas Purch Exp | F126: 18575633.42 | G126: 17254376.64 | H126: 18614345.7 | I126: 18614345.7 | K126: 18614345.7 | L126: 1359969.057 | M126: 121
A127: 627 | C127: Utah Timing Differences | F127: -360521.4643 | G127: 3811994.517 | H127: 2845700.948 | I127: 2845700.948 | K127: 2845700.948 | L127: -966293.5681 | M127: 122
A128: 628 | C128: Wyoming Timing Differences | F128: 909617.2603 | G128: -1028564.798 | H128: -164553.1884 | I128: -164553.1884 | K128: -164553.1884 | L128: 864011.6093 | M128: 123
A129: 629 | M129: 124
A130: 630 | M130: 125
A131: 631 | C131: System Total Gas Purchase Expenses | F131: 555949684.6 | G131: =G18+G23+G28+G35+G40+G45+G50+G55+G60+G65+G70+G75+G80+G85+G90+G95+G100+G105+G110+G115+G120+G127+G128 -> 500161032.7 | H131: 533259431.3 | I131: 533259431.3 | K131: 533259431.3 | L131: =+K131-G131 -> 33098398.65 | M131: 126
A132: 632 | G132: =SUM(G123:G126) -> 497377603 | H132: =SUM(H123:H126) -> 530578283.6 | I132: =SUM(I123:I126) -> 530578283.6 | K132: 530578283.6 | M132: 127
A133: 633 | M133: 128
A134: 634 | B134: OPERATION AND MAINTENANCE EXPENSES | M134: 129
A135: 635 | M135: 130
A136: 636 | B136: Production Expenses | M136: =+M135+1 -> 131
A137: 637 | M137: 132
A138: 638 | B138: 810 | C138: Gas Used for Compressor Station Fuel | F138: -14233 | G138: -5226 | H138: ='PROJECTED EXPENSES'!AU10 -> -5728.9571 | I138: ='PROJECTED EXPENSES'!AV10 -> -5781.548926 | K138: -5728.9571 | L138: =+K138-G138 -> -502.9571 | M138: 133
A139: 639 | B139: 812 | C139: Gas Used for Other Utility Operations | F139: -893091.93 | G139: -297360.2 | H139: ='PROJECTED EXPENSES'!AU11 -> -282482.9366 | I139: ='PROJECTED EXPENSES'!AV11 -> -285076.13 | K139: -282482.9366 | L139: =+K139-G139 -> 14877.26336 | M139: 134
A140: =+A139+1 -> 640 | M140: 135
A141: 641 | C141: Total Production Expenses | F141: -907324.93 | G141: =SUM(G138:G139) -> -302586.2 | H141: =SUM(H138:H139) -> -288211.8937 | I141: =SUM(I138:I139) -> -290857.6789 | K141: -288211.8937 | L141: =+K141-G141 -> 14374.30626 | M141: 136
A142: 642 | M142: 137
A143: 643 | B143: Distribution Operations & Maintenance Expenses | M143: 138
A144: 644 | M144: 139
A145: 645 | B145: 870 | C145: Operation Supervision & Engineering | K145: =IF(HLOOKUP($K$6,$F$6:$I$431,M145,FALSE)="","",HLOOKUP($K$6,$F$6:$I$431,M145,FALSE)) ->  | M145: 140
A146: 646 | D146: Utah | F146: 11130355.12 | G146: 7153196.74 | H146: ='PROJECTED EXPENSES'!AU18 -> 7164979.183 | I146: ='PROJECTED EXPENSES'!AV18 -> 7469770.408 | K146: 7164979.183 | L146: =+K146-G146 -> 11782.44305 | M146: 141
A147: 647 | D147: Wyoming | F147: 643277.56 | G147: 528944.96 | H147: ='PROJECTED EXPENSES'!AU19 -> 524841.9841 | I147: ='PROJECTED EXPENSES'!AV19 -> 547827.2092 | K147: 524841.9841 | L147: =+K147-G147 -> -4102.975876 | M147: 142
A148: 648 | D148: Total | F148: 11773632.68 | G148: =SUM(G146:G147) -> 7682141.7 | H148: =SUM(H146:H147) -> 7689821.167 | I148: =SUM(I146:I147) -> 8017597.617 | K148: 7689821.167 | L148: =+K148-G148 -> 7679.467178 | M148: 143
A149: 649 | M149: 144
A150: 650 | B150: 871 | C150: Distribution Load Dispatching | M150: 145
A151: 651 | D151: Utah | F151: 1879996.22 | G151: 1232325.75 | H151: ='PROJECTED EXPENSES'!AU23 -> 1295334.86 | I151: ='PROJECTED EXPENSES'!AV23 -> 1408827.742 | K151: 1295334.86 | L151: =+K151-G151 -> 63009.10998 | M151: 146
A152: 652 | D152: Wyoming | F152: 30806.41 | G152: 36504.52 | H152: ='PROJECTED EXPENSES'!AU24 -> 38446.68745 | I152: ='PROJECTED EXPENSES'!AV24 -> 41814.37902 | K152: 38446.68745 | L152: =+K152-G152 -> 1942.167448 | M152: 147
A153: 653 | D153: Total | F153: 1910802.63 | G153: =SUM(G151:G152) -> 1268830.27 | H153: =SUM(H151:H152) -> 1333781.547 | I153: =SUM(I151:I152) -> 1450642.121 | K153: 1333781.547 | L153: =+K153-G153 -> 64951.27743 | M153: 148
A154: 654 | M154: 149
A155: 655 | B155: 872 | C155: Compressor Station Labor & Expenses | M155: 150
A156: 656 | D156: Utah | F156: 0 | G156: 0 | H156: ='PROJECTED EXPENSES'!AU28 -> 0 | I156: ='PROJECTED EXPENSES'!AV28 -> 0 | K156: 0 | L156: =+K156-G156 -> 0 | M156: 151
A157: 657 | D157: Wyoming | F157: 0 | G157: 0 | H157: ='PROJECTED EXPENSES'!AU29 -> 0 | I157: ='PROJECTED EXPENSES'!AV29 -> 0 | K157: 0 | L157: =+K157-G157 -> 0 | M157: 152
A158: 658 | D158: Total | F158: 0 | G158: =SUM(G156:G157) -> 0 | H158: =SUM(H156:H157) -> 0 | I158: =SUM(I156:I157) -> 0 | K158: 0 | L158: =+K158-G158 -> 0 | M158: 153
A159: 659 | M159: 154
A160: 660 | B160: 873 | C160: Compressor Station Fuel & Power | M160: 155
A161: 661 | D161: Utah | F161: 14233 | G161: 0 | H161: ='PROJECTED EXPENSES'!AU33 -> 0 | I161: ='PROJECTED EXPENSES'!AV33 -> 0 | K161: 0 | L161: =+K161-G161 -> 0 | M161: 156
A162: 662 | D162: Wyoming | F162: 0 | G162: 0 | H162: ='PROJECTED EXPENSES'!AU34 -> 0 | I162: ='PROJECTED EXPENSES'!AV34 -> 0 | K162: 0 | L162: =+K162-G162 -> 0 | M162: 157
A163: 663 | D163: Total | F163: 14233 | G163: =SUM(G161:G162) -> 0 | H163: =SUM(H161:H162) -> 0 | I163: =SUM(I161:I162) -> 0 | K163: 0 | L163: =+K163-G163 -> 0 | M163: 158
A164: 664 | M164: 159
A165: 665 | B165: 874 | C165: Mains & Service Expenses | M165: 160
A166: 666 | D166: Utah | F166: 12278206.64 | G166: 15646804.39 | H166: ='PROJECTED EXPENSES'!AU38 -> 16211261.73 | I166: ='PROJECTED EXPENSES'!AV38 -> 16718004.53 | K166: 16211261.73 | L166: =+K166-G166 -> 564457.3398 | M166: 161
A167: 667 | D167: Wyoming | F167: 451742.14 | G167: 546417.46 | H167: ='PROJECTED EXPENSES'!AU39 -> 557395.1652 | I167: ='PROJECTED EXPENSES'!AV39 -> 574728.9709 | K167: 557395.1652 | L167: =+K167-G167 -> 10977.70522 | M167: 162
A168: 668 | D168: Total | F168: 12729948.78 | G168: =SUM(G166:G167) -> 16193221.85 | H168: =SUM(H166:H167) -> 16768656.9 | I168: =SUM(I166:I167) -> 17292733.5 | K168: 16768656.9 | L168: =+K168-G168 -> 575435.045 | M168: 163
A169: 669 | M169: 164
A170: 670 | B170: 875 | C170: Measuring & Regulating Station Expenses | M170: 165
A171: 671 | D171: Utah | F171: 2204987.88 | G171: 2678161.42 | H171: ='PROJECTED EXPENSES'!AU43 -> 2814715.553 | I171: ='PROJECTED EXPENSES'!AV43 -> 2995865.544 | K171: 2814715.553 | L171: =+K171-G171 -> 136554.1333 | M171: 166
A172: 672 | D172: Wyoming | F172: 139069.87 | G172: 82742.64 | H172: ='PROJECTED EXPENSES'!AU44 -> 85546.22672 | I172: ='PROJECTED EXPENSES'!AV44 -> 91071.44817 | K172: 85546.22672 | L172: =+K172-G172 -> 2803.586722 | M172: 167
A173: 673 | D173: Total | F173: 2344057.75 | G173: =SUM(G171:G172) -> 2760904.06 | H173: =SUM(H171:H172) -> 2900261.78 | I173: =SUM(I171:I172) -> 3086936.992 | K173: 2900261.78 | L173: =+K173-G173 -> 139357.72 | M173: 168
A174: 674 | M174: 169
A175: 675 | B175: 878 | C175: Meter & House Regulator Expenses | M175: 170
A176: 676 | D176: Utah | F176: 2725264.35 | G176: 2604101.59 | H176: ='PROJECTED EXPENSES'!AU48 -> 2567131.133 | I176: ='PROJECTED EXPENSES'!AV48 -> 2764192.767 | K176: 2567131.133 | L176: =+K176-G176 -> -36970.45678 | M176: 171
A177: 677 | D177: Wyoming | F177: 214421.77 | G177: 222977 | H177: ='PROJECTED EXPENSES'!AU49 -> 186105.3643 | I177: ='PROJECTED EXPENSES'!AV49 -> 200535.019 | K177: 186105.3643 | L177: =+K177-G177 -> -36871.63566 | M177: 172
A178: 678 | D178: Total | F178: 2939686.12 | G178: =SUM(G176:G177) -> 2827078.59 | H178: =SUM(H176:H177) -> 2753236.498 | I178: =SUM(I176:I177) -> 2964727.786 | K178: 2753236.498 | L178: =+K178-G178 -> -73842.09244 | M178: 173
A179: 679 | M179: 174
A180: 680 | B180: 879 | C180: Customer Installations Expenses | M180: 175
A181: 681 | D181: Utah | F181: 2960079.4 | G181: 1961163.5 | H181: ='PROJECTED EXPENSES'!AU53 -> 1860366.088 | I181: ='PROJECTED EXPENSES'!AV53 -> 2016420.711 | K181: 1860366.088 | L181: =+K181-G181 -> -100797.4117 | M181: 176
A182: 682 | D182: Wyoming | F182: 118847.08 | G182: 74734.93 | H182: ='PROJECTED EXPENSES'!AU54 -> 60163.43734 | I182: ='PROJECTED EXPENSES'!AV54 -> 65341.92781 | K182: 60163.43734 | L182: =+K182-G182 -> -14571.49266 | M182: 177
A183: 683 | D183: Total | F183: 3078926.48 | G183: =SUM(G181:G182) -> 2035898.43 | H183: =SUM(H181:H182) -> 1920529.526 | I183: =SUM(I181:I182) -> 2081762.639 | K183: 1920529.526 | L183: =+K183-G183 -> -115368.9044 | M183: 178
A184: 684 | M184: 179
A185: 685 | B185: 880 | C185: Other Expenses | M185: 180
A186: 686 | D186: Utah | F186: 7913746.81 | G186: 16053809.32 | H186: ='PROJECTED EXPENSES'!AU58 -> 15409058.89 | I186: ='PROJECTED EXPENSES'!AV58 -> 16089047.38 | K186: 15409058.89 | L186: =+K186-G186 -> -644750.4261 | M186: 181
A187: 687 | D187: Wyoming | F187: 652900.72 | G187: 1272865.1 | H187: ='PROJECTED EXPENSES'!AU59 -> 1202269.24 | I187: ='PROJECTED EXPENSES'!AV59 -> 1256627.219 | K187: 1202269.24 | L187: =+K187-G187 -> -70595.86018 | M187: 182
A188: 688 | D188: Total | F188: 8566647.53 | G188: =SUM(G186:G187) -> 17326674.42 | H188: =SUM(H186:H187) -> 16611328.13 | I188: =SUM(I186:I187) -> 17345674.6 | K188: 16611328.13 | L188: =+K188-G188 -> -715346.2863 | M188: 183
A189: 689 | M189: 184
A190: 690 | B190: 881 | C190: Rents | M190: 185
A191: 691 | D191: Utah | F191: 42721.05 | G191: 27543.14 | H191: ='PROJECTED EXPENSES'!AU63 -> 9555.550011 | I191: ='PROJECTED EXPENSES'!AV63 -> 10307.54737 | K191: 9555.550011 | L191: =+K191-G191 -> -17987.58999 | M191: 186
A192: 692 | D192: Wyoming | F192: 1403.79 | G192: 293.73 | H192: ='PROJECTED EXPENSES'!AU64 -> 316.0286365 | I192: ='PROJECTED EXPENSES'!AV64 -> 340.9014515 | K192: 316.0286365 | L192: =+K192-G192 -> 22.29863653 | M192: 187
A193: 693 | D193: Total | F193: 44124.84 | G193: =SUM(G191:G192) -> 27836.87 | H193: =SUM(H191:H192) -> 9871.578648 | I193: =SUM(I191:I192) -> 10648.44882 | K193: 9871.578648 | L193: =+K193-G193 -> -17965.29135 | M193: 188
A194: 694 | M194: 189
A195: 695 | B195: 885 | C195: Maintenance Supervision & Engineering | M195: 190
A196: 696 | D196: Utah | F196: 542083.93 | G196: 270450.35 | H196: ='PROJECTED EXPENSES'!AU68 -> 194950.2987 | I196: ='PROJECTED EXPENSES'!AV68 -> 211494.9093 | K196: 194950.2987 | L196: =+K196-G196 -> -75500.05132 | M196: 191
A197: 697 | D197: Wyoming | F197: 16345.48 | G197: 0 | H197: ='PROJECTED EXPENSES'!AU69 -> 0 | I197: ='PROJECTED EXPENSES'!AV69 -> 0 | K197: 0 | L197: =+K197-G197 -> 0 | M197: 192
A198: 698 | D198: Total | F198: 558429.41 | G198: =SUM(G196:G197) -> 270450.35 | H198: =SUM(H196:H197) -> 194950.2987 | I198: =SUM(I196:I197) -> 211494.9093 | K198: 194950.2987 | L198: =+K198-G198 -> -75500.05132 | M198: 193
A199: 699 | M199: 194
A200: 700 | B200: 886 | C200: Maintenance of Structures & Improvements | M200: =+M199+1 -> 195
... 250 more rows

Sheet Rate Base
B1: Rate Base
B2: ='Control Panel'!$B$1 -> Dominion Energy | AU2: Rate Base | AY2: A | AZ2: B | BA2: (A - B)
B3: ='Control Panel'!$B$2 -> Utah - DEC 2021 Adjusted Avg Results | AU3: ='Control Panel'!$B$1 -> Dominion Energy
B4: ='Control Panel'!$B$3 -> 12 Months Ended : Dec-2021 | AU4: ='Control Panel'!$B$2 -> Utah - DEC 2021 Adjusted Avg Results
AG5: 13 Month | AU5: ='Control Panel'!$B$3 -> 12 Months Ended : Dec-2021
AG6: Average | AZ6: 13 Month
AG7: All Accounts | AQ7: HOT | AZ7: Average | BA7: 13 Month
AG8: =+AE9 -> 2020-12-16 | AI8: YE RB DEC 2020 | AJ8: AVG RB DEC 2020 | AK8: AVG RB DEC 2021 | AL8: YE RB DEC 2021 | AM8: AVG RB DEC 2022 | AN8: YE RB DEC 2022 | AP8: =+'Control Panel'!B27 -> AVG RB DEC 2021 | AR8: 1 | AS8: 1 | AY8: Balance | AZ8: All Accounts | BA8: Average
B9: FERC Acct | D9: Description | H9: 2019-01-21 | I9: 2019-02-20 | J9: 2019-03-21 | K9: 2019-04-20 | L9: 2019-05-20 | M9: 2019-06-19 | N9: 2019-07-19 | O9: 2019-08-18 | P9: 2019-09-17 | Q9: 2019-10-17 | R9: 2019-11-16 | S9: 2019-12-16 | T9: 2020-01-21 | U9: 2020-02-20 | V9: 2020-03-21 | W9: 2020-04-20 | X9: 2020-05-20 | Y9: 2020-06-19 | Z9: 2020-07-19 | AA9: 2020-08-18 | AB9: 2020-09-17 | AC9: 2020-10-17 | AD9: 2020-11-16 | AE9: 2020-12-16 | AQ9: Adjustment | AR9: =+AR8+1 -> 2 | AS9: =+AS8+1 -> 2 | AU9: FERC Acct | AW9: Description | AY9: =AE9 -> 2020-12-16 | AZ9: =+'Control Panel'!B27 -> AVG RB DEC 2021 | BA9: Adjustment
A10: 939 | B10: UTILITy RATE BASE | AR10: 3 | AS10: 3 | AU10: UTILITY RATE BASE
A11: =+A10+1 -> 940 | B11: NET UTILITy PLANT | AR11: =+AR10+1 -> 4 | AS11: 4 | AU11: NET UTILITY PLANT
A12: =+A11+1 -> 941 | B12: Gas Plant In Seryice | AR12: 5 | AS12: 5 | AU12: Gas Plant In Seryice
A13: 942 | C13: Intangible Plant | AR13: 6 | AS13: 6 | AV13: Intangible Plant
A14: 943 | B14: 302 | C14: Franchises & Consents | AR14: 7 | AS14: 7 | AU14: 302 | AV14: Franchises & Consents
A15: 944 | C15: Distribution - Wyoming | H15: 10883.08 | I15: 10883.08 | J15: 10883.08 | K15: 10883.08 | L15: 10883.08 | M15: 10883.08 | N15: 10883.08 | O15: 10883.08 | P15: 10883.08 | Q15: 10883.08 | R15: 10883.08 | S15: 10883.08 | T15: 10883.08 | U15: 10883.08 | V15: 10883.08 | W15: 10883.08 | X15: 10883.08 | Y15: 10883.08 | Z15: 10883.08 | AA15: 10883.08 | AB15: 10883.08 | AC15: 10883.08 | AD15: 10883.08 | AE15: 10883.08 | AG15: =(SUM(T15:AD15)+(0.5*AE15)+(0.5*S15))/12 -> 10883.08 | AI15: =AE15 -> 10883.08 | AJ15: =AG15 -> 10883.08 | AK15: =+'RB FORECAST'!AJ17 -> 10883.08 | AL15: =+'RB FORECAST'!AG17 -> 10883.08 | AM15: =+'RB FORECAST'!BA17 -> 10883.08 | AN15: =+'RB FORECAST'!AW17 -> 10883.08 | AP15: =HLOOKUP($AP$8,RateBaseScenarios,AR15,FALSE) -> 10883.08 | AQ15: =AP15-AE15 -> 0 | AR15: 8 | AS15: 3 | AV15: Distribution - Wyoming | AY15: =+AE15 -> 10883.08 | AZ15: =AP15 -> 10883.08 | BA15: =AZ15-AY15 -> 0
A16: 945 | C16: Distribution - Utah | H16: 58742.88 | I16: 58742.88 | J16: 58742.88 | K16: 58742.88 | L16: 58742.88 | M16: 58742.88 | N16: 58742.88 | O16: 58742.88 | P16: 58742.88 | Q16: 58742.88 | R16: 58742.88 | S16: 58742.88 | T16: 58742.88 | U16: 58742.88 | V16: 58742.88 | W16: 58742.88 | X16: 58742.88 | Y16: 58742.88 | Z16: 58742.88 | AA16: 58742.88 | AB16: 58742.88 | AC16: 58742.88 | AD16: 58742.88 | AE16: 58742.88 | AG16: =(SUM(T16:AD16)+(0.5*AE16)+(0.5*S16))/12 -> 58742.88 | AI16: =AE16 -> 58742.88 | AJ16: =AG16 -> 58742.88 | AK16: =+'RB FORECAST'!AJ18 -> 58742.88 | AL16: =+'RB FORECAST'!AG18 -> 58742.88 | AM16: =+'RB FORECAST'!BA18 -> 58742.88 | AN16: =+'RB FORECAST'!AW18 -> 58742.88 | AP16: =HLOOKUP($AP$8,RateBaseScenarios,AR16,FALSE) -> 58742.88 | AQ16: =AP16-AE16 -> 0 | AR16: 9 | AS16: 4 | AV16: Distribution - Utah | AY16: =+AE16 -> 58742.88 | AZ16: =AP16 -> 58742.88 | BA16: =AZ16-AY16 -> 0
A17: 946 | AR17: 10 | AS17: 5
A18: 947 | C18: Total Intangible Plant | H18: =SUM(H15:H16) -> 69625.96 | I18: =SUM(I15:I16) -> 69625.96 | J18: =SUM(J15:J16) -> 69625.96 | K18: 69625.96 | L18: 69625.96 | M18: 69625.96 | N18: 69625.96 | O18: 69625.96 | P18: 69625.96 | Q18: 69625.96 | R18: 69625.96 | S18: 69625.96 | T18: 69625.96 | U18: 69625.96 | V18: 69625.96 | W18: 69625.96 | X18: 69625.96 | Y18: 69625.96 | Z18: 69625.96 | AA18: 69625.96 | AB18: 69625.96 | AC18: 69625.96 | AD18: 69625.96 | AE18: 69625.96 | AG18: =SUM(AG15:AG16) -> 69625.96 | AI18: =AE18 -> 69625.96 | AJ18: =AG18 -> 69625.96 | AK18: =SUM(AK15:AK17) -> 69625.96 | AL18: =SUM(AL15:AL17) -> 69625.96 | AM18: =SUM(AM15:AM17) -> 69625.96 | AN18: 69625.96 | AP18: =HLOOKUP($AP$8,RateBaseScenarios,AR18,FALSE) -> 69625.96 | AQ18: =SUM(AQ15:AQ17) -> 0 | AR18: 11 | AS18: 6 | AV18: Total Intangible Plant | AY18: =AI18 -> 69625.96 | AZ18: =AJ18 -> 69625.96 | BA18: =AZ18-AY18 -> 0
A19: 948 | AR19: 12 | AS19: 7
A20: 949 | C20: Production & Gathering Plant | AR20: 13 | AS20: 8 | AV20: Production & Gathering Plant
A21: 950 | B21: 325 | C21: Land & Land Rights | H21: 6266764.34 | I21: 6266764.34 | J21: 6266764.34 | K21: 6266764.34 | L21: 6266764.34 | M21: 6266764.34 | N21: 6266764.34 | O21: 6266764.34 | P21: 6266764.34 | Q21: 6266764.34 | R21: 6266764.34 | S21: 6266764.34 | T21: 6266764.34 | U21: 6266764.34 | V21: 6266764.34 | W21: 6928494.53 | X21: 6928494.53 | Y21: 6928494.53 | Z21: 6928494.53 | AA21: 6928494.53 | AB21: 6928494.53 | AC21: 6928494.53 | AD21: 6928494.53 | AE21: 6266764.34 | AG21: =(SUM(T21:AD21)+(0.5*AE21)+(0.5*S21))/12 -> 6707917.8 | AI21: =AE21 -> 6266764.34 | AJ21: =AG21 -> 6707917.8 | AK21: =+'RB FORECAST'!AJ23 -> 6266764.34 | AL21: =+'RB FORECAST'!AG23 -> 6266764.34 | AM21: =+'RB FORECAST'!BA23 -> 6266764.34 | AN21: =+'RB FORECAST'!AW23 -> 6266764.34 | AP21: =HLOOKUP($AP$8,RateBaseScenarios,AR21,FALSE) -> 6266764.34 | AQ21: =AP21-AE21 -> 0 | AR21: 14 | AS21: 9 | AU21: 325 | AV21: Land & Land Rights | AY21: =+AE21 -> 6266764.34 | AZ21: =AP21 -> 6266764.34 | BA21: =AZ21-AY21 -> 0
A22: 951 | B22: 326...9 | C22: Structures | H22: 1437704.34 | I22: 1437704.34 | J22: 1437704.34 | K22: 1437704.34 | L22: 1437704.34 | M22: 1437704.34 | N22: 1437704.34 | O22: 1437704.34 | P22: 1437704.34 | Q22: 1437704.34 | R22: 1437704.34 | S22: 1437704.34 | T22: 1437704.34 | U22: 1437704.34 | V22: 1437704.34 | W22: 1437704.34 | X22: 1437704.34 | Y22: 5404647.36 | Z22: 5404647.36 | AA22: 5404647.36 | AB22: 5404647.36 | AC22: 5404647.36 | AD22: 5404647.36 | AE22: 1437704.34 | AG22: =(SUM(T22:AD22)+(0.5*AE22)+(0.5*S22))/12 -> 3421175.85 | AI22: =AE22 -> 1437704.34 | AJ22: =AG22 -> 3421175.85 | AK22: =+'RB FORECAST'!AJ24 -> 1437704.34 | AL22: =+'RB FORECAST'!AG24 -> 1437704.34 | AM22: =+'RB FORECAST'!BA24 -> 1437704.34 | AN22: =+'RB FORECAST'!AW24 -> 1437704.34 | AP22: 1437704.34 | AQ22: 0 | AR22: 15 | AS22: 10 | AU22: 326...9 | AV22: Structures | AY22: 1437704.34 | AZ22: 1437704.34 | BA22: 0
A23: 952 | B23: 330 | C23: Gas Wells - Construction | H23: 52175293.81 | I23: 52175293.81 | J23: 52175293.81 | K23: 52175293.81 | L23: 52175293.81 | M23: 52175293.81 | N23: 52175293.81 | O23: 52175293.81 | P23: 52175293.81 | Q23: 52175293.81 | R23: 52175293.81 | S23: 52175293.81 | T23: 52175293.81 | U23: 52175293.81 | V23: 52175293.81 | W23: 52175293.81 | X23: 52175293.81 | Y23: 52175293.81 | Z23: 52175293.81 | AA23: 52175293.81 | AB23: 52175293.81 | AC23: 52175293.81 | AD23: 52175293.81 | AE23: 52175293.81 | AG23: =(SUM(T23:AD23)+(0.5*AE23)+(0.5*S23))/12 -> 52175293.81 | AI23: 52175293.81 | AJ23: 52175293.81 | AK23: =+'RB FORECAST'!AJ25 -> 52175293.81 | AL23: =+'RB FORECAST'!AG25 -> 52175293.81 | AM23: =+'RB FORECAST'!BA25 -> 52175293.81 | AN23: =+'RB FORECAST'!AW25 -> 52175293.81 | AP23: 52175293.81 | AQ23: 0 | AR23: 16 | AS23: 11 | AU23: 330 | AV23: Gas Wells - Construction | AY23: 52175293.81 | AZ23: 52175293.81 | BA23: 0
A24: 953 | B24: 331 | C24: Gas Wells - Equipment | H24: 17216356.05 | I24: 17216356.05 | J24: 17216356.05 | K24: 17216356.05 | L24: 17216356.05 | M24: 17216356.05 | N24: 17216356.05 | O24: 17216356.05 | P24: 17216356.05 | Q24: 17216356.05 | R24: 17216356.05 | S24: 17216356.05 | T24: 17216356.05 | U24: 17216356.05 | V24: 17216356.05 | W24: 17216356.05 | X24: 17216356.05 | Y24: 17216356.05 | Z24: 17216356.05 | AA24: 17216356.05 | AB24: 17216356.05 | AC24: 17216356.05 | AD24: 17216356.05 | AE24: 17216356.05 | AG24: 17216356.05 | AI24: 17216356.05 | AJ24: 17216356.05 | AK24: =+'RB FORECAST'!AJ26 -> 17216356.05 | AL24: =+'RB FORECAST'!AG26 -> 17216356.05 | AM24: =+'RB FORECAST'!BA26 -> 17216356.05 | AN24: =+'RB FORECAST'!AW26 -> 17216356.05 | AP24: 17216356.05 | AQ24: 0 | AR24: 17 | AS24: 12 | AU24: 331 | AV24: Gas Wells - Equipment | AY24: 17216356.05 | AZ24: 17216356.05 | BA24: 0
A25: 954 | B25: 332...4 | C25: Field Lines & Comp, Meas & Reg St Eqpt | H25: 2693816.12 | I25: 2693816.12 | J25: 2693816.12 | K25: 2693816.12 | L25: 2693816.12 | M25: 2693816.12 | N25: 2693816.12 | O25: 2693816.12 | P25: 2693816.12 | Q25: 2693816.12 | R25: 2693816.12 | S25: 2693816.12 | T25: 2693816.12 | U25: 2693816.12 | V25: 3359925.36 | W25: 3359925.36 | X25: 3359925.36 | Y25: 3359925.36 | Z25: 3359925.36 | AA25: 3359925.36 | AB25: 3359925.36 | AC25: 3359925.36 | AD25: 3359925.36 | AE25: 2693816.12 | AG25: 3193398.05 | AI25: 2693816.12 | AJ25: 3193398.05 | AK25: =+'RB FORECAST'!AJ27 -> 2693816.12 | AL25: =+'RB FORECAST'!AG27 -> 2693816.12 | AM25: =+'RB FORECAST'!BA27 -> 2693816.12 | AN25: =+'RB FORECAST'!AW27 -> 2693816.12 | AP25: 2693816.12 | AQ25: 0 | AR25: 18 | AS25: 13 | AU25: 332...4 | AV25: Field Lines & Comp, Meas & Reg St Eqpt | AY25: 2693816.12 | AZ25: 2693816.12 | BA25: 0
A26: 955 | B26: 336 | C26: Purification Equipment | H26: 57014.71 | I26: 57014.71 | J26: 57014.71 | K26: 57014.71 | L26: 57014.71 | M26: 57014.71 | N26: 57014.71 | O26: 57014.71 | P26: 57014.71 | Q26: 57014.71 | R26: 57014.71 | S26: 57014.71 | T26: 57014.71 | U26: 57014.71 | V26: 57014.71 | W26: 57014.71 | X26: 57014.71 | Y26: 57014.71 | Z26: 57014.71 | AA26: 57014.71 | AB26: 57014.71 | AC26: 57014.71 | AD26: 57014.71 | AE26: 57014.71 | AG26: 57014.71 | AI26: 57014.71 | AJ26: 57014.71 | AK26: =+'RB FORECAST'!AJ28 -> 57014.71 | AL26: =+'RB FORECAST'!AG28 -> 57014.71 | AM26: =+'RB FORECAST'!BA28 -> 57014.71 | AN26: =+'RB FORECAST'!AW28 -> 57014.71 | AP26: 57014.71 | AQ26: 0 | AR26: 19 | AS26: 14 | AU26: 336 | AV26: Purification Equipment | AY26: 57014.71 | AZ26: 57014.71 | BA26: 0
A27: 956 | B27: 337 | C27: Other Equipment | H27: 121186.63 | I27: 121186.63 | J27: 121186.63 | K27: 121186.63 | L27: 121186.63 | M27: 121186.63 | N27: 121186.63 | O27: 121186.63 | P27: 121186.63 | Q27: 121186.63 | R27: 121186.63 | S27: 121186.63 | T27: 121186.63 | U27: 121186.63 | V27: 121186.63 | W27: 121186.63 | X27: 121186.63 | Y27: 121186.63 | Z27: 121186.63 | AA27: 121186.63 | AB27: 121186.63 | AC27: 121186.63 | AD27: 121186.63 | AE27: 121186.63 | AG27: 121186.63 | AI27: 121186.63 | AJ27: 121186.63 | AK27: =+'RB FORECAST'!AJ29 -> 121186.63 | AL27: =+'RB FORECAST'!AG29 -> 121186.63 | AM27: =+'RB FORECAST'!BA29 -> 121186.63 | AN27: =+'RB FORECAST'!AW29 -> 121186.63 | AP27: 121186.63 | AQ27: 0 | AR27: 20 | AS27: 15 | AU27: 337 | AV27: Other Equipment | AY27: 121186.63 | AZ27: 121186.63 | BA27: 0
A28: 957 | AR28: 21 | AS28: 16
A29: 958 | C29: Total Production & Gathering Plant | H29: =SUM(H21:H27) -> 79968136 | I29: =SUM(I21:I27) -> 79968136 | J29: 79968136 | K29: 79968136 | L29: 79968136 | M29: 79968136 | N29: 79968136 | O29: 79968136 | P29: 79968136 | Q29: 79968136 | R29: 79968136 | S29: 79968136 | T29: 79968136 | U29: 79968136 | V29: 80634245.24 | W29: 81295975.43 | X29: 81295975.43 | Y29: 85262918.45 | Z29: 85262918.45 | AA29: 85262918.45 | AB29: 85262918.45 | AC29: 85262918.45 | AD29: 85262918.45 | AE29: 79968136 | AG29: =SUM(AG21:AG27) -> 82892342.9 | AI29: =AE29 -> 79968136 | AJ29: =AG29 -> 82892342.9 | AK29: =SUM(AK21:AK27) -> 79968136 | AL29: =SUM(AL21:AL27) -> 79968136 | AM29: =SUM(AM21:AM27) -> 79968136 | AN29: 79968136 | AP29: =HLOOKUP($AP$8,RateBaseScenarios,AR29,FALSE) -> 79968136 | AQ29: =SUM(AQ21:AQ27) -> 0 | AR29: 22 | AS29: 17 | AV29: Total Production & Gathering Plant | AY29: =AI29 -> 79968136 | AZ29: =AJ29 -> 82892342.9 | BA29: =AZ29-AY29 -> 2924206.9
A30: 959 | AR30: 23 | AS30: 18
A31: 960 | C31: Distribution Plant | AR31: 24 | AS31: 19 | AV31: Distribution Plant
A32: 961 | B32: 374 | C32: Land & Land Rights | AR32: 25 | AS32: 20 | AU32: 374 | AV32: Land & Land Rights
A33: 962 | D33: Wyoming | H33: 451318.04 | I33: 451318.04 | J33: 451318.04 | K33: 451318.04 | L33: 451318.04 | M33: 451318.04 | N33: 451318.04 | O33: 451318.04 | P33: 451318.04 | Q33: 451318.04 | R33: 451318.04 | S33: 451318.04 | T33: 451318.04 | U33: 451318.04 | V33: 451318.04 | W33: 451318.04 | X33: 451318.04 | Y33: 451318.04 | Z33: 451318.04 | AA33: 451318.04 | AB33: 451318.04 | AC33: 451318.04 | AD33: 451318.04 | AE33: 451318.04 | AG33: =(SUM(T33:AD33)+(0.5*AE33)+(0.5*S33))/12 -> 451318.04 | AI33: =AE33 -> 451318.04 | AJ33: =AG33 -> 451318.04 | AK33: =+'RB FORECAST'!AJ35 -> 457781.8257 | AL33: =+'RB FORECAST'!AG35 -> 483550.7223 | AM33: =+'RB FORECAST'!BA35 -> 497244.5753 | AN33: =+'RB FORECAST'!AW35 -> 500958.872 | AP33: =HLOOKUP($AP$8,RateBaseScenarios,AR33,FALSE) -> 457781.8257 | AQ33: =AP33-AE33 -> 6463.785713 | AR33: 26 | AS33: 21 | AW33: Wyoming | AY33: =+AE33 -> 451318.04 | AZ33: =AP33 -> 457781.8257 | BA33: =AZ33-AY33 -> 6463.785713
A34: 963 | D34: Utah | H34: 20020372.44 | I34: 20020372.44 | J34: 20020372.44 | K34: 20020372.44 | L34: 20020372.44 | M34: 20020372.44 | N34: 20020372.44 | O34: 20020372.44 | P34: 20020372.44 | Q34: 20020372.44 | R34: 20021728.76 | S34: 21540535.72 | T34: 21540535.72 | U34: 21540535.72 | V34: 22684739.36 | W34: 22684739.36 | X34: 22684739.36 | Y34: 22687236.36 | Z34: 22687236.36 | AA34: 22687236.36 | AB34: 22687820.37 | AC34: 22687820.37 | AD34: 22689814.57 | AE34: 22694563.12 | AG34: =(SUM(T34:AD34)+(0.5*AE34)+(0.5*S34))/12 -> 22448333.61 | AI34: =AE34 -> 22694563.12 | AJ34: =AG34 -> 22448333.61 | AK34: =+'RB FORECAST'!AJ36 -> 23473326.42 | AL34: =+'RB FORECAST'!AG36 -> 24917862.56 | AM34: =+'RB FORECAST'!BA36 -> 25623520.79 | AN34: =+'RB FORECAST'!AW36 -> 25814922.29 | AP34: =HLOOKUP($AP$8,RateBaseScenarios,AR34,FALSE) -> 23473326.42 | AQ34: =AP34-AE34 -> 778763.2982 | AR34: 27 | AS34: 22 | AW34: Utah | AY34: =+AE34 -> 22694563.12 | AZ34: =AP34 -> 23473326.42 | BA34: 778763.2982
A35: 964 | D35: Total | H35: =SUM(H33:H34) -> 20471690.48 | I35: =SUM(I33:I34) -> 20471690.48 | J35: 20471690.48 | K35: 20471690.48 | L35: 20471690.48 | M35: 20471690.48 | N35: 20471690.48 | O35: 20471690.48 | P35: 20471690.48 | Q35: 20471690.48 | R35: 20473046.8 | S35: 21991853.76 | T35: 21991853.76 | U35: 21991853.76 | V35: 23136057.4 | W35: 23136057.4 | X35: 23136057.4 | Y35: 23138554.4 | Z35: 23138554.4 | AA35: 23138554.4 | AB35: 23139138.41 | AC35: 23139138.41 | AD35: 23141132.61 | AE35: 23145881.16 | AG35: =SUM(AG33:AG34) -> 22899651.65 | AI35: =AE35 -> 23145881.16 | AJ35: =AG35 -> 22899651.65 | AK35: =SUM(AK33:AK34) -> 23931108.24 | AL35: =SUM(AL33:AL34) -> 25401413.28 | AM35: =SUM(AM33:AM34) -> 26120765.36 | AN35: 26315881.16 | AP35: =HLOOKUP($AP$8,RateBaseScenarios,AR35,FALSE) -> 23931108.24 | AQ35: =SUM(AQ33:AQ34) -> 785227.0839 | AR35: 28 | AS35: 23 | AW35: Total | AY35: =AI35 -> 23145881.16 | AZ35: =AJ35 -> 22899651.65 | BA35: -246229.5092
A36: 965 | AR36: 29 | AS36: 24
A37: 966 | B37: 375 | C37: Structures & Improyements | AR37: 30 | AS37: 25 | AU37: 375 | AV37: Structures & Improyements
A38: 967 | D38: Wyoming | H38: 1179422.22 | I38: 1179422.22 | J38: 1179422.22 | K38: 1179422.22 | L38: 1179422.22 | M38: 1179422.22 | N38: 1179422.22 | O38: 1179422.22 | P38: 1179422.22 | Q38: 1179422.22 | R38: 1179422.22 | S38: 1310185.27 | T38: 1310185.27 | U38: 1720370.64 | V38: 1720981.46 | W38: 1720981.46 | X38: 1725869.46 | Y38: 1725869.46 | Z38: 1725869.46 | AA38: 1725869.46 | AB38: 1725869.46 | AC38: 1725869.46 | AD38: 1725869.46 | AE38: 1726157.84 | AG38: =(SUM(T38:AD38)+(0.5*AE38)+(0.5*S38))/12 -> 1672648.05 | AI38: =AE38 -> 1726157.84 | AJ38: =AG38 -> 1672648.05 | AK38: =+'RB FORECAST'!AJ40 -> 1733560.1 | AL38: =+'RB FORECAST'!AG40 -> 1782332.858 | AM38: =+'RB FORECAST'!BA40 -> 1777436.132 | AN38: =+'RB FORECAST'!AW40 -> 1773328.723 | AP38: =HLOOKUP($AP$8,RateBaseScenarios,AR38,FALSE) -> 1733560.1 | AQ38: =AP38-AE38 -> 7402.259884 | AR38: 31 | AS38: 26 | AW38: Wyoming | AY38: =+AE38 -> 1726157.84 | AZ38: =AP38 -> 1733560.1 | BA38: =AZ38-AY38 -> 7402.259884
A39: 968 | D39: Utah | H39: 15327920 | I39: 15327920 | J39: 15339495.96 | K39: 15342598.46 | L39: 15342598.46 | M39: 15347457.21 | N39: 15349117.21 | O39: 15356747.21 | P39: 15356747.21 | Q39: 15855239.26 | R39: 15940579.56 | S39: 16428468.45 | T39: 16596884.96 | U39: 16581425.03 | V39: 17853847.59 | W39: 17865014.84 | X39: 17872724.42 | Y39: 17872724.42 | Z39: 17927907.32 | AA39: 17872183.9 | AB39: 17876188.9 | AC39: 18425493.84 | AD39: 18438414.88 | AE39: 19100999.09 | AG39: =(SUM(T39:AD39)+(0.5*AE39)+(0.5*S39))/12 -> 17745628.66 | AI39: =AE39 -> 19100999.09 | AJ39: =AG39 -> 17745628.66 | AK39: =+'RB FORECAST'!AJ41 -> 18630496.41 | AL39: =+'RB FORECAST'!AG41 -> 19005563.65 | AM39: =+'RB FORECAST'!BA41 -> 18953348.36 | AN39: =+'RB FORECAST'!AW41 -> 18909549.79 | AP39: =HLOOKUP($AP$8,RateBaseScenarios,AR39,FALSE) -> 18630496.41 | AQ39: =AP39-AE39 -> -470502.6803 | AR39: 32 | AS39: 27 | AW39: Utah | AY39: =+AE39 -> 19100999.09 | AZ39: =AP39 -> 18630496.41 | BA39: -470502.6803
A40: 969 | D40: Total | H40: =SUM(H38:H39) -> 16507342.22 | I40: =SUM(I38:I39) -> 16507342.22 | J40: 16518918.18 | K40: 16522020.68 | L40: 16522020.68 | M40: 16526879.43 | N40: 16528539.43 | O40: 16536169.43 | P40: 16536169.43 | Q40: 17034661.48 | R40: 17120001.78 | S40: 17738653.72 | T40: 17907070.23 | U40: 18301795.67 | V40: 19574829.05 | W40: 19585996.3 | X40: 19598593.88 | Y40: 19598593.88 | Z40: 19653776.78 | AA40: 19598053.36 | AB40: 19602058.36 | AC40: 20151363.3 | AD40: 20164284.34 | AE40: 20827156.93 | AG40: =SUM(AG38:AG39) -> 19418276.71 | AI40: =AE40 -> 20827156.93 | AJ40: =AG40 -> 19418276.71 | AK40: =SUM(AK38:AK39) -> 20364056.51 | AL40: =SUM(AL38:AL39) -> 20787896.51 | AM40: =SUM(AM38:AM39) -> 20730784.49 | AN40: 20682878.51 | AP40: =HLOOKUP($AP$8,RateBaseScenarios,AR40,FALSE) -> 20364056.51 | AQ40: =SUM(AQ38:AQ39) -> -463100.4205 | AR40: 33 | AS40: 28 | AW40: Total | AY40: =AI40 -> 20827156.93 | AZ40: =AJ40 -> 19418276.71 | BA40: -1408880.224
A41: 970 | AR41: 34 | AS41: 29
A42: 971 | B42: 376 | C42: Mains | AR42: 35 | AS42: 30 | AU42: 376 | AV42: Mains
A43: 972 | D43: Dist - Wy - Mains - SD | AP43: =HLOOKUP($AP$8,RateBaseScenarios,AR43,FALSE) -> 0 | AR43: 36 | AS43: 31 | AV43: Dist - Wy - Mains - SD
A44: 973 | D44: Dist - Wy - Mains - LD | AP44: 0 | AR44: 37 | AS44: 32 | AV44: Dist - Wy - Mains - LD
A45: 974 | D45: Dist - Wy - Mains - Feeders | AP45: 0 | AR45: 38 | AS45: 33 | AV45: Dist - Wy - Mains - Feeders
A46: 975 | D46: Total Wyoming | H46: 41299819.87 | I46: 41699133.53 | J46: 42314966.17 | K46: 42621391.87 | L46: 42621439.87 | M46: 42865738.51 | N46: 43429635.96 | O46: 43764258.24 | P46: 44507818.11 | Q46: 44053811.72 | R46: 48869929.43 | S46: 53047753.97 | T46: 53047753.97 | U46: 53047446.28 | V46: 53047205.87 | W46: 53047205.87 | X46: 53047205.87 | Y46: 53126122.3 | Z46: 53139457.89 | AA46: 53237659.46 | AB46: 53270334.69 | AC46: 53294039.42 | AD46: 53319450.98 | AE46: 53544561.17 | AG46: =(SUM(T46:AD46)+(0.5*AE46)+(0.5*S46))/12 -> 53160003.35 | AI46: =AE46 -> 53544561.17 | AJ46: =AG46 -> 53160003.35 | AK46: =+'RB FORECAST'!AJ48 -> 58741286.59 | AL46: =+'RB FORECAST'!AG48 -> 63118839.3 | AM46: =+'RB FORECAST'!BA48 -> 66776821.73 | AN46: =+'RB FORECAST'!AW48 -> 69050346.05 | AP46: 58741286.59 | AQ46: =AP46-AE46 -> 5196725.422 | AR46: 39 | AS46: 34 | AV46: Total Wyoming | AW46: Wyoming | AY46: =+AE46 -> 53544561.17 | AZ46: =AP46 -> 58741286.59 | BA46: =AZ46-AY46 -> 5196725.422
A47: =+A46+1 -> 976 | D47: Dist - Ut - Mains - SD | AP47: 0 | AR47: =+AR46+1 -> 40 | AS47: =+AS46+1 -> 35 | AV47: Dist - Ut - Mains - SD
A48: 977 | D48: Dist - Ut - Mains - LD | AP48: 0 | AR48: 41 | AS48: 36 | AV48: Dist - Ut - Mains - LD
A49: 978 | D49: Dist - Ut - Mains - Feeders | AP49: 0 | AR49: 42 | AS49: 37 | AV49: Dist - Ut - Mains - Feeders
A50: 979 | D50: Total Utah | H50: 1555598717 | I50: 1558772161 | J50: 1566647974 | K50: 1568048665 | L50: 1572083383 | M50: 1569989011 | N50: 1575879288 | O50: 1577953804 | P50: 1588306675 | Q50: 1593701614 | R50: 1598778841 | S50: 1674037202 | T50: 1676178793 | U50: 1678136736 | V50: 1715622384 | W50: 1717895435 | X50: 1752296360 | Y50: 1761363347 | Z50: 1767189057 | AA50: 1770495546 | AB50: 1774964575 | AC50: 1780261436 | AD50: 1781557325 | AE50: 1784062306 | AG50: =(SUM(T50:AD50)+(0.5*AE50)+(0.5*S50))/12 -> 1742084229 | AI50: =AE50 -> 1784062306 | AJ50: =AG50 -> 1742084229 | AK50: =+'RB FORECAST'!AJ52 -> 1992073302 | AL50: =+'RB FORECAST'!AG52 -> 2152322393 | AM50: =+'RB FORECAST'!BA52 -> 2277057854 | AN50: =+'RB FORECAST'!AW52 -> 2354583952 | AP50: 1992073302 | AQ50: =AP50-AE50 -> 208010996.2 | AR50: 43 | AS50: 38 | AV50: Total Utah | AY50: =+AE50 -> 1784062306 | AZ50: =AP50 -> 1992073302 | BA50: =AZ50-AY50 -> 208010996.2
A51: =+A50+1 -> 980 | D51: Total | H51: =SUM(H46:H50) -> 1596898536 | I51: =SUM(I46:I50) -> 1600471295 | J51: 1608962940 | K51: 1610670057 | L51: 1614704823 | M51: 1612854750 | N51: 1619308924 | O51: 1621718062 | P51: 1632814493 | Q51: 1637755426 | R51: 1647648770 | S51: 1727084956 | T51: 1729226547 | U51: 1731184182 | V51: 1768669590 | W51: 1770942640 | X51: 1805343566 | Y51: 1814489469 | Z51: 1820328515 | AA51: 1823733205 | AB51: 1828234910 | AC51: 1833555476 | AD51: 1834876776 | AE51: 1837606867 | AG51: =SUM(AG46:AG50) -> 1795244232 | AI51: =AE51 -> 1837606867 | AJ51: =AG51 -> 1795244232 | AK51: =SUM(AK46:AK50) -> 2050814589 | AL51: =SUM(AL46:AL50) -> 2215441233 | AM51: =SUM(AM46:AM50) -> 2343834676 | AN51: 2423634298 | AP51: 2050814589 | AQ51: =AQ50+AQ46 -> 213207721.6 | AR51: 44 | AS51: 39 | AW51: Total | AY51: =AI51 -> 1837606867 | AZ51: =AJ51 -> 1795244232 | BA51: =AZ51-AY51 -> -42362634.97
A52: =+A51+1 -> 981 | AR52: 45 | AS52: 40
